Workbook

Sheet Table of Contents
A1: Worksheet Report for O03.xlsm
A2: Report generated: 2/18/2017 6:18:15
A4: Sheet Name | B4: Comments | C4: Index | D4: Sheet Visibility | E4: Contents Protected | F4: Used Rows | G4: Used Columns | H4: Cells in Used Range | I4: Formula Cells | J4: Constant Cells | K4: Empty Cells | L4: Chart Objects | M4: Shapes
A5: Final Graphs | B5: All Graphs Based Entirely on Data Included | C5: 1 | D5: Visible | E5: No | F5: 7 | G5: 3 | H5: 21 | I5: 0 | J5: 0 | K5: 1400 | L5: 31 | M5: 65
A6: Final Tables | B6: Paper Table Based Entirely on Data Included | C6: 2 | D6: Visible | E6: No | F6: 25 | G6: 12 | H6: 300 | I6: 0 | J6: 77 | K6: 231 | L6: 0 | M6: 1
A7: wgen | B7: General Work Sheet to Collect Data to be Plotted | C7: 3 | D7: Visible | E7: No | F7: 185 | G7: 81 | H7: 14985 | I7: 4143 | J7: 392 | K7: 10450 | L7: 0 | M7: 6
A8: id2 | B8: Index to d2 TAB | C8: 4 | D8: Visible | E8: No | F8: 132 | G8: 9 | H8: 1188 | I8: 868 | J8: 144 | K8: 176 | L8: 0 | M8: 2
A9: wPIB_ad | B9: Number Basic Science PIs Smoothed. Used to get Desired Combined Distribution | C9: 5 | D9: Visible | E9: No | F9: 184 | G9: 65 | H9: 11960 | I9: 3399 | J9: 212 | K9: 8406 | L9: 0 | M9: 3
A10: b-pc_PI_SG | B10: Basic Science PIs smoothed and tabulated by Birth Year and Age. Ratio to number in previous year. | C10: 6 | D10: Visible | E10: No | F10: 271 | G10: 65 | H10: 17615 | I10: 7922 | J10: 88 | K10: 9605 | L10: 0 | M10: 3
A11: wR01 | B11: Number R01 Grantees Smoothed | C11: 7 | D11: Visible | E11: No | F11: 272 | G11: 65 | H11: 17680 | I11: 3160 | J11: 23 | K11: 14497 | L11: 0 | M11: 2
A12: wPIC | B12: Number of AAMC Clinical Science PIs Smoothed | C12: 8 | D12: Visible | E12: No | F12: 271 | G12: 65 | H12: 17615 | I12: 2985 | J12: 17 | K12: 14613 | L12: 0 | M12: 2
A13: wPIB | B13: Number AAMC Basic Science PIs Smoothed | C13: 9 | D13: Visible | E13: No | F13: 271 | G13: 65 | H13: 17615 | I13: 2985 | J13: 17 | K13: 14613 | L13: 0 | M13: 2
A14: wuSh | B14: R01 to PI_B Ratio Smoothed (_v) and Ushifted (kax=2) | C14: 10 | D14: Visible | E14: No | F14: 271 | G14: 65 | H14: 17615 | I14: 3048 | J14: 154 | K14: 14413 | L14: 0 | M14: 2
A15: wSh | B15: R01 to PI_B Ratio Smoothed (_v) and Shifted (kax=1) | C15: 11 | D15: Visible | E15: No | F15: 104 | G15: 65 | H15: 6760 | I15: 3109 | J15: 153 | K15: 3498 | L15: 0 | M15: 2
A16: wBudget | B16: Working copy of data in NIHBudgetHistory TAB | C16: 12 | D16: Visible | E16: No | F16: 16787 | G16: 51 | H16: 856137 | I16: 1721 | J16: 2096 | K16: 852631 | L16: 2 | M16: 15
A17: wCAf | B17: Work Sheet to fit Congressional Appropriation | C17: 13 | D17: Visible | E17: No | F17: 56 | G17: 16 | H17: 896 | I17: 630 | J17: 28 | K17: 238 | L17: 0 | M17: 2
A18: d2 | B18: Data from Perl code | C18: 14 | D18: Visible | E18: No | F18: 12400 | G18: 83 | H18: 1029200 | I18: 0 | J18: 606168 | K18: 423032 | L18: 0 | M18: 1
A19: Tab218Fix | B19: Fix Table 218 | C19: 15 | D19: Visible | E19: No | F19: 49 | G19: 18 | H19: 882 | I19: 326 | J19: 536 | K19: 39 | L19: 0 | M19: 1
A20: Table218 | B20: NIH Data of Grant Success Ratios | C20: 16 | D20: Visible | E20: Yes | F20: 57 | G20: 10 | H20: 570 | I20: ? | J20: ? | K20: ? | L20: 0 | M20: 2
A21: BergPercent | B21: Percent Salary from Sponsored Research | C21: 17 | D21: Visible | E21: No | F21: 31 | G21: 60 | H21: 1860 | I21: 2 | J21: 83 | K21: 1835 | L21: 0 | M21: 1
A22: Nobel | B22: Tables Summarizing Nobel Laureates by Area and Nationality | C22: 18 | D22: Visible | E22: No | F22: 71 | G22: 59 | H22: 4189 | I22: 273 | J22: 299 | K22: 3617 | L22: 0 | M22: 0
A23: FIR_R01 | B23: NIH Data on Age of FIR Grantees | C23: 19 | D23: Visible | E23: No | F23: 51 | G23: 30 | H23: 1530 | I23: 0 | J23: 302 | K23: 1228 | L23: 0 | M23: 2
A24: NIHBudgetHistory | B24: NIH budget mechanism detail FY 1995 - 2014 | C24: 20 | D24: Visible | E24: No | F24: 16252 | G24: 51 | H24: 828852 | I24: 0 | J24: 750 | K24: 828126 | L24: 0 | M24: 2
A25: Funds | B25: History of R01 and non-R01 Reasearch Grant Program (RPG) Funds | C25: 21 | D25: Visible | E25: No | F25: 320 | G25: 43 | H25: 13760 | I25: 790 | J25: 5121 | K25: 8226 | L25: 0 | M25: 5
A26: CongressionalAppropriation | B26: NIH Congressional Appropriation since 1938 | C26: 22 | D26: Visible | E26: No | F26: 221 | G26: 25 | H26: 5525 | I26: 36 | J26: 1455 | K26: 5031 | L26: 1 | M26: 3
A27: InflationIndices | B27: CPI and BRDPI Price Indices Used to Correct for Inflation | C27: 23 | D27: Visible | E27: No | F27: 510 | G27: 32 | H27: 16320 | I27: 997 | J27: 3924 | K27: 14195 | L27: 0 | M27: 4

Sheet Final Graphs
B1: Title | C1: Paper Graphs Based Entirely on Data Included

Sheet Final Tables
B1: Title | C1: Paper Table Based Entirely on Data Included
B7: Budget Item | C7: Amount in BRDPI Corrected Million $ | F7: Percent of Total NIH Budget
C8: Average <95-97> | D8: Average <12-14> | E8: % Ratio <12-14> to <95-97> | F8: Average <95-97> | G8: Average <12-14> | H8: % Ratio <12-14> to <95-97>
B9: Total Training | C9: 737 | D9: 763 | E9: 103.5% | F9: 3.5% | G9: 2.5% | H9: 71.3%
B10: Research Management | C10: 1,341 | D10: 2,311 | E10: 172.3% | F10: 6.3% | G10: 7.5% | H10: 118.8%
B11: Intramural Research | C11: 2,387 | D11: 3,422 | E11: 143.4% | F11: 11.3% | G11: 11.1% | H11: 98.9%
B12: R&D Contracts | C12: 1,450 | D12: 3,015 | E12: 207.9% | F12: 6.8% | G12: 9.8% | H12: 143.4%
B13: Centers, Other Research | C13: 2,950 | D13: 4,760 | E13: 161.4% | F13: 13.9% | G13: 15.5% | H13: 111.2%
B14: Total non-R01 RPG | C14: 3,347 | D14: 5,843 | E14: 174.6% | F14: 15.8% | G14: 19.0% | H14: 120.4%
B15: Total R01 Grants | C15: 8,978 | D15: 10,622 | E15: 118.3% | F15: 42.4% | G15: 34.6% | H15: 81.6%
B16: All Items | C16: 21,190 | D16: 30,737 | E16: 145.1% | F16: 100.0% | G16: 100.0% | H16: 100.0%
C21: =C14+C13+C12 -> 7,747 | D21: =D14+D13+D12 -> 13,619
C22: =C15 -> 8,978 | D22: =D15 -> 10,622
C24: =C21/C22 -> 86% | D24: =D21/D22 -> 128%
C25: =C22/C21 -> 116% | D25: =D22/D21 -> 78%

Sheet wgen
A1: Title | B1: General Work Sheet to Collect Data to be Plotted
A2: Purpose | B2: Use offset to get values of rows for plots
A3: Data Sources | B3: d2!A | C3: wCAf!A | D3: FIR_R01!A | F3: CongressionalAppropriation!A | K3: InflationIndices!A | O3: wCAf!A | Q3: Funds!A | S3: Tab218Fix!A
B4: B | C4: C | D4: D | F4: F | K4: K | O4: O | Q4: Q | S4: S
A10: Description | B10: Sheet | C10: Date Table | D10: Base Row | E10: Row Off | F10: Row Num | G10: Row | H10: =B7 -> 0 | I10: =H10+1 -> 1 | J10: =I10+1 -> 2 | K10: 3 | L10: 4 | M10: 5 | N10: 6 | O10: 7 | P10: 8 | Q10: 9 | R10: 10 | S10: 11 | T10: 12 | U10: 13 | V10: 14 | W10: 15 | X10: 16 | Y10: 17 | Z10: 18 | AA10: 19 | AB10: 20 | AC10: 21 | AD10: 22 | AE10: 23 | AF10: 24 | AG10: 25 | AH10: 26 | AI10: 27 | AJ10: 28 | AK10: 29 | AL10: 30 | AM10: 31 | AN10: 32 | AO10: 33 | AP10: 34 | AQ10: 35 | AR10: 36 | AS10: 37 | AT10: 38 | AU10: 39 | AV10: 40 | AW10: 41 | AX10: 42 | AY10: 43 | AZ10: 44 | BA10: 45 | BB10: 46 | BC10: 47 | BD10: 48 | BE10: 49 | BF10: 50 | BG10: 51
A11: Year | B11: B | C11: AL | D11: =VLOOKUP($C11,'id2'!$A$9:$B$132,2,0)-1 -> 0 | E11: 1 | F11: 11 | G11: =D11+E11 -> 1 | H11: =OFFSET(INDIRECT($B$3&1),$G11-1,H$10) -> 1 | I11: AL | J11: Age/Yea | K11: 1966 | L11: 1967 | M11: 1968 | N11: 1969 | O11: 1970 | P11: 1971 | Q11: 1972 | R11: 1973 | S11: 1974 | T11: 1975 | U11: 1976 | V11: 1977 | W11: 1978 | X11: 1979 | Y11: 1980 | Z11: 1981 | AA11: 1982 | AB11: 1983 | AC11: 1984 | AD11: 1985 | AE11: 1986 | AF11: 1987 | AG11: 1988 | AH11: 1989 | AI11: 1990 | AJ11: 1991 | AK11: 1992 | AL11: 1993 | AM11: 1994 | AN11: =OFFSET(INDIRECT($B$3&1),$G11-1,AN$10) -> 1995 | AO11: 1996 | AP11: 1997 | AQ11: 1998 | AR11: 1999 | AS11: 2000 | AT11: 2001 | AU11: 2002 | AV11: 2003 | AW11: 2004 | AX11: 2005 | AY11: 2006 | AZ11: 2007 | BA11: 2008 | BB11: 2009 | BC11: 2010 | BD11: 2011 | BE11: 2012 | BF11: 2013 | BG11: 2014
A12: Year | B12: D | F12: =1+F11 -> 12 | G12: =D12+E12 -> 0 | Y12: =OFFSET(INDIRECT($D$3&1),$G12-1+Z10-16,3) -> 1980 | Z12: =OFFSET(INDIRECT($D$3&1),$G12-1+AA10-16,3) -> 1981 | AA12: 1982 | AB12: 1983 | AC12: 1984 | AD12: 1985 | AE12: =OFFSET(INDIRECT($D$3&1),$G12-1+AF10-16,3) -> 1986 | AF12: 1987 | AG12: 1988 | AH12: 1989 | AI12: 1990 | AJ12: 1991 | AK12: 1992 | AL12: 1993 | AM12: 1994 | AN12: 1995 | AO12: 1996 | AP12: 1997 | AQ12: 1998 | AR12: 1999 | AS12: 2000 | AT12: 2001 | AU12: 2002 | AV12: 2003 | AW12: 2004 | AX12: 2005 | AY12: 2006 | AZ12: 2007 | BA12: 2008 | BB12: 2009 | BC12: 2010 | BD12: 2011
A13: AGE THRESHOLDS | F13: =1+F12 -> 13
A14: FIRST R01 | B14: D | F14: 14 | G14: =D14+E14 -> 0 | Y14: =OFFSET(INDIRECT($D$3&1),$G12-1+Z10-16,4) -> 36.1 | Z14: 36.2 | AA14: 36.3 | AB14: 36.5 | AC14: 36.9 | AD14: 37.0 | AE14: =OFFSET(INDIRECT($D$3&1),$G12-1+AF10-16,4) -> 37.5 | AF14: =OFFSET(INDIRECT($D$3&1),$G12-1+AG10-16,4) -> 38.0 | AG14: =OFFSET(INDIRECT($D$3&1),$G12-1+AH10-16,4) -> 38.2 | AH14: =OFFSET(INDIRECT($D$3&1),$G12-1+AI10-16,4) -> 38.8 | AI14: =OFFSET(INDIRECT($D$3&1),$G12-1+AJ10-16,4) -> 39.0 | AJ14: 39.2 | AK14: =OFFSET(INDIRECT($D$3&1),$G12-1+AL10-16,4) -> 39.2 | AL14: =OFFSET(INDIRECT($D$3&1),$G12-1+AM10-16,4) -> 39.9 | AM14: =OFFSET(INDIRECT($D$3&1),$G12-1+AN10-16,4) -> 40.0 | AN14: =OFFSET(INDIRECT($D$3&1),$G12-1+AO10-16,4) -> 40.1 | AO14: =OFFSET(INDIRECT($D$3&1),$G12-1+AP10-16,4) -> 40.1 | AP14: 40.3 | AQ14: =OFFSET(INDIRECT($D$3&1),$G12-1+AR10-16,4) -> 40.4 | AR14: =OFFSET(INDIRECT($D$3&1),$G12-1+AS10-16,4) -> 41.2 | AS14: =OFFSET(INDIRECT($D$3&1),$G12-1+AT10-16,4) -> 42.2 | AT14: =OFFSET(INDIRECT($D$3&1),$G12-1+AU10-16,4) -> 42.1 | AU14: =OFFSET(INDIRECT($D$3&1),$G12-1+AV10-16,4) -> 42.2 | AV14: 42.5 | AW14: =OFFSET(INDIRECT($D$3&1),$G12-1+AX10-16,4) -> 42.1 | AX14: =OFFSET(INDIRECT($D$3&1),$G12-1+AY10-16,4) -> 42.5 | AY14: =OFFSET(INDIRECT($D$3&1),$G12-1+AZ10-16,4) -> 42.3 | AZ14: =OFFSET(INDIRECT($D$3&1),$G12-1+BA10-16,4) -> 43.3 | BA14: =OFFSET(INDIRECT($D$3&1),$G12-1+BB10-16,4) -> 43.6 | BB14: 43.7 | BC14: =OFFSET(INDIRECT($D$3&1),$G12-1+BD10-16,4) -> 44.2 | BD14: =OFFSET(INDIRECT($D$3&1),$G12-1+BE10-16,4) -> 44.3
A15: 5% Youngest | B15: B | C15: R01 | D15: =VLOOKUP($C15,'id2'!$A$9:$B$132,2,0)-1 -> 2800 | E15: 77 | F15: 15 | G15: =D15+E15 -> 2877 | H15: =OFFSET(INDIRECT($B$3&1),$G15-1,H$10) -> 2877 | I15: R01 | J15: med_0.05 | K15: 0 | L15: 0.0 | M15: 0.0 | N15: 0.0 | O15: 0.0 | P15: 0.0 | Q15: 0.0 | R15: =OFFSET(INDIRECT($B$3&1),$G15-1,R$10) -> 0.0 | S15: 0.0 | T15: 0.0 | U15: 0.0 | V15: 0.0 | W15: 0.0 | X15: 0.0 | Y15: 31.4 | Z15: 31.4 | AA15: 31.5 | AB15: =OFFSET(INDIRECT($B$3&1),$G15-1,AB$10) -> 31.7 | AC15: 31.9 | AD15: 32.1 | AE15: 32.4 | AF15: 32.8 | AG15: 33.1 | AH15: 33.5 | AI15: 34.0 | AJ15: 34.3 | AK15: 34.4 | AL15: =OFFSET(INDIRECT($B$3&1),$G15-1,AL$10) -> 34.7 | AM15: 34.9 | AN15: 35.1 | AO15: 35.2 | AP15: 35.2 | AQ15: 35.3 | AR15: 35.5 | AS15: 35.9 | AT15: 36.2 | AU15: 36.4 | AV15: =OFFSET(INDIRECT($B$3&1),$G15-1,AV$10) -> 36.5 | AW15: 36.6 | AX15: 36.8 | AY15: 36.9 | AZ15: 37.0 | BA15: 37.1 | BB15: 37.0 | BC15: 37.0 | BD15: 37.0 | BE15: 37.2 | BF15: 37.3 | BG15: 37.5
A16: Median R01 | B16: B | C16: R01 | D16: =VLOOKUP($C16,'id2'!$A$9:$B$132,2,0)-1 -> 2800 | E16: 80 | F16: 16 | G16: =D16+E16 -> 2880 | H16: 2880 | I16: R01 | J16: med_0.50 | K16: 0 | L16: 0 | M16: 0 | N16: 0 | O16: 0 | P16: 0 | Q16: 0 | R16: 0 | S16: 0 | T16: 0 | U16: 0 | V16: 0 | W16: 0 | X16: 0 | Y16: 40 | Z16: 40.2 | AA16: 40.4 | AB16: 40.7 | AC16: 41.1 | AD16: 41.5 | AE16: 41.8 | AF16: 42.2 | AG16: 42.6 | AH16: 43 | AI16: 43.4 | AJ16: 43.7 | AK16: 44.1 | AL16: 44.6 | AM16: 45.1 | AN16: 45.2 | AO16: 45.6 | AP16: 45.9 | AQ16: 46.2 | AR16: 46.5 | AS16: 47.1 | AT16: 47.6 | AU16: 48.1 | AV16: 48.5 | AW16: 48.8 | AX16: 49 | AY16: 49.4 | AZ16: 49.6 | BA16: 49.7 | BB16: 49.9 | BC16: 50 | BD16: 49.9 | BE16: 50.1 | BF16: 50.3 | BG16: 50.5
A17: 5% Oldest | B17: B | C17: R01 | D17: =VLOOKUP($C17,'id2'!$A$9:$B$132,2,0)-1 -> 2800 | E17: 83 | F17: 17 | G17: 2883 | H17: 2883 | I17: R01 | J17: med_0.95 | K17: 0 | L17: 0 | M17: 0 | N17: 0 | O17: 0 | P17: 0 | Q17: 0 | R17: 0 | S17: 0 | T17: 0 | U17: 0 | V17: 0 | W17: 0 | X17: 0 | Y17: 57 | Z17: 57.3 | AA17: 57.6 | AB17: 58.2 | AC17: 58.7 | AD17: 59.1 | AE17: 59.5 | AF17: 60 | AG17: 60.5 | AH17: 60.9 | AI17: 61.3 | AJ17: 61.6 | AK17: 62 | AL17: 62.4 | AM17: 62.8 | AN17: 62.7 | AO17: 62.8 | AP17: 62.7 | AQ17: 63 | AR17: 63 | AS17: 63.4 | AT17: 63.8 | AU17: 64.2 | AV17: 64.7 | AW17: 64.8 | AX17: 65 | AY17: 65.6 | AZ17: 65.9 | BA17: 66 | BB17: 66.5 | BC17: 67 | BD17: 67.1 | BE17: 67.5 | BF17: 67.8 | BG17: 68.3
A18: 5% Youngest | B18: B | C18: PI_B | D18: =VLOOKUP($C18,'id2'!$A$9:$B$132,2,0)-1 -> 1600 | E18: 77 | F18: 18 | G18: 1677 | H18: 1677 | I18: PI_B | J18: med_0.05 | K18: 29.6 | L18: 29.4 | M18: 29.3 | N18: 29.3 | O18: 29.3 | P18: 29.2 | Q18: 29.3 | R18: 29.6 | S18: 30 | T18: 30.2 | U18: 30.4 | V18: 30.5 | W18: 30.6 | X18: 30.9 | Y18: 31.2 | Z18: 31.3 | AA18: 31.6 | AB18: 31.9 | AC18: 32.1 | AD18: 32.3 | AE18: 32.6 | AF18: 32.8 | AG18: 33.1 | AH18: 33.2 | AI18: 33.5 | AJ18: 33.6 | AK18: 33.8 | AL18: 34.1 | AM18: 34.3 | AN18: 34.5 | AO18: 34.7 | AP18: 34.9 | AQ18: 35 | AR18: 35.1 | AS18: 35.2 | AT18: 35.1 | AU18: 35 | AV18: 34.9 | AW18: 34.9 | AX18: 35.1 | AY18: 35.2 | AZ18: 35.3 | BA18: 35.2 | BB18: 35.3 | BC18: 35.3 | BD18: 35.4 | BE18: 35.5 | BF18: 35.7 | BG18: 36.1
A19: Median R01 | B19: B | C19: PI_B | D19: =VLOOKUP($C19,'id2'!$A$9:$B$132,2,0)-1 -> 1600 | E19: 80 | F19: 19 | G19: 1680 | H19: 1680 | I19: PI_B | J19: med_0.50 | K19: 40.6 | L19: 40.8 | M19: 40.9 | N19: 41 | O19: 41.2 | P19: 41.3 | Q19: 41.3 | R19: 41.3 | S19: 41.2 | T19: 41.2 | U19: 41.3 | V19: 41.3 | W19: 41.6 | X19: 41.8 | Y19: 42.1 | Z19: 42.4 | AA19: 42.8 | AB19: 43.1 | AC19: 43.6 | AD19: 43.9 | AE19: 44.3 | AF19: 44.7 | AG19: 45.3 | AH19: 45.6 | AI19: 46.1 | AJ19: 46.5 | AK19: 46.6 | AL19: 46.8 | AM19: 47.1 | AN19: 47.4 | AO19: 47.9 | AP19: 48.3 | AQ19: 48.7 | AR19: 49 | AS19: 49.2 | AT19: 49.4 | AU19: 49.7 | AV19: 49.9 | AW19: 50 | AX19: 50.2 | AY19: 50.4 | AZ19: 50.5 | BA19: 50.6 | BB19: 50.9 | BC19: 51.1 | BD19: 51.3 | BE19: 51.6 | BF19: 51.8 | BG19: 52.4
A20: 5% Oldest | B20: B | C20: PI_B | D20: =VLOOKUP($C20,'id2'!$A$9:$B$132,2,0)-1 -> 1600 | E20: 83 | F20: 20 | G20: 1683 | H20: 1683 | I20: PI_B | J20: med_0.95 | K20: 58.4 | L20: 59.1 | M20: 59.7 | N20: 60.2 | O20: 60.6 | P20: 60.9 | Q20: 61.1 | R20: 61 | S20: 60.8 | T20: 60.9 | U20: 61 | V20: 61 | W20: 61.4 | X20: 61.6 | Y20: 61.9 | Z20: 62.3 | AA20: 62.6 | AB20: 62.9 | AC20: 63.2 | AD20: 63.6 | AE20: 63.9 | AF20: 64.4 | AG20: 64.7 | AH20: 64.9 | AI20: 65.3 | AJ20: 65.6 | AK20: 65.5 | AL20: 65.8 | AM20: 66.2 | AN20: 66.4 | AO20: 66.8 | AP20: 67.1 | AQ20: 67.3 | AR20: 67.6 | AS20: 67.8 | AT20: 67.8 | AU20: 68.1 | AV20: 68.4 | AW20: 68.5 | AX20: 68.5 | AY20: 68.6 | AZ20: 68.7 | BA20: 68.5 | BB20: 68.8 | BC20: 69 | BD20: 69.3 | BE20: 69.8 | BF20: 70.3 | BG20: 70.9
A21: 5% Youngest | B21: B | C21: PI_C | D21: =VLOOKUP($C21,'id2'!$A$9:$B$132,2,0)-1 -> 2000 | E21: 77 | F21: 21 | G21: 2077 | H21: 2077 | I21: PI_C | J21: med_0.05 | K21: 31.2 | L21: 31.2 | M21: 31.2 | N21: 31.1 | O21: 31.1 | P21: 31.1 | Q21: 31 | R21: 30.9 | S21: 30.9 | T21: 31 | U21: 30.9 | V21: 30.7 | W21: 30.8 | X21: 31 | Y21: 31.1 | Z21: 31.1 | AA21: 31.2 | AB21: 31.4 | AC21: 31.5 | AD21: 31.7 | AE21: 31.8 | AF21: 31.9 | AG21: 32.1 | AH21: 32.2 | AI21: 32.4 | AJ21: 32.5 | AK21: 32.6 | AL21: 32.7 | AM21: 32.8 | AN21: 33 | AO21: 33.2 | AP21: 33.3 | AQ21: 33.5 | AR21: 33.5 | AS21: 33.6 | AT21: 33.6 | AU21: 33.6 | AV21: 33.6 | AW21: 33.6 | AX21: 33.6 | AY21: 33.5 | AZ21: 33.4 | BA21: 33.3 | BB21: 33.3 | BC21: 33.3 | BD21: 33.3 | BE21: 33.4 | BF21: 33.5 | BG21: 34
A22: Median R01 | B22: B | C22: PI_C | D22: =VLOOKUP($C22,'id2'!$A$9:$B$132,2,0)-1 -> 2000 | E22: 80 | F22: 22 | G22: 2080 | H22: 2080 | I22: PI_C | J22: med_0.50 | K22: 40.1 | L22: 40.3 | M22: 40.4 | N22: 40.6 | O22: 40.8 | P22: 41 | Q22: 41.2 | R22: 41.4 | S22: 41.4 | T22: 41.2 | U22: 41.2 | V22: 41.2 | W22: 41.4 | X22: 41.4 | Y22: 41.5 | Z22: 41.5 | AA22: 41.7 | AB22: 41.9 | AC22: 42 | AD22: 42.3 | AE22: 42.5 | AF22: 42.7 | AG22: 42.8 | AH22: 42.8 | AI22: 43.1 | AJ22: 43.3 | AK22: 43.4 | AL22: 43.6 | AM22: 43.8 | AN22: 44.1 | AO22: 44.5 | AP22: 44.9 | AQ22: 45.3 | AR22: 45.7 | AS22: 46.1 | AT22: 46.4 | AU22: 46.7 | AV22: 47 | AW22: 47.3 | AX22: 47.5 | AY22: 47.6 | AZ22: 47.7 | BA22: 47.7 | BB22: 47.8 | BC22: 47.8 | BD22: 47.9 | BE22: 48 | BF22: 48.1 | BG22: 48.6
A23: 5% Oldest | B23: B | C23: PI_C | D23: =VLOOKUP($C23,'id2'!$A$9:$B$132,2,0)-1 -> 2000 | E23: 83 | F23: 23 | G23: 2083 | H23: =OFFSET(INDIRECT($B$3&1),$G23-1,H$10) -> 2083 | I23: PI_C | J23: med_0.95 | K23: 56.7 | L23: 57.3 | M23: 57.7 | N23: 58.2 | O23: 58.6 | P23: 59 | Q23: 59.1 | R23: =OFFSET(INDIRECT($B$3&1),$G23-1,R$10) -> 59.4 | S23: 59.5 | T23: 59.7 | U23: 60 | V23: 60.1 | W23: 60.6 | X23: 60.9 | Y23: 61.1 | Z23: 61.3 | AA23: 61.6 | AB23: =OFFSET(INDIRECT($B$3&1),$G23-1,AB$10) -> 61.9 | AC23: 62.4 | AD23: 62.8 | AE23: 63.1 | AF23: 63.4 | AG23: 63.7 | AH23: 63.9 | AI23: 64.1 | AJ23: 64.2 | AK23: 64.1 | AL23: =OFFSET(INDIRECT($B$3&1),$G23-1,AL$10) -> 64.3 | AM23: 64.5 | AN23: 64.6 | AO23: 64.9 | AP23: 65.2 | AQ23: 65.4 | AR23: 65.5 | AS23: 65.8 | AT23: 65.9 | AU23: 66.2 | AV23: =OFFSET(INDIRECT($B$3&1),$G23-1,AV$10) -> 66.5 | AW23: 66.8 | AX23: 67 | AY23: 67.1 | AZ23: 66.7 | BA23: 66.8 | BB23: 67 | BC23: 67.3 | BD23: 67.7 | BE23: 68 | BF23: 68.3 | BG23: 68.8
F24: 24
F25: 25
F26: 26
A27: MONEY | F27: 27
A28: Congressional Appropriation Nominal ($B) | B28: F | C28: Scale= | D28: 1000 | E28: 16 | F28: 28 | G28: 153 | K28: =OFFSET(INDIRECT($F$3&1),$G28+H$10,$E28)/$D$28 -> 1101 | L28: =OFFSET(INDIRECT($F$3&1),$G28+I$10,$E28)/$D$28 -> 1014 | M28: 1076 | N28: 1110 | O28: 1061 | P28: 1213 | Q28: 1506 | R28: 1763 | S28: 1790 | T28: 2093 | U28: 2302 | V28: 2544 | W28: 2843 | X28: 3190 | Y28: 3429 | Z28: 3569 | AA28: 3642 | AB28: 4024 | AC28: 4494 | AD28: 5149 | AE28: 5262 | AF28: 6183 | AG28: 6667 | AH28: 7145 | AI28: 7576 | AJ28: 8275 | AK28: 8922 | AL28: 10336 | AM28: 10956 | AN28: 11300 | AO28: 11928 | AP28: 12741 | AQ28: 13675 | AR28: 15629 | AS28: 17841 | AT28: 20459 | AU28: 23321 | AV28: 27167 | AW28: 28037 | AX28: 28594 | AY28: 28560 | AZ28: 29179 | BA28: 29607 | BB28: 30545 | BC28: 31238 | BD28: 30916 | BE28: 30861 | BF28: 29316 | BG28: 30143
A29: Year check | B29: F | E29: 1 | F29: 29 | G29: 153 | K29: =OFFSET(INDIRECT($F$3&1),$G29+H$10,$E29) -> 1966 | L29: =OFFSET(INDIRECT($F$3&1),$G29+I$10,$E29) -> 1967 | M29: 1968 | N29: 1969 | O29: 1970 | P29: 1971 | Q29: 1972 | R29: 1973 | S29: 1974 | T29: 1975 | U29: 1976 | V29: 1977 | W29: 1978 | X29: 1979 | Y29: 1980 | Z29: 1981 | AA29: 1982 | AB29: 1983 | AC29: 1984 | AD29: 1985 | AE29: 1986 | AF29: 1987 | AG29: 1988 | AH29: 1989 | AI29: 1990 | AJ29: 1991 | AK29: 1992 | AL29: 1993 | AM29: 1994 | AN29: 1995 | AO29: 1996 | AP29: 1997 | AQ29: 1998 | AR29: 1999 | AS29: 2000 | AT29: 2001 | AU29: 2002 | AV29: 2003 | AW29: 2004 | AX29: 2005 | AY29: 2006 | AZ29: 2007 | BA29: 2008 | BB29: 2009 | BC29: 2010 | BD29: 2011 | BE29: 2012 | BF29: 2013 | BG29: 2014
A30: BRDPI Index (2014==1) | B30: K | E30: 3 | F30: 30 | G30: 56 | K30: =OFFSET(INDIRECT($K$3&1),$G30+H$10,$E30) -> 9.99 | L30: =OFFSET(INDIRECT($K$3&1),$G30+I$10,$E30) -> 9.57 | M30: 9.14 | N30: 8.67 | O30: 8.16 | P30: 7.71 | Q30: 7.35 | R30: 7.01 | S30: 6.59 | T30: =OFFSET(INDIRECT($K$3&1),$G30+Q$10,$E30) -> 5.96 | U30: =OFFSET(INDIRECT($K$3&1),$G30+R$10,$E30) -> 5.54 | V30: =OFFSET(INDIRECT($K$3&1),$G30+S$10,$E30) -> 5.13 | W30: =OFFSET(INDIRECT($K$3&1),$G30+T$10,$E30) -> 4.78 | X30: =OFFSET(INDIRECT($K$3&1),$G30+U$10,$E30) -> 4.41 | Y30: =OFFSET(INDIRECT($K$3&1),$G30+V$10,$E30) -> 4.02 | Z30: =OFFSET(INDIRECT($K$3&1),$G30+W$10,$E30) -> 3.64 | AA30: 3.35 | AB30: =OFFSET(INDIRECT($K$3&1),$G30+Y$10,$E30) -> 3.16 | AC30: =OFFSET(INDIRECT($K$3&1),$G30+Z$10,$E30) -> 2.98 | AD30: =OFFSET(INDIRECT($K$3&1),$G30+AA$10,$E30) -> 2.82 | AE30: =OFFSET(INDIRECT($K$3&1),$G30+AB$10,$E30) -> 2.71 | AF30: =OFFSET(INDIRECT($K$3&1),$G30+AC$10,$E30) -> 2.57 | AG30: =OFFSET(INDIRECT($K$3&1),$G30+AD$10,$E30) -> 2.45 | AH30: =OFFSET(INDIRECT($K$3&1),$G30+AE$10,$E30) -> 2.33 | AI30: 2.21 | AJ30: =OFFSET(INDIRECT($K$3&1),$G30+AG$10,$E30) -> 2.11 | AK30: =OFFSET(INDIRECT($K$3&1),$G30+AH$10,$E30) -> 2.02 | AL30: =OFFSET(INDIRECT($K$3&1),$G30+AI$10,$E30) -> 1.95 | AM30: =OFFSET(INDIRECT($K$3&1),$G30+AJ$10,$E30) -> 1.88 | AN30: =OFFSET(INDIRECT($K$3&1),$G30+AK$10,$E30) -> 1.82 | AO30: =OFFSET(INDIRECT($K$3&1),$G30+AL$10,$E30) -> 1.77 | AP30: =OFFSET(INDIRECT($K$3&1),$G30+AM$10,$E30) -> 1.72 | AQ30: 1.67 | AR30: =OFFSET(INDIRECT($K$3&1),$G30+AO$10,$E30) -> 1.61 | AS30: =OFFSET(INDIRECT($K$3&1),$G30+AP$10,$E30) -> 1.56 | AT30: =OFFSET(INDIRECT($K$3&1),$G30+AQ$10,$E30) -> 1.51 | AU30: =OFFSET(INDIRECT($K$3&1),$G30+AR$10,$E30) -> 1.46 | AV30: =OFFSET(INDIRECT($K$3&1),$G30+AS$10,$E30) -> 1.41 | AW30: =OFFSET(INDIRECT($K$3&1),$G30+AT$10,$E30) -> 1.36 | AX30: =OFFSET(INDIRECT($K$3&1),$G30+AU$10,$E30) -> 1.31 | AY30: 1.25 | AZ30: =OFFSET(INDIRECT($K$3&1),$G30+AW$10,$E30) -> 1.20 | BA30: =OFFSET(INDIRECT($K$3&1),$G30+AX$10,$E30) -> 1.15 | BB30: =OFFSET(INDIRECT($K$3&1),$G30+AY$10,$E30) -> 1.12 | BC30: =OFFSET(INDIRECT($K$3&1),$G30+AZ$10,$E30) -> 1.08 | BD30: =OFFSET(INDIRECT($K$3&1),$G30+BA$10,$E30) -> 1.05 | BE30: =OFFSET(INDIRECT($K$3&1),$G30+BB$10,$E30) -> 1.04 | BF30: =OFFSET(INDIRECT($K$3&1),$G30+BC$10,$E30) -> 1.02 | BG30: 1.00
A31: Congressional Appropriation BRDPI ($B) | C31: =K28*K30 | F31: 31 | K31: =K28*K30 -> 10994 | L31: =L28*L30 -> 9707 | M31: 9835 | N31: 9624 | O31: 8659 | P31: 9355 | Q31: 11067 | R31: 12361 | S31: 11804 | T31: 12466 | U31: 12761 | V31: 13058 | W31: 13589 | X31: 14078 | Y31: 13782 | Z31: 12995 | AA31: 12209 | AB31: 12703 | AC31: 13395 | AD31: 14536 | AE31: 14256 | AF31: 15902 | AG31: 16328 | AH31: 16634 | AI31: 16731 | AJ31: 17432 | AK31: 18001 | AL31: 20165 | AM31: 20578 | AN31: 20513 | AO31: 21113 | AP31: 21942 | AQ31: 22778 | AR31: 25235 | AS31: 27771 | AT31: 30821 | AU31: 34007 | AV31: 38270 | AW31: 38076 | AX31: 37380 | AY31: 35683 | AZ31: 35123 | BA31: 34045 | BB31: 34125 | BC31: 33869 | BD31: 32588 | BE31: 32118 | BF31: 29949 | BG31: 30143
A32: Congressional Appropriation Nominal Fit | B32: O | E32: 7 | F32: 32 | G32: 7 | K32: =OFFSET(INDIRECT($O$3&1),$G32+H$10,$E32) -> 9502 | L32: =OFFSET(INDIRECT($O$3&1),$G32+I$10,$E32) -> 9744 | M32: 9993 | N32: 10248 | O32: 10509 | P32: =OFFSET(INDIRECT($O$3&1),$G32+M$10,$E32) -> 10777 | Q32: =OFFSET(INDIRECT($O$3&1),$G32+N$10,$E32) -> 11051 | R32: =OFFSET(INDIRECT($O$3&1),$G32+O$10,$E32) -> 11333 | S32: =OFFSET(INDIRECT($O$3&1),$G32+P$10,$E32) -> 11622 | T32: =OFFSET(INDIRECT($O$3&1),$G32+Q$10,$E32) -> 11918 | U32: =OFFSET(INDIRECT($O$3&1),$G32+R$10,$E32) -> 12222 | V32: =OFFSET(INDIRECT($O$3&1),$G32+S$10,$E32) -> 12533 | W32: =OFFSET(INDIRECT($O$3&1),$G32+T$10,$E32) -> 12853 | X32: =OFFSET(INDIRECT($O$3&1),$G32+U$10,$E32) -> 13180 | Y32: =OFFSET(INDIRECT($O$3&1),$G32+V$10,$E32) -> 13516 | Z32: =OFFSET(INDIRECT($O$3&1),$G32+W$10,$E32) -> 13861 | AA32: =OFFSET(INDIRECT($O$3&1),$G32+X$10,$E32) -> 14214 | AB32: =OFFSET(INDIRECT($O$3&1),$G32+Y$10,$E32) -> 14576 | AC32: =OFFSET(INDIRECT($O$3&1),$G32+Z$10,$E32) -> 14948 | AD32: =OFFSET(INDIRECT($O$3&1),$G32+AA$10,$E32) -> 15329 | AE32: =OFFSET(INDIRECT($O$3&1),$G32+AB$10,$E32) -> 15720 | AF32: =OFFSET(INDIRECT($O$3&1),$G32+AC$10,$E32) -> 16120 | AG32: =OFFSET(INDIRECT($O$3&1),$G32+AD$10,$E32) -> 16531 | AH32: =OFFSET(INDIRECT($O$3&1),$G32+AE$10,$E32) -> 16952 | AI32: =OFFSET(INDIRECT($O$3&1),$G32+AF$10,$E32) -> 17385 | AJ32: =OFFSET(INDIRECT($O$3&1),$G32+AG$10,$E32) -> 17828 | AK32: =OFFSET(INDIRECT($O$3&1),$G32+AH$10,$E32) -> 18282 | AL32: =OFFSET(INDIRECT($O$3&1),$G32+AI$10,$E32) -> 18748 | AM32: =OFFSET(INDIRECT($O$3&1),$G32+AJ$10,$E32) -> 19226 | AN32: =OFFSET(INDIRECT($O$3&1),$G32+AK$10,$E32) -> 19716 | AO32: =OFFSET(INDIRECT($O$3&1),$G32+AL$10,$E32) -> 20218 | AP32: =OFFSET(INDIRECT($O$3&1),$G32+AM$10,$E32) -> 20734 | AQ32: =OFFSET(INDIRECT($O$3&1),$G32+AN$10,$E32) -> 21262 | AR32: =OFFSET(INDIRECT($O$3&1),$G32+AO$10,$E32) -> 21804 | AS32: =OFFSET(INDIRECT($O$3&1),$G32+AP$10,$E32) -> 22360 | AT32: =OFFSET(INDIRECT($O$3&1),$G32+AQ$10,$E32) -> 22930 | AU32: =OFFSET(INDIRECT($O$3&1),$G32+AR$10,$E32) -> 23514 | AV32: =OFFSET(INDIRECT($O$3&1),$G32+AS$10,$E32) -> 24114 | AW32: =OFFSET(INDIRECT($O$3&1),$G32+AT$10,$E32) -> 24728 | AX32: =OFFSET(INDIRECT($O$3&1),$G32+AU$10,$E32) -> 25359 | AY32: =OFFSET(INDIRECT($O$3&1),$G32+AV$10,$E32) -> 26005 | AZ32: =OFFSET(INDIRECT($O$3&1),$G32+AW$10,$E32) -> 26668 | BA32: =OFFSET(INDIRECT($O$3&1),$G32+AX$10,$E32) -> 27348 | BB32: =OFFSET(INDIRECT($O$3&1),$G32+AY$10,$E32) -> 28045 | BC32: =OFFSET(INDIRECT($O$3&1),$G32+AZ$10,$E32) -> 28759 | BD32: =OFFSET(INDIRECT($O$3&1),$G32+BA$10,$E32) -> 29492 | BE32: =OFFSET(INDIRECT($O$3&1),$G32+BB$10,$E32) -> 30244 | BF32: =OFFSET(INDIRECT($O$3&1),$G32+BC$10,$E32) -> 31015 | BG32: =OFFSET(INDIRECT($O$3&1),$G32+BD$10,$E32) -> 31806
A33: Congressional Appropriation BRDPI Fit | B33: O | E33: 11 | F33: 33 | G33: 7 | K33: =OFFSET(INDIRECT($O$3&1),$G33+H$10,$E33) -> 1773 | L33: 1883 | M33: 1999 | N33: 2123 | O33: 2255 | P33: 2394 | Q33: 2543 | R33: 2700 | S33: 2867 | T33: 3045 | U33: 3233 | V33: 3434 | W33: 3646 | X33: 3872 | Y33: 4112 | Z33: 4367 | AA33: 4637 | AB33: 4924 | AC33: 5229 | AD33: 5553 | AE33: 5897 | AF33: 6262 | AG33: 6650 | AH33: 7062 | AI33: 7499 | AJ33: 7963 | AK33: 8456 | AL33: 8980 | AM33: 9536 | AN33: 10127 | AO33: 10754 | AP33: 11420 | AQ33: 12127 | AR33: 12878 | AS33: 13676 | AT33: 14523 | AU33: 15422 | AV33: 16377 | AW33: 17391 | AX33: 18468 | AY33: 19612 | AZ33: 20827 | BA33: 22116 | BB33: 23486 | BC33: 24941 | BD33: 26485 | BE33: 28125 | BF33: 29867 | BG33: 31717
A34: Nominal R01 Funding All | B34: Q | D34: 1 | F34: 34 | G34: 143 | Y34: =OFFSET(INDIRECT($Q$3&1),$G34+H$10,$D34)/1000000 -> 1411 | Z34: 1549 | AA34: 1602 | AB34: 1826 | AC34: 2097 | AD34: 2402 | AE34: 2512 | AF34: 2946 | AG34: 3112 | AH34: 3405 | AI34: 3573 | AJ34: 3918 | AK34: 4230 | AL34: 4348 | AM34: 4588 | AN34: 4724 | AO34: 5055 | AP34: 5465 | AQ34: 5989 | AR34: 6733 | AS34: 7613 | AT34: 8507 | AU34: 9347 | AV34: 10085 | AW34: 10543 | AX34: 10680 | AY34: 10517 | AZ34: 10418 | BA34: 10328 | BB34: 10616 | BC34: 10993 | BD34: 10858 | BE34: 10892 | BF34: 10073 | BG34: 10238
A35: BRDPI$ R01 Funding All | B35: Q | C35: =*Y$30 | D35: 1 | F35: 35 | G35: 143 | Y35: =Y$30*OFFSET(INDIRECT($Q$3&1),$G35+H$10,$D35)/1000000 -> 5671 | Z35: 5641 | AA35: 5371 | AB35: 5763 | AC35: 6251 | AD35: 6781 | AE35: 6804 | AF35: 7576 | AG35: 7622 | AH35: 7927 | AI35: =AI$30*OFFSET(INDIRECT($Q$3&1),$G35+R$10,$D35)/1000000 -> 7891 | AJ35: 8255 | AK35: 8534 | AL35: 8482 | AM35: 8618 | AN35: 8577 | AO35: 8947 | AP35: 9412 | AQ35: 9976 | AR35: 10871 | AS35: =AS$30*OFFSET(INDIRECT($Q$3&1),$G35+AB$10,$D35)/1000000 -> 11850 | AT35: 12815 | AU35: 13630 | AV35: 14207 | AW35: 14319 | AX35: 13961 | AY35: 13139 | AZ35: 12540 | BA35: 11876 | BB35: 11860 | BC35: =BC$30*OFFSET(INDIRECT($Q$3&1),$G35+AL$10,$D35)/1000000 -> 11918 | BD35: 11445 | BE35: 11336 | BF35: 10290 | BG35: 10238
A36: BRDPI$ R01 Funding Under 46 | B36: Q | C36: =*Y$30 | D36: 6 | F36: 36 | G36: 143 | Y36: 3420 | Z36: 3402 | AA36: 3237 | AB36: 3404 | AC36: 3600 | AD36: 3861 | AE36: 3801 | AF36: 4166 | AG36: 3995 | AH36: 4018 | AI36: 3848 | AJ36: 3942 | AK36: 3905 | AL36: 3669 | AM36: 3573 | AN36: 3452 | AO36: 3461 | AP36: 3527 | AQ36: 3555 | AR36: 3755 | AS36: 3890 | AT36: 4148 | AU36: 4216 | AV36: 4239 | AW36: 4102 | AX36: 3845 | AY36: 3488 | AZ36: 3291 | BA36: 3085 | BB36: 3048 | BC36: 3080 | BD36: 2981 | BE36: 2947 | BF36: 2697 | BG36: 2702
A37: BRDPI$ R01 Funding 46 to 55 | B37: Q | C37: =*Y$30 | D37: 7 | F37: 37 | G37: 143 | Y37: 1676 | Z37: 1607 | AA37: 1509 | AB37: 1640 | AC37: 1825 | AD37: 1972 | AE37: 2018 | AF37: 2260 | AG37: 2406 | AH37: 2638 | AI37: 2735 | AJ37: 2943 | AK37: 3196 | AL37: 3290 | AM37: 3429 | AN37: 3515 | AO37: 3737 | AP37: 4002 | AQ37: 4236 | AR37: 4639 | AS37: 5129 | AT37: 5451 | AU37: 5855 | AV37: 6039 | AW37: 6075 | AX37: 5879 | AY37: 5493 | AZ37: 5117 | BA37: 4757 | BB37: 4644 | BC37: 4553 | BD37: 4255 | BE37: 4171 | BF37: 3697 | BG37: 3614
A38: BRDPI$ R01 Funding Over 55 | B38: Q | C38: =*Y$30 | D38: 8 | F38: 38 | G38: 143 | Y38: 574 | Z38: 632 | AA38: 625 | AB38: 719 | AC38: 826 | AD38: 948 | AE38: 985 | AF38: 1150 | AG38: 1221 | AH38: 1271 | AI38: 1308 | AJ38: 1370 | AK38: 1432 | AL38: 1523 | AM38: 1616 | AN38: 1610 | AO38: 1749 | AP38: 1883 | AQ38: 2185 | AR38: 2477 | AS38: 2831 | AT38: 3216 | AU38: 3558 | AV38: 3929 | AW38: 4141 | AX38: 4237 | AY38: 4158 | AZ38: 4131 | BA38: 4035 | BB38: 4169 | BC38: 4285 | BD38: 4209 | BE38: 4218 | BF38: 3896 | BG38: 3923
A39: BRDPI$ R01 Funding >55 | B39: Q | D39: 8 | F39: 39 | G39: 143 | Y39: 574 | Z39: 632 | AA39: 625 | AB39: 719 | AC39: 826 | AD39: 948 | AE39: 985 | AF39: 1150 | AG39: 1221 | AH39: 1271 | AI39: 1308 | AJ39: 1370 | AK39: 1432 | AL39: 1523 | AM39: 1616 | AN39: 1610 | AO39: 1749 | AP39: 1883 | AQ39: 2185 | AR39: 2477 | AS39: 2831 | AT39: 3216 | AU39: 3558 | AV39: 3929 | AW39: 4141 | AX39: 4237 | AY39: 4158 | AZ39: 4131 | BA39: 4035 | BB39: 4169 | BC39: 4285 | BD39: 4209 | BE39: 4218 | BF39: 3896 | BG39: 3923
A40: BRDPI$ R01 Funding <56 | C40: =C35-C39 | F40: 40 | Y40: =Y35-Y39 -> 5096 | Z40: 5009 | AA40: 4745 | AB40: 5044 | AC40: 5425 | AD40: 5833 | AE40: 5819 | AF40: 6426 | AG40: 6401 | AH40: 6656 | AI40: 6583 | AJ40: 6885 | AK40: 7102 | AL40: 6959 | AM40: 7003 | AN40: 6967 | AO40: 7198 | AP40: 7529 | AQ40: 7790 | AR40: 8394 | AS40: 9019 | AT40: 9599 | AU40: 10071 | AV40: 10278 | AW40: 10177 | AX40: 9724 | AY40: 8981 | AZ40: 8409 | BA40: 7842 | BB40: 7692 | BC40: 7633 | BD40: 7236 | BE40: 7118 | BF40: 6394 | BG40: 6316
A41: BRDPI$ RPG Funding Under 46 | B41: Q | C41: =*Y$30 | D41: 6 | F41: 41 | G41: 280 | Y41: =Y$30*OFFSET(INDIRECT($Q$3&1),$G41+H$10,$D41)/1000000 -> 3646 | Z41: 3650 | AA41: 3479 | AB41: 3667 | AC41: 3897 | AD41: 4254 | AE41: 4204 | AF41: 4703 | AG41: 4568 | AH41: 4578 | AI41: =AI$30*OFFSET(INDIRECT($Q$3&1),$G41+R$10,$D41)/1000000 -> 4394 | AJ41: 4541 | AK41: 4546 | AL41: 4214 | AM41: 4164 | AN41: 4004 | AO41: 3951 | AP41: 4028 | AQ41: 3995 | AR41: 4232 | AS41: =AS$30*OFFSET(INDIRECT($Q$3&1),$G41+AB$10,$D41)/1000000 -> 4510 | AT41: 4861 | AU41: 5050 | AV41: 5155 | AW41: 5098 | AX41: 4824 | AY41: 4388 | AZ41: 4301 | BA41: 4114 | BB41: 4047 | BC41: =BC$30*OFFSET(INDIRECT($Q$3&1),$G41+AL$10,$D41)/1000000 -> 4121 | BD41: 4069 | BE41: 4054 | BF41: 3724 | BG41: 3837
A42: BRDPI$ RPG Funding 46 to 55 | B42: Q | C42: =*Y$30 | D42: 7 | F42: 42 | G42: 280 | Y42: 2348 | Z42: 2181 | AA42: 2049 | AB42: 2207 | AC42: 2378 | AD42: 2588 | AE42: 2658 | AF42: 3006 | AG42: 3330 | AH42: 3629 | AI42: 3757 | AJ42: 3995 | AK42: 4354 | AL42: 4478 | AM42: 4633 | AN42: 4740 | AO42: 5033 | AP42: 5286 | AQ42: 5543 | AR42: 6076 | AS42: 6804 | AT42: 7379 | AU42: 8014 | AV42: 8177 | AW42: 8387 | AX42: 8168 | AY42: 7614 | AZ42: 7167 | BA42: 6675 | BB42: 6483 | BC42: 6249 | BD42: 5818 | BE42: 5629 | BF42: 5069 | BG42: 5021
A43: BRDPI$ RPG Funding Over 55 | B43: Q | C43: =*Y$30 | D43: 8 | F43: 43 | G43: 280 | Y43: 997 | Z43: 1107 | AA43: 1042 | AB43: 1158 | AC43: 1317 | AD43: 1486 | AE43: 1588 | AF43: 1865 | AG43: 1971 | AH43: 2050 | AI43: 2092 | AJ43: 2178 | AK43: 2260 | AL43: 2366 | AM43: 2435 | AN43: 2440 | AO43: 2606 | AP43: 2837 | AQ43: 3248 | AR43: 3636 | AS43: 4197 | AT43: 4822 | AU43: 5367 | AV43: 6105 | AW43: 6464 | AX43: 6688 | AY43: 6585 | AZ43: 6643 | BA43: 6474 | BB43: 6699 | BC43: 6821 | BD43: 6779 | BE43: 6879 | BF43: 6444 | BG43: 6761
A44: BRDPI$ RPG Funding >55 | B44: Q | D44: 8 | F44: 44 | G44: 280 | Y44: 997 | Z44: 1107 | AA44: 1042 | AB44: 1158 | AC44: 1317 | AD44: 1486 | AE44: 1588 | AF44: 1865 | AG44: 1971 | AH44: 2050 | AI44: 2092 | AJ44: 2178 | AK44: 2260 | AL44: 2366 | AM44: 2435 | AN44: 2440 | AO44: 2606 | AP44: 2837 | AQ44: 3248 | AR44: 3636 | AS44: 4197 | AT44: 4822 | AU44: 5367 | AV44: 6105 | AW44: 6464 | AX44: 6688 | AY44: 6585 | AZ44: 6643 | BA44: 6474 | BB44: 6699 | BC44: 6821 | BD44: 6779 | BE44: 6879 | BF44: 6444 | BG44: 6761
A45: BRDPI$ RPG Funding <56 | C45: =C40-C44 | F45: 45 | Y45: =Y40-Y44 -> 4099 | Z45: 3902 | AA45: 3703 | AB45: 3886 | AC45: 4108 | AD45: 4347 | AE45: 4231 | AF45: 4561 | AG45: 4430 | AH45: 4606 | AI45: 4491 | AJ45: 4707 | AK45: 4842 | AL45: 4593 | AM45: 4567 | AN45: 4527 | AO45: 4591 | AP45: 4692 | AQ45: 4542 | AR45: 4758 | AS45: 4822 | AT45: 4777 | AU45: 4704 | AV45: 4172 | AW45: 3713 | AX45: 3036 | AY45: 2397 | AZ45: 1766 | BA45: 1367 | BB45: 992 | BC45: 812 | BD45: 457 | BE45: 239 | BF45: -49 | BG45: -445
A46: BRDPI$ non-R01 RPG Funding Under 46 | B46: Q | C46: =*Y$30 | D46: 6 | F46: 46 | Y46: =Y41-Y36 -> 226 | Z46: =Z41-Z36 -> 248 | AA46: 243 | AB46: 263 | AC46: 297 | AD46: 393 | AE46: 404 | AF46: 536 | AG46: 573 | AH46: 560 | AI46: 545 | AJ46: 599 | AK46: 640 | AL46: 546 | AM46: 591 | AN46: 552 | AO46: 489 | AP46: 500 | AQ46: 441 | AR46: 477 | AS46: 620 | AT46: 713 | AU46: 833 | AV46: 916 | AW46: 996 | AX46: 978 | AY46: 899 | AZ46: 1010 | BA46: 1029 | BB46: 999 | BC46: 1041 | BD46: 1088 | BE46: 1107 | BF46: 1027 | BG46: 1135
A47: BRDPI$ non-R01 RPG Funding 46 to 55 | B47: Q | C47: =*Y$30 | D47: 7 | F47: 47 | Y47: =Y42-Y37 -> 672 | Z47: 574 | AA47: 540 | AB47: 566 | AC47: 553 | AD47: 616 | AE47: 639 | AF47: 746 | AG47: 924 | AH47: 991 | AI47: 1022 | AJ47: 1052 | AK47: 1158 | AL47: 1188 | AM47: 1204 | AN47: 1225 | AO47: 1297 | AP47: 1285 | AQ47: 1307 | AR47: 1437 | AS47: 1674 | AT47: 1928 | AU47: 2159 | AV47: 2138 | AW47: 2312 | AX47: 2290 | AY47: 2121 | AZ47: 2050 | BA47: 1918 | BB47: 1839 | BC47: 1696 | BD47: 1562 | BE47: 1459 | BF47: 1372 | BG47: 1407
A48: BRDPI$ non-R01 RPG Funding Over 55 | B48: Q | C48: =*Y$30 | D48: 8 | F48: 48 | Y48: 422 | Z48: 475 | AA48: 417 | AB48: 440 | AC48: 491 | AD48: 538 | AE48: 603 | AF48: 715 | AG48: 750 | AH48: 779 | AI48: 784 | AJ48: 808 | AK48: 827 | AL48: 843 | AM48: 820 | AN48: 830 | AO48: 857 | AP48: 954 | AQ48: 1063 | AR48: 1159 | AS48: 1367 | AT48: 1605 | AU48: 1809 | AV48: 2176 | AW48: 2323 | AX48: 2451 | AY48: 2427 | AZ48: 2512 | BA48: 2440 | BB48: 2531 | BC48: 2536 | BD48: 2570 | BE48: 2660 | BF48: 2547 | BG48: 2838
A49: BRDPI$ non-R01 RPG Funding >55 | B49: Q | D49: 8 | F49: 49 | Y49: 422 | Z49: =Z44-Z39 -> 475 | AA49: 417 | AB49: 440 | AC49: 491 | AD49: 538 | AE49: 603 | AF49: 715 | AG49: 750 | AH49: 779 | AI49: 784 | AJ49: 808 | AK49: 827 | AL49: 843 | AM49: 820 | AN49: 830 | AO49: 857 | AP49: 954 | AQ49: 1063 | AR49: 1159 | AS49: 1367 | AT49: 1605 | AU49: 1809 | AV49: 2176 | AW49: 2323 | AX49: 2451 | AY49: 2427 | AZ49: 2512 | BA49: 2440 | BB49: 2531 | BC49: 2536 | BD49: 2570 | BE49: 2660 | BF49: 2547 | BG49: 2838
A50: BRDPI$ non-R01 RPG Funding <56 | C50: =C53-C49 | F50: 50 | Y50: =Y53-Y49 -> 899 | Z50: =Z53-Z49 -> 821 | AA50: 783 | AB50: 829 | AC50: 850 | AD50: 1009 | AE50: 1043 | AF50: 1283 | AG50: 1497 | AH50: 1551 | AI50: 1567 | AJ50: 1651 | AK50: 1798 | AL50: 1733 | AM50: 1795 | AN50: 1777 | AO50: 1786 | AP50: 1785 | AQ50: 1748 | AR50: 1914 | AS50: 2294 | AT50: 2641 | AU50: 2992 | AV50: 3054 | AW50: 3308 | AX50: 3268 | AY50: 3021 | AZ50: 3059 | BA50: 2948 | BB50: 2839 | BC50: 2737 | BD50: 2650 | BE50: 2566 | BF50: 2399 | BG50: 2543
A51: BRDPI$ RPG Funding All | B51: Q | C51: =*Y$30 | D51: 1 | F51: 51 | G51: 280 | H51: =SUM(Y41:Y43) -> 6992 | Y51: =Y$30*OFFSET(INDIRECT($Q$3&1),$G51+H$10,$D51)/1000000 -> 6992 | Z51: =Z$30*OFFSET(INDIRECT($Q$3&1),$G51+I$10,$D51)/1000000 -> 6938 | AA51: 6570 | AB51: 7032 | AC51: 7592 | AD51: 8328 | AE51: 8450 | AF51: 9574 | AG51: 9869 | AH51: 10257 | AI51: 10242 | AJ51: 10714 | AK51: 11159 | AL51: 11059 | AM51: 11233 | AN51: 11184 | AO51: 11590 | AP51: 12151 | AQ51: 12787 | AR51: 13944 | AS51: 15511 | AT51: 17062 | AU51: 18431 | AV51: 19437 | AW51: 19949 | AX51: 19680 | AY51: 18587 | AZ51: 18111 | BA51: 17264 | BB51: 17229 | BC51: 17191 | BD51: 16665 | BE51: 16562 | BF51: 15237 | BG51: 15619
A52: BRDPI$ R01 Funding All | B52: Q | C52: =*Y$30 | D52: 1 | F52: 52 | G52: 143 | H52: =SUM(Y36:Y38) -> 5671 | Y52: =Y$30*OFFSET(INDIRECT($Q$3&1),$G52+H$10,$D52)/1000000 -> 5671 | Z52: 5641 | AA52: 5371 | AB52: 5763 | AC52: 6251 | AD52: 6781 | AE52: 6804 | AF52: 7576 | AG52: 7622 | AH52: 7927 | AI52: 7891 | AJ52: 8255 | AK52: 8534 | AL52: 8482 | AM52: 8618 | AN52: 8577 | AO52: 8947 | AP52: 9412 | AQ52: 9976 | AR52: 10871 | AS52: 11850 | AT52: 12815 | AU52: 13630 | AV52: 14207 | AW52: 14319 | AX52: 13961 | AY52: 13139 | AZ52: 12540 | BA52: 11876 | BB52: 11860 | BC52: 11918 | BD52: 11445 | BE52: 11336 | BF52: 10290 | BG52: 10238
A53: BRDPI$ non-R01 RPG Funding All | C53: =C51-C52 | E53: =BG53/Y53 -> 4.073704429 | F53: 53 | H53: =SUM(Y46:Y48) -> 1321 | I53: non-R01 Funds increased 4-fold from 1321 to 5381 | Y53: =Y51-Y52 -> 1321 | Z53: =Z51-Z52 -> 1297 | AA53: 1200 | AB53: 1268 | AC53: 1341 | AD53: 1548 | AE53: 1646 | AF53: 1998 | AG53: 2248 | AH53: 2330 | AI53: 2352 | AJ53: 2459 | AK53: 2625 | AL53: 2577 | AM53: 2615 | AN53: 2607 | AO53: 2643 | AP53: 2739 | AQ53: 2811 | AR53: 3073 | AS53: 3661 | AT53: 4247 | AU53: 4801 | AV53: 5230 | AW53: 5630 | AX53: 5719 | AY53: 5448 | AZ53: 5571 | BA53: 5387 | BB53: 5369 | BC53: 5273 | BD53: 5220 | BE53: 5226 | BF53: 4946 | BG53: 5381
F54: 54
A55: BRDPI$ R01 Funding vs 1995 | C55: =C52-$AN52 | F55: 55 | Y55: =Y52-$AN52 -> -2906 | Z55: -2936 | AA55: -3206 | AB55: -2813 | AC55: -2326 | AD55: -1796 | AE55: -1773 | AF55: -1000 | AG55: -955 | AH55: -650 | AI55: -686 | AJ55: -322 | AK55: -43 | AL55: -95 | AM55: 42 | AN55: 0 | AO55: 370 | AP55: 835 | AQ55: 1399 | AR55: 2294 | AS55: 3273 | AT55: 4239 | AU55: 5053 | AV55: 5631 | AW55: 5742 | AX55: 5384 | AY55: 4563 | AZ55: 3963 | BA55: 3300 | BB55: 3284 | BC55: 3342 | BD55: 2868 | BE55: 2759 | BF55: 1714 | BG55: 1662
A56: BRDPI$ non-R01 RPG Funding vs 1995 | C56: =C53-$AN53 | F56: 56 | Y56: =Y53-$AN53 -> -1286 | Z56: -1310 | AA56: -1407 | AB56: -1339 | AC56: -1266 | AD56: -1059 | AE56: -961 | AF56: -609 | AG56: -359 | AH56: -277 | AI56: -255 | AJ56: -148 | AK56: 18 | AL56: -30 | AM56: 8 | AN56: 0 | AO56: 36 | AP56: 132 | AQ56: 204 | AR56: 466 | AS56: 1054 | AT56: 1640 | AU56: 2194 | AV56: 2623 | AW56: 3023 | AX56: 3112 | AY56: 2841 | AZ56: 2964 | BA56: 2780 | BB56: 2762 | BC56: 2666 | BD56: 2613 | BE56: 2619 | BF56: 2340 | BG56: 2774
A57: $M R01 Grantees >55 Relative 1995 | C57: =C39-$AN39 | F57: 57 | Y57: =Y39-$AN39 -> -1035 | Z57: -978 | AA57: -984 | AB57: -891 | AC57: -784 | AD57: -662 | AE57: -625 | AF57: -459 | AG57: -389 | AH57: -339 | AI57: -302 | AJ57: -240 | AK57: -178 | AL57: -87 | AM57: 6 | AN57: 0 | AO57: 139 | AP57: 273 | AQ57: 576 | AR57: 867 | AS57: 1221 | AT57: 1607 | AU57: 1949 | AV57: 2320 | AW57: 2531 | AX57: 2627 | AY57: 2548 | AZ57: 2522 | BA57: 2425 | BB57: 2559 | BC57: 2675 | BD57: 2599 | BE57: 2608 | BF57: 2286 | BG57: 2313
A58: $M R01 Grantees <56 Relative 1995 | C58: =C40-$AN40 | F58: 58 | Y58: =Y40-$AN40 -> -1871 | Z58: -1957 | AA58: -2221 | AB58: -1922 | AC58: -1542 | AD58: -1134 | AE58: -1148 | AF58: -541 | AG58: -566 | AH58: -311 | AI58: -384 | AJ58: -82 | AK58: 135 | AL58: -8 | AM58: 36 | AN58: 0 | AO58: 231 | AP58: 562 | AQ58: 824 | AR58: 1427 | AS58: 2053 | AT58: 2632 | AU58: 3104 | AV58: 3311 | AW58: 3211 | AX58: 2757 | AY58: 2015 | AZ58: 1442 | BA58: 875 | BB58: 725 | BC58: 666 | BD58: 269 | BE58: 151 | BF58: -573 | BG58: -651
A59: $M Non-R01 Grantees >55 Rel. 1995 | C59: =C49-$AN49 | F59: 59 | Y59: =Y49-$AN49 -> -408 | Z59: =Z49-$AN49 -> -355 | AA59: =AA49-$AN49 -> -413 | AB59: -391 | AC59: -339 | AD59: -292 | AE59: -227 | AF59: -115 | AG59: -80 | AH59: -51 | AI59: -46 | AJ59: -22 | AK59: -3 | AL59: 13 | AM59: -11 | AN59: 0 | AO59: 27 | AP59: 124 | AQ59: 233 | AR59: 329 | AS59: 536 | AT59: 775 | AU59: 978 | AV59: 1346 | AW59: 1492 | AX59: 1621 | AY59: 1597 | AZ59: 1681 | BA59: 1609 | BB59: 1700 | BC59: 1706 | BD59: 1740 | BE59: 1830 | BF59: 1717 | BG59: 2008
A60: $M Non-R01 Grantees <56 Rel. 1995 | C60: =C50-$AN50 | F60: 60 | Y60: =Y50-$AN50 -> -878 | Z60: =Z50-$AN50 -> -955 | AA60: =AA50-$AN50 -> -994 | AB60: -948 | AC60: -927 | AD60: -767 | AE60: -734 | AF60: -494 | AG60: -280 | AH60: -226 | AI60: -209 | AJ60: -125 | AK60: 21 | AL60: -43 | AM60: 18 | AN60: 0 | AO60: 10 | AP60: 8 | AQ60: -29 | AR60: 138 | AS60: 518 | AT60: 864 | AU60: 1216 | AV60: 1277 | AW60: 1531 | AX60: 1491 | AY60: 1244 | AZ60: 1283 | BA60: 1171 | BB60: 1062 | BC60: 960 | BD60: 873 | BE60: 789 | BF60: 622 | BG60: 766
F61: 61
A62: NUMBERS | F62: 62
A63: Number Aged 25 | B63: B | C63: R01 | D63: =VLOOKUP($C63,'id2'!$A$9:$B$132,2,0)-1 -> 2800 | E63: 2 | F63: 63 | G63: =D63+E63 -> 2802 | H63: 2802 | I63: R01 | J63: 26 | K63: 0 | L63: 0 | M63: 0 | N63: 0 | O63: 0 | P63: 0 | Q63: 0 | R63: 0 | S63: 0 | T63: 0 | U63: 0 | V63: 0 | W63: 0 | X63: 0 | Y63: 4 | Z63: 7 | AA63: 11 | AB63: 5 | AC63: 7 | AD63: 5 | AE63: 6 | AF63: 6 | AG63: 7 | AH63: 3 | AI63: 1 | AJ63: 3 | AK63: 1 | AL63: 1 | AM63: 1 | AN63: 1 | AO63: 0 | AP63: 1 | AQ63: 0 | AR63: 0 | AS63: 0 | AT63: 0 | AU63: 0 | AV63: 0 | AW63: 0 | AX63: 0 | AY63: 0 | AZ63: 1 | BA63: 1 | BB63: 0 | BC63: 0 | BD63: 0 | BE63: 0 | BF63: 0 | BG63: 0
A64: Number Aged 45 | B64: B | C64: R01 | D64: =VLOOKUP($C64,'id2'!$A$9:$B$132,2,0)-1 -> 2800 | E64: 21 | F64: =1+F63 -> 64 | G64: =D64+E64 -> 2821 | H64: 2821 | I64: R01 | J64: 45 | K64: 0 | L64: 0 | M64: 0 | N64: 0 | O64: 0 | P64: 0 | Q64: 0 | R64: 0 | S64: 0 | T64: 0 | U64: 0 | V64: 0 | W64: 0 | X64: 0 | Y64: 281 | Z64: 303 | AA64: 340 | AB64: 421 | AC64: 386 | AD64: 445 | AE64: 526 | AF64: 671 | AG64: 627 | AH64: 663 | AI64: 614 | AJ64: 706 | AK64: 836 | AL64: 720 | AM64: 762 | AN64: 724 | AO64: 739 | AP64: 921 | AQ64: 880 | AR64: 914 | AS64: 861 | AT64: 922 | AU64: 917 | AV64: 881 | AW64: 896 | AX64: 819 | AY64: 803 | AZ64: 833 | BA64: 844 | BB64: 847 | BC64: 858 | BD64: 725 | BE64: 735 | BF64: 746 | BG64: 747
A65: Number Aged 46 | B65: B | C65: R01 | D65: =VLOOKUP($C65,'id2'!$A$9:$B$132,2,0)-1 -> 2800 | E65: 22 | F65: =1+F64 -> 65 | G65: 2822 | H65: 2822 | I65: R01 | J65: 46 | K65: 0 | L65: 0 | M65: 0 | N65: 0 | O65: 0 | P65: 0 | Q65: 0 | R65: 0 | S65: 0 | T65: 0 | U65: 0 | V65: 0 | W65: 0 | X65: 0 | Y65: 271 | Z65: 275 | AA65: 288 | AB65: 356 | AC65: 417 | AD65: 421 | AE65: 458 | AF65: 539 | AG65: 680 | AH65: 629 | AI65: 630 | AJ65: 613 | AK65: 707 | AL65: 804 | AM65: 719 | AN65: 737 | AO65: 714 | AP65: 758 | AQ65: 887 | AR65: 892 | AS65: 916 | AT65: 883 | AU65: 907 | AV65: 902 | AW65: 879 | AX65: 897 | AY65: 808 | AZ65: 790 | BA65: 841 | BB65: 950 | BC65: 884 | BD65: 794 | BE65: 736 | BF65: 703 | BG65: 743
A66: Number Aged 55 | B66: B | C66: R01 | D66: =VLOOKUP($C66,'id2'!$A$9:$B$132,2,0)-1 -> 2800 | E66: 31 | F66: 66 | G66: 2831 | H66: 2831 | I66: R01 | J66: 55 | K66: 0 | L66: 0 | M66: 0 | N66: 0 | O66: =OFFSET(INDIRECT($B$3&1),$G66-1,O$10) -> 0 | P66: 0 | Q66: 0 | R66: 0 | S66: 0 | T66: 0 | U66: 0 | V66: 0 | W66: 0 | X66: 0 | Y66: 122 | Z66: 142 | AA66: 144 | AB66: 166 | AC66: 191 | AD66: 199 | AE66: 209 | AF66: 212 | AG66: 200 | AH66: 251 | AI66: 244 | AJ66: 244 | AK66: 318 | AL66: 325 | AM66: 359 | AN66: 377 | AO66: 415 | AP66: 535 | AQ66: 500 | AR66: 500 | AS66: 560 | AT66: 566 | AU66: 690 | AV66: 638 | AW66: 682 | AX66: 659 | AY66: 651 | AZ66: 727 | BA66: 687 | BB66: 773 | BC66: 731 | BD66: 684 | BE66: 678 | BF66: 641 | BG66: 616
A67: Number Aged 56 | B67: B | C67: R01 | D67: =VLOOKUP($C67,'id2'!$A$9:$B$132,2,0)-1 -> 2800 | E67: 32 | F67: 67 | G67: 2832 | H67: 2832 | I67: R01 | J67: 56 | K67: 0 | L67: 0 | M67: 0 | N67: 0 | O67: 0 | P67: 0 | Q67: 0 | R67: 0 | S67: 0 | T67: 0 | U67: 0 | V67: 0 | W67: 0 | X67: 0 | Y67: 125 | Z67: 119 | AA67: 126 | AB67: 149 | AC67: 153 | AD67: 191 | AE67: 191 | AF67: 205 | AG67: 215 | AH67: 201 | AI67: 246 | AJ67: 240 | AK67: 242 | AL67: 310 | AM67: 319 | AN67: 328 | AO67: 352 | AP67: 405 | AQ67: 527 | AR67: 502 | AS67: 515 | AT67: 560 | AU67: 570 | AV67: 662 | AW67: 608 | AX67: 662 | AY67: 631 | AZ67: 618 | BA67: 674 | BB67: 702 | BC67: 722 | BD67: 671 | BE67: 644 | BF67: 620 | BG67: 584
A68: Number Aged 90 | B68: B | C68: R01 | D68: =VLOOKUP($C68,'id2'!$A$9:$B$132,2,0)-1 -> 2800 | E68: 66 | F68: 68 | G68: =D68+E68 -> 2866 | H68: 2866 | I68: R01 | J68: 90 | K68: 0 | L68: 0 | M68: 0 | N68: 0 | O68: 0 | P68: 0 | Q68: 0 | R68: 0 | S68: 0 | T68: 0 | U68: 0 | V68: 0 | W68: 0 | X68: 0 | Y68: 0 | Z68: 0 | AA68: 0 | AB68: 0 | AC68: 0 | AD68: 0 | AE68: 0 | AF68: 0 | AG68: 0 | AH68: 0 | AI68: 0 | AJ68: 0 | AK68: 0 | AL68: 0 | AM68: 0 | AN68: 0 | AO68: 0 | AP68: 0 | AQ68: 0 | AR68: 0 | AS68: 0 | AT68: 0 | AU68: 1 | AV68: 1 | AW68: 0 | AX68: 0 | AY68: 1 | AZ68: 0 | BA68: 0 | BB68: 2 | BC68: 0 | BD68: 0 | BE68: 0 | BF68: 0 | BG68: 0
A69: Number R01 Grantees Under 46 | B69: B | C69: R01 | D69: 29 | E69: 30 | F69: 69 | I69: SUM | J69: 26-45 | K69: =SUM(OFFSET(INDIRECT($B$3&1),$G63-1,K$10):OFFSET(INDIRECT($B$3&1),$G64-1,K$10)) -> 0 | L69: =SUM(OFFSET(INDIRECT($B$3&1),$G63-1,L$10):OFFSET(INDIRECT($B$3&1),$G64-1,L$10)) -> 0 | M69: =SUM(OFFSET(INDIRECT($B$3&1),$G63-1,M$10):OFFSET(INDIRECT($B$3&1),$G64-1,M$10)) -> 0 | N69: =SUM(OFFSET(INDIRECT($B$3&1),$G63-1,N$10):OFFSET(INDIRECT($B$3&1),$G64-1,N$10)) -> 0 | O69: =SUM(OFFSET(INDIRECT($B$3&1),$G63-1,O$10):OFFSET(INDIRECT($B$3&1),$G64-1,O$10)) -> 0 | P69: =SUM(OFFSET(INDIRECT($B$3&1),$G63-1,P$10):OFFSET(INDIRECT($B$3&1),$G64-1,P$10)) -> 0 | Q69: =SUM(OFFSET(INDIRECT($B$3&1),$G63-1,Q$10):OFFSET(INDIRECT($B$3&1),$G64-1,Q$10)) -> 0 | R69: =SUM(OFFSET(INDIRECT($B$3&1),$G63-1,R$10):OFFSET(INDIRECT($B$3&1),$G64-1,R$10)) -> 0 | S69: =SUM(OFFSET(INDIRECT($B$3&1),$G63-1,S$10):OFFSET(INDIRECT($B$3&1),$G64-1,S$10)) -> 0 | T69: =SUM(OFFSET(INDIRECT($B$3&1),$G63-1,T$10):OFFSET(INDIRECT($B$3&1),$G64-1,T$10)) -> 0 | U69: =SUM(OFFSET(INDIRECT($B$3&1),$G63-1,U$10):OFFSET(INDIRECT($B$3&1),$G64-1,U$10)) -> 0 | V69: =SUM(OFFSET(INDIRECT($B$3&1),$G63-1,V$10):OFFSET(INDIRECT($B$3&1),$G64-1,V$10)) -> 0 | W69: =SUM(OFFSET(INDIRECT($B$3&1),$G63-1,W$10):OFFSET(INDIRECT($B$3&1),$G64-1,W$10)) -> 0 | X69: =SUM(OFFSET(INDIRECT($B$3&1),$G63-1,X$10):OFFSET(INDIRECT($B$3&1),$G64-1,X$10)) -> 0 | Y69: =SUM(OFFSET(INDIRECT($B$3&1),$G63-1,Y$10):OFFSET(INDIRECT($B$3&1),$G64-1,Y$10)) -> 6156 | Z69: =SUM(OFFSET(INDIRECT($B$3&1),$G63-1,Z$10):OFFSET(INDIRECT($B$3&1),$G64-1,Z$10)) -> 6516 | AA69: =SUM(OFFSET(INDIRECT($B$3&1),$G63-1,AA$10):OFFSET(INDIRECT($B$3&1),$G64-1,AA$10)) -> 6660 | AB69: =SUM(OFFSET(INDIRECT($B$3&1),$G63-1,AB$10):OFFSET(INDIRECT($B$3&1),$G64-1,AB$10)) -> 7125 | AC69: =SUM(OFFSET(INDIRECT($B$3&1),$G63-1,AC$10):OFFSET(INDIRECT($B$3&1),$G64-1,AC$10)) -> 7370 | AD69: =SUM(OFFSET(INDIRECT($B$3&1),$G63-1,AD$10):OFFSET(INDIRECT($B$3&1),$G64-1,AD$10)) -> 7959 | AE69: =SUM(OFFSET(INDIRECT($B$3&1),$G63-1,AE$10):OFFSET(INDIRECT($B$3&1),$G64-1,AE$10)) -> 8248 | AF69: =SUM(OFFSET(INDIRECT($B$3&1),$G63-1,AF$10):OFFSET(INDIRECT($B$3&1),$G64-1,AF$10)) -> 8578 | AG69: =SUM(OFFSET(INDIRECT($B$3&1),$G63-1,AG$10):OFFSET(INDIRECT($B$3&1),$G64-1,AG$10)) -> 8677 | AH69: =SUM(OFFSET(INDIRECT($B$3&1),$G63-1,AH$10):OFFSET(INDIRECT($B$3&1),$G64-1,AH$10)) -> 8696 | AI69: =SUM(OFFSET(INDIRECT($B$3&1),$G63-1,AI$10):OFFSET(INDIRECT($B$3&1),$G64-1,AI$10)) -> 8568 | AJ69: =SUM(OFFSET(INDIRECT($B$3&1),$G63-1,AJ$10):OFFSET(INDIRECT($B$3&1),$G64-1,AJ$10)) -> 8723 | AK69: =SUM(OFFSET(INDIRECT($B$3&1),$G63-1,AK$10):OFFSET(INDIRECT($B$3&1),$G64-1,AK$10)) -> 8782 | AL69: =SUM(OFFSET(INDIRECT($B$3&1),$G63-1,AL$10):OFFSET(INDIRECT($B$3&1),$G64-1,AL$10)) -> 8375 | AM69: =SUM(OFFSET(INDIRECT($B$3&1),$G63-1,AM$10):OFFSET(INDIRECT($B$3&1),$G64-1,AM$10)) -> 8223 | AN69: =SUM(OFFSET(INDIRECT($B$3&1),$G63-1,AN$10):OFFSET(INDIRECT($B$3&1),$G64-1,AN$10)) -> 8018 | AO69: =SUM(OFFSET(INDIRECT($B$3&1),$G63-1,AO$10):OFFSET(INDIRECT($B$3&1),$G64-1,AO$10)) -> 7876 | AP69: =SUM(OFFSET(INDIRECT($B$3&1),$G63-1,AP$10):OFFSET(INDIRECT($B$3&1),$G64-1,AP$10)) -> 7936 | AQ69: =SUM(OFFSET(INDIRECT($B$3&1),$G63-1,AQ$10):OFFSET(INDIRECT($B$3&1),$G64-1,AQ$10)) -> 7881 | AR69: =SUM(OFFSET(INDIRECT($B$3&1),$G63-1,AR$10):OFFSET(INDIRECT($B$3&1),$G64-1,AR$10)) -> 7846 | AS69: =SUM(OFFSET(INDIRECT($B$3&1),$G63-1,AS$10):OFFSET(INDIRECT($B$3&1),$G64-1,AS$10)) -> 7619 | AT69: =SUM(OFFSET(INDIRECT($B$3&1),$G63-1,AT$10):OFFSET(INDIRECT($B$3&1),$G64-1,AT$10)) -> 7489 | AU69: =SUM(OFFSET(INDIRECT($B$3&1),$G63-1,AU$10):OFFSET(INDIRECT($B$3&1),$G64-1,AU$10)) -> 7268 | AV69: =SUM(OFFSET(INDIRECT($B$3&1),$G63-1,AV$10):OFFSET(INDIRECT($B$3&1),$G64-1,AV$10)) -> 7078 | AW69: =SUM(OFFSET(INDIRECT($B$3&1),$G63-1,AW$10):OFFSET(INDIRECT($B$3&1),$G64-1,AW$10)) -> 6928 | AX69: =SUM(OFFSET(INDIRECT($B$3&1),$G63-1,AX$10):OFFSET(INDIRECT($B$3&1),$G64-1,AX$10)) -> 6623 | AY69: =SUM(OFFSET(INDIRECT($B$3&1),$G63-1,AY$10):OFFSET(INDIRECT($B$3&1),$G64-1,AY$10)) -> 6391 | AZ69: =SUM(OFFSET(INDIRECT($B$3&1),$G63-1,AZ$10):OFFSET(INDIRECT($B$3&1),$G64-1,AZ$10)) -> 6257 | BA69: =SUM(OFFSET(INDIRECT($B$3&1),$G63-1,BA$10):OFFSET(INDIRECT($B$3&1),$G64-1,BA$10)) -> 6099 | BB69: =SUM(OFFSET(INDIRECT($B$3&1),$G63-1,BB$10):OFFSET(INDIRECT($B$3&1),$G64-1,BB$10)) -> 6361 | BC69: =SUM(OFFSET(INDIRECT($B$3&1),$G63-1,BC$10):OFFSET(INDIRECT($B$3&1),$G64-1,BC$10)) -> 6458 | BD69: =SUM(OFFSET(INDIRECT($B$3&1),$G63-1,BD$10):OFFSET(INDIRECT($B$3&1),$G64-1,BD$10)) -> 6185 | BE69: =SUM(OFFSET(INDIRECT($B$3&1),$G63-1,BE$10):OFFSET(INDIRECT($B$3&1),$G64-1,BE$10)) -> 6108 | BF69: =SUM(OFFSET(INDIRECT($B$3&1),$G63-1,BF$10):OFFSET(INDIRECT($B$3&1),$G64-1,BF$10)) -> 5920 | BG69: =SUM(OFFSET(INDIRECT($B$3&1),$G63-1,BG$10):OFFSET(INDIRECT($B$3&1),$G64-1,BG$10)) -> 5780
A70: Number R01 Grantees 46 to 55 | B70: B | C70: R01 | D70: 31 | E70: 32 | F70: 70 | I70: SUM | J70: 46-55 | K70: =SUM(OFFSET(INDIRECT($B$3&1),$G65-1,K$10):OFFSET(INDIRECT($B$3&1),$G66-1,K$10)) -> 0 | L70: =SUM(OFFSET(INDIRECT($B$3&1),$G65-1,L$10):OFFSET(INDIRECT($B$3&1),$G66-1,L$10)) -> 0 | M70: =SUM(OFFSET(INDIRECT($B$3&1),$G65-1,M$10):OFFSET(INDIRECT($B$3&1),$G66-1,M$10)) -> 0 | N70: =SUM(OFFSET(INDIRECT($B$3&1),$G65-1,N$10):OFFSET(INDIRECT($B$3&1),$G66-1,N$10)) -> 0 | O70: =SUM(OFFSET(INDIRECT($B$3&1),$G65-1,O$10):OFFSET(INDIRECT($B$3&1),$G66-1,O$10)) -> 0 | P70: =SUM(OFFSET(INDIRECT($B$3&1),$G65-1,P$10):OFFSET(INDIRECT($B$3&1),$G66-1,P$10)) -> 0 | Q70: =SUM(OFFSET(INDIRECT($B$3&1),$G65-1,Q$10):OFFSET(INDIRECT($B$3&1),$G66-1,Q$10)) -> 0 | R70: =SUM(OFFSET(INDIRECT($B$3&1),$G65-1,R$10):OFFSET(INDIRECT($B$3&1),$G66-1,R$10)) -> 0 | S70: =SUM(OFFSET(INDIRECT($B$3&1),$G65-1,S$10):OFFSET(INDIRECT($B$3&1),$G66-1,S$10)) -> 0 | T70: =SUM(OFFSET(INDIRECT($B$3&1),$G65-1,T$10):OFFSET(INDIRECT($B$3&1),$G66-1,T$10)) -> 0 | U70: =SUM(OFFSET(INDIRECT($B$3&1),$G65-1,U$10):OFFSET(INDIRECT($B$3&1),$G66-1,U$10)) -> 0 | V70: =SUM(OFFSET(INDIRECT($B$3&1),$G65-1,V$10):OFFSET(INDIRECT($B$3&1),$G66-1,V$10)) -> 0 | W70: =SUM(OFFSET(INDIRECT($B$3&1),$G65-1,W$10):OFFSET(INDIRECT($B$3&1),$G66-1,W$10)) -> 0 | X70: =SUM(OFFSET(INDIRECT($B$3&1),$G65-1,X$10):OFFSET(INDIRECT($B$3&1),$G66-1,X$10)) -> 0 | Y70: =SUM(OFFSET(INDIRECT($B$3&1),$G65-1,Y$10):OFFSET(INDIRECT($B$3&1),$G66-1,Y$10)) -> 1993 | Z70: =SUM(OFFSET(INDIRECT($B$3&1),$G65-1,Z$10):OFFSET(INDIRECT($B$3&1),$G66-1,Z$10)) -> 2105 | AA70: =SUM(OFFSET(INDIRECT($B$3&1),$G65-1,AA$10):OFFSET(INDIRECT($B$3&1),$G66-1,AA$10)) -> 2188 | AB70: =SUM(OFFSET(INDIRECT($B$3&1),$G65-1,AB$10):OFFSET(INDIRECT($B$3&1),$G66-1,AB$10)) -> 2386 | AC70: =SUM(OFFSET(INDIRECT($B$3&1),$G65-1,AC$10):OFFSET(INDIRECT($B$3&1),$G66-1,AC$10)) -> 2620 | AD70: =SUM(OFFSET(INDIRECT($B$3&1),$G65-1,AD$10):OFFSET(INDIRECT($B$3&1),$G66-1,AD$10)) -> 2852 | AE70: =SUM(OFFSET(INDIRECT($B$3&1),$G65-1,AE$10):OFFSET(INDIRECT($B$3&1),$G66-1,AE$10)) -> 3088 | AF70: =SUM(OFFSET(INDIRECT($B$3&1),$G65-1,AF$10):OFFSET(INDIRECT($B$3&1),$G66-1,AF$10)) -> 3405 | AG70: =SUM(OFFSET(INDIRECT($B$3&1),$G65-1,AG$10):OFFSET(INDIRECT($B$3&1),$G66-1,AG$10)) -> 3814 | AH70: =SUM(OFFSET(INDIRECT($B$3&1),$G65-1,AH$10):OFFSET(INDIRECT($B$3&1),$G66-1,AH$10)) -> 4259 | AI70: =SUM(OFFSET(INDIRECT($B$3&1),$G65-1,AI$10):OFFSET(INDIRECT($B$3&1),$G66-1,AI$10)) -> 4495 | AJ70: =SUM(OFFSET(INDIRECT($B$3&1),$G65-1,AJ$10):OFFSET(INDIRECT($B$3&1),$G66-1,AJ$10)) -> 4776 | AK70: =SUM(OFFSET(INDIRECT($B$3&1),$G65-1,AK$10):OFFSET(INDIRECT($B$3&1),$G66-1,AK$10)) -> 5144 | AL70: =SUM(OFFSET(INDIRECT($B$3&1),$G65-1,AL$10):OFFSET(INDIRECT($B$3&1),$G66-1,AL$10)) -> 5478 | AM70: =SUM(OFFSET(INDIRECT($B$3&1),$G65-1,AM$10):OFFSET(INDIRECT($B$3&1),$G66-1,AM$10)) -> 5795 | AN70: =SUM(OFFSET(INDIRECT($B$3&1),$G65-1,AN$10):OFFSET(INDIRECT($B$3&1),$G66-1,AN$10)) -> 5830 | AO70: =SUM(OFFSET(INDIRECT($B$3&1),$G65-1,AO$10):OFFSET(INDIRECT($B$3&1),$G66-1,AO$10)) -> 6071 | AP70: =SUM(OFFSET(INDIRECT($B$3&1),$G65-1,AP$10):OFFSET(INDIRECT($B$3&1),$G66-1,AP$10)) -> 6369 | AQ70: =SUM(OFFSET(INDIRECT($B$3&1),$G65-1,AQ$10):OFFSET(INDIRECT($B$3&1),$G66-1,AQ$10)) -> 6661 | AR70: =SUM(OFFSET(INDIRECT($B$3&1),$G65-1,AR$10):OFFSET(INDIRECT($B$3&1),$G66-1,AR$10)) -> 7052 | AS70: =SUM(OFFSET(INDIRECT($B$3&1),$G65-1,AS$10):OFFSET(INDIRECT($B$3&1),$G66-1,AS$10)) -> 7520 | AT70: =SUM(OFFSET(INDIRECT($B$3&1),$G65-1,AT$10):OFFSET(INDIRECT($B$3&1),$G66-1,AT$10)) -> 7756 | AU70: =SUM(OFFSET(INDIRECT($B$3&1),$G65-1,AU$10):OFFSET(INDIRECT($B$3&1),$G66-1,AU$10)) -> 8039 | AV70: =SUM(OFFSET(INDIRECT($B$3&1),$G65-1,AV$10):OFFSET(INDIRECT($B$3&1),$G66-1,AV$10)) -> 8160 | AW70: =SUM(OFFSET(INDIRECT($B$3&1),$G65-1,AW$10):OFFSET(INDIRECT($B$3&1),$G66-1,AW$10)) -> 8216 | AX70: =SUM(OFFSET(INDIRECT($B$3&1),$G65-1,AX$10):OFFSET(INDIRECT($B$3&1),$G66-1,AX$10)) -> 8158 | AY70: =SUM(OFFSET(INDIRECT($B$3&1),$G65-1,AY$10):OFFSET(INDIRECT($B$3&1),$G66-1,AY$10)) -> 7988 | AZ70: =SUM(OFFSET(INDIRECT($B$3&1),$G65-1,AZ$10):OFFSET(INDIRECT($B$3&1),$G66-1,AZ$10)) -> 7808 | BA70: =SUM(OFFSET(INDIRECT($B$3&1),$G65-1,BA$10):OFFSET(INDIRECT($B$3&1),$G66-1,BA$10)) -> 7570 | BB70: =SUM(OFFSET(INDIRECT($B$3&1),$G65-1,BB$10):OFFSET(INDIRECT($B$3&1),$G66-1,BB$10)) -> 8079 | BC70: =SUM(OFFSET(INDIRECT($B$3&1),$G65-1,BC$10):OFFSET(INDIRECT($B$3&1),$G66-1,BC$10)) -> 8058 | BD70: =SUM(OFFSET(INDIRECT($B$3&1),$G65-1,BD$10):OFFSET(INDIRECT($B$3&1),$G66-1,BD$10)) -> 7544 | BE70: =SUM(OFFSET(INDIRECT($B$3&1),$G65-1,BE$10):OFFSET(INDIRECT($B$3&1),$G66-1,BE$10)) -> 7403 | BF70: =SUM(OFFSET(INDIRECT($B$3&1),$G65-1,BF$10):OFFSET(INDIRECT($B$3&1),$G66-1,BF$10)) -> 7070 | BG70: =SUM(OFFSET(INDIRECT($B$3&1),$G65-1,BG$10):OFFSET(INDIRECT($B$3&1),$G66-1,BG$10)) -> 6854
A71: Number R01 Grantees Over 55 | B71: B | C71: R01 | D71: 33 | E71: 34 | F71: 71 | I71: SUM | J71: 56-90 | K71: =SUM(OFFSET(INDIRECT($B$3&1),$G67-1,K$10):OFFSET(INDIRECT($B$3&1),$G68-1,K$10)) -> 0 | L71: =SUM(OFFSET(INDIRECT($B$3&1),$G67-1,L$10):OFFSET(INDIRECT($B$3&1),$G68-1,L$10)) -> 0 | M71: =SUM(OFFSET(INDIRECT($B$3&1),$G67-1,M$10):OFFSET(INDIRECT($B$3&1),$G68-1,M$10)) -> 0 | N71: =SUM(OFFSET(INDIRECT($B$3&1),$G67-1,N$10):OFFSET(INDIRECT($B$3&1),$G68-1,N$10)) -> 0 | O71: =SUM(OFFSET(INDIRECT($B$3&1),$G67-1,O$10):OFFSET(INDIRECT($B$3&1),$G68-1,O$10)) -> 0 | P71: =SUM(OFFSET(INDIRECT($B$3&1),$G67-1,P$10):OFFSET(INDIRECT($B$3&1),$G68-1,P$10)) -> 0 | Q71: =SUM(OFFSET(INDIRECT($B$3&1),$G67-1,Q$10):OFFSET(INDIRECT($B$3&1),$G68-1,Q$10)) -> 0 | R71: =SUM(OFFSET(INDIRECT($B$3&1),$G67-1,R$10):OFFSET(INDIRECT($B$3&1),$G68-1,R$10)) -> 0 | S71: =SUM(OFFSET(INDIRECT($B$3&1),$G67-1,S$10):OFFSET(INDIRECT($B$3&1),$G68-1,S$10)) -> 0 | T71: =SUM(OFFSET(INDIRECT($B$3&1),$G67-1,T$10):OFFSET(INDIRECT($B$3&1),$G68-1,T$10)) -> 0 | U71: =SUM(OFFSET(INDIRECT($B$3&1),$G67-1,U$10):OFFSET(INDIRECT($B$3&1),$G68-1,U$10)) -> 0 | V71: =SUM(OFFSET(INDIRECT($B$3&1),$G67-1,V$10):OFFSET(INDIRECT($B$3&1),$G68-1,V$10)) -> 0 | W71: =SUM(OFFSET(INDIRECT($B$3&1),$G67-1,W$10):OFFSET(INDIRECT($B$3&1),$G68-1,W$10)) -> 0 | X71: =SUM(OFFSET(INDIRECT($B$3&1),$G67-1,X$10):OFFSET(INDIRECT($B$3&1),$G68-1,X$10)) -> 0 | Y71: =SUM(OFFSET(INDIRECT($B$3&1),$G67-1,Y$10):OFFSET(INDIRECT($B$3&1),$G68-1,Y$10)) -> 646 | Z71: =SUM(OFFSET(INDIRECT($B$3&1),$G67-1,Z$10):OFFSET(INDIRECT($B$3&1),$G68-1,Z$10)) -> 741 | AA71: =SUM(OFFSET(INDIRECT($B$3&1),$G67-1,AA$10):OFFSET(INDIRECT($B$3&1),$G68-1,AA$10)) -> 794 | AB71: =SUM(OFFSET(INDIRECT($B$3&1),$G67-1,AB$10):OFFSET(INDIRECT($B$3&1),$G68-1,AB$10)) -> 950 | AC71: =SUM(OFFSET(INDIRECT($B$3&1),$G67-1,AC$10):OFFSET(INDIRECT($B$3&1),$G68-1,AC$10)) -> 1063 | AD71: =SUM(OFFSET(INDIRECT($B$3&1),$G67-1,AD$10):OFFSET(INDIRECT($B$3&1),$G68-1,AD$10)) -> 1239 | AE71: =SUM(OFFSET(INDIRECT($B$3&1),$G67-1,AE$10):OFFSET(INDIRECT($B$3&1),$G68-1,AE$10)) -> 1350 | AF71: =SUM(OFFSET(INDIRECT($B$3&1),$G67-1,AF$10):OFFSET(INDIRECT($B$3&1),$G68-1,AF$10)) -> 1540 | AG71: =SUM(OFFSET(INDIRECT($B$3&1),$G67-1,AG$10):OFFSET(INDIRECT($B$3&1),$G68-1,AG$10)) -> 1701 | AH71: =SUM(OFFSET(INDIRECT($B$3&1),$G67-1,AH$10):OFFSET(INDIRECT($B$3&1),$G68-1,AH$10)) -> 1833 | AI71: =SUM(OFFSET(INDIRECT($B$3&1),$G67-1,AI$10):OFFSET(INDIRECT($B$3&1),$G68-1,AI$10)) -> 1926 | AJ71: =SUM(OFFSET(INDIRECT($B$3&1),$G67-1,AJ$10):OFFSET(INDIRECT($B$3&1),$G68-1,AJ$10)) -> 2045 | AK71: =SUM(OFFSET(INDIRECT($B$3&1),$G67-1,AK$10):OFFSET(INDIRECT($B$3&1),$G68-1,AK$10)) -> 2154 | AL71: =SUM(OFFSET(INDIRECT($B$3&1),$G67-1,AL$10):OFFSET(INDIRECT($B$3&1),$G68-1,AL$10)) -> 2331 | AM71: =SUM(OFFSET(INDIRECT($B$3&1),$G67-1,AM$10):OFFSET(INDIRECT($B$3&1),$G68-1,AM$10)) -> 2534 | AN71: =SUM(OFFSET(INDIRECT($B$3&1),$G67-1,AN$10):OFFSET(INDIRECT($B$3&1),$G68-1,AN$10)) -> 2549 | AO71: =SUM(OFFSET(INDIRECT($B$3&1),$G67-1,AO$10):OFFSET(INDIRECT($B$3&1),$G68-1,AO$10)) -> 2689 | AP71: =SUM(OFFSET(INDIRECT($B$3&1),$G67-1,AP$10):OFFSET(INDIRECT($B$3&1),$G68-1,AP$10)) -> 2862 | AQ71: =SUM(OFFSET(INDIRECT($B$3&1),$G67-1,AQ$10):OFFSET(INDIRECT($B$3&1),$G68-1,AQ$10)) -> 3220 | AR71: =SUM(OFFSET(INDIRECT($B$3&1),$G67-1,AR$10):OFFSET(INDIRECT($B$3&1),$G68-1,AR$10)) -> 3549 | AS71: =SUM(OFFSET(INDIRECT($B$3&1),$G67-1,AS$10):OFFSET(INDIRECT($B$3&1),$G68-1,AS$10)) -> 3922 | AT71: =SUM(OFFSET(INDIRECT($B$3&1),$G67-1,AT$10):OFFSET(INDIRECT($B$3&1),$G68-1,AT$10)) -> 4324 | AU71: =SUM(OFFSET(INDIRECT($B$3&1),$G67-1,AU$10):OFFSET(INDIRECT($B$3&1),$G68-1,AU$10)) -> 4690 | AV71: =SUM(OFFSET(INDIRECT($B$3&1),$G67-1,AV$10):OFFSET(INDIRECT($B$3&1),$G68-1,AV$10)) -> 5140 | AW71: =SUM(OFFSET(INDIRECT($B$3&1),$G67-1,AW$10):OFFSET(INDIRECT($B$3&1),$G68-1,AW$10)) -> 5369 | AX71: =SUM(OFFSET(INDIRECT($B$3&1),$G67-1,AX$10):OFFSET(INDIRECT($B$3&1),$G68-1,AX$10)) -> 5551 | AY71: =SUM(OFFSET(INDIRECT($B$3&1),$G67-1,AY$10):OFFSET(INDIRECT($B$3&1),$G68-1,AY$10)) -> 5733 | AZ71: =SUM(OFFSET(INDIRECT($B$3&1),$G67-1,AZ$10):OFFSET(INDIRECT($B$3&1),$G68-1,AZ$10)) -> 5874 | BA71: =SUM(OFFSET(INDIRECT($B$3&1),$G67-1,BA$10):OFFSET(INDIRECT($B$3&1),$G68-1,BA$10)) -> 5965 | BB71: =SUM(OFFSET(INDIRECT($B$3&1),$G67-1,BB$10):OFFSET(INDIRECT($B$3&1),$G68-1,BB$10)) -> 6522 | BC71: =SUM(OFFSET(INDIRECT($B$3&1),$G67-1,BC$10):OFFSET(INDIRECT($B$3&1),$G68-1,BC$10)) -> 6857 | BD71: =SUM(OFFSET(INDIRECT($B$3&1),$G67-1,BD$10):OFFSET(INDIRECT($B$3&1),$G68-1,BD$10)) -> 6607 | BE71: =SUM(OFFSET(INDIRECT($B$3&1),$G67-1,BE$10):OFFSET(INDIRECT($B$3&1),$G68-1,BE$10)) -> 6771 | BF71: =SUM(OFFSET(INDIRECT($B$3&1),$G67-1,BF$10):OFFSET(INDIRECT($B$3&1),$G68-1,BF$10)) -> 6748 | BG71: =SUM(OFFSET(INDIRECT($B$3&1),$G67-1,BG$10):OFFSET(INDIRECT($B$3&1),$G68-1,BG$10)) -> 6722
A72: Number Aged 25 | B72: B | C72: PI_B | D72: =VLOOKUP($C72,'id2'!$A$9:$B$132,2,0)-1 -> 1600 | E72: 2 | F72: 72 | G72: =D72+E72 -> 1602 | H72: =OFFSET(INDIRECT($B$3&1),$G72-1,H$10) -> 1602 | I72: PI_B | J72: 26 | K72: 12 | L72: 10 | M72: 12 | N72: 15 | O72: 16 | P72: 17 | Q72: 10 | R72: 10 | S72: 15 | T72: 13 | U72: 4 | V72: 7 | W72: 11 | X72: =OFFSET(INDIRECT($B$3&1),$G72-1,X$10) -> 2 | Y72: 7 | Z72: 5 | AA72: 1 | AB72: 3 | AC72: 1 | AD72: 1 | AE72: 0 | AF72: 2 | AG72: 4 | AH72: 0 | AI72: 2 | AJ72: 2 | AK72: 2 | AL72: 3 | AM72: 3 | AN72: =OFFSET(INDIRECT($B$3&1),$G72-1,AN$10) -> 1 | AO72: 1 | AP72: 3 | AQ72: 3 | AR72: 1 | AS72: 3 | AT72: 0 | AU72: 2 | AV72: 3 | AW72: 2 | AX72: 0 | AY72: 2 | AZ72: 1 | BA72: 2 | BB72: 1 | BC72: 0 | BD72: =OFFSET(INDIRECT($B$3&1),$G72-1,BD$10) -> 1 | BE72: 0 | BF72: 5 | BG72: 0
A73: Number Aged 45 | B73: B | C73: PI_B | D73: =VLOOKUP($C73,'id2'!$A$9:$B$132,2,0)-1 -> 1600 | E73: 21 | F73: 73 | G73: =D73+E73 -> 1621 | H73: 1621 | I73: PI_B | J73: 45 | K73: 150 | L73: 184 | M73: 180 | N73: 204 | O73: 250 | P73: 254 | Q73: 286 | R73: 271 | S73: 249 | T73: 290 | U73: 254 | V73: 261 | W73: 305 | X73: 317 | Y73: 308 | Z73: 334 | AA73: 333 | AB73: 399 | AC73: 363 | AD73: 398 | AE73: 433 | AF73: 533 | AG73: 531 | AH73: 444 | AI73: 440 | AJ73: 461 | AK73: 501 | AL73: 523 | AM73: 454 | AN73: 470 | AO73: 529 | AP73: 541 | AQ73: 522 | AR73: 556 | AS73: 521 | AT73: 537 | AU73: 510 | AV73: 546 | AW73: 509 | AX73: 498 | AY73: 495 | AZ73: 570 | BA73: 636 | BB73: 542 | BC73: 527 | BD73: 496 | BE73: 471 | BF73: 506 | BG73: 503
A74: Number Aged 46 | B74: B | C74: PI_B | D74: =VLOOKUP($C74,'id2'!$A$9:$B$132,2,0)-1 -> 1600 | E74: 22 | F74: 74 | G74: 1622 | H74: 1622 | I74: PI_B | J74: 46 | K74: 122 | L74: 148 | M74: 194 | N74: 185 | O74: 218 | P74: 257 | Q74: 258 | R74: 284 | S74: 271 | T74: 249 | U74: 286 | V74: 257 | W74: 273 | X74: 296 | Y74: 312 | Z74: 302 | AA74: 333 | AB74: 326 | AC74: 390 | AD74: 363 | AE74: 394 | AF74: 433 | AG74: 520 | AH74: 525 | AI74: 446 | AJ74: 433 | AK74: 469 | AL74: 508 | AM74: 521 | AN74: 456 | AO74: 462 | AP74: 526 | AQ74: 541 | AR74: 532 | AS74: 556 | AT74: 532 | AU74: 549 | AV74: 528 | AW74: 566 | AX74: 504 | AY74: 508 | AZ74: 487 | BA74: 578 | BB74: 641 | BC74: 532 | BD74: 514 | BE74: 503 | BF74: 469 | BG74: 492
A75: Number Aged 55 | B75: B | C75: PI_B | D75: =VLOOKUP($C75,'id2'!$A$9:$B$132,2,0)-1 -> 1600 | E75: 31 | F75: 75 | G75: 1631 | H75: 1631 | I75: PI_B | J75: 55 | K75: 64 | L75: 60 | M75: 73 | N75: 95 | O75: 92 | P75: 92 | Q75: 116 | R75: 110 | S75: 146 | T75: 139 | U75: 164 | V75: 193 | W75: 218 | X75: 233 | Y75: 250 | Z75: 241 | AA75: 287 | AB75: 259 | AC75: 235 | AD75: 275 | AE75: 226 | AF75: 236 | AG75: 246 | AH75: 261 | AI75: 240 | AJ75: 285 | AK75: 292 | AL75: 354 | AM75: 324 | AN75: 380 | AO75: 410 | AP75: 496 | AQ75: 482 | AR75: 430 | AS75: 428 | AT75: 464 | AU75: 487 | AV75: 515 | AW75: 466 | AX75: 479 | AY75: 528 | AZ75: 559 | BA75: 524 | BB75: 535 | BC75: 520 | BD75: 532 | BE75: 510 | BF75: 488 | BG75: 442
A76: Number Aged 56 | B76: B | C76: PI_B | D76: =VLOOKUP($C76,'id2'!$A$9:$B$132,2,0)-1 -> 1600 | E76: 32 | F76: 76 | G76: 1632 | H76: 1632 | I76: PI_B | J76: 56 | K76: 61 | L76: 64 | M76: 59 | N76: 75 | O76: 98 | P76: 91 | Q76: 90 | R76: 114 | S76: 111 | T76: 144 | U76: 136 | V76: 166 | W76: 192 | X76: 219 | Y76: 228 | Z76: 248 | AA76: 236 | AB76: 275 | AC76: 262 | AD76: 228 | AE76: 264 | AF76: 221 | AG76: 231 | AH76: 245 | AI76: 255 | AJ76: 244 | AK76: 274 | AL76: 287 | AM76: 352 | AN76: 316 | AO76: 382 | AP76: 407 | AQ76: 488 | AR76: 481 | AS76: 431 | AT76: 424 | AU76: 455 | AV76: 485 | AW76: 519 | AX76: 455 | AY76: 465 | AZ76: 521 | BA76: 552 | BB76: 528 | BC76: 531 | BD76: 497 | BE76: 524 | BF76: 503 | BG76: 481
A77: Number Aged 90 | B77: B | C77: PI_B | D77: =VLOOKUP($C77,'id2'!$A$9:$B$132,2,0)-1 -> 1600 | E77: 66 | F77: 77 | G77: 1666 | H77: 1666 | I77: PI_B | J77: 90 | K77: 0 | L77: 0 | M77: 0 | N77: 0 | O77: 0 | P77: 0 | Q77: 0 | R77: 0 | S77: 0 | T77: 0 | U77: 0 | V77: 0 | W77: 0 | X77: 0 | Y77: 0 | Z77: 0 | AA77: 0 | AB77: 0 | AC77: 0 | AD77: 1 | AE77: 0 | AF77: 0 | AG77: 0 | AH77: 1 | AI77: 0 | AJ77: 1 | AK77: 0 | AL77: 0 | AM77: 0 | AN77: 0 | AO77: 4 | AP77: 4 | AQ77: 0 | AR77: 0 | AS77: 2 | AT77: 0 | AU77: 1 | AV77: 0 | AW77: 1 | AX77: 1 | AY77: 2 | AZ77: 2 | BA77: 1 | BB77: 2 | BC77: 2 | BD77: 0 | BE77: 0 | BF77: 4 | BG77: 3
A78: Number Basic Science PIs Under 46 | B78: B | C78: PI_B | D78: 38 | E78: 39 | F78: 78 | I78: SUM | J78: 26-45 | K78: =SUM(OFFSET(INDIRECT($B$3&1),$G72-1,K$10):OFFSET(INDIRECT($B$3&1),$G73-1,K$10)) -> 2797 | L78: =SUM(OFFSET(INDIRECT($B$3&1),$G72-1,L$10):OFFSET(INDIRECT($B$3&1),$G73-1,L$10)) -> 3063 | M78: =SUM(OFFSET(INDIRECT($B$3&1),$G72-1,M$10):OFFSET(INDIRECT($B$3&1),$G73-1,M$10)) -> 3375 | N78: =SUM(OFFSET(INDIRECT($B$3&1),$G72-1,N$10):OFFSET(INDIRECT($B$3&1),$G73-1,N$10)) -> 3722 | O78: =SUM(OFFSET(INDIRECT($B$3&1),$G72-1,O$10):OFFSET(INDIRECT($B$3&1),$G73-1,O$10)) -> 4062 | P78: =SUM(OFFSET(INDIRECT($B$3&1),$G72-1,P$10):OFFSET(INDIRECT($B$3&1),$G73-1,P$10)) -> 4380 | Q78: =SUM(OFFSET(INDIRECT($B$3&1),$G72-1,Q$10):OFFSET(INDIRECT($B$3&1),$G73-1,Q$10)) -> 4685 | R78: =SUM(OFFSET(INDIRECT($B$3&1),$G72-1,R$10):OFFSET(INDIRECT($B$3&1),$G73-1,R$10)) -> 4911 | S78: =SUM(OFFSET(INDIRECT($B$3&1),$G72-1,S$10):OFFSET(INDIRECT($B$3&1),$G73-1,S$10)) -> 5158 | T78: =SUM(OFFSET(INDIRECT($B$3&1),$G72-1,T$10):OFFSET(INDIRECT($B$3&1),$G73-1,T$10)) -> 5383 | U78: =SUM(OFFSET(INDIRECT($B$3&1),$G72-1,U$10):OFFSET(INDIRECT($B$3&1),$G73-1,U$10)) -> 5514 | V78: =SUM(OFFSET(INDIRECT($B$3&1),$G72-1,V$10):OFFSET(INDIRECT($B$3&1),$G73-1,V$10)) -> 5799 | W78: =SUM(OFFSET(INDIRECT($B$3&1),$G72-1,W$10):OFFSET(INDIRECT($B$3&1),$G73-1,W$10)) -> 6239 | X78: =SUM(OFFSET(INDIRECT($B$3&1),$G72-1,X$10):OFFSET(INDIRECT($B$3&1),$G73-1,X$10)) -> 6381 | Y78: =SUM(OFFSET(INDIRECT($B$3&1),$G72-1,Y$10):OFFSET(INDIRECT($B$3&1),$G73-1,Y$10)) -> 6450 | Z78: =SUM(OFFSET(INDIRECT($B$3&1),$G72-1,Z$10):OFFSET(INDIRECT($B$3&1),$G73-1,Z$10)) -> 6522 | AA78: =SUM(OFFSET(INDIRECT($B$3&1),$G72-1,AA$10):OFFSET(INDIRECT($B$3&1),$G73-1,AA$10)) -> 6495 | AB78: =SUM(OFFSET(INDIRECT($B$3&1),$G72-1,AB$10):OFFSET(INDIRECT($B$3&1),$G73-1,AB$10)) -> 6409 | AC78: =SUM(OFFSET(INDIRECT($B$3&1),$G72-1,AC$10):OFFSET(INDIRECT($B$3&1),$G73-1,AC$10)) -> 6248 | AD78: =SUM(OFFSET(INDIRECT($B$3&1),$G72-1,AD$10):OFFSET(INDIRECT($B$3&1),$G73-1,AD$10)) -> 6162 | AE78: =SUM(OFFSET(INDIRECT($B$3&1),$G72-1,AE$10):OFFSET(INDIRECT($B$3&1),$G73-1,AE$10)) -> 6102 | AF78: =SUM(OFFSET(INDIRECT($B$3&1),$G72-1,AF$10):OFFSET(INDIRECT($B$3&1),$G73-1,AF$10)) -> 6043 | AG78: =SUM(OFFSET(INDIRECT($B$3&1),$G72-1,AG$10):OFFSET(INDIRECT($B$3&1),$G73-1,AG$10)) -> 5838 | AH78: =SUM(OFFSET(INDIRECT($B$3&1),$G72-1,AH$10):OFFSET(INDIRECT($B$3&1),$G73-1,AH$10)) -> 5774 | AI78: =SUM(OFFSET(INDIRECT($B$3&1),$G72-1,AI$10):OFFSET(INDIRECT($B$3&1),$G73-1,AI$10)) -> 5696 | AJ78: =SUM(OFFSET(INDIRECT($B$3&1),$G72-1,AJ$10):OFFSET(INDIRECT($B$3&1),$G73-1,AJ$10)) -> 5671 | AK78: =SUM(OFFSET(INDIRECT($B$3&1),$G72-1,AK$10):OFFSET(INDIRECT($B$3&1),$G73-1,AK$10)) -> 5654 | AL78: =SUM(OFFSET(INDIRECT($B$3&1),$G72-1,AL$10):OFFSET(INDIRECT($B$3&1),$G73-1,AL$10)) -> 5680 | AM78: =SUM(OFFSET(INDIRECT($B$3&1),$G72-1,AM$10):OFFSET(INDIRECT($B$3&1),$G73-1,AM$10)) -> 5580 | AN78: =SUM(OFFSET(INDIRECT($B$3&1),$G72-1,AN$10):OFFSET(INDIRECT($B$3&1),$G73-1,AN$10)) -> 5469 | AO78: =SUM(OFFSET(INDIRECT($B$3&1),$G72-1,AO$10):OFFSET(INDIRECT($B$3&1),$G73-1,AO$10)) -> 5342 | AP78: =SUM(OFFSET(INDIRECT($B$3&1),$G72-1,AP$10):OFFSET(INDIRECT($B$3&1),$G73-1,AP$10)) -> 5146 | AQ78: =SUM(OFFSET(INDIRECT($B$3&1),$G72-1,AQ$10):OFFSET(INDIRECT($B$3&1),$G73-1,AQ$10)) -> 5004 | AR78: =SUM(OFFSET(INDIRECT($B$3&1),$G72-1,AR$10):OFFSET(INDIRECT($B$3&1),$G73-1,AR$10)) -> 4951 | AS78: =SUM(OFFSET(INDIRECT($B$3&1),$G72-1,AS$10):OFFSET(INDIRECT($B$3&1),$G73-1,AS$10)) -> 4938 | AT78: =SUM(OFFSET(INDIRECT($B$3&1),$G72-1,AT$10):OFFSET(INDIRECT($B$3&1),$G73-1,AT$10)) -> 5021 | AU78: =SUM(OFFSET(INDIRECT($B$3&1),$G72-1,AU$10):OFFSET(INDIRECT($B$3&1),$G73-1,AU$10)) -> 5010 | AV78: =SUM(OFFSET(INDIRECT($B$3&1),$G72-1,AV$10):OFFSET(INDIRECT($B$3&1),$G73-1,AV$10)) -> 5131 | AW78: =SUM(OFFSET(INDIRECT($B$3&1),$G72-1,AW$10):OFFSET(INDIRECT($B$3&1),$G73-1,AW$10)) -> 5300 | AX78: =SUM(OFFSET(INDIRECT($B$3&1),$G72-1,AX$10):OFFSET(INDIRECT($B$3&1),$G73-1,AX$10)) -> 5426 | AY78: =SUM(OFFSET(INDIRECT($B$3&1),$G72-1,AY$10):OFFSET(INDIRECT($B$3&1),$G73-1,AY$10)) -> 5451 | AZ78: =SUM(OFFSET(INDIRECT($B$3&1),$G72-1,AZ$10):OFFSET(INDIRECT($B$3&1),$G73-1,AZ$10)) -> 5457 | BA78: =SUM(OFFSET(INDIRECT($B$3&1),$G72-1,BA$10):OFFSET(INDIRECT($B$3&1),$G73-1,BA$10)) -> 5444 | BB78: =SUM(OFFSET(INDIRECT($B$3&1),$G72-1,BB$10):OFFSET(INDIRECT($B$3&1),$G73-1,BB$10)) -> 5222 | BC78: =SUM(OFFSET(INDIRECT($B$3&1),$G72-1,BC$10):OFFSET(INDIRECT($B$3&1),$G73-1,BC$10)) -> 5165 | BD78: =SUM(OFFSET(INDIRECT($B$3&1),$G72-1,BD$10):OFFSET(INDIRECT($B$3&1),$G73-1,BD$10)) -> 5008 | BE78: =SUM(OFFSET(INDIRECT($B$3&1),$G72-1,BE$10):OFFSET(INDIRECT($B$3&1),$G73-1,BE$10)) -> 4906 | BF78: =SUM(OFFSET(INDIRECT($B$3&1),$G72-1,BF$10):OFFSET(INDIRECT($B$3&1),$G73-1,BF$10)) -> 4855 | BG78: =SUM(OFFSET(INDIRECT($B$3&1),$G72-1,BG$10):OFFSET(INDIRECT($B$3&1),$G73-1,BG$10)) -> 4477
A79: Number Basic Science PIs 46 to 55 | B79: B | C79: PI_B | D79: 40 | E79: 41 | F79: 79 | I79: SUM | J79: 46-55 | K79: =SUM(OFFSET(INDIRECT($B$3&1),$G74-1,K$10):OFFSET(INDIRECT($B$3&1),$G75-1,K$10)) -> 890 | L79: =SUM(OFFSET(INDIRECT($B$3&1),$G74-1,L$10):OFFSET(INDIRECT($B$3&1),$G75-1,L$10)) -> 996 | M79: =SUM(OFFSET(INDIRECT($B$3&1),$G74-1,M$10):OFFSET(INDIRECT($B$3&1),$G75-1,M$10)) -> 1154 | N79: =SUM(OFFSET(INDIRECT($B$3&1),$G74-1,N$10):OFFSET(INDIRECT($B$3&1),$G75-1,N$10)) -> 1299 | O79: =SUM(OFFSET(INDIRECT($B$3&1),$G74-1,O$10):OFFSET(INDIRECT($B$3&1),$G75-1,O$10)) -> 1462 | P79: =SUM(OFFSET(INDIRECT($B$3&1),$G74-1,P$10):OFFSET(INDIRECT($B$3&1),$G75-1,P$10)) -> 1666 | Q79: =SUM(OFFSET(INDIRECT($B$3&1),$G74-1,Q$10):OFFSET(INDIRECT($B$3&1),$G75-1,Q$10)) -> 1859 | R79: =SUM(OFFSET(INDIRECT($B$3&1),$G74-1,R$10):OFFSET(INDIRECT($B$3&1),$G75-1,R$10)) -> 2026 | S79: =SUM(OFFSET(INDIRECT($B$3&1),$G74-1,S$10):OFFSET(INDIRECT($B$3&1),$G75-1,S$10)) -> 2172 | T79: =SUM(OFFSET(INDIRECT($B$3&1),$G74-1,T$10):OFFSET(INDIRECT($B$3&1),$G75-1,T$10)) -> 2260 | U79: =SUM(OFFSET(INDIRECT($B$3&1),$G74-1,U$10):OFFSET(INDIRECT($B$3&1),$G75-1,U$10)) -> 2374 | V79: =SUM(OFFSET(INDIRECT($B$3&1),$G74-1,V$10):OFFSET(INDIRECT($B$3&1),$G75-1,V$10)) -> 2485 | W79: =SUM(OFFSET(INDIRECT($B$3&1),$G74-1,W$10):OFFSET(INDIRECT($B$3&1),$G75-1,W$10)) -> 2672 | X79: =SUM(OFFSET(INDIRECT($B$3&1),$G74-1,X$10):OFFSET(INDIRECT($B$3&1),$G75-1,X$10)) -> 2711 | Y79: =SUM(OFFSET(INDIRECT($B$3&1),$G74-1,Y$10):OFFSET(INDIRECT($B$3&1),$G75-1,Y$10)) -> 2767 | Z79: =SUM(OFFSET(INDIRECT($B$3&1),$G74-1,Z$10):OFFSET(INDIRECT($B$3&1),$G75-1,Z$10)) -> 2761 | AA79: =SUM(OFFSET(INDIRECT($B$3&1),$G74-1,AA$10):OFFSET(INDIRECT($B$3&1),$G75-1,AA$10)) -> 2810 | AB79: =SUM(OFFSET(INDIRECT($B$3&1),$G74-1,AB$10):OFFSET(INDIRECT($B$3&1),$G75-1,AB$10)) -> 2781 | AC79: =SUM(OFFSET(INDIRECT($B$3&1),$G74-1,AC$10):OFFSET(INDIRECT($B$3&1),$G75-1,AC$10)) -> 2847 | AD79: =SUM(OFFSET(INDIRECT($B$3&1),$G74-1,AD$10):OFFSET(INDIRECT($B$3&1),$G75-1,AD$10)) -> 2887 | AE79: =SUM(OFFSET(INDIRECT($B$3&1),$G74-1,AE$10):OFFSET(INDIRECT($B$3&1),$G75-1,AE$10)) -> 2961 | AF79: =SUM(OFFSET(INDIRECT($B$3&1),$G74-1,AF$10):OFFSET(INDIRECT($B$3&1),$G75-1,AF$10)) -> 3147 | AG79: =SUM(OFFSET(INDIRECT($B$3&1),$G74-1,AG$10):OFFSET(INDIRECT($B$3&1),$G75-1,AG$10)) -> 3397 | AH79: =SUM(OFFSET(INDIRECT($B$3&1),$G74-1,AH$10):OFFSET(INDIRECT($B$3&1),$G75-1,AH$10)) -> 3658 | AI79: =SUM(OFFSET(INDIRECT($B$3&1),$G74-1,AI$10):OFFSET(INDIRECT($B$3&1),$G75-1,AI$10)) -> 3827 | AJ79: =SUM(OFFSET(INDIRECT($B$3&1),$G74-1,AJ$10):OFFSET(INDIRECT($B$3&1),$G75-1,AJ$10)) -> 4016 | AK79: =SUM(OFFSET(INDIRECT($B$3&1),$G74-1,AK$10):OFFSET(INDIRECT($B$3&1),$G75-1,AK$10)) -> 4153 | AL79: =SUM(OFFSET(INDIRECT($B$3&1),$G74-1,AL$10):OFFSET(INDIRECT($B$3&1),$G75-1,AL$10)) -> 4358 | AM79: =SUM(OFFSET(INDIRECT($B$3&1),$G74-1,AM$10):OFFSET(INDIRECT($B$3&1),$G75-1,AM$10)) -> 4506 | AN79: =SUM(OFFSET(INDIRECT($B$3&1),$G74-1,AN$10):OFFSET(INDIRECT($B$3&1),$G75-1,AN$10)) -> 4578 | AO79: =SUM(OFFSET(INDIRECT($B$3&1),$G74-1,AO$10):OFFSET(INDIRECT($B$3&1),$G75-1,AO$10)) -> 4646 | AP79: =SUM(OFFSET(INDIRECT($B$3&1),$G74-1,AP$10):OFFSET(INDIRECT($B$3&1),$G75-1,AP$10)) -> 4761 | AQ79: =SUM(OFFSET(INDIRECT($B$3&1),$G74-1,AQ$10):OFFSET(INDIRECT($B$3&1),$G75-1,AQ$10)) -> 4793 | AR79: =SUM(OFFSET(INDIRECT($B$3&1),$G74-1,AR$10):OFFSET(INDIRECT($B$3&1),$G75-1,AR$10)) -> 4821 | AS79: =SUM(OFFSET(INDIRECT($B$3&1),$G74-1,AS$10):OFFSET(INDIRECT($B$3&1),$G75-1,AS$10)) -> 4971 | AT79: =SUM(OFFSET(INDIRECT($B$3&1),$G74-1,AT$10):OFFSET(INDIRECT($B$3&1),$G75-1,AT$10)) -> 5106 | AU79: =SUM(OFFSET(INDIRECT($B$3&1),$G74-1,AU$10):OFFSET(INDIRECT($B$3&1),$G75-1,AU$10)) -> 5211 | AV79: =SUM(OFFSET(INDIRECT($B$3&1),$G74-1,AV$10):OFFSET(INDIRECT($B$3&1),$G75-1,AV$10)) -> 5293 | AW79: =SUM(OFFSET(INDIRECT($B$3&1),$G74-1,AW$10):OFFSET(INDIRECT($B$3&1),$G75-1,AW$10)) -> 5382 | AX79: =SUM(OFFSET(INDIRECT($B$3&1),$G74-1,AX$10):OFFSET(INDIRECT($B$3&1),$G75-1,AX$10)) -> 5455 | AY79: =SUM(OFFSET(INDIRECT($B$3&1),$G74-1,AY$10):OFFSET(INDIRECT($B$3&1),$G75-1,AY$10)) -> 5438 | AZ79: =SUM(OFFSET(INDIRECT($B$3&1),$G74-1,AZ$10):OFFSET(INDIRECT($B$3&1),$G75-1,AZ$10)) -> 5295 | BA79: =SUM(OFFSET(INDIRECT($B$3&1),$G74-1,BA$10):OFFSET(INDIRECT($B$3&1),$G75-1,BA$10)) -> 5284 | BB79: =SUM(OFFSET(INDIRECT($B$3&1),$G74-1,BB$10):OFFSET(INDIRECT($B$3&1),$G75-1,BB$10)) -> 5348 | BC79: =SUM(OFFSET(INDIRECT($B$3&1),$G74-1,BC$10):OFFSET(INDIRECT($B$3&1),$G75-1,BC$10)) -> 5327 | BD79: =SUM(OFFSET(INDIRECT($B$3&1),$G74-1,BD$10):OFFSET(INDIRECT($B$3&1),$G75-1,BD$10)) -> 5253 | BE79: =SUM(OFFSET(INDIRECT($B$3&1),$G74-1,BE$10):OFFSET(INDIRECT($B$3&1),$G75-1,BE$10)) -> 5158 | BF79: =SUM(OFFSET(INDIRECT($B$3&1),$G74-1,BF$10):OFFSET(INDIRECT($B$3&1),$G75-1,BF$10)) -> 5059 | BG79: =SUM(OFFSET(INDIRECT($B$3&1),$G74-1,BG$10):OFFSET(INDIRECT($B$3&1),$G75-1,BG$10)) -> 4938
A80: Number Basic Science PIs Over 55 | B80: B | C80: PI_B | D80: 42 | E80: 43 | F80: 80 | I80: SUM | J80: 56-90 | K80: =SUM(OFFSET(INDIRECT($B$3&1),$G76-1,K$10):OFFSET(INDIRECT($B$3&1),$G77-1,K$10)) -> 381 | L80: =SUM(OFFSET(INDIRECT($B$3&1),$G76-1,L$10):OFFSET(INDIRECT($B$3&1),$G77-1,L$10)) -> 446 | M80: =SUM(OFFSET(INDIRECT($B$3&1),$G76-1,M$10):OFFSET(INDIRECT($B$3&1),$G77-1,M$10)) -> 512 | N80: =SUM(OFFSET(INDIRECT($B$3&1),$G76-1,N$10):OFFSET(INDIRECT($B$3&1),$G77-1,N$10)) -> 589 | O80: =SUM(OFFSET(INDIRECT($B$3&1),$G76-1,O$10):OFFSET(INDIRECT($B$3&1),$G77-1,O$10)) -> 695 | P80: =SUM(OFFSET(INDIRECT($B$3&1),$G76-1,P$10):OFFSET(INDIRECT($B$3&1),$G77-1,P$10)) -> 801 | Q80: =SUM(OFFSET(INDIRECT($B$3&1),$G76-1,Q$10):OFFSET(INDIRECT($B$3&1),$G77-1,Q$10)) -> 862 | R80: =SUM(OFFSET(INDIRECT($B$3&1),$G76-1,R$10):OFFSET(INDIRECT($B$3&1),$G77-1,R$10)) -> 928 | S80: =SUM(OFFSET(INDIRECT($B$3&1),$G76-1,S$10):OFFSET(INDIRECT($B$3&1),$G77-1,S$10)) -> 977 | T80: =SUM(OFFSET(INDIRECT($B$3&1),$G76-1,T$10):OFFSET(INDIRECT($B$3&1),$G77-1,T$10)) -> 1054 | U80: =SUM(OFFSET(INDIRECT($B$3&1),$G76-1,U$10):OFFSET(INDIRECT($B$3&1),$G77-1,U$10)) -> 1106 | V80: =SUM(OFFSET(INDIRECT($B$3&1),$G76-1,V$10):OFFSET(INDIRECT($B$3&1),$G77-1,V$10)) -> 1209 | W80: =SUM(OFFSET(INDIRECT($B$3&1),$G76-1,W$10):OFFSET(INDIRECT($B$3&1),$G77-1,W$10)) -> 1432 | X80: =SUM(OFFSET(INDIRECT($B$3&1),$G76-1,X$10):OFFSET(INDIRECT($B$3&1),$G77-1,X$10)) -> 1580 | Y80: =SUM(OFFSET(INDIRECT($B$3&1),$G76-1,Y$10):OFFSET(INDIRECT($B$3&1),$G77-1,Y$10)) -> 1735 | Z80: =SUM(OFFSET(INDIRECT($B$3&1),$G76-1,Z$10):OFFSET(INDIRECT($B$3&1),$G77-1,Z$10)) -> 1889 | AA80: =SUM(OFFSET(INDIRECT($B$3&1),$G76-1,AA$10):OFFSET(INDIRECT($B$3&1),$G77-1,AA$10)) -> 2033 | AB80: =SUM(OFFSET(INDIRECT($B$3&1),$G76-1,AB$10):OFFSET(INDIRECT($B$3&1),$G77-1,AB$10)) -> 2191 | AC80: =SUM(OFFSET(INDIRECT($B$3&1),$G76-1,AC$10):OFFSET(INDIRECT($B$3&1),$G77-1,AC$10)) -> 2326 | AD80: =SUM(OFFSET(INDIRECT($B$3&1),$G76-1,AD$10):OFFSET(INDIRECT($B$3&1),$G77-1,AD$10)) -> 2402 | AE80: =SUM(OFFSET(INDIRECT($B$3&1),$G76-1,AE$10):OFFSET(INDIRECT($B$3&1),$G77-1,AE$10)) -> 2531 | AF80: =SUM(OFFSET(INDIRECT($B$3&1),$G76-1,AF$10):OFFSET(INDIRECT($B$3&1),$G77-1,AF$10)) -> 2627 | AG80: =SUM(OFFSET(INDIRECT($B$3&1),$G76-1,AG$10):OFFSET(INDIRECT($B$3&1),$G77-1,AG$10)) -> 2720 | AH80: =SUM(OFFSET(INDIRECT($B$3&1),$G76-1,AH$10):OFFSET(INDIRECT($B$3&1),$G77-1,AH$10)) -> 2784 | AI80: =SUM(OFFSET(INDIRECT($B$3&1),$G76-1,AI$10):OFFSET(INDIRECT($B$3&1),$G77-1,AI$10)) -> 2863 | AJ80: =SUM(OFFSET(INDIRECT($B$3&1),$G76-1,AJ$10):OFFSET(INDIRECT($B$3&1),$G77-1,AJ$10)) -> 2933 | AK80: =SUM(OFFSET(INDIRECT($B$3&1),$G76-1,AK$10):OFFSET(INDIRECT($B$3&1),$G77-1,AK$10)) -> 2960 | AL80: =SUM(OFFSET(INDIRECT($B$3&1),$G76-1,AL$10):OFFSET(INDIRECT($B$3&1),$G77-1,AL$10)) -> 3056 | AM80: =SUM(OFFSET(INDIRECT($B$3&1),$G76-1,AM$10):OFFSET(INDIRECT($B$3&1),$G77-1,AM$10)) -> 3220 | AN80: =SUM(OFFSET(INDIRECT($B$3&1),$G76-1,AN$10):OFFSET(INDIRECT($B$3&1),$G77-1,AN$10)) -> 3258 | AO80: =SUM(OFFSET(INDIRECT($B$3&1),$G76-1,AO$10):OFFSET(INDIRECT($B$3&1),$G77-1,AO$10)) -> 3446 | AP80: =SUM(OFFSET(INDIRECT($B$3&1),$G76-1,AP$10):OFFSET(INDIRECT($B$3&1),$G77-1,AP$10)) -> 3637 | AQ80: =SUM(OFFSET(INDIRECT($B$3&1),$G76-1,AQ$10):OFFSET(INDIRECT($B$3&1),$G77-1,AQ$10)) -> 3923 | AR80: =SUM(OFFSET(INDIRECT($B$3&1),$G76-1,AR$10):OFFSET(INDIRECT($B$3&1),$G77-1,AR$10)) -> 4217 | AS80: =SUM(OFFSET(INDIRECT($B$3&1),$G76-1,AS$10):OFFSET(INDIRECT($B$3&1),$G77-1,AS$10)) -> 4447 | AT80: =SUM(OFFSET(INDIRECT($B$3&1),$G76-1,AT$10):OFFSET(INDIRECT($B$3&1),$G77-1,AT$10)) -> 4660 | AU80: =SUM(OFFSET(INDIRECT($B$3&1),$G76-1,AU$10):OFFSET(INDIRECT($B$3&1),$G77-1,AU$10)) -> 4870 | AV80: =SUM(OFFSET(INDIRECT($B$3&1),$G76-1,AV$10):OFFSET(INDIRECT($B$3&1),$G77-1,AV$10)) -> 5183 | AW80: =SUM(OFFSET(INDIRECT($B$3&1),$G76-1,AW$10):OFFSET(INDIRECT($B$3&1),$G77-1,AW$10)) -> 5472 | AX80: =SUM(OFFSET(INDIRECT($B$3&1),$G76-1,AX$10):OFFSET(INDIRECT($B$3&1),$G77-1,AX$10)) -> 5650 | AY80: =SUM(OFFSET(INDIRECT($B$3&1),$G76-1,AY$10):OFFSET(INDIRECT($B$3&1),$G77-1,AY$10)) -> 5809 | AZ80: =SUM(OFFSET(INDIRECT($B$3&1),$G76-1,AZ$10):OFFSET(INDIRECT($B$3&1),$G77-1,AZ$10)) -> 5874 | BA80: =SUM(OFFSET(INDIRECT($B$3&1),$G76-1,BA$10):OFFSET(INDIRECT($B$3&1),$G77-1,BA$10)) -> 6011 | BB80: =SUM(OFFSET(INDIRECT($B$3&1),$G76-1,BB$10):OFFSET(INDIRECT($B$3&1),$G77-1,BB$10)) -> 6153 | BC80: =SUM(OFFSET(INDIRECT($B$3&1),$G76-1,BC$10):OFFSET(INDIRECT($B$3&1),$G77-1,BC$10)) -> 6368 | BD80: =SUM(OFFSET(INDIRECT($B$3&1),$G76-1,BD$10):OFFSET(INDIRECT($B$3&1),$G77-1,BD$10)) -> 6503 | BE80: =SUM(OFFSET(INDIRECT($B$3&1),$G76-1,BE$10):OFFSET(INDIRECT($B$3&1),$G77-1,BE$10)) -> 6700 | BF80: =SUM(OFFSET(INDIRECT($B$3&1),$G76-1,BF$10):OFFSET(INDIRECT($B$3&1),$G77-1,BF$10)) -> 6896 | BG80: =SUM(OFFSET(INDIRECT($B$3&1),$G76-1,BG$10):OFFSET(INDIRECT($B$3&1),$G77-1,BG$10)) -> 6996
A81: Number Aged 25 | B81: B | C81: PI_C | D81: =VLOOKUP($C81,'id2'!$A$9:$B$132,2,0)-1 -> 2000 | E81: 2 | F81: 81 | G81: =D81+E81 -> 2002 | H81: =OFFSET(INDIRECT($B$3&1),$G81-1,H$10) -> 2002 | I81: PI_C | J81: 26 | K81: 15 | L81: 12 | M81: 18 | N81: 18 | O81: 24 | P81: 22 | Q81: 16 | R81: 17 | S81: 17 | T81: 16 | U81: 14 | V81: 21 | W81: 17 | X81: =OFFSET(INDIRECT($B$3&1),$G81-1,X$10) -> 14 | Y81: 18 | Z81: 14 | AA81: 15 | AB81: 11 | AC81: 13 | AD81: 15 | AE81: 13 | AF81: 12 | AG81: 14 | AH81: 12 | AI81: 20 | AJ81: 14 | AK81: 10 | AL81: 7 | AM81: 23 | AN81: =OFFSET(INDIRECT($B$3&1),$G81-1,AN$10) -> 17 | AO81: 14 | AP81: 19 | AQ81: 13 | AR81: 20 | AS81: 13 | AT81: 23 | AU81: 23 | AV81: 29 | AW81: 21 | AX81: 31 | AY81: 36 | AZ81: 18 | BA81: 24 | BB81: 15 | BC81: 8 | BD81: =OFFSET(INDIRECT($B$3&1),$G81-1,BD$10) -> 7 | BE81: 6 | BF81: 7 | BG81: 4
A82: Number Aged 45 | B82: B | C82: PI_C | D82: =VLOOKUP($C82,'id2'!$A$9:$B$132,2,0)-1 -> 2000 | E82: 21 | F82: 82 | G82: =D82+E82 -> 2021 | H82: 2021 | I82: PI_C | J82: 45 | K82: 400 | L82: 420 | M82: 467 | N82: 528 | O82: 576 | P82: 626 | Q82: 715 | R82: 785 | S82: 841 | T82: 931 | U82: 979 | V82: 985 | W82: 962 | X82: 1102 | Y82: 1189 | Z82: 1231 | AA82: 1244 | AB82: 1338 | AC82: 1271 | AD82: 1366 | AE82: 1538 | AF82: 1753 | AG82: 1846 | AH82: 1765 | AI82: 1785 | AJ82: 2163 | AK82: 2431 | AL82: 2414 | AM82: 2550 | AN82: 2619 | AO82: 2806 | AP82: 3101 | AQ82: 3080 | AR82: 3244 | AS82: 3236 | AT82: 3307 | AU82: 3325 | AV82: 3301 | AW82: 3391 | AX82: 3372 | AY82: 3382 | AZ82: 3431 | BA82: 3542 | BB82: 3427 | BC82: 3339 | BD82: 3350 | BE82: 3506 | BF82: 3707 | BG82: 3769
A83: Number Aged 46 | B83: B | C83: PI_C | D83: =VLOOKUP($C83,'id2'!$A$9:$B$132,2,0)-1 -> 2000 | E83: 22 | F83: 83 | G83: 2022 | H83: 2022 | I83: PI_C | J83: 46 | K83: 346 | L83: 434 | M83: 447 | N83: 496 | O83: 561 | P83: 598 | Q83: 641 | R83: 741 | S83: 786 | T83: 856 | U83: 938 | V83: 1003 | W83: 1013 | X83: 959 | Y83: 1105 | Z83: 1176 | AA83: 1220 | AB83: 1217 | AC83: 1322 | AD83: 1247 | AE83: 1368 | AF83: 1531 | AG83: 1763 | AH83: 1852 | AI83: 1761 | AJ83: 1780 | AK83: 2162 | AL83: 2474 | AM83: 2454 | AN83: 2547 | AO83: 2638 | AP83: 2800 | AQ83: 3104 | AR83: 3102 | AS83: 3253 | AT83: 3255 | AU83: 3348 | AV83: 3404 | AW83: 3360 | AX83: 3440 | AY83: 3317 | AZ83: 3334 | BA83: 3420 | BB83: 3511 | BC83: 3429 | BD83: 3442 | BE83: 3346 | BF83: 3450 | BG83: 3627
A84: Number Aged 55 | B84: B | C84: PI_C | D84: =VLOOKUP($C84,'id2'!$A$9:$B$132,2,0)-1 -> 2000 | E84: 31 | F84: 84 | G84: 2031 | H84: 2031 | I84: PI_C | J84: 55 | K84: 129 | L84: 123 | M84: 176 | N84: 199 | O84: 246 | P84: 272 | Q84: 309 | R84: 310 | S84: 348 | T84: 468 | U84: 549 | V84: 582 | W84: 652 | X84: 671 | Y84: 677 | Z84: 743 | AA84: 752 | AB84: 795 | AC84: 859 | AD84: 952 | AE84: 962 | AF84: 941 | AG84: 865 | AH84: 1028 | AI84: 1065 | AJ84: 1099 | AK84: 1129 | AL84: 1215 | AM84: 1193 | AN84: 1319 | AO84: 1468 | AP84: 1669 | AQ84: 1697 | AR84: 1721 | AS84: 1774 | AT84: 2133 | AU84: 2329 | AV84: 2374 | AW84: 2510 | AX84: 2666 | AY84: 2753 | AZ84: 2954 | BA84: 2993 | BB84: 3094 | BC84: 3156 | BD84: 3293 | BE84: 3279 | BF84: 3185 | BG84: 3139
A85: Number Aged 56 | B85: B | C85: PI_C | D85: =VLOOKUP($C85,'id2'!$A$9:$B$132,2,0)-1 -> 2000 | E85: 32 | F85: 85 | G85: 2032 | H85: 2032 | I85: PI_C | J85: 56 | K85: 114 | L85: 131 | M85: 131 | N85: 179 | O85: 208 | P85: 253 | Q85: 280 | R85: 321 | S85: 305 | T85: 346 | U85: 464 | V85: 566 | W85: 632 | X85: 637 | Y85: 673 | Z85: 667 | AA85: 736 | AB85: 735 | AC85: 789 | AD85: 844 | AE85: 934 | AF85: 953 | AG85: 943 | AH85: 851 | AI85: 1011 | AJ85: 1049 | AK85: 1091 | AL85: 1113 | AM85: 1209 | AN85: 1157 | AO85: 1296 | AP85: 1453 | AQ85: 1644 | AR85: 1679 | AS85: 1689 | AT85: 1759 | AU85: 2106 | AV85: 2310 | AW85: 2392 | AX85: 2492 | AY85: 2588 | AZ85: 2662 | BA85: 2914 | BB85: 2956 | BC85: 3056 | BD85: 3178 | BE85: 3238 | BF85: 3214 | BG85: 3093
A86: Number Aged 90 | B86: B | C86: PI_C | D86: =VLOOKUP($C86,'id2'!$A$9:$B$132,2,0)-1 -> 2000 | E86: 66 | F86: =1+F85 -> 86 | G86: 2066 | H86: 2066 | I86: PI_C | J86: 90 | K86: 0 | L86: 0 | M86: 0 | N86: 0 | O86: 0 | P86: 0 | Q86: 0 | R86: 0 | S86: 0 | T86: 0 | U86: 0 | V86: 0 | W86: 0 | X86: 0 | Y86: 0 | Z86: 0 | AA86: 0 | AB86: 0 | AC86: 0 | AD86: 0 | AE86: 0 | AF86: 1 | AG86: 0 | AH86: 0 | AI86: 1 | AJ86: 0 | AK86: 0 | AL86: 1 | AM86: 0 | AN86: 2 | AO86: 0 | AP86: 2 | AQ86: 6 | AR86: 8 | AS86: 2 | AT86: 7 | AU86: 2 | AV86: 8 | AW86: 3 | AX86: 8 | AY86: 10 | AZ86: 7 | BA86: 5 | BB86: 4 | BC86: 16 | BD86: 10 | BE86: 4 | BF86: 16 | BG86: 17
A87: Number Under 46 | B87: B | C87: PI_C | D87: 47 | E87: 48 | F87: 87 | I87: SUM | J87: 26-45 | K87: =SUM(OFFSET(INDIRECT($B$3&1),$G81-1,K$10):OFFSET(INDIRECT($B$3&1),$G82-1,K$10)) -> 6792 | L87: =SUM(OFFSET(INDIRECT($B$3&1),$G81-1,L$10):OFFSET(INDIRECT($B$3&1),$G82-1,L$10)) -> 7519 | M87: =SUM(OFFSET(INDIRECT($B$3&1),$G81-1,M$10):OFFSET(INDIRECT($B$3&1),$G82-1,M$10)) -> 8540 | N87: =SUM(OFFSET(INDIRECT($B$3&1),$G81-1,N$10):OFFSET(INDIRECT($B$3&1),$G82-1,N$10)) -> 9608 | O87: =SUM(OFFSET(INDIRECT($B$3&1),$G81-1,O$10):OFFSET(INDIRECT($B$3&1),$G82-1,O$10)) -> 10819 | P87: =SUM(OFFSET(INDIRECT($B$3&1),$G81-1,P$10):OFFSET(INDIRECT($B$3&1),$G82-1,P$10)) -> 11970 | Q87: =SUM(OFFSET(INDIRECT($B$3&1),$G81-1,Q$10):OFFSET(INDIRECT($B$3&1),$G82-1,Q$10)) -> 13008 | R87: =SUM(OFFSET(INDIRECT($B$3&1),$G81-1,R$10):OFFSET(INDIRECT($B$3&1),$G82-1,R$10)) -> 14038 | S87: =SUM(OFFSET(INDIRECT($B$3&1),$G81-1,S$10):OFFSET(INDIRECT($B$3&1),$G82-1,S$10)) -> 15151 | T87: =SUM(OFFSET(INDIRECT($B$3&1),$G81-1,T$10):OFFSET(INDIRECT($B$3&1),$G82-1,T$10)) -> 16298 | U87: =SUM(OFFSET(INDIRECT($B$3&1),$G81-1,U$10):OFFSET(INDIRECT($B$3&1),$G82-1,U$10)) -> 17349 | V87: =SUM(OFFSET(INDIRECT($B$3&1),$G81-1,V$10):OFFSET(INDIRECT($B$3&1),$G82-1,V$10)) -> 18702 | W87: =SUM(OFFSET(INDIRECT($B$3&1),$G81-1,W$10):OFFSET(INDIRECT($B$3&1),$G82-1,W$10)) -> 20544 | X87: =SUM(OFFSET(INDIRECT($B$3&1),$G81-1,X$10):OFFSET(INDIRECT($B$3&1),$G82-1,X$10)) -> 21906 | Y87: =SUM(OFFSET(INDIRECT($B$3&1),$G81-1,Y$10):OFFSET(INDIRECT($B$3&1),$G82-1,Y$10)) -> 23112 | Z87: =SUM(OFFSET(INDIRECT($B$3&1),$G81-1,Z$10):OFFSET(INDIRECT($B$3&1),$G82-1,Z$10)) -> 24129 | AA87: =SUM(OFFSET(INDIRECT($B$3&1),$G81-1,AA$10):OFFSET(INDIRECT($B$3&1),$G82-1,AA$10)) -> 24723 | AB87: =SUM(OFFSET(INDIRECT($B$3&1),$G81-1,AB$10):OFFSET(INDIRECT($B$3&1),$G82-1,AB$10)) -> 25173 | AC87: =SUM(OFFSET(INDIRECT($B$3&1),$G81-1,AC$10):OFFSET(INDIRECT($B$3&1),$G82-1,AC$10)) -> 25997 | AD87: =SUM(OFFSET(INDIRECT($B$3&1),$G81-1,AD$10):OFFSET(INDIRECT($B$3&1),$G82-1,AD$10)) -> 26741 | AE87: =SUM(OFFSET(INDIRECT($B$3&1),$G81-1,AE$10):OFFSET(INDIRECT($B$3&1),$G82-1,AE$10)) -> 27679 | AF87: =SUM(OFFSET(INDIRECT($B$3&1),$G81-1,AF$10):OFFSET(INDIRECT($B$3&1),$G82-1,AF$10)) -> 28645 | AG87: =SUM(OFFSET(INDIRECT($B$3&1),$G81-1,AG$10):OFFSET(INDIRECT($B$3&1),$G82-1,AG$10)) -> 29552 | AH87: =SUM(OFFSET(INDIRECT($B$3&1),$G81-1,AH$10):OFFSET(INDIRECT($B$3&1),$G82-1,AH$10)) -> 30595 | AI87: =SUM(OFFSET(INDIRECT($B$3&1),$G81-1,AI$10):OFFSET(INDIRECT($B$3&1),$G82-1,AI$10)) -> 31672 | AJ87: =SUM(OFFSET(INDIRECT($B$3&1),$G81-1,AJ$10):OFFSET(INDIRECT($B$3&1),$G82-1,AJ$10)) -> 33101 | AK87: =SUM(OFFSET(INDIRECT($B$3&1),$G81-1,AK$10):OFFSET(INDIRECT($B$3&1),$G82-1,AK$10)) -> 34076 | AL87: =SUM(OFFSET(INDIRECT($B$3&1),$G81-1,AL$10):OFFSET(INDIRECT($B$3&1),$G82-1,AL$10)) -> 35319 | AM87: =SUM(OFFSET(INDIRECT($B$3&1),$G81-1,AM$10):OFFSET(INDIRECT($B$3&1),$G82-1,AM$10)) -> 36502 | AN87: =SUM(OFFSET(INDIRECT($B$3&1),$G81-1,AN$10):OFFSET(INDIRECT($B$3&1),$G82-1,AN$10)) -> 36897 | AO87: =SUM(OFFSET(INDIRECT($B$3&1),$G81-1,AO$10):OFFSET(INDIRECT($B$3&1),$G82-1,AO$10)) -> 36922 | AP87: =SUM(OFFSET(INDIRECT($B$3&1),$G81-1,AP$10):OFFSET(INDIRECT($B$3&1),$G82-1,AP$10)) -> 36466 | AQ87: =SUM(OFFSET(INDIRECT($B$3&1),$G81-1,AQ$10):OFFSET(INDIRECT($B$3&1),$G82-1,AQ$10)) -> 35880 | AR87: =SUM(OFFSET(INDIRECT($B$3&1),$G81-1,AR$10):OFFSET(INDIRECT($B$3&1),$G82-1,AR$10)) -> 35730 | AS87: =SUM(OFFSET(INDIRECT($B$3&1),$G81-1,AS$10):OFFSET(INDIRECT($B$3&1),$G82-1,AS$10)) -> 35386 | AT87: =SUM(OFFSET(INDIRECT($B$3&1),$G81-1,AT$10):OFFSET(INDIRECT($B$3&1),$G82-1,AT$10)) -> 35652 | AU87: =SUM(OFFSET(INDIRECT($B$3&1),$G81-1,AU$10):OFFSET(INDIRECT($B$3&1),$G82-1,AU$10)) -> 36077 | AV87: =SUM(OFFSET(INDIRECT($B$3&1),$G81-1,AV$10):OFFSET(INDIRECT($B$3&1),$G82-1,AV$10)) -> 36940 | AW87: =SUM(OFFSET(INDIRECT($B$3&1),$G81-1,AW$10):OFFSET(INDIRECT($B$3&1),$G82-1,AW$10)) -> 37950 | AX87: =SUM(OFFSET(INDIRECT($B$3&1),$G81-1,AX$10):OFFSET(INDIRECT($B$3&1),$G82-1,AX$10)) -> 39043 | AY87: =SUM(OFFSET(INDIRECT($B$3&1),$G81-1,AY$10):OFFSET(INDIRECT($B$3&1),$G82-1,AY$10)) -> 39927 | AZ87: =SUM(OFFSET(INDIRECT($B$3&1),$G81-1,AZ$10):OFFSET(INDIRECT($B$3&1),$G82-1,AZ$10)) -> 40784 | BA87: =SUM(OFFSET(INDIRECT($B$3&1),$G81-1,BA$10):OFFSET(INDIRECT($B$3&1),$G82-1,BA$10)) -> 42021 | BB87: =SUM(OFFSET(INDIRECT($B$3&1),$G81-1,BB$10):OFFSET(INDIRECT($B$3&1),$G82-1,BB$10)) -> 42961 | BC87: =SUM(OFFSET(INDIRECT($B$3&1),$G81-1,BC$10):OFFSET(INDIRECT($B$3&1),$G82-1,BC$10)) -> 44817 | BD87: =SUM(OFFSET(INDIRECT($B$3&1),$G81-1,BD$10):OFFSET(INDIRECT($B$3&1),$G82-1,BD$10)) -> 47204 | BE87: =SUM(OFFSET(INDIRECT($B$3&1),$G81-1,BE$10):OFFSET(INDIRECT($B$3&1),$G82-1,BE$10)) -> 48683 | BF87: =SUM(OFFSET(INDIRECT($B$3&1),$G81-1,BF$10):OFFSET(INDIRECT($B$3&1),$G82-1,BF$10)) -> 49439 | BG87: =SUM(OFFSET(INDIRECT($B$3&1),$G81-1,BG$10):OFFSET(INDIRECT($B$3&1),$G82-1,BG$10)) -> 47044
A88: Number 46 to 55 | B88: B | C88: PI_C | D88: 49 | E88: 50 | F88: 88 | I88: SUM | J88: 46-55 | K88: =SUM(OFFSET(INDIRECT($B$3&1),$G83-1,K$10):OFFSET(INDIRECT($B$3&1),$G84-1,K$10)) -> 2045 | L88: =SUM(OFFSET(INDIRECT($B$3&1),$G83-1,L$10):OFFSET(INDIRECT($B$3&1),$G84-1,L$10)) -> 2457 | M88: =SUM(OFFSET(INDIRECT($B$3&1),$G83-1,M$10):OFFSET(INDIRECT($B$3&1),$G84-1,M$10)) -> 2908 | N88: =SUM(OFFSET(INDIRECT($B$3&1),$G83-1,N$10):OFFSET(INDIRECT($B$3&1),$G84-1,N$10)) -> 3383 | O88: =SUM(OFFSET(INDIRECT($B$3&1),$G83-1,O$10):OFFSET(INDIRECT($B$3&1),$G84-1,O$10)) -> 3920 | P88: =SUM(OFFSET(INDIRECT($B$3&1),$G83-1,P$10):OFFSET(INDIRECT($B$3&1),$G84-1,P$10)) -> 4438 | Q88: =SUM(OFFSET(INDIRECT($B$3&1),$G83-1,Q$10):OFFSET(INDIRECT($B$3&1),$G84-1,Q$10)) -> 4924 | R88: =SUM(OFFSET(INDIRECT($B$3&1),$G83-1,R$10):OFFSET(INDIRECT($B$3&1),$G84-1,R$10)) -> 5505 | S88: =SUM(OFFSET(INDIRECT($B$3&1),$G83-1,S$10):OFFSET(INDIRECT($B$3&1),$G84-1,S$10)) -> 6005 | T88: =SUM(OFFSET(INDIRECT($B$3&1),$G83-1,T$10):OFFSET(INDIRECT($B$3&1),$G84-1,T$10)) -> 6519 | U88: =SUM(OFFSET(INDIRECT($B$3&1),$G83-1,U$10):OFFSET(INDIRECT($B$3&1),$G84-1,U$10)) -> 7008 | V88: =SUM(OFFSET(INDIRECT($B$3&1),$G83-1,V$10):OFFSET(INDIRECT($B$3&1),$G84-1,V$10)) -> 7527 | W88: =SUM(OFFSET(INDIRECT($B$3&1),$G83-1,W$10):OFFSET(INDIRECT($B$3&1),$G84-1,W$10)) -> 8408 | X88: =SUM(OFFSET(INDIRECT($B$3&1),$G83-1,X$10):OFFSET(INDIRECT($B$3&1),$G84-1,X$10)) -> 8662 | Y88: =SUM(OFFSET(INDIRECT($B$3&1),$G83-1,Y$10):OFFSET(INDIRECT($B$3&1),$G84-1,Y$10)) -> 9053 | Z88: =SUM(OFFSET(INDIRECT($B$3&1),$G83-1,Z$10):OFFSET(INDIRECT($B$3&1),$G84-1,Z$10)) -> 9505 | AA88: =SUM(OFFSET(INDIRECT($B$3&1),$G83-1,AA$10):OFFSET(INDIRECT($B$3&1),$G84-1,AA$10)) -> 9844 | AB88: =SUM(OFFSET(INDIRECT($B$3&1),$G83-1,AB$10):OFFSET(INDIRECT($B$3&1),$G84-1,AB$10)) -> 10099 | AC88: =SUM(OFFSET(INDIRECT($B$3&1),$G83-1,AC$10):OFFSET(INDIRECT($B$3&1),$G84-1,AC$10)) -> 10538 | AD88: =SUM(OFFSET(INDIRECT($B$3&1),$G83-1,AD$10):OFFSET(INDIRECT($B$3&1),$G84-1,AD$10)) -> 10834 | AE88: =SUM(OFFSET(INDIRECT($B$3&1),$G83-1,AE$10):OFFSET(INDIRECT($B$3&1),$G84-1,AE$10)) -> 11168 | AF88: =SUM(OFFSET(INDIRECT($B$3&1),$G83-1,AF$10):OFFSET(INDIRECT($B$3&1),$G84-1,AF$10)) -> 11662 | AG88: =SUM(OFFSET(INDIRECT($B$3&1),$G83-1,AG$10):OFFSET(INDIRECT($B$3&1),$G84-1,AG$10)) -> 12413 | AH88: =SUM(OFFSET(INDIRECT($B$3&1),$G83-1,AH$10):OFFSET(INDIRECT($B$3&1),$G84-1,AH$10)) -> 13300 | AI88: =SUM(OFFSET(INDIRECT($B$3&1),$G83-1,AI$10):OFFSET(INDIRECT($B$3&1),$G84-1,AI$10)) -> 13975 | AJ88: =SUM(OFFSET(INDIRECT($B$3&1),$G83-1,AJ$10):OFFSET(INDIRECT($B$3&1),$G84-1,AJ$10)) -> 14657 | AK88: =SUM(OFFSET(INDIRECT($B$3&1),$G83-1,AK$10):OFFSET(INDIRECT($B$3&1),$G84-1,AK$10)) -> 15599 | AL88: =SUM(OFFSET(INDIRECT($B$3&1),$G83-1,AL$10):OFFSET(INDIRECT($B$3&1),$G84-1,AL$10)) -> 16971 | AM88: =SUM(OFFSET(INDIRECT($B$3&1),$G83-1,AM$10):OFFSET(INDIRECT($B$3&1),$G84-1,AM$10)) -> 18341 | AN88: =SUM(OFFSET(INDIRECT($B$3&1),$G83-1,AN$10):OFFSET(INDIRECT($B$3&1),$G84-1,AN$10)) -> 19513 | AO88: =SUM(OFFSET(INDIRECT($B$3&1),$G83-1,AO$10):OFFSET(INDIRECT($B$3&1),$G84-1,AO$10)) -> 20743 | AP88: =SUM(OFFSET(INDIRECT($B$3&1),$G83-1,AP$10):OFFSET(INDIRECT($B$3&1),$G84-1,AP$10)) -> 21905 | AQ88: =SUM(OFFSET(INDIRECT($B$3&1),$G83-1,AQ$10):OFFSET(INDIRECT($B$3&1),$G84-1,AQ$10)) -> 23166 | AR88: =SUM(OFFSET(INDIRECT($B$3&1),$G83-1,AR$10):OFFSET(INDIRECT($B$3&1),$G84-1,AR$10)) -> 24521 | AS88: =SUM(OFFSET(INDIRECT($B$3&1),$G83-1,AS$10):OFFSET(INDIRECT($B$3&1),$G84-1,AS$10)) -> 25946 | AT88: =SUM(OFFSET(INDIRECT($B$3&1),$G83-1,AT$10):OFFSET(INDIRECT($B$3&1),$G84-1,AT$10)) -> 27586 | AU88: =SUM(OFFSET(INDIRECT($B$3&1),$G83-1,AU$10):OFFSET(INDIRECT($B$3&1),$G84-1,AU$10)) -> 28796 | AV88: =SUM(OFFSET(INDIRECT($B$3&1),$G83-1,AV$10):OFFSET(INDIRECT($B$3&1),$G84-1,AV$10)) -> 30049 | AW88: =SUM(OFFSET(INDIRECT($B$3&1),$G83-1,AW$10):OFFSET(INDIRECT($B$3&1),$G84-1,AW$10)) -> 31087 | AX88: =SUM(OFFSET(INDIRECT($B$3&1),$G83-1,AX$10):OFFSET(INDIRECT($B$3&1),$G84-1,AX$10)) -> 32061 | AY88: =SUM(OFFSET(INDIRECT($B$3&1),$G83-1,AY$10):OFFSET(INDIRECT($B$3&1),$G84-1,AY$10)) -> 32220 | AZ88: =SUM(OFFSET(INDIRECT($B$3&1),$G83-1,AZ$10):OFFSET(INDIRECT($B$3&1),$G84-1,AZ$10)) -> 32349 | BA88: =SUM(OFFSET(INDIRECT($B$3&1),$G83-1,BA$10):OFFSET(INDIRECT($B$3&1),$G84-1,BA$10)) -> 32482 | BB88: =SUM(OFFSET(INDIRECT($B$3&1),$G83-1,BB$10):OFFSET(INDIRECT($B$3&1),$G84-1,BB$10)) -> 32859 | BC88: =SUM(OFFSET(INDIRECT($B$3&1),$G83-1,BC$10):OFFSET(INDIRECT($B$3&1),$G84-1,BC$10)) -> 33180 | BD88: =SUM(OFFSET(INDIRECT($B$3&1),$G83-1,BD$10):OFFSET(INDIRECT($B$3&1),$G84-1,BD$10)) -> 34013 | BE88: =SUM(OFFSET(INDIRECT($B$3&1),$G83-1,BE$10):OFFSET(INDIRECT($B$3&1),$G84-1,BE$10)) -> 33703 | BF88: =SUM(OFFSET(INDIRECT($B$3&1),$G83-1,BF$10):OFFSET(INDIRECT($B$3&1),$G84-1,BF$10)) -> 33418 | BG88: =SUM(OFFSET(INDIRECT($B$3&1),$G83-1,BG$10):OFFSET(INDIRECT($B$3&1),$G84-1,BG$10)) -> 33197
A89: Number Over 55 | B89: B | C89: PI_C | D89: 51 | E89: 52 | F89: 89 | I89: SUM | J89: 56-90 | K89: =SUM(OFFSET(INDIRECT($B$3&1),$G85-1,K$10):OFFSET(INDIRECT($B$3&1),$G86-1,K$10)) -> 667 | L89: =SUM(OFFSET(INDIRECT($B$3&1),$G85-1,L$10):OFFSET(INDIRECT($B$3&1),$G86-1,L$10)) -> 831 | M89: =SUM(OFFSET(INDIRECT($B$3&1),$G85-1,M$10):OFFSET(INDIRECT($B$3&1),$G86-1,M$10)) -> 987 | N89: =SUM(OFFSET(INDIRECT($B$3&1),$G85-1,N$10):OFFSET(INDIRECT($B$3&1),$G86-1,N$10)) -> 1183 | O89: =SUM(OFFSET(INDIRECT($B$3&1),$G85-1,O$10):OFFSET(INDIRECT($B$3&1),$G86-1,O$10)) -> 1437 | P89: =SUM(OFFSET(INDIRECT($B$3&1),$G85-1,P$10):OFFSET(INDIRECT($B$3&1),$G86-1,P$10)) -> 1725 | Q89: =SUM(OFFSET(INDIRECT($B$3&1),$G85-1,Q$10):OFFSET(INDIRECT($B$3&1),$G86-1,Q$10)) -> 1990 | R89: =SUM(OFFSET(INDIRECT($B$3&1),$G85-1,R$10):OFFSET(INDIRECT($B$3&1),$G86-1,R$10)) -> 2278 | S89: =SUM(OFFSET(INDIRECT($B$3&1),$G85-1,S$10):OFFSET(INDIRECT($B$3&1),$G86-1,S$10)) -> 2470 | T89: =SUM(OFFSET(INDIRECT($B$3&1),$G85-1,T$10):OFFSET(INDIRECT($B$3&1),$G86-1,T$10)) -> 2716 | U89: =SUM(OFFSET(INDIRECT($B$3&1),$G85-1,U$10):OFFSET(INDIRECT($B$3&1),$G86-1,U$10)) -> 3050 | V89: =SUM(OFFSET(INDIRECT($B$3&1),$G85-1,V$10):OFFSET(INDIRECT($B$3&1),$G86-1,V$10)) -> 3519 | W89: =SUM(OFFSET(INDIRECT($B$3&1),$G85-1,W$10):OFFSET(INDIRECT($B$3&1),$G86-1,W$10)) -> 4261 | X89: =SUM(OFFSET(INDIRECT($B$3&1),$G85-1,X$10):OFFSET(INDIRECT($B$3&1),$G86-1,X$10)) -> 4718 | Y89: =SUM(OFFSET(INDIRECT($B$3&1),$G85-1,Y$10):OFFSET(INDIRECT($B$3&1),$G86-1,Y$10)) -> 5207 | Z89: =SUM(OFFSET(INDIRECT($B$3&1),$G85-1,Z$10):OFFSET(INDIRECT($B$3&1),$G86-1,Z$10)) -> 5679 | AA89: =SUM(OFFSET(INDIRECT($B$3&1),$G85-1,AA$10):OFFSET(INDIRECT($B$3&1),$G86-1,AA$10)) -> 6121 | AB89: =SUM(OFFSET(INDIRECT($B$3&1),$G85-1,AB$10):OFFSET(INDIRECT($B$3&1),$G86-1,AB$10)) -> 6479 | AC89: =SUM(OFFSET(INDIRECT($B$3&1),$G85-1,AC$10):OFFSET(INDIRECT($B$3&1),$G86-1,AC$10)) -> 7023 | AD89: =SUM(OFFSET(INDIRECT($B$3&1),$G85-1,AD$10):OFFSET(INDIRECT($B$3&1),$G86-1,AD$10)) -> 7520 | AE89: =SUM(OFFSET(INDIRECT($B$3&1),$G85-1,AE$10):OFFSET(INDIRECT($B$3&1),$G86-1,AE$10)) -> 8067 | AF89: =SUM(OFFSET(INDIRECT($B$3&1),$G85-1,AF$10):OFFSET(INDIRECT($B$3&1),$G86-1,AF$10)) -> 8613 | AG89: =SUM(OFFSET(INDIRECT($B$3&1),$G85-1,AG$10):OFFSET(INDIRECT($B$3&1),$G86-1,AG$10)) -> 9172 | AH89: =SUM(OFFSET(INDIRECT($B$3&1),$G85-1,AH$10):OFFSET(INDIRECT($B$3&1),$G86-1,AH$10)) -> 9547 | AI89: =SUM(OFFSET(INDIRECT($B$3&1),$G85-1,AI$10):OFFSET(INDIRECT($B$3&1),$G86-1,AI$10)) -> 10068 | AJ89: =SUM(OFFSET(INDIRECT($B$3&1),$G85-1,AJ$10):OFFSET(INDIRECT($B$3&1),$G86-1,AJ$10)) -> 10633 | AK89: =SUM(OFFSET(INDIRECT($B$3&1),$G85-1,AK$10):OFFSET(INDIRECT($B$3&1),$G86-1,AK$10)) -> 10938 | AL89: =SUM(OFFSET(INDIRECT($B$3&1),$G85-1,AL$10):OFFSET(INDIRECT($B$3&1),$G86-1,AL$10)) -> 11505 | AM89: =SUM(OFFSET(INDIRECT($B$3&1),$G85-1,AM$10):OFFSET(INDIRECT($B$3&1),$G86-1,AM$10)) -> 12234 | AN89: =SUM(OFFSET(INDIRECT($B$3&1),$G85-1,AN$10):OFFSET(INDIRECT($B$3&1),$G86-1,AN$10)) -> 12458 | AO89: =SUM(OFFSET(INDIRECT($B$3&1),$G85-1,AO$10):OFFSET(INDIRECT($B$3&1),$G86-1,AO$10)) -> 13160 | AP89: =SUM(OFFSET(INDIRECT($B$3&1),$G85-1,AP$10):OFFSET(INDIRECT($B$3&1),$G86-1,AP$10)) -> 13918 | AQ89: =SUM(OFFSET(INDIRECT($B$3&1),$G85-1,AQ$10):OFFSET(INDIRECT($B$3&1),$G86-1,AQ$10)) -> 14684 | AR89: =SUM(OFFSET(INDIRECT($B$3&1),$G85-1,AR$10):OFFSET(INDIRECT($B$3&1),$G86-1,AR$10)) -> 15591 | AS89: =SUM(OFFSET(INDIRECT($B$3&1),$G85-1,AS$10):OFFSET(INDIRECT($B$3&1),$G86-1,AS$10)) -> 16557 | AT89: =SUM(OFFSET(INDIRECT($B$3&1),$G85-1,AT$10):OFFSET(INDIRECT($B$3&1),$G86-1,AT$10)) -> 17540 | AU89: =SUM(OFFSET(INDIRECT($B$3&1),$G85-1,AU$10):OFFSET(INDIRECT($B$3&1),$G86-1,AU$10)) -> 18906 | AV89: =SUM(OFFSET(INDIRECT($B$3&1),$G85-1,AV$10):OFFSET(INDIRECT($B$3&1),$G86-1,AV$10)) -> 20658 | AW89: =SUM(OFFSET(INDIRECT($B$3&1),$G85-1,AW$10):OFFSET(INDIRECT($B$3&1),$G86-1,AW$10)) -> 22431 | AX89: =SUM(OFFSET(INDIRECT($B$3&1),$G85-1,AX$10):OFFSET(INDIRECT($B$3&1),$G86-1,AX$10)) -> 24147 | AY89: =SUM(OFFSET(INDIRECT($B$3&1),$G85-1,AY$10):OFFSET(INDIRECT($B$3&1),$G86-1,AY$10)) -> 25287 | AZ89: =SUM(OFFSET(INDIRECT($B$3&1),$G85-1,AZ$10):OFFSET(INDIRECT($B$3&1),$G86-1,AZ$10)) -> 26136 | BA89: =SUM(OFFSET(INDIRECT($B$3&1),$G85-1,BA$10):OFFSET(INDIRECT($B$3&1),$G86-1,BA$10)) -> 27548 | BB89: =SUM(OFFSET(INDIRECT($B$3&1),$G85-1,BB$10):OFFSET(INDIRECT($B$3&1),$G86-1,BB$10)) -> 29311 | BC89: =SUM(OFFSET(INDIRECT($B$3&1),$G85-1,BC$10):OFFSET(INDIRECT($B$3&1),$G86-1,BC$10)) -> 31326 | BD89: =SUM(OFFSET(INDIRECT($B$3&1),$G85-1,BD$10):OFFSET(INDIRECT($B$3&1),$G86-1,BD$10)) -> 33893 | BE89: =SUM(OFFSET(INDIRECT($B$3&1),$G85-1,BE$10):OFFSET(INDIRECT($B$3&1),$G86-1,BE$10)) -> 35730 | BF89: =SUM(OFFSET(INDIRECT($B$3&1),$G85-1,BF$10):OFFSET(INDIRECT($B$3&1),$G86-1,BF$10)) -> 37246 | BG89: =SUM(OFFSET(INDIRECT($B$3&1),$G85-1,BG$10):OFFSET(INDIRECT($B$3&1),$G86-1,BG$10)) -> 38486
A90: Year check | B90: F | E90: 1 | F90: 90 | G90: 153 | K90: =OFFSET(INDIRECT($F$3&1),$G90+H$10,$E90) -> 1966 | L90: =OFFSET(INDIRECT($F$3&1),$G90+I$10,$E90) -> 1967 | M90: =OFFSET(INDIRECT($F$3&1),$G90+J$10,$E90) -> 1968 | N90: =OFFSET(INDIRECT($F$3&1),$G90+K$10,$E90) -> 1969 | O90: =OFFSET(INDIRECT($F$3&1),$G90+L$10,$E90) -> 1970 | P90: =OFFSET(INDIRECT($F$3&1),$G90+M$10,$E90) -> 1971 | Q90: =OFFSET(INDIRECT($F$3&1),$G90+N$10,$E90) -> 1972 | R90: =OFFSET(INDIRECT($F$3&1),$G90+O$10,$E90) -> 1973 | S90: =OFFSET(INDIRECT($F$3&1),$G90+P$10,$E90) -> 1974 | T90: =OFFSET(INDIRECT($F$3&1),$G90+Q$10,$E90) -> 1975 | U90: =OFFSET(INDIRECT($F$3&1),$G90+R$10,$E90) -> 1976 | V90: =OFFSET(INDIRECT($F$3&1),$G90+S$10,$E90) -> 1977 | W90: =OFFSET(INDIRECT($F$3&1),$G90+T$10,$E90) -> 1978 | X90: =OFFSET(INDIRECT($F$3&1),$G90+U$10,$E90) -> 1979 | Y90: =OFFSET(INDIRECT($F$3&1),$G90+V$10,$E90) -> 1980 | Z90: =OFFSET(INDIRECT($F$3&1),$G90+W$10,$E90) -> 1981 | AA90: =OFFSET(INDIRECT($F$3&1),$G90+X$10,$E90) -> 1982 | AB90: =OFFSET(INDIRECT($F$3&1),$G90+Y$10,$E90) -> 1983 | AC90: =OFFSET(INDIRECT($F$3&1),$G90+Z$10,$E90) -> 1984 | AD90: =OFFSET(INDIRECT($F$3&1),$G90+AA$10,$E90) -> 1985 | AE90: =OFFSET(INDIRECT($F$3&1),$G90+AB$10,$E90) -> 1986 | AF90: =OFFSET(INDIRECT($F$3&1),$G90+AC$10,$E90) -> 1987 | AG90: =OFFSET(INDIRECT($F$3&1),$G90+AD$10,$E90) -> 1988 | AH90: =OFFSET(INDIRECT($F$3&1),$G90+AE$10,$E90) -> 1989 | AI90: =OFFSET(INDIRECT($F$3&1),$G90+AF$10,$E90) -> 1990 | AJ90: =OFFSET(INDIRECT($F$3&1),$G90+AG$10,$E90) -> 1991 | AK90: =OFFSET(INDIRECT($F$3&1),$G90+AH$10,$E90) -> 1992 | AL90: =OFFSET(INDIRECT($F$3&1),$G90+AI$10,$E90) -> 1993 | AM90: =OFFSET(INDIRECT($F$3&1),$G90+AJ$10,$E90) -> 1994 | AN90: =OFFSET(INDIRECT($F$3&1),$G90+AK$10,$E90) -> 1995 | AO90: =OFFSET(INDIRECT($F$3&1),$G90+AL$10,$E90) -> 1996 | AP90: =OFFSET(INDIRECT($F$3&1),$G90+AM$10,$E90) -> 1997 | AQ90: =OFFSET(INDIRECT($F$3&1),$G90+AN$10,$E90) -> 1998 | AR90: =OFFSET(INDIRECT($F$3&1),$G90+AO$10,$E90) -> 1999 | AS90: =OFFSET(INDIRECT($F$3&1),$G90+AP$10,$E90) -> 2000 | AT90: =OFFSET(INDIRECT($F$3&1),$G90+AQ$10,$E90) -> 2001 | AU90: =OFFSET(INDIRECT($F$3&1),$G90+AR$10,$E90) -> 2002 | AV90: =OFFSET(INDIRECT($F$3&1),$G90+AS$10,$E90) -> 2003 | AW90: =OFFSET(INDIRECT($F$3&1),$G90+AT$10,$E90) -> 2004 | AX90: =OFFSET(INDIRECT($F$3&1),$G90+AU$10,$E90) -> 2005 | AY90: =OFFSET(INDIRECT($F$3&1),$G90+AV$10,$E90) -> 2006 | AZ90: =OFFSET(INDIRECT($F$3&1),$G90+AW$10,$E90) -> 2007 | BA90: =OFFSET(INDIRECT($F$3&1),$G90+AX$10,$E90) -> 2008 | BB90: =OFFSET(INDIRECT($F$3&1),$G90+AY$10,$E90) -> 2009 | BC90: =OFFSET(INDIRECT($F$3&1),$G90+AZ$10,$E90) -> 2010 | BD90: =OFFSET(INDIRECT($F$3&1),$G90+BA$10,$E90) -> 2011 | BE90: =OFFSET(INDIRECT($F$3&1),$G90+BB$10,$E90) -> 2012 | BF90: =OFFSET(INDIRECT($F$3&1),$G90+BC$10,$E90) -> 2013 | BG90: =OFFSET(INDIRECT($F$3&1),$G90+BD$10,$E90) -> 2014
A91: Number RPG Grantees Under 46 | F91: 91
A92: Number RPG Grantees 46 to 55 | F92: 92
A93: Number RPG Grantees Over 55 | F93: 93
F94: 94
F95: 95
F96: 96
A97: MONEY & NUMBERS | F97: 97
A98: BRDPI M$ Funding <46 | C98: =C36 | F98: 98 | Y98: =Y36 -> 3420 | Z98: 3402 | AA98: 3237 | AB98: 3404 | AC98: 3600 | AD98: 3861 | AE98: 3801 | AF98: 4166 | AG98: 3995 | AH98: 4018 | AI98: 3848 | AJ98: 3942 | AK98: 3905 | AL98: 3669 | AM98: 3573 | AN98: 3452 | AO98: 3461 | AP98: 3527 | AQ98: 3555 | AR98: 3755 | AS98: 3890 | AT98: 4148 | AU98: 4216 | AV98: 4239 | AW98: 4102 | AX98: 3845 | AY98: 3488 | AZ98: 3291 | BA98: 3085 | BB98: 3048 | BC98: 3080 | BD98: 2981 | BE98: 2947 | BF98: 2697 | BG98: 2702
A99: Number R01 Grantees <46 | C99: =C69 | F99: 99 | Y99: =Y69 -> 6156 | Z99: 6516 | AA99: 6660 | AB99: 7125 | AC99: 7370 | AD99: 7959 | AE99: 8248 | AF99: 8578 | AG99: 8677 | AH99: 8696 | AI99: 8568 | AJ99: 8723 | AK99: 8782 | AL99: 8375 | AM99: 8223 | AN99: 8018 | AO99: 7876 | AP99: 7936 | AQ99: 7881 | AR99: 7846 | AS99: 7619 | AT99: 7489 | AU99: 7268 | AV99: 7078 | AW99: 6928 | AX99: 6623 | AY99: 6391 | AZ99: 6257 | BA99: 6099 | BB99: 6361 | BC99: 6458 | BD99: 6185 | BE99: 6108 | BF99: 5920 | BG99: 5780
A100: Number Basic Science PIs <46 | C100: =C78 | F100: 100 | Y100: =Y78 -> 6450 | Z100: 6522 | AA100: 6495 | AB100: 6409 | AC100: 6248 | AD100: 6162 | AE100: 6102 | AF100: 6043 | AG100: 5838 | AH100: 5774 | AI100: 5696 | AJ100: 5671 | AK100: 5654 | AL100: 5680 | AM100: 5580 | AN100: 5469 | AO100: 5342 | AP100: 5146 | AQ100: 5004 | AR100: 4951 | AS100: 4938 | AT100: 5021 | AU100: 5010 | AV100: 5131 | AW100: 5300 | AX100: 5426 | AY100: 5451 | AZ100: 5457 | BA100: 5444 | BB100: 5222 | BC100: 5165 | BD100: 5008 | BE100: 4906 | BF100: 4855 | BG100: 4477
A101: 5 yr Ave BRDPI Funding <46 | C101: =AVERAGE(A104:E104) | F101: 101 | Y101: =AVERAGE(W104:AA104) -> -36 | Z101: 18 | AA101: 60 | AB101: 84 | AC101: 133 | AD101: 152 | AE101: 101 | AF101: 41 | AG101: 13 | AH101: -12 | AI101: =AVERAGE(AG104:AK104) -> -59 | AJ101: -77 | AK101: -84 | AL101: -88 | AM101: -86 | AN101: -49 | AO101: 7 | AP101: 62 | AQ101: 112 | AR101: 138 | AS101: =AVERAGE(AQ104:AU104) -> 137 | AT101: 103 | AU101: 30 | AV101: -70 | AW101: -158 | AX101: -208 | AY101: -221 | AZ101: -182 | BA101: -127 | BB101: -85 | BC101: =AVERAGE(BA104:BE104) -> -73 | BD101: -73 | BE101: -72 | BF101: -82 | BG101: -87
A102: 5 yr Ave R01 Grantees <46 | C102: =AVERAGE(A105:E105) | F102: 102 | Y102: 306 | Z102: 318 | AA102: 338 | AB102: 354 | AC102: 365 | AD102: 347 | AE102: 288 | AF102: 194 | AG102: 108 | AH102: 68 | AI102: -10 | AJ102: -78 | AK102: -102 | AL102: -140 | AM102: -169 | AN102: -134 | AO102: -87 | AP102: -78 | AQ102: -79 | AR102: -106 | AS102: -147 | AT102: -172 | AU102: -191 | AV102: -209 | AW102: -211 | AX102: -199 | AY102: -155 | AZ102: -73 | BA102: -37 | BB102: -36 | BC102: -33 | BD102: -76 | BE102: -140 | BF102: -153 | BG102: -146
A103: 5 yr Ave Basic Science PIs <46 | C103: =AVERAGE(A106:E106) | F103: 103 | Y103: 13 | Z103: -21 | AA103: -42 | AB103: -71 | AC103: -87 | AD103: -102 | AE103: -105 | AF103: -94 | AG103: -90 | AH103: -82 | AI103: -55 | AJ103: -35 | AK103: -42 | AL103: -56 | AM103: -84 | AN103: -118 | AO103: -131 | AP103: -116 | AQ103: -85 | AR103: -46 | AS103: -1 | AT103: 48 | AU103: 84 | AV103: 92 | AW103: 88 | AX103: 76 | AY103: 24 | AZ103: -34 | BA103: -70 | BB103: -99 | BC103: -114 | BD103: -133 | BE103: -181 | BF103: -200 | BG103: -223
A104: Annual Change BRDPI Funding <46 | C104: =D98-C98 | F104: 104 | Y104: =Z98-Y98 -> -18.1 | Z104: =(AA98-Y98)/2 -> -92 | AA104: 1 | AB104: 181 | AC104: 228 | AD104: 100 | AE104: 153 | AF104: 97 | AG104: -74 | AH104: -74 | AI104: -38 | AJ104: 29 | AK104: -137 | AL104: -166 | AM104: -108 | AN104: -56 | AO104: 38 | AP104: 47 | AQ104: 114 | AR104: 168 | AS104: 197 | AT104: 163 | AU104: 45 | AV104: -57 | AW104: -197 | AX104: -307 | AY104: -277 | AZ104: -202 | BA104: -122 | BB104: -2 | BC104: -34 | BD104: -67 | BE104: -142 | BF104: -123 | BG104: =BG98-BF98 -> 4
A105: Annual Change R01 Grantee <46 | C105: =D99-C99 | F105: 105 | Y105: =Z99-Y99 -> 360.0 | Z105: =(AA99-Y99)/2 -> 252 | AA105: 305 | AB105: 355 | AC105: 417 | AD105: 439 | AE105: 310 | AF105: 215 | AG105: 59 | AH105: -55 | AI105: 14 | AJ105: 107 | AK105: -174 | AL105: -280 | AM105: -179 | AN105: -174 | AO105: -41 | AP105: 3 | AQ105: -45 | AR105: -131 | AS105: -179 | AT105: -176 | AU105: -206 | AV105: -170 | AW105: -228 | AX105: -269 | AY105: -183 | AZ105: -146 | BA105: 52 | BB105: 180 | BC105: -88 | BD105: -175 | BE105: -133 | BF105: -164 | BG105: =BG99-BF99 -> -140
A106: Annual Change Basic PIs <46 | C106: =D100-C100 | F106: 106 | Y106: =Z100-Y100 -> 72.0 | Z106: =(AA100-Y100)/2 -> 23 | AA106: -57 | AB106: -124 | AC106: -124 | AD106: -73 | AE106: -60 | AF106: -132 | AG106: -135 | AH106: -71 | AI106: -52 | AJ106: -21 | AK106: 5 | AL106: -37 | AM106: -106 | AN106: -119 | AO106: -162 | AP106: -169 | AQ106: -98 | AR106: -33 | AS106: 35 | AT106: 36 | AU106: 55 | AV106: 145 | AW106: 148 | AX106: 76 | AY106: 16 | AZ106: -4 | BA106: -118 | BB106: -140 | BC106: -107 | BD106: -130 | BE106: -77 | BF106: -215 | BG106: =BG100-BF100 -> -378
F107: 107
A108: BRDPI$ M/R01 Grantee <46 | C108: =C36/C69 | F108: 108 | Y108: =Y36/Y69 -> 0.56 | Z108: 0.52 | AA108: 0.49 | AB108: 0.48 | AC108: 0.49 | AD108: 0.49 | AE108: 0.46 | AF108: 0.49 | AG108: 0.46 | AH108: 0.46 | AI108: 0.45 | AJ108: 0.45 | AK108: 0.44 | AL108: 0.44 | AM108: 0.43 | AN108: 0.43 | AO108: 0.44 | AP108: 0.44 | AQ108: 0.45 | AR108: 0.48 | AS108: 0.51 | AT108: 0.55 | AU108: 0.58 | AV108: 0.60 | AW108: 0.59 | AX108: 0.58 | AY108: 0.55 | AZ108: 0.53 | BA108: 0.51 | BB108: 0.48 | BC108: 0.48 | BD108: 0.48 | BE108: 0.48 | BF108: 0.46 | BG108: 0.47
A109: BRDPI$ M/R01 Grantee 46-55 | C109: =C37/C70 | F109: 109 | Y109: =Y37/Y70 -> 0.84 | Z109: 0.76 | AA109: 0.69 | AB109: 0.69 | AC109: 0.70 | AD109: 0.69 | AE109: 0.65 | AF109: 0.66 | AG109: 0.63 | AH109: 0.62 | AI109: 0.61 | AJ109: 0.62 | AK109: 0.62 | AL109: 0.60 | AM109: 0.59 | AN109: 0.60 | AO109: 0.62 | AP109: 0.63 | AQ109: 0.64 | AR109: 0.66 | AS109: 0.68 | AT109: 0.70 | AU109: 0.73 | AV109: 0.74 | AW109: 0.74 | AX109: 0.72 | AY109: 0.69 | AZ109: 0.66 | BA109: 0.63 | BB109: 0.57 | BC109: 0.57 | BD109: 0.56 | BE109: 0.56 | BF109: 0.52 | BG109: 0.53
A110: BRDPI$ M/R01 Grantee >55 | C110: =C38/C71 | F110: 110 | Y110: =Y38/Y71 -> 0.89 | Z110: 0.85 | AA110: 0.79 | AB110: 0.76 | AC110: 0.78 | AD110: 0.77 | AE110: 0.73 | AF110: 0.75 | AG110: 0.72 | AH110: 0.69 | AI110: 0.68 | AJ110: 0.67 | AK110: 0.66 | AL110: 0.65 | AM110: 0.64 | AN110: 0.63 | AO110: 0.65 | AP110: 0.66 | AQ110: 0.68 | AR110: 0.70 | AS110: 0.72 | AT110: 0.74 | AU110: 0.76 | AV110: 0.76 | AW110: 0.77 | AX110: 0.76 | AY110: 0.73 | AZ110: 0.70 | BA110: 0.68 | BB110: 0.64 | BC110: 0.62 | BD110: 0.64 | BE110: 0.62 | BF110: 0.58 | BG110: 0.58
F111: 111
F112: 112
A113: CC BRDPI$ Number R01 <46 | B113: =CORREL(S69:BA69,S36:BA36) | F113: 113 | H113: =CORREL(Y69:BG69,Y36:BG36) -> 0.698
A114: CC BRDPI$ Number R01 46-55 | B114: =CORREL(S70:BA70,S37:BA37) | F114: 114 | H114: =CORREL(Y70:BG70,Y37:BG37) -> 0.956
A115: CC BRDPI$ Number R01 >55 | B115: =CORREL(S71:BA71,S38:BA38) | F115: 115 | H115: =CORREL(Y71:BG71,Y38:BG38) -> 0.983
F116: 116
F117: 117
A118: SUCCESS RATES | F118: 118
A119: R01 Success Rate | B119: S | D119: 11 | F119: 119 | G119: 2 | O119: =OFFSET(INDIRECT($S$3&1),$G119+H$10,$D119) -> 0.339 | P119: =OFFSET(INDIRECT($S$3&1),$G119+I$10,$D119) -> 0.353 | Q119: 0.405 | R119: 0.272 | S119: 0.444 | T119: 0.438 | U119: 0.333 | V119: 0.283 | W119: 0.340 | X119: 0.393 | Y119: 0.323 | Z119: 0.304 | AA119: 0.290 | AB119: 0.313 | AC119: 0.318 | AD119: 0.327 | AE119: 0.323 | AF119: 0.351 | AG119: 0.316 | AH119: 0.279 | AI119: 0.240 | AJ119: 0.286 | AK119: 0.290 | AL119: 0.230 | AM119: 0.247 | AN119: 0.262 | AO119: 0.274 | AP119: 0.302 | AQ119: 0.309 | AR119: 0.321 | AS119: 0.320 | AT119: 0.317 | AU119: 0.307 | AV119: 0.302 | AW119: 0.254 | AX119: 0.227 | AY119: 0.207 | AZ119: 0.236 | BA119: 0.233 | BB119: 0.222 | BC119: 0.223 | BD119: 0.187 | BE119: 0.183 | BF119: 0.175 | BG119: 0.188
A120: Non-R01 RPG Success Rate | B120: S | D120: 17 | F120: 120 | G120: 2 | O120: =OFFSET(INDIRECT($S$3&1),$G120+H$10,$D120) -> 0.552 | P120: 0.470 | Q120: 0.440 | R120: 0.332 | S120: 0.458 | T120: 0.391 | U120: 0.345 | V120: 0.317 | W120: 0.407 | X120: 0.430 | Y120: 0.394 | Z120: 0.391 | AA120: 0.324 | AB120: 0.311 | AC120: 0.352 | AD120: 0.378 | AE120: 0.357 | AF120: 0.443 | AG120: 0.368 | AH120: 0.363 | AI120: 0.300 | AJ120: 0.284 | AK120: 0.334 | AL120: 0.288 | AM120: 0.321 | AN120: 0.324 | AO120: 0.318 | AP120: 0.320 | AQ120: 0.325 | AR120: 0.338 | AS120: 0.298 | AT120: 0.333 | AU120: 0.329 | AV120: 0.294 | AW120: 0.228 | AX120: 0.214 | AY120: 0.186 | AZ120: 0.181 | BA120: 0.194 | BB120: 0.180 | BC120: 0.179 | BD120: 0.163 | BE120: 0.166 | BF120: 0.158 | BG120: 0.173
A121: Number of R01 Applications | B121: S | D121: 9 | F121: 121 | G121: 2 | H121: 2 | O121: 8502 | P121: =OFFSET(INDIRECT($S$3&1),$G121+I$10,$D121) -> 8518 | Q121: =OFFSET(INDIRECT($S$3&1),$G121+J$10,$D121) -> 9766 | R121: =OFFSET(INDIRECT($S$3&1),$G121+K$10,$D121) -> 10618 | S121: =OFFSET(INDIRECT($S$3&1),$G121+L$10,$D121) -> 11568 | T121: =OFFSET(INDIRECT($S$3&1),$G121+M$10,$D121) -> 11524 | U121: =OFFSET(INDIRECT($S$3&1),$G121+N$10,$D121) -> 11556 | V121: =OFFSET(INDIRECT($S$3&1),$G121+O$10,$D121) -> 15050 | W121: =OFFSET(INDIRECT($S$3&1),$G121+P$10,$D121) -> 16280 | X121: =OFFSET(INDIRECT($S$3&1),$G121+Q$10,$D121) -> 16377 | Y121: =OFFSET(INDIRECT($S$3&1),$G121+R$10,$D121) -> 15919 | Z121: =OFFSET(INDIRECT($S$3&1),$G121+S$10,$D121) -> 17433 | AA121: =OFFSET(INDIRECT($S$3&1),$G121+T$10,$D121) -> 18043 | AB121: =OFFSET(INDIRECT($S$3&1),$G121+U$10,$D121) -> 17344 | AC121: =OFFSET(INDIRECT($S$3&1),$G121+V$10,$D121) -> 17374 | AD121: =OFFSET(INDIRECT($S$3&1),$G121+W$10,$D121) -> 18922 | AE121: =OFFSET(INDIRECT($S$3&1),$G121+X$10,$D121) -> 18607 | AF121: =OFFSET(INDIRECT($S$3&1),$G121+Y$10,$D121) -> 18228 | AG121: =OFFSET(INDIRECT($S$3&1),$G121+Z$10,$D121) -> 19339 | AH121: =OFFSET(INDIRECT($S$3&1),$G121+AA$10,$D121) -> 19381 | AI121: =OFFSET(INDIRECT($S$3&1),$G121+AB$10,$D121) -> 19835 | AJ121: =OFFSET(INDIRECT($S$3&1),$G121+AC$10,$D121) -> 19181 | AK121: =OFFSET(INDIRECT($S$3&1),$G121+AD$10,$D121) -> 19802 | AL121: =OFFSET(INDIRECT($S$3&1),$G121+AE$10,$D121) -> 21588 | AM121: =OFFSET(INDIRECT($S$3&1),$G121+AF$10,$D121) -> 23169 | AN121: =OFFSET(INDIRECT($S$3&1),$G121+AG$10,$D121) -> 22680 | AO121: =OFFSET(INDIRECT($S$3&1),$G121+AH$10,$D121) -> 21061 | AP121: =OFFSET(INDIRECT($S$3&1),$G121+AI$10,$D121) -> 20621 | AQ121: =OFFSET(INDIRECT($S$3&1),$G121+AJ$10,$D121) -> 20483 | AR121: =OFFSET(INDIRECT($S$3&1),$G121+AK$10,$D121) -> 22135 | AS121: =OFFSET(INDIRECT($S$3&1),$G121+AL$10,$D121) -> 22229 | AT121: =OFFSET(INDIRECT($S$3&1),$G121+AM$10,$D121) -> 22039 | AU121: =OFFSET(INDIRECT($S$3&1),$G121+AN$10,$D121) -> 22272 | AV121: =OFFSET(INDIRECT($S$3&1),$G121+AO$10,$D121) -> 24702 | AW121: =OFFSET(INDIRECT($S$3&1),$G121+AP$10,$D121) -> 27654 | AX121: =OFFSET(INDIRECT($S$3&1),$G121+AQ$10,$D121) -> 28540 | AY121: =OFFSET(INDIRECT($S$3&1),$G121+AR$10,$D121) -> 29221 | AZ121: =OFFSET(INDIRECT($S$3&1),$G121+AS$10,$D121) -> 27332 | BA121: =OFFSET(INDIRECT($S$3&1),$G121+AT$10,$D121) -> 26093 | BB121: =OFFSET(INDIRECT($S$3&1),$G121+AU$10,$D121) -> 26675 | BC121: =OFFSET(INDIRECT($S$3&1),$G121+AV$10,$D121) -> 27850 | BD121: =OFFSET(INDIRECT($S$3&1),$G121+AW$10,$D121) -> 28791 | BE121: =OFFSET(INDIRECT($S$3&1),$G121+AX$10,$D121) -> 29626 | BF121: =OFFSET(INDIRECT($S$3&1),$G121+AY$10,$D121) -> 28044 | BG121: =OFFSET(INDIRECT($S$3&1),$G121+AZ$10,$D121) -> 27502 | BH121: =BG121/AK121 -> 139% | BI121: =BH121-1 -> 39%
A122: Number of non-R01 RPG Applications | B122: S | D122: 15 | F122: 122 | G122: 2 | O122: 697 | P122: 709 | Q122: 895 | R122: 808 | S122: 879 | T122: 663 | U122: 889 | V122: 758 | W122: 715 | X122: 756 | Y122: 825 | Z122: 716 | AA122: 1179 | AB122: 1454 | AC122: 1307 | AD122: 1520 | AE122: 1289 | AF122: 1227 | AG122: 1418 | AH122: 1323 | AI122: 1674 | AJ122: 2235 | AK122: 1932 | AL122: 2038 | AM122: 2341 | AN122: 2544 | AO122: 2760 | AP122: 3600 | AQ122: 3668 | AR122: 4273 | AS122: 5569 | AT122: 6329 | AU122: 7796 | AV122: 10008 | AW122: 13207 | AX122: 14529 | AY122: 16467 | AZ122: 20123 | BA122: 17374 | BB122: 16467 | BC122: 18133 | BD122: 20801 | BE122: 21687 | BF122: 21537 | BG122: 23571 | BH122: =BG122/AK122 -> 1220% | BI122: =BH122-1 -> 1120%
A123: R01 Grants Awarded | B123: S | D123: 10 | F123: 123 | G123: 2 | O123: 2879 | P123: 3005 | Q123: 3956 | R123: 2886 | S123: 5131 | T123: 5046 | U123: 3848 | V123: 4257 | W123: 5539 | X123: 6438 | Y123: 5143 | Z123: 5300 | AA123: 5226 | AB123: 5427 | AC123: 5524 | AD123: 6186 | AE123: 6011 | AF123: 6401 | AG123: 6109 | AH123: 5403 | AI123: 4765 | AJ123: 5492 | AK123: 5735 | AL123: 4959 | AM123: 5722 | AN123: 5934 | AO123: 5776 | AP123: 6235 | AQ123: 6327 | AR123: 7111 | AS123: 7108 | AT123: 6990 | AU123: 6834 | AV123: 7450 | AW123: 7035 | AX123: 6489 | AY123: 6061 | AZ123: 6462 | BA123: 6087 | BB123: 5924 | BC123: 6217 | BD123: 5380 | BE123: 5436 | BF123: 4902 | BG123: 5163 | BH123: =AVERAGE(Y123:BG123) -> 5952 | BI123: =STDEV(Y123:BG123) -> 697
A124: Non-R01 Grants Awarded | B124: S | D124: 16 | F124: 124 | G124: 2 | O124: 385 | P124: 333 | Q124: 394 | R124: 268 | S124: 403 | T124: 259 | U124: 307 | V124: 240 | W124: 291 | X124: 325 | Y124: 325 | Z124: 280 | AA124: 382 | AB124: 452 | AC124: 460 | AD124: 574 | AE124: 460 | AF124: 544 | AG124: 522 | AH124: 480 | AI124: 502 | AJ124: 635 | AK124: 645 | AL124: 587 | AM124: 752 | AN124: 824 | AO124: 877 | AP124: 1153 | AQ124: 1191 | AR124: 1445 | AS124: 1657 | AT124: 2108 | AU124: 2562 | AV124: 2943 | AW124: 3017 | AX124: 3110 | AY124: 3067 | AZ124: 3638 | BA124: 3373 | BB124: 2957 | BC124: 3238 | BD124: 3385 | BE124: 3596 | BF124: 3408 | BG124: 4078 | BH124: =BG124/AK124 -> 632% | BI124: =BH124-1 -> 532%
A125: Year check | B125: F | E125: 1 | F125: 125 | G125: 153 | Y125: =OFFSET(INDIRECT($F$3&1),$G125+V$10,$E125) -> 1980 | Z125: =OFFSET(INDIRECT($F$3&1),$G125+W$10,$E125) -> 1981 | AA125: =OFFSET(INDIRECT($F$3&1),$G125+X$10,$E125) -> 1982 | AB125: =OFFSET(INDIRECT($F$3&1),$G125+Y$10,$E125) -> 1983 | AC125: =OFFSET(INDIRECT($F$3&1),$G125+Z$10,$E125) -> 1984 | AD125: =OFFSET(INDIRECT($F$3&1),$G125+AA$10,$E125) -> 1985 | AE125: =OFFSET(INDIRECT($F$3&1),$G125+AB$10,$E125) -> 1986 | AF125: =OFFSET(INDIRECT($F$3&1),$G125+AC$10,$E125) -> 1987 | AG125: =OFFSET(INDIRECT($F$3&1),$G125+AD$10,$E125) -> 1988 | AH125: =OFFSET(INDIRECT($F$3&1),$G125+AE$10,$E125) -> 1989 | AI125: =OFFSET(INDIRECT($F$3&1),$G125+AF$10,$E125) -> 1990 | AJ125: =OFFSET(INDIRECT($F$3&1),$G125+AG$10,$E125) -> 1991 | AK125: =OFFSET(INDIRECT($F$3&1),$G125+AH$10,$E125) -> 1992 | AL125: =OFFSET(INDIRECT($F$3&1),$G125+AI$10,$E125) -> 1993 | AM125: =OFFSET(INDIRECT($F$3&1),$G125+AJ$10,$E125) -> 1994 | AN125: =OFFSET(INDIRECT($F$3&1),$G125+AK$10,$E125) -> 1995 | AO125: =OFFSET(INDIRECT($F$3&1),$G125+AL$10,$E125) -> 1996 | AP125: =OFFSET(INDIRECT($F$3&1),$G125+AM$10,$E125) -> 1997 | AQ125: =OFFSET(INDIRECT($F$3&1),$G125+AN$10,$E125) -> 1998 | AR125: =OFFSET(INDIRECT($F$3&1),$G125+AO$10,$E125) -> 1999 | AS125: =OFFSET(INDIRECT($F$3&1),$G125+AP$10,$E125) -> 2000 | AT125: =OFFSET(INDIRECT($F$3&1),$G125+AQ$10,$E125) -> 2001 | AU125: =OFFSET(INDIRECT($F$3&1),$G125+AR$10,$E125) -> 2002 | AV125: =OFFSET(INDIRECT($F$3&1),$G125+AS$10,$E125) -> 2003 | AW125: =OFFSET(INDIRECT($F$3&1),$G125+AT$10,$E125) -> 2004 | AX125: =OFFSET(INDIRECT($F$3&1),$G125+AU$10,$E125) -> 2005 | AY125: =OFFSET(INDIRECT($F$3&1),$G125+AV$10,$E125) -> 2006 | AZ125: =OFFSET(INDIRECT($F$3&1),$G125+AW$10,$E125) -> 2007 | BA125: =OFFSET(INDIRECT($F$3&1),$G125+AX$10,$E125) -> 2008 | BB125: =OFFSET(INDIRECT($F$3&1),$G125+AY$10,$E125) -> 2009 | BC125: =OFFSET(INDIRECT($F$3&1),$G125+AZ$10,$E125) -> 2010 | BD125: =OFFSET(INDIRECT($F$3&1),$G125+BA$10,$E125) -> 2011 | BE125: =OFFSET(INDIRECT($F$3&1),$G125+BB$10,$E125) -> 2012 | BF125: =OFFSET(INDIRECT($F$3&1),$G125+BC$10,$E125) -> 2013 | BG125: =OFFSET(INDIRECT($F$3&1),$G125+BD$10,$E125) -> 2014

Sheet id2
A1: Title | B1: Index to d2 TAB
A2: Purpose | B2: Use offset to get index of sheet D2 =OFFSET(INDIRECT($B$3&1),$B8-1+$B5,E$1-1)
A3: Data Indexed | B3: d2!A
A4: Row Skip | B4: 100
A5: Start Row | B5: 1
A6: Column Number | B6: 1
A8: Value | B8: Ref. Row | C8: Count | E8: F1 | F8: F2 | G8: F3 | H8: F4 | I8: F5
A9: =OFFSET(INDIRECT($B$3&1),$B9,$B$6) -> AL | B9: =$B$4*(C9-1)+$B$5 -> 1 | C9: 1 | E9: =IF(ISNUMBER(FIND("b-",$A9)),"b-","") ->  | F9: =IF(ISNUMBER(FIND("pc",$A9)),"pc",IF(ISNUMBER(FIND("ra",$A9)),"ra","")) ->  | G9: =IF(ISNUMBER(FIND("AL",$A9)),"AL",IF(ISNUMBER(FIND("PI",$A9)),"PI",IF(ISNUMBER(FIND("R01",$A9)),"R01",""))) -> AL | H9: =IF(ISNUMBER(FIND("B",$A9)),"B",IF(ISNUMBER(FIND("C",$A9)),"C","")) ->  | I9: =IF(ISNUMBER(FIND("_SG",$A9)),"SG",IF(ISNUMBER(FIND("_S",$A9)),"S",IF(ISNUMBER(FIND("_u",$A9)),"u",""))) -> 
A10: =OFFSET(INDIRECT($B$3&1),$B10,$B$6) -> AL_S | B10: =$B$4*(C10-1)+$B$5 -> 101 | C10: 2 | E10: =IF(ISNUMBER(FIND("b-",$A10)),"b-","") ->  | F10: =IF(ISNUMBER(FIND("pc",$A10)),"pc",IF(ISNUMBER(FIND("ra",$A10)),"ra","")) ->  | G10: =IF(ISNUMBER(FIND("AL",$A10)),"AL",IF(ISNUMBER(FIND("PI",$A10)),"PI",IF(ISNUMBER(FIND("R01",$A10)),"R01",""))) -> AL | H10: =IF(ISNUMBER(FIND("B",$A10)),"B",IF(ISNUMBER(FIND("C",$A10)),"C","")) ->  | I10: =IF(ISNUMBER(FIND("_SG",$A10)),"SG",IF(ISNUMBER(FIND("_S",$A10)),"S",IF(ISNUMBER(FIND("_u",$A10)),"u",""))) -> S
A11: AL_SG | B11: 201 | C11: 3 | E11: =IF(ISNUMBER(FIND("b-",$A11)),"b-","") ->  | F11: =IF(ISNUMBER(FIND("pc",$A11)),"pc",IF(ISNUMBER(FIND("ra",$A11)),"ra","")) ->  | G11: =IF(ISNUMBER(FIND("AL",$A11)),"AL",IF(ISNUMBER(FIND("PI",$A11)),"PI",IF(ISNUMBER(FIND("R01",$A11)),"R01",""))) -> AL | H11: =IF(ISNUMBER(FIND("B",$A11)),"B",IF(ISNUMBER(FIND("C",$A11)),"C","")) ->  | I11: SG
A12: pc_AL_SG | B12: 301 | C12: 4 | F12: pc | G12: AL | I12: SG
A13: AL_B | B13: 401 | C13: 5 | G13: AL | H13: B
A14: AL_B_S | B14: 501 | C14: 6 | G14: AL | H14: B | I14: S
A15: AL_B_SG | B15: 601 | C15: 7 | G15: AL | H15: B | I15: SG
A16: pc_AL_B_SG | B16: 701 | C16: 8 | F16: pc | G16: AL | H16: B | I16: SG
A17: AL_C | B17: 801 | C17: 9 | G17: AL | H17: C
A18: AL_C_S | B18: 901 | C18: 10 | G18: AL | H18: C | I18: S
A19: AL_C_SG | B19: 1001 | C19: 11 | G19: AL | H19: C | I19: SG
A20: pc_AL_C_SG | B20: 1101 | C20: 12 | F20: pc | G20: AL | H20: C | I20: SG
A21: PI | B21: 1201 | C21: 13 | G21: PI
A22: PI_S | B22: 1301 | C22: 14 | G22: PI | I22: S
A23: PI_SG | B23: 1401 | C23: 15 | G23: PI | I23: SG
A24: pc_PI_SG | B24: 1501 | C24: 16 | F24: pc | G24: PI | I24: SG
A25: PI_B | B25: 1601 | C25: 17 | G25: PI | H25: B
A26: PI_B_S | B26: 1701 | C26: 18 | G26: PI | H26: B | I26: S
A27: PI_B_SG | B27: 1801 | C27: 19 | G27: PI | H27: B | I27: SG
A28: pc_PI_B_SG | B28: 1901 | C28: 20 | F28: pc | G28: PI | H28: B | I28: SG
A29: PI_C | B29: 2001 | C29: 21 | G29: PI | H29: C
A30: PI_C_S | B30: 2101 | C30: 22 | G30: PI | H30: C | I30: S
A31: PI_C_SG | B31: 2201 | C31: 23 | G31: PI | H31: C | I31: SG
A32: pc_PI_C_SG | B32: 2301 | C32: 24 | F32: pc | G32: PI | H32: C | I32: SG
A33: PI_BT | B33: 2401 | C33: 25 | G33: PI | H33: B
A34: PI_BT_S | B34: 2501 | C34: 26 | G34: PI | H34: B | I34: S
A35: PI_BT_SG | B35: 2601 | C35: 27 | G35: PI | H35: B | I35: SG
A36: pc_PI_BT_SG | B36: 2701 | C36: 28 | F36: pc | G36: PI | H36: B | I36: SG
A37: R01 | B37: 2801 | C37: 29 | G37: R01
A38: R01_S | B38: 2901 | C38: 30 | G38: R01 | I38: S
A39: R01_SG | B39: 3001 | C39: 31 | G39: R01 | I39: SG
A40: pc_R01_SG | B40: 3101 | C40: 32 | F40: pc | G40: R01 | I40: SG
A41: ra_AL | B41: 3201 | C41: 33 | F41: ra | G41: AL
A42: ra_AL_B | B42: 3301 | C42: 34 | F42: ra | G42: AL | H42: B
A43: ra_AL_C | B43: 3401 | C43: 35 | F43: ra | G43: AL | H43: C
A44: ra_PI | B44: 3501 | C44: 36 | F44: ra | G44: PI
A45: ra_PI_B | B45: 3601 | C45: 37 | F45: ra | G45: PI | H45: B
A46: ra_PI_C | B46: 3701 | C46: 38 | F46: ra | G46: PI | H46: C
A47: ra_PI_u1 | B47: 3801 | C47: 39 | F47: ra | G47: PI | I47: u
A48: ra_PI_v1 | B48: 3901 | C48: 40 | F48: ra | G48: PI
A49: ra_PI_w1 | B49: 4001 | C49: 41 | F49: ra | G49: PI
A50: ra_PI_u2 | B50: 4101 | C50: 42 | F50: ra | G50: PI | I50: u
A51: ra_PI_v2 | B51: 4201 | C51: 43 | F51: ra | G51: PI
A52: ra_PI_w2 | B52: 4301 | C52: 44 | F52: ra | G52: PI
A53: ra_PI_u3 | B53: 4401 | C53: 45 | F53: ra | G53: PI | I53: u
A54: ra_PI_v3 | B54: 4501 | C54: 46 | F54: ra | G54: PI
A55: ra_PI_B_u1 | B55: 4601 | C55: 47 | F55: ra | G55: PI | H55: B | I55: u
A56: ra_PI_B_v1 | B56: 4701 | C56: 48 | F56: ra | G56: PI | H56: B
A57: ra_PI_B_w1 | B57: 4801 | C57: 49 | F57: ra | G57: PI | H57: B
A58: ra_PI_B_u2 | B58: 4901 | C58: 50 | F58: ra | G58: PI | H58: B | I58: u
A59: ra_PI_B_v2 | B59: 5001 | C59: 51 | F59: ra | G59: PI | H59: B
A60: ra_PI_B_w2 | B60: 5101 | C60: 52 | F60: ra | G60: PI | H60: B
A61: ra_PI_B_u3 | B61: 5201 | C61: 53 | F61: ra | G61: PI | H61: B | I61: u
A62: ra_PI_B_v3 | B62: 5301 | C62: 54 | F62: ra | G62: PI | H62: B
A63: ra_PI_C_u1 | B63: 5401 | C63: 55 | F63: ra | G63: PI | H63: C | I63: u
A64: ra_PI_C_v1 | B64: 5501 | C64: 56 | F64: ra | G64: PI | H64: C
A65: ra_PI_C_w1 | B65: 5601 | C65: 57 | F65: ra | G65: PI | H65: C
A66: ra_PI_C_u2 | B66: 5701 | C66: 58 | F66: ra | G66: PI | H66: C | I66: u
A67: ra_PI_C_v2 | B67: 5801 | C67: 59 | F67: ra | G67: PI | H67: C
A68: ra_PI_C_w2 | B68: 5901 | C68: 60 | F68: ra | G68: PI | H68: C
A69: ra_PI_C_u3 | B69: 6001 | C69: 61 | F69: ra | G69: PI | H69: C | I69: u
A70: ra_PI_C_v3 | B70: 6101 | C70: 62 | F70: ra | G70: PI | H70: C
A71: b-AL | B71: 6201 | C71: 63 | E71: b- | G71: AL
A72: b-AL_S | B72: 6301 | C72: 64 | E72: b- | G72: AL | I72: S
A73: b-AL_SG | B73: 6401 | C73: 65 | E73: b- | G73: AL | I73: SG
A74: =OFFSET(INDIRECT($B$3&1),$B74,$B$6) -> b-pc_AL_SG | B74: =$B$4*(C74-1)+$B$5 -> 6501 | C74: 66 | E74: b- | F74: pc | G74: AL | I74: =IF(ISNUMBER(FIND("_SG",$A74)),"SG",IF(ISNUMBER(FIND("_S",$A74)),"S",IF(ISNUMBER(FIND("_u",$A74)),"u",""))) -> SG
A75: b-AL_B | B75: 6601 | C75: 67 | E75: =IF(ISNUMBER(FIND("b-",$A75)),"b-","") -> b- | F75: =IF(ISNUMBER(FIND("pc",$A75)),"pc",IF(ISNUMBER(FIND("ra",$A75)),"ra","")) ->  | G75: =IF(ISNUMBER(FIND("AL",$A75)),"AL",IF(ISNUMBER(FIND("PI",$A75)),"PI",IF(ISNUMBER(FIND("R01",$A75)),"R01",""))) -> AL | H75: =IF(ISNUMBER(FIND("B",$A75)),"B",IF(ISNUMBER(FIND("C",$A75)),"C","")) -> B
A76: b-AL_B_S | B76: 6701 | C76: 68 | E76: b- | G76: AL | H76: B | I76: S
A77: b-AL_B_SG | B77: 6801 | C77: 69 | E77: b- | G77: AL | H77: B | I77: SG
A78: b-pc_AL_B_SG | B78: 6901 | C78: 70 | E78: b- | F78: pc | G78: AL | H78: B | I78: SG
A79: b-AL_C | B79: 7001 | C79: 71 | E79: b- | G79: AL | H79: C
A80: b-AL_C_S | B80: 7101 | C80: 72 | E80: b- | G80: AL | H80: C | I80: S
A81: b-AL_C_SG | B81: 7201 | C81: 73 | E81: b- | G81: AL | H81: C | I81: SG
A82: b-pc_AL_C_SG | B82: 7301 | C82: 74 | E82: b- | F82: pc | G82: AL | H82: C | I82: SG
A83: b-PI | B83: 7401 | C83: 75 | E83: b- | G83: PI
A84: b-PI_S | B84: 7501 | C84: 76 | E84: b- | G84: PI | I84: S
A85: b-PI_SG | B85: 7601 | C85: 77 | E85: b- | G85: PI | I85: SG
A86: b-pc_PI_SG | B86: 7701 | C86: 78 | E86: b- | F86: pc | G86: PI | I86: SG
A87: b-PI_B | B87: 7801 | C87: 79 | E87: b- | G87: PI | H87: B
A88: b-PI_B_S | B88: 7901 | C88: 80 | E88: b- | G88: PI | H88: B | I88: S
A89: b-PI_B_SG | B89: 8001 | C89: 81 | E89: b- | G89: PI | H89: B | I89: SG
A90: b-pc_PI_B_SG | B90: 8101 | C90: 82 | E90: b- | F90: pc | G90: PI | H90: B | I90: SG
A91: b-PI_C | B91: 8201 | C91: 83 | E91: b- | G91: PI | H91: C
A92: b-PI_C_S | B92: 8301 | C92: 84 | E92: b- | G92: PI | H92: C | I92: S
A93: b-PI_C_SG | B93: 8401 | C93: 85 | E93: b- | G93: PI | H93: C | I93: SG
A94: b-pc_PI_C_SG | B94: 8501 | C94: 86 | E94: b- | F94: pc | G94: PI | H94: C | I94: SG
A95: b-PI_BT | B95: 8601 | C95: 87 | E95: b- | G95: PI | H95: B
A96: b-PI_BT_S | B96: 8701 | C96: 88 | E96: b- | G96: PI | H96: B | I96: S
A97: b-PI_BT_SG | B97: 8801 | C97: 89 | E97: b- | G97: PI | H97: B | I97: SG
A98: b-pc_PI_BT_SG | B98: 8901 | C98: 90 | E98: b- | F98: pc | G98: PI | H98: B | I98: SG
A99: b-R01 | B99: 9001 | C99: 91 | E99: b- | G99: R01
A100: b-R01_S | B100: 9101 | C100: 92 | E100: b- | G100: R01 | I100: S
A101: b-R01_SG | B101: 9201 | C101: 93 | E101: b- | G101: R01 | I101: SG
A102: b-pc_R01_SG | B102: 9301 | C102: 94 | E102: b- | F102: pc | G102: R01 | I102: SG
A103: b-ra_AL | B103: 9401 | C103: 95 | E103: b- | F103: ra | G103: AL
A104: b-ra_AL_B | B104: 9501 | C104: 96 | E104: b- | F104: ra | G104: AL | H104: B
A105: b-ra_AL_C | B105: 9601 | C105: 97 | E105: b- | F105: ra | G105: AL | H105: C
A106: b-ra_PI | B106: 9701 | C106: 98 | E106: b- | F106: ra | G106: PI
A107: b-ra_PI_B | B107: 9801 | C107: 99 | E107: b- | F107: ra | G107: PI | H107: B
A108: b-ra_PI_C | B108: 9901 | C108: 100 | E108: b- | F108: ra | G108: PI | H108: C
A109: b-ra_PI_u1 | B109: 10001 | C109: 101 | E109: b- | F109: ra | G109: PI | I109: u
A110: b-ra_PI_v1 | B110: 10101 | C110: 102 | E110: b- | F110: ra | G110: PI
A111: b-ra_PI_w1 | B111: 10201 | C111: 103 | E111: b- | F111: ra | G111: PI
A112: b-ra_PI_u2 | B112: 10301 | C112: 104 | E112: b- | F112: ra | G112: PI | I112: u
A113: b-ra_PI_v2 | B113: 10401 | C113: 105 | E113: b- | F113: ra | G113: PI
A114: b-ra_PI_w2 | B114: 10501 | C114: 106 | E114: b- | F114: ra | G114: PI
A115: b-ra_PI_u3 | B115: 10601 | C115: 107 | E115: b- | F115: ra | G115: PI | I115: u
A116: b-ra_PI_v3 | B116: 10701 | C116: 108 | E116: b- | F116: ra | G116: PI
A117: b-ra_PI_B_u1 | B117: 10801 | C117: 109 | E117: b- | F117: ra | G117: PI | H117: B | I117: u
A118: b-ra_PI_B_v1 | B118: 10901 | C118: 110 | E118: b- | F118: ra | G118: PI | H118: B
A119: b-ra_PI_B_w1 | B119: 11001 | C119: 111 | E119: b- | F119: ra | G119: PI | H119: B
A120: b-ra_PI_B_u2 | B120: 11101 | C120: 112 | E120: b- | F120: ra | G120: PI | H120: B | I120: u
A121: b-ra_PI_B_v2 | B121: 11201 | C121: 113 | E121: b- | F121: ra | G121: PI | H121: B
A122: b-ra_PI_B_w2 | B122: 11301 | C122: 114 | E122: b- | F122: ra | G122: PI | H122: B
A123: b-ra_PI_B_u3 | B123: 11401 | C123: 115 | E123: b- | F123: ra | G123: PI | H123: B | I123: u
A124: b-ra_PI_B_v3 | B124: 11501 | C124: 116 | E124: b- | F124: ra | G124: PI | H124: B
A125: b-ra_PI_C_u1 | B125: 11601 | C125: 117 | E125: b- | F125: ra | G125: PI | H125: C | I125: u
A126: b-ra_PI_C_v1 | B126: 11701 | C126: 118 | E126: b- | F126: ra | G126: PI | H126: C
A127: b-ra_PI_C_w1 | B127: 11801 | C127: 119 | E127: b- | F127: ra | G127: PI | H127: C
A128: b-ra_PI_C_u2 | B128: 11901 | C128: 120 | E128: b- | F128: ra | G128: PI | H128: C | I128: u
A129: b-ra_PI_C_v2 | B129: 12001 | C129: 121 | E129: b- | F129: ra | G129: PI | H129: C
A130: b-ra_PI_C_w2 | B130: 12101 | C130: 122 | E130: b- | F130: ra | G130: PI | H130: C
A131: b-ra_PI_C_u3 | B131: 12201 | C131: 123 | E131: b- | F131: ra | G131: PI | H131: C | I131: u
A132: b-ra_PI_C_v3 | B132: 12301 | C132: 124 | E132: b- | F132: ra | G132: PI | H132: C

Sheet wPIB_ad
A1: Title | B1: Number Basic Science PIs Smoothed. Used to get Desired Combined Distribution
A2: Purpose | B2: Use offset to get index of sheet D2 =OFFSET(INDIRECT($B$3&1),$B8-1+$B5,E$1-1)
A3: Data Source | B3: d2!A
A4: Data Name | B4: PI_B_S
A5: Start Row | B5: =VLOOKUP($B$4,'id2'!$A$9:$B$132,2,0) -> 1701
A6: Number Row | B6: 100
A7: Column Number | B7: 0
AQ8: =AVERAGE(AK12:AO12)*AQ$79 | AR8: =AVERAGE(G12:K12)*AR$79 | AS8: =MAX(AQ12,AR12) | AT8: =AS12*AT$78 | AU8: =AS12-AQ12 | AV8: =AU12*$AT$78
E9: 1 | F9: =1+E9 -> 2 | G9: =1+F9+14 -> 17 | H9: =1+G9 -> 18 | I9: 19 | J9: 20 | K9: 21 | L9: 22 | M9: 23 | N9: 24 | O9: 25 | P9: 26 | Q9: 27 | R9: 28 | S9: 29 | T9: 30 | U9: 31 | V9: 32 | W9: 33 | X9: 34 | Y9: 35 | Z9: 36 | AA9: 37 | AB9: 38 | AC9: 39 | AD9: 40 | AE9: 41 | AF9: 42 | AG9: 43 | AH9: 44 | AI9: 45 | AJ9: 46 | AK9: 47 | AL9: 48 | AM9: 49 | AN9: 50 | AO9: 51
D11: =B5 -> 1701 | E11: =OFFSET(INDIRECT($B$3&1),$D11-1,E$9) -> PI_B_S | F11: =OFFSET(INDIRECT($B$3&1),$D11-1,F$9) -> Age/Yea | G11: 1980 | H11: 1981 | I11: 1982 | J11: 1983 | K11: 1984 | L11: 1985 | M11: 1986 | N11: 1987 | O11: 1988 | P11: 1989 | Q11: 1990 | R11: 1991 | S11: 1992 | T11: 1993 | U11: 1994 | V11: 1995 | W11: 1996 | X11: 1997 | Y11: 1998 | Z11: 1999 | AA11: 2000 | AB11: 2001 | AC11: 2002 | AD11: 2003 | AE11: 2004 | AF11: 2005 | AG11: 2006 | AH11: 2007 | AI11: 2008 | AJ11: 2009 | AK11: 2010 | AL11: 2011 | AM11: 2012 | AN11: 2013 | AO11: 2014 | AP11: Age | AQ11: Av2012 | AR11: Av1982 | AS11: Max | AT11: Max1 | AU11: Dif | AV11: Dif1
D12: =1+D11 -> 1702 | E12: =OFFSET(INDIRECT($B$3&1),$D12-1,E$9) -> PI_B_S | F12: 26 | G12: =OFFSET(INDIRECT($B$3&1),$D12-1,G$9)*G$81 -> 5 | H12: =OFFSET(INDIRECT($B$3&1),$D12-1,H$9)*H$81 -> 4 | I12: 4 | J12: 2 | K12: 1 | L12: 2 | M12: 2 | N12: 2 | O12: 2 | P12: 2 | Q12: 2 | R12: 2 | S12: 3 | T12: 2 | U12: 2 | V12: 2 | W12: 2 | X12: 2 | Y12: 2 | Z12: 2 | AA12: 2 | AB12: 2 | AC12: 2 | AD12: 1 | AE12: 2 | AF12: 2 | AG12: 1 | AH12: 1 | AI12: 1 | AJ12: 1 | AK12: 1 | AL12: 1 | AM12: 1 | AN12: 2 | AO12: 0 | AP12: =F12 -> 26 | AQ12: =AVERAGE(AK12:AO12)*AQ$79 -> 1.0 | AR12: =AVERAGE(G12:K12)*AR$79 -> 3.1 | AS12: =MAX(AQ12,AR12) -> 3.1 | AT12: =AS12*AT$78 -> 3.1 | AU12: =AS12-AQ12 -> 2.1 | AV12: =AU12*$AT$78 -> 2.1
D13: =1+D12 -> 1703 | E13: PI_B_S | F13: 27 | G13: =OFFSET(INDIRECT($B$3&1),$D13-1,G$9)*G$81 -> 14 | H13: 10 | I13: 7 | J13: 7 | K13: 6 | L13: 4 | M13: 4 | N13: 4 | O13: 4 | P13: 4 | Q13: 4 | R13: 4 | S13: 3 | T13: 4 | U13: 3 | V13: 3 | W13: 3 | X13: 3 | Y13: 3 | Z13: 3 | AA13: 4 | AB13: 4 | AC13: 4 | AD13: 4 | AE13: 4 | AF13: 4 | AG13: 4 | AH13: 3 | AI13: 3 | AJ13: 3 | AK13: 2 | AL13: 2 | AM13: 3 | AN13: 4 | AO13: 7 | AP13: 27 | AQ13: 3.6 | AR13: 8.4 | AS13: =MAX(AQ13,AR13) -> 8.4 | AT13: 8.4 | AU13: =AS13-AQ13 -> 4.8 | AV13: =AU13*$AT$78 -> 4.8
D14: 1704 | E14: PI_B_S | F14: 28 | G14: 37 | H14: 31 | I14: 25 | J14: 20 | K14: 18 | L14: 14 | M14: 12 | N14: 11 | O14: 11 | P14: 9 | Q14: 10 | R14: 9 | S14: 8 | T14: 8 | U14: 8 | V14: 7 | W14: 7 | X14: 6 | Y14: 5 | Z14: 6 | AA14: 7 | AB14: 7 | AC14: 8 | AD14: 9 | AE14: 10 | AF14: 9 | AG14: 9 | AH14: 9 | AI14: 7 | AJ14: 6 | AK14: 6 | AL14: 5 | AM14: 5 | AN14: 6 | AO14: 5 | AP14: 28 | AQ14: 5.6 | AR14: 25.3 | AS14: 25.3 | AT14: 25.3 | AU14: 19.7 | AV14: 19.7
D15: 1705 | E15: PI_B_S | F15: 29 | G15: 82 | H15: 72 | I15: 65 | J15: 56 | K15: 44 | L15: 40 | M15: 33 | N15: 28 | O15: 24 | P15: 24 | Q15: 20 | R15: 20 | S15: 17 | T15: 14 | U15: 13 | V15: 12 | W15: 10 | X15: 11 | Y15: 12 | Z15: 11 | AA15: 13 | AB15: 15 | AC15: 16 | AD15: 18 | AE15: 19 | AF15: 18 | AG15: 17 | AH15: 16 | AI15: 16 | AJ15: 16 | AK15: 14 | AL15: 13 | AM15: 13 | AN15: 10 | AO15: 11 | AP15: 29 | AQ15: 12.1 | AR15: 61.5 | AS15: 61.5 | AT15: 61.5 | AU15: 49.4 | AV15: 49.4
D16: 1706 | E16: PI_B_S | F16: 30 | G16: 150 | H16: 132 | I16: 116 | J16: 105 | K16: 89 | L16: 75 | M16: 71 | N16: 63 | O16: 55 | P16: 52 | Q16: 49 | R16: 40 | S16: 35 | T16: 34 | U16: 29 | V16: 26 | W16: 24 | X16: 25 | Y16: 25 | Z16: 26 | AA16: 25 | AB16: 26 | AC16: 27 | AD16: 29 | AE16: 29 | AF16: 32 | AG16: 32 | AH16: 32 | AI16: 29 | AJ16: 29 | AK16: 27 | AL16: 26 | AM16: 22 | AN16: 20 | AO16: 10 | AP16: 30 | AQ16: 21.1 | AR16: 114.3 | AS16: 114.3 | AT16: 114.3 | AU16: 93.2 | AV16: 93.2
D17: 1707 | E17: PI_B_S | F17: 31 | G17: 235 | H17: 216 | I17: 197 | J17: 182 | K17: 169 | L17: 151 | M17: 132 | N17: 125 | O17: 112 | P17: 98 | Q17: 89 | R17: 86 | S17: 72 | T17: 64 | U17: 61 | V17: 53 | W17: 46 | X17: 47 | Y17: 47 | Z17: 48 | AA17: 52 | AB17: 52 | AC17: 53 | AD17: 55 | AE17: 56 | AF17: 57 | AG17: 57 | AH17: 55 | AI17: 54 | AJ17: 50 | AK17: 47 | AL17: 46 | AM17: 44 | AN17: 40 | AO17: 34 | AP17: 31 | AQ17: 42.1 | AR17: 193.0 | AS17: 193.0 | AT17: 193.0 | AU17: 150.9 | AV17: 150.9
D18: 1708 | E18: PI_B_S | F18: 32 | G18: 309 | H18: 298 | I18: 281 | J18: 263 | K18: 250 | L18: 237 | M18: 221 | N18: 195 | O18: 185 | P18: 173 | Q18: 152 | R18: 140 | S18: 135 | T18: 116 | U18: 103 | V18: 97 | W18: 85 | X18: 75 | Y18: 77 | Z18: 79 | AA18: 81 | AB18: 88 | AC18: 90 | AD18: 90 | AE18: 91 | AF18: 93 | AG18: 94 | AH18: 94 | AI18: 91 | AJ18: 91 | AK18: 83 | AL18: 79 | AM18: 74 | AN18: 64 | AO18: 46 | AP18: 32 | AQ18: 69.4 | AR18: 270.6 | AS18: 270.6 | AT18: 270.6 | AU18: 201.2 | AV18: 201.2
D19: 1709 | E19: PI_B_S | F19: 33 | G19: 373 | H19: 363 | I19: 355 | J19: 336 | K19: 321 | L19: 307 | M19: 299 | N19: 282 | O19: 259 | P19: 250 | Q19: 232 | R19: 208 | S19: 190 | T19: 183 | U19: 164 | V19: 151 | W19: 145 | X19: 132 | Y19: =OFFSET(INDIRECT($B$3&1),$D19-1,Y$9)*Y$81 -> 122 | Z19: 123 | AA19: 124 | AB19: 126 | AC19: 135 | AD19: 134 | AE19: 134 | AF19: 133 | AG19: 135 | AH19: 136 | AI19: 136 | AJ19: 132 | AK19: 134 | AL19: 125 | AM19: 117 | AN19: 108 | AO19: =OFFSET(INDIRECT($B$3&1),$D19-1,AO$9)*AO$81 -> 87 | AP19: 33 | AQ19: 114.2 | AR19: 337.5 | AS19: 337.5 | AT19: 337.5 | AU19: 223.2 | AV19: 223.2
D20: 1710 | E20: PI_B_S | F20: 34 | G20: 430 | H20: 414 | I20: 405 | J20: 399 | K20: 381 | L20: 368 | M20: 365 | N20: 357 | O20: 344 | P20: 323 | Q20: 307 | R20: 286 | S20: 260 | T20: 243 | U20: 238 | V20: 214 | W20: 201 | X20: 193 | Y20: 178 | Z20: 170 | AA20: 172 | AB20: 174 | AC20: 178 | AD20: 188 | AE20: 186 | AF20: 184 | AG20: 182 | AH20: 181 | AI20: 181 | AJ20: 182 | AK20: 179 | AL20: 178 | AM20: 167 | AN20: 150 | AO20: 120 | AP20: 34 | AQ20: 158.8 | AR20: 391.6 | AS20: 391.6 | AT20: 391.6 | AU20: 232.8 | AV20: 232.8
D21: 1711 | E21: PI_B_S | F21: 35 | G21: 485 | H21: 461 | I21: 449 | J21: 442 | K21: 443 | L21: 419 | M21: 415 | N21: 410 | O21: 403 | P21: 391 | Q21: 369 | R21: 350 | S21: 332 | T21: 306 | U21: 289 | V21: 279 | W21: 258 | X21: 240 | Y21: 236 | Z21: 223 | AA21: 218 | AB21: 222 | AC21: 228 | AD21: 234 | AE21: 242 | AF21: 240 | AG21: 236 | AH21: 229 | AI21: 225 | AJ21: 229 | AK21: 229 | AL21: 227 | AM21: 224 | AN21: 204 | AO21: 165 | AP21: 35 | AQ21: 209.6 | AR21: 440.1 | AS21: 440.1 | AT21: 440.1 | AU21: 230.4 | AV21: 230.4
D22: 1712 | E22: PI_B_S | F22: 36 | G22: 521 | H22: 501 | I22: 490 | J22: 479 | K22: 473 | L22: 471 | M22: 456 | N22: 445 | O22: 445 | P22: 442 | Q22: 428 | R22: 409 | S22: 387 | T22: 372 | U22: 351 | V22: 331 | W22: 320 | X22: 301 | Y22: 288 | Z22: 290 | AA22: 277 | AB22: 272 | AC22: 278 | AD22: 285 | AE22: 289 | AF22: 301 | AG22: 298 | AH22: 288 | AI22: 277 | AJ22: 271 | AK22: 274 | AL22: 274 | AM22: 273 | AN22: 265 | AO22: 219 | AP22: 36 | AQ22: 261.0 | AR22: 475.6 | AS22: 475.6 | AT22: 475.6 | AU22: 214.6 | AV22: 214.6
D23: 1713 | E23: PI_B_S | F23: 37 | G23: 541 | H23: 532 | I23: 518 | J23: 504 | K23: 497 | L23: 490 | M23: 498 | N23: 486 | O23: 481 | P23: 484 | Q23: 473 | R23: 454 | S23: 435 | T23: 417 | U23: 406 | V23: 382 | W23: 363 | X23: 349 | Y23: 336 | Z23: 329 | AA23: 334 | AB23: 325 | AC23: 321 | AD23: 328 | AE23: 334 | AF23: 343 | AG23: 358 | AH23: 351 | AI23: 340 | AJ23: 325 | AK23: 315 | AL23: 318 | AM23: 320 | AN23: 317 | AO23: 263 | AP23: 37 | AQ23: 306.5 | AR23: 500.2 | AS23: 500.2 | AT23: 500.2 | AU23: 193.7 | AV23: 193.7
D24: 1714 | E24: PI_B_S | F24: 38 | G24: 539 | H24: 541 | I24: 539 | J24: 526 | K24: 518 | L24: 506 | M24: 512 | N24: 520 | O24: 515 | P24: 514 | Q24: 511 | R24: 501 | S24: 481 | T24: 464 | U24: 451 | V24: 436 | W24: 411 | X24: 389 | Y24: 377 | Z24: 370 | AA24: 366 | AB24: 379 | AC24: 374 | AD24: 372 | AE24: 376 | AF24: 386 | AG24: 392 | AH24: 404 | AI24: 391 | AJ24: 383 | AK24: 365 | AL24: 351 | AM24: 351 | AN24: 340 | AO24: 318 | AP24: 38 | AQ24: 345.0 | AR24: 513.9 | AS24: 513.9 | AT24: 513.9 | AU24: =AS24-AQ24 -> 168.9 | AV24: 168.9
D25: 1715 | E25: PI_B_S | F25: 39 | G25: 514 | H25: 533 | I25: 541 | J25: 541 | K25: 528 | L25: 518 | M25: 515 | N25: 518 | O25: 533 | P25: 536 | Q25: 531 | R25: 530 | S25: 519 | T25: 505 | U25: 491 | V25: 471 | W25: 452 | X25: 429 | Y25: 410 | Z25: 404 | AA25: 401 | AB25: 399 | AC25: 414 | AD25: 413 | AE25: 409 | AF25: 413 | AG25: 423 | AH25: 430 | AI25: 436 | AJ25: 423 | AK25: 417 | AL25: 396 | AM25: 383 | AN25: 370 | AO25: 344 | AP25: 39 | AQ25: 382.1 | AR25: 512.8 | AS25: 512.8 | AT25: 512.8 | AU25: 130.7 | AV25: 130.7
D26: 1716 | E26: PI_B_S | F26: 40 | G26: 482 | H26: 505 | I26: 529 | J26: 537 | K26: 540 | L26: 523 | M26: 522 | N26: 517 | O26: 523 | P26: 541 | Q26: 541 | R26: 539 | S26: 541 | T26: 535 | U26: 527 | V26: 510 | W26: 485 | X26: 463 | Y26: 446 | Z26: 429 | AA26: 424 | AB26: 431 | AC26: 431 | AD26: 450 | AE26: 449 | AF26: 449 | AG26: 449 | AH26: 457 | AI26: 457 | AJ26: 463 | AK26: 448 | AL26: 438 | AM26: 421 | AN26: 378 | AO26: 319 | AP26: 40 | AQ26: 400.8 | AR26: 500.1 | AS26: =AS25 -> 512.8 | AT26: 512.8 | AU26: 112.0 | AV26: 112.0
D27: 1717 | E27: PI_B_S | F27: 41 | G27: 429 | H27: 471 | I27: 506 | J27: 531 | K27: 541 | L27: 541 | M27: 533 | N27: 525 | O27: 523 | P27: 533 | Q27: 541 | R27: 541 | S27: 534 | T27: 541 | U27: 541 | V27: 532 | W27: 514 | X27: =OFFSET(INDIRECT($B$3&1),$D27-1,X$9)*X$81 -> 495 | Y27: 476 | Z27: 462 | AA27: 444 | AB27: 446 | AC27: 460 | AD27: 463 | AE27: 481 | AF27: 485 | AG27: 483 | AH27: 473 | AI27: 477 | AJ27: 478 | AK27: 481 | AL27: 464 | AM27: 459 | AN27: =OFFSET(INDIRECT($B$3&1),$D27-1,AN$9)*AN$81 -> 413 | AO27: 381 | AP27: 41 | AQ27: 439.6 | AR27: 478.3 | AS27: =AS26 -> 512.8 | AT27: 512.8 | AU27: 73.2 | AV27: 73.2
D28: 1718 | E28: PI_B_S | F28: 42 | G28: 403 | H28: 426 | I28: 473 | J28: 505 | K28: 531 | L28: 535 | M28: 541 | N28: 526 | O28: 524 | P28: 527 | Q28: 529 | R28: 534 | S28: 535 | T28: 528 | U28: 541 | V28: 538 | W28: =OFFSET(INDIRECT($B$3&1),$D28-1,W$9)*W$81 -> 535 | X28: 518 | Y28: 508 | Z28: 491 | AA28: 480 | AB28: 463 | AC28: 469 | AD28: 488 | AE28: 494 | AF28: 510 | AG28: 515 | AH28: 509 | AI28: 490 | AJ28: 492 | AK28: 494 | AL28: 495 | AM28: 480 | AN28: 448 | AO28: 345 | AP28: 42 | AQ28: 452.4 | AR28: 451.1 | AS28: =AS27 -> 512.8 | AT28: 512.8 | AU28: 60.4 | AV28: 60.4
D29: 1719 | E29: PI_B_S | F29: 43 | G29: 369 | H29: 392 | I29: 421 | J29: 468 | K29: 503 | L29: 525 | M29: 539 | N29: 541 | O29: 535 | P29: 536 | Q29: 532 | R29: 528 | S29: 532 | T29: 533 | U29: 532 | V29: 541 | W29: 541 | X29: 535 | Y29: 521 | Z29: 515 | AA29: 502 | AB29: 492 | AC29: 479 | AD29: 487 | AE29: 504 | AF29: 513 | AG29: 530 | AH29: 535 | AI29: 519 | AJ29: 501 | AK29: 497 | AL29: 500 | AM29: 499 | AN29: 485 | AO29: 392 | AP29: 43 | AQ29: 474.5 | AR29: 415.6 | AS29: 512.8 | AT29: 512.8 | AU29: 38.3 | AV29: 38.3
D30: 1720 | E30: PI_B_S | F30: 44 | G30: 351 | H30: 361 | I30: 387 | J30: 414 | K30: 464 | L30: 495 | M30: 524 | N30: 531 | O30: 541 | P30: 538 | Q30: 529 | R30: 520 | S30: 515 | T30: 521 | U30: 527 | V30: 522 | W30: 539 | X30: 541 | Y30: 536 | Z30: 526 | AA30: 522 | AB30: 508 | AC30: 500 | AD30: 491 | AE30: 502 | AF30: 522 | AG30: 530 | AH30: 541 | AI30: 541 | AJ30: 520 | AK30: 498 | AL30: 494 | AM30: 504 | AN30: 507 | AO30: 487 | AP30: 44 | AQ30: 498.0 | AR30: 381.7 | AS30: 512.8 | AT30: 512.8 | AU30: 14.8 | AV30: 14.8
D31: 1721 | E31: PI_B_S | F31: 45 | G31: 328 | H31: 347 | I31: 360 | J31: 385 | K31: 413 | L31: 459 | M31: 497 | N31: 516 | O31: 529 | P31: 541 | Q31: 529 | R31: 517 | S31: 508 | T31: 506 | U31: 518 | V31: 520 | W31: 518 | X31: 534 | Y31: 541 | Z31: 539 | AA31: 528 | AB31: 529 | AC31: 515 | AD31: 507 | AE31: 496 | AF31: 509 | AG31: 527 | AH31: 536 | AI31: 540 | AJ31: 541 | AK31: 522 | AL31: 498 | AM31: 498 | AN31: 479 | AO31: 450 | AP31: 45 | AQ31: 489.5 | AR31: 353.7 | AS31: 512.8 | AT31: 512.8 | AU31: 23.3 | AV31: 23.3
D32: 1722 | E32: PI_B_S | F32: 46 | G32: 312 | H32: 322 | I32: 345 | J32: 361 | K32: 387 | L32: 411 | M32: 462 | N32: 493 | O32: 515 | P32: 529 | Q32: 533 | R32: 520 | S32: 508 | T32: 502 | U32: 505 | V32: 511 | W32: 516 | X32: 514 | Y32: 530 | Z32: 541 | AA32: 541 | AB32: 534 | AC32: 536 | AD32: 522 | AE32: 515 | AF32: 504 | AG32: 515 | AH32: 531 | AI32: 535 | AJ32: 537 | AK32: 541 | AL32: 521 | AM32: 500 | AN32: 474 | AO32: 440 | AP32: 46 | AQ32: 495.1 | AR32: 333.1 | AS32: 512.8 | AT32: 512.8 | AU32: 17.7 | AV32: 17.7
D33: 1723 | E33: PI_B_S | F33: 47 | G33: 294 | H33: 304 | I33: 319 | J33: 341 | K33: 356 | L33: 381 | M33: 414 | N33: 457 | O33: 493 | P33: 519 | Q33: 523 | R33: 520 | S33: 506 | T33: 496 | U33: 496 | V33: 498 | W33: 507 | X33: 510 | Y33: 509 | Z33: 526 | AA33: 536 | AB33: 541 | AC33: 535 | AD33: 541 | AE33: 527 | AF33: 523 | AG33: 510 | AH33: 519 | AI33: 531 | AJ33: 540 | AK33: 538 | AL33: 541 | AM33: 527 | AN33: 473 | AO33: 409 | AP33: 47 | AQ33: 497.6 | AR33: 311.5 | AS33: 497.6 | AT33: 497.6 | AU33: 0.0 | AV33: 0.0
D34: 1724 | E34: PI_B_S | F34: 48 | G34: 294 | H34: 286 | I34: 300 | J34: 315 | K34: 337 | L34: 349 | M34: 380 | N34: 406 | O34: 455 | P34: 495 | Q34: 512 | R34: 512 | S34: 511 | T34: 498 | U34: 494 | V34: 493 | W34: 498 | X34: 502 | Y34: 510 | Z34: 510 | AA34: 523 | AB34: 536 | AC34: 541 | AD34: 535 | AE34: 537 | AF34: 527 | AG34: 520 | AH34: 507 | AI34: 512 | AJ34: 528 | AK34: 536 | AL34: 535 | AM34: 541 | AN34: 489 | AO34: 427 | AP34: 48 | AQ34: 505.6 | AR34: 295.9 | AS34: 505.6 | AT34: 505.6 | AU34: 0.0 | AV34: 0.0
D35: 1725 | E35: PI_B_S | F35: 49 | G35: 283 | H35: 289 | I35: 285 | J35: 298 | K35: 314 | L35: 332 | M35: 350 | N35: 376 | O35: 407 | P35: 461 | Q35: 490 | R35: 501 | S35: 498 | T35: 499 | U35: 488 | V35: 484 | W35: 489 | X35: 490 | Y35: 498 | Z35: 506 | AA35: 505 | AB35: 518 | AC35: 533 | AD35: 539 | AE35: 534 | AF35: 534 | AG35: 525 | AH35: 519 | AI35: 501 | AJ35: 508 | AK35: 528 | AL35: 535 | AM35: 539 | AN35: 532 | AO35: 436 | AP35: 49 | AQ35: 513.9 | AR35: 283.5 | AS35: 513.9 | AT35: 513.9 | AU35: 0.0 | AV35: 0.0
D36: 1726 | E36: PI_B_S | F36: 50 | G36: 281 | H36: 278 | I36: 287 | J36: 281 | K36: 295 | L36: 308 | M36: 330 | N36: 344 | O36: 376 | P36: 408 | Q36: 453 | R36: 478 | S36: 488 | T36: 488 | U36: 494 | V36: 484 | W36: 482 | X36: 484 | Y36: 487 | Z36: 497 | AA36: 504 | AB36: 503 | AC36: 517 | AD36: 533 | AE36: 541 | AF36: 536 | AG36: 533 | AH36: 519 | AI36: 505 | AJ36: 487 | AK36: 493 | AL36: 515 | AM36: 527 | AN36: 541 | AO36: 446 | AP36: 50 | AQ36: 504.6 | AR36: 274.5 | AS36: 504.6 | AT36: 504.6 | AU36: 0.0 | AV36: 0.0
D37: 1727 | E37: PI_B_S | F37: 51 | G37: 287 | H37: 274 | I37: 276 | J37: 285 | K37: 280 | L37: 292 | M37: 310 | N37: 329 | O37: 346 | P37: 380 | Q37: 404 | R37: 444 | S37: 467 | T37: 477 | U37: 481 | V37: 486 | W37: 477 | X37: 474 | Y37: 479 | Z37: 485 | AA37: 492 | AB37: 503 | AC37: 504 | AD37: 520 | AE37: 534 | AF37: 541 | AG37: 533 | AH37: 530 | AI37: 512 | AJ37: 501 | AK37: 484 | AL37: 490 | AM37: 515 | AN37: 525 | AO37: 541 | AP37: 51 | AQ37: 510.9 | AR37: 270.4 | AS37: 510.9 | AT37: 510.9 | AU37: 0.0 | AV37: 0.0
D38: 1728 | E38: PI_B_S | F38: 52 | G38: 283 | H38: 280 | I38: 270 | J38: 271 | K38: 282 | L38: 274 | M38: 291 | N38: 304 | O38: 329 | P38: 347 | Q38: 375 | R38: 393 | S38: 430 | T38: 452 | U38: 468 | V38: 469 | W38: 477 | X38: 469 | Y38: 468 | Z38: 473 | AA38: 480 | AB38: 490 | AC38: 503 | AD38: 506 | AE38: 521 | AF38: 536 | AG38: 541 | AH38: 534 | AI38: 525 | AJ38: 510 | AK38: 501 | AL38: 485 | AM38: 494 | AN38: 485 | AO38: 478 | AP38: 52 | AQ38: 488.4 | AR38: 267.2 | AS38: 488.4 | AT38: 488.4 | AU38: 0.0 | AV38: 0.0
D39: 1729 | E39: PI_B_S | F39: 53 | G39: 271 | H39: 276 | I39: 277 | J39: 268 | K39: 269 | L39: 276 | M39: 273 | N39: 287 | O39: 301 | P39: 327 | Q39: 338 | R39: 361 | S39: 379 | T39: 416 | U39: 443 | V39: 458 | W39: 464 | X39: 469 | Y39: 464 | Z39: 465 | AA39: 471 | AB39: 478 | AC39: 488 | AD39: 503 | AE39: 506 | AF39: 521 | AG39: 534 | AH39: 540 | AI39: 528 | AJ39: 520 | AK39: 505 | AL39: 496 | AM39: 486 | AN39: 458 | AO39: 415 | AP39: 53 | AQ39: 472.0 | AR39: 262.6 | AS39: 472.0 | AT39: 472.0 | AU39: 0.0 | AV39: 0.0
D40: 1730 | E40: PI_B_S | F40: 54 | G40: 266 | H40: 265 | I40: 274 | J40: 273 | K40: 267 | L40: 266 | M40: 277 | N40: 270 | O40: 286 | P40: 301 | Q40: 321 | R40: 329 | S40: 351 | T40: 371 | U40: 412 | V40: 433 | W40: 451 | X40: 456 | Y40: 462 | Z40: 457 | AA40: 461 | AB40: 466 | AC40: 473 | AD40: 485 | AE40: 501 | AF40: 505 | AG40: 522 | AH40: 531 | AI40: 532 | AJ40: 522 | AK40: 515 | AL40: 499 | AM40: 499 | AN40: 464 | AO40: 428 | AP40: 54 | AQ40: 481.2 | AR40: 259.5 | AS40: 481.2 | AT40: 481.2 | AU40: 0.0 | AV40: 0.0
D41: 1731 | E41: PI_B_S | F41: 55 | G41: 253 | H41: 260 | I41: 264 | J41: 273 | K41: 275 | L41: 266 | M41: 268 | N41: 274 | O41: 269 | P41: 285 | Q41: 295 | R41: 313 | S41: 319 | T41: 344 | U41: 368 | V41: 406 | W41: 430 | X41: 449 | Y41: 455 | Z41: 463 | AA41: 457 | AB41: 460 | AC41: 463 | AD41: 470 | AE41: 480 | AF41: 495 | AG41: 498 | AH41: 513 | AI41: 520 | AJ41: 521 | AK41: 512 | AL41: 507 | AM41: 496 | AN41: 466 | AO41: 395 | AP41: 55 | AQ41: 475.3 | AR41: 255.7 | AS41: 475.3 | AT41: 475.3 | AU41: 0.0 | AV41: 0.0
D42: 1732 | E42: PI_B_S | F42: 56 | G42: 231 | H42: 247 | I42: 259 | J42: 263 | K42: 271 | L42: 270 | M42: 266 | N42: 262 | O42: 270 | P42: 269 | Q42: 278 | R42: 285 | S42: 302 | T42: 310 | U42: 337 | V42: 361 | W42: 400 | X42: 423 | Y42: 444 | Z42: 449 | AA42: 455 | AB42: 451 | AC42: 454 | AD42: 456 | AE42: 462 | AF42: 475 | AG42: 489 | AH42: 493 | AI42: 506 | AJ42: 513 | AK42: 514 | AL42: 506 | AM42: 505 | AN42: 488 | AO42: 430 | AP42: 56 | AQ42: 488.8 | AR42: 245.3 | AS42: 488.8 | AT42: 488.8 | AU42: 0.0 | AV42: 0.0
D43: 1733 | E43: PI_B_S | F43: 57 | G43: =OFFSET(INDIRECT($B$3&1),$D43-1,G$9)*G$81 -> 215 | H43: 225 | I43: 245 | J43: 257 | K43: 263 | L43: 267 | M43: 271 | N43: 263 | O43: 261 | P43: 268 | Q43: 263 | R43: 268 | S43: 272 | T43: 290 | U43: 301 | V43: 324 | W43: 351 | X43: 390 | Y43: 415 | Z43: 438 | AA43: 444 | AB43: 451 | AC43: 444 | AD43: 448 | AE43: 449 | AF43: 457 | AG43: 466 | AH43: 478 | AI43: 479 | AJ43: 494 | AK43: 499 | AL43: =OFFSET(INDIRECT($B$3&1),$D43-1,AL$9)*AL$81 -> 503 | AM43: 503 | AN43: 480 | AO43: 440 | AP43: 57 | AQ43: 484.9 | AR43: 232.6 | AS43: 484.9 | AT43: 484.9 | AU43: 0.0 | AV43: 0.0
D44: 1734 | E44: =OFFSET(INDIRECT($B$3&1),$D44-1,E$9) -> PI_B_S | F44: 58 | G44: 192 | H44: 212 | I44: 227 | J44: 246 | K44: 259 | L44: 262 | M44: 270 | N44: 268 | O44: 261 | P44: 261 | Q44: 261 | R44: 253 | S44: 257 | T44: 262 | U44: 281 | V44: 291 | W44: =OFFSET(INDIRECT($B$3&1),$D44-1,W$9)*W$81 -> 316 | X44: 340 | Y44: 380 | Z44: 406 | AA44: 429 | AB44: 434 | AC44: 443 | AD44: 439 | AE44: 443 | AF44: 447 | AG44: 455 | AH44: 463 | AI44: 470 | AJ44: 473 | AK44: 487 | AL44: 496 | AM44: 506 | AN44: 486 | AO44: 448 | AP44: 58 | AQ44: 484.5 | AR44: 219.1 | AS44: 484.5 | AT44: 484.5 | AU44: 0.0 | AV44: 0.0
D45: 1735 | E45: PI_B_S | F45: 59 | G45: 174 | H45: 188 | I45: 211 | J45: 225 | K45: 243 | L45: 253 | M45: 260 | N45: 262 | O45: 263 | P45: 259 | Q45: 254 | R45: 251 | S45: 242 | T45: 246 | U45: 254 | V45: 270 | W45: 282 | X45: 306 | Y45: 332 | Z45: 372 | AA45: 396 | AB45: 419 | AC45: 423 | AD45: 432 | AE45: 429 | AF45: 436 | AG45: 438 | AH45: 449 | AI45: 453 | AJ45: 460 | AK45: 466 | AL45: 483 | AM45: 498 | AN45: 490 | AO45: 427 | AP45: 59 | AQ45: 472.9 | AR45: 200.9 | AS45: 472.9 | AT45: 472.9 | AU45: 0.0 | AV45: 0.0
D46: 1736 | E46: PI_B_S | F46: 60 | G46: 155 | H46: 171 | I46: 188 | J46: 211 | K46: 226 | L46: 242 | M46: 255 | N46: 257 | O46: 261 | P46: 262 | Q46: 253 | R46: 245 | S46: 242 | T46: 234 | U46: 240 | V46: 245 | W46: 263 | X46: 273 | Y46: 297 | Z46: 322 | AA46: 360 | AB46: 383 | AC46: 404 | AD46: 410 | AE46: 421 | AF46: 420 | AG46: 425 | AH46: 429 | AI46: 436 | AJ46: 441 | AK46: 450 | AL46: 457 | AM46: 478 | AN46: 486 | AO46: 449 | AP46: 60 | AQ46: 463.9 | AR46: 183.4 | AS46: 463.9 | AT46: 463.9 | AU46: 0.0 | AV46: 0.0
D47: 1737 | E47: PI_B_S | F47: 61 | G47: 136 | H47: 150 | I47: 168 | J47: 184 | K47: 208 | L47: 220 | M47: 239 | N47: 248 | O47: 252 | P47: 256 | Q47: 253 | R47: 242 | S47: 234 | T47: 230 | U47: 226 | V47: 229 | W47: 236 | X47: 252 | Y47: 266 | Z47: 289 | AA47: 311 | AB47: 346 | AC47: 368 | AD47: 389 | AE47: 394 | AF47: 407 | AG47: 404 | AH47: 410 | AI47: 411 | AJ47: 419 | AK47: 425 | AL47: 437 | AM47: 451 | AN47: 464 | AO47: 441 | AP47: 61 | AQ47: 443.5 | AR47: 163.3 | AS47: 443.5 | AT47: 443.5 | AU47: 0.0 | AV47: 0.0
D48: 1738 | E48: PI_B_S | F48: 62 | G48: 120 | H48: 132 | I48: 148 | J48: 162 | K48: 178 | L48: 199 | M48: 214 | N48: 229 | O48: 241 | P48: 245 | Q48: 243 | R48: 237 | S48: 227 | T48: 220 | U48: 219 | V48: 216 | W48: 221 | X48: 226 | Y48: 241 | Z48: 254 | AA48: 275 | AB48: 297 | AC48: 330 | AD48: 353 | AE48: 373 | AF48: 380 | AG48: 392 | AH48: 389 | AI48: 393 | AJ48: 396 | AK48: 405 | AL48: 411 | AM48: 430 | AN48: 424 | AO48: 421 | AP48: 62 | AQ48: 418.3 | AR48: 142.9 | AS48: 418.3 | AT48: 418.3 | AU48: 0.0 | AV48: 0.0
D49: 1739 | E49: PI_B_S | F49: 63 | G49: 109 | H49: 116 | I49: 130 | J49: 144 | K49: 158 | L49: 172 | M49: 193 | N49: 203 | O49: 219 | P49: 233 | Q49: 231 | R49: 226 | S49: 221 | T49: 211 | U49: 205 | V49: 204 | W49: 201 | X49: 204 | Y49: 212 | Z49: 225 | AA49: 237 | AB49: 260 | AC49: 281 | AD49: 315 | AE49: 340 | AF49: 361 | AG49: 366 | AH49: 376 | AI49: 370 | AJ49: 374 | AK49: 377 | AL49: 387 | AM49: 400 | AN49: 385 | AO49: 376 | AP49: 63 | AQ49: 384.8 | AR49: 127.0 | AS49: 384.8 | AT49: 384.8 | AU49: 0.0 | AV49: 0.0
D50: 1740 | E50: PI_B_S | F50: 64 | G50: 99 | H50: 105 | I50: 112 | J50: 125 | K50: 138 | L50: 151 | M50: 167 | N50: 184 | O50: 195 | P50: 211 | Q50: 219 | R50: 214 | S50: 210 | T50: 207 | U50: 198 | V50: 190 | W50: 190 | X50: 187 | Y50: 190 | Z50: 199 | AA50: 214 | AB50: 226 | AC50: 249 | AD50: 269 | AE50: 301 | AF50: 324 | AG50: 344 | AH50: 348 | AI50: 358 | AJ50: 352 | AK50: 357 | AL50: 362 | AM50: 375 | AN50: 370 | AO50: 324 | AP50: 64 | AQ50: 357.7 | AR50: 111.6 | AS50: 357.7 | AT50: 357.7 | AU50: 0.0 | AV50: 0.0
D51: 1741 | E51: PI_B_S | F51: 65 | G51: 86 | H51: 93 | I51: 100 | J51: 106 | K51: 118 | L51: 130 | M51: 143 | N51: 154 | O51: 173 | P51: 183 | Q51: 195 | R51: 202 | S51: 199 | T51: 196 | U51: 194 | V51: 183 | W51: 178 | X51: 177 | Y51: 173 | Z51: 178 | AA51: 188 | AB51: 202 | AC51: 213 | AD51: 235 | AE51: 254 | AF51: 282 | AG51: 302 | AH51: 321 | AI51: 324 | AJ51: 335 | AK51: 332 | AL51: 342 | AM51: 352 | AN51: 357 | AO51: 315 | AP51: 65 | AQ51: 339.7 | AR51: 97.1 | AS51: 339.7 | AT51: 339.7 | AU51: 0.0 | AV51: 0.0
D52: 1742 | E52: PI_B_S | F52: 66 | G52: 68 | H52: 75 | I52: 82 | J52: 89 | K52: 96 | L52: 105 | M52: 118 | N52: 129 | O52: 140 | P52: 157 | Q52: 164 | R52: 172 | S52: 176 | T52: 174 | U52: 173 | V52: 171 | W52: 161 | X52: 157 | Y52: 157 | Z52: 154 | AA52: 158 | AB52: 169 | AC52: 184 | AD52: 196 | AE52: 217 | AF52: 236 | AG52: 262 | AH52: 281 | AI52: 297 | AJ52: 303 | AK52: 316 | AL52: 313 | AM52: 326 | AN52: 333 | AO52: 331 | AP52: 66 | AQ52: 323.6 | AR52: 79.2 | AS52: 323.6 | AT52: 323.6 | AU52: 0.0 | AV52: 0.0
D53: 1743 | E53: PI_B_S | F53: 67 | G53: 52 | H53: 57 | I53: 65 | J53: 71 | K53: 77 | L53: 83 | M53: 93 | N53: 102 | O53: 113 | P53: 124 | Q53: 133 | R53: 139 | S53: 148 | T53: 148 | U53: 148 | V53: 148 | W53: 148 | X53: 140 | Y53: 140 | Z53: 142 | AA53: 140 | AB53: 141 | AC53: 152 | AD53: 166 | AE53: 175 | AF53: 193 | AG53: 210 | AH53: 235 | AI53: 253 | AJ53: 271 | AK53: 281 | AL53: 295 | AM53: 298 | AN53: 288 | AO53: 276 | AP53: 67 | AQ53: 287.7 | AR53: 62.0 | AS53: 287.7 | AT53: 287.7 | AU53: 0.0 | AV53: 0.0
D54: 1744 | E54: PI_B_S | F54: 68 | G54: 41 | H54: 44 | I54: 49 | J54: 57 | K54: 63 | L54: 69 | M54: 77 | N54: 85 | O54: 94 | P54: 104 | Q54: 109 | R54: 115 | S54: 121 | T54: 128 | U54: 131 | V54: 132 | W54: 133 | X54: 131 | Y54: 125 | Z54: 123 | AA54: 124 | AB54: 124 | AC54: 127 | AD54: 137 | AE54: 150 | AF54: 159 | AG54: 174 | AH54: 187 | AI54: 207 | AJ54: 227 | AK54: 246 | AL54: 256 | AM54: 276 | AN54: 261 | AO54: 249 | AP54: 68 | AQ54: 257.7 | AR54: 48.9 | AS54: 257.7 | AT54: 257.7 | AU54: 0.0 | AV54: 0.0
D55: 1745 | E55: PI_B_S | F55: 69 | G55: 29 | H55: 33 | I55: 37 | J55: 41 | K55: 49 | L55: 55 | M55: 63 | N55: 69 | O55: 78 | P55: 86 | Q55: 92 | R55: 96 | S55: 100 | T55: 104 | U55: 110 | V55: 113 | W55: 114 | X55: 116 | Y55: 115 | Z55: 112 | AA55: 112 | AB55: 115 | AC55: 113 | AD55: 117 | AE55: 126 | AF55: 133 | AG55: 139 | AH55: 151 | AI55: 162 | AJ55: 182 | AK55: 204 | AL55: 225 | AM55: 242 | AN55: 248 | AO55: 214 | AP55: 69 | AQ55: 226.4 | AR55: 36.6 | AS55: 226.4 | AT55: 226.4 | AU55: 0.0 | AV55: 0.0
D56: 1746 | E56: PI_B_S | F56: 70 | G56: 22 | H56: 24 | I56: 28 | J56: 32 | K56: 37 | L56: 43 | M56: 49 | N56: 56 | O56: 63 | P56: 71 | Q56: 76 | R56: 81 | S56: 84 | T56: 87 | U56: 91 | V56: 96 | W56: 100 | X56: 100 | Y56: 102 | Z56: 101 | AA56: 99 | AB56: 99 | AC56: 104 | AD56: 103 | AE56: 108 | AF56: 115 | AG56: 121 | AH56: 123 | AI56: 132 | AJ56: 142 | AK56: 160 | AL56: 181 | AM56: 204 | AN56: 228 | AO56: 207 | AP56: 70 | AQ56: 196.1 | AR56: 27.4 | AS56: 196.1 | AT56: 196.1 | AU56: 0.0 | AV56: 0.0
D57: 1747 | E57: PI_B_S | F57: 71 | G57: 13 | H57: 14 | I57: 16 | J57: 18 | K57: 21 | L57: 25 | M57: 30 | N57: 32 | O57: 39 | P57: 43 | Q57: 47 | R57: 49 | S57: 53 | T57: 57 | U57: 65 | V57: 71 | W57: 79 | X57: 86 | Y57: 87 | Z57: 88 | AA57: 88 | AB57: 89 | AC57: 89 | AD57: 92 | AE57: 92 | AF57: 93 | AG57: 97 | AH57: 101 | AI57: 103 | AJ57: 113 | AK57: 125 | AL57: 143 | AM57: 165 | AN57: 186 | AO57: 192 | AP57: 71 | AQ57: 162.3 | AR57: 16.0 | AS57: 162.3 | AT57: 162.3 | AU57: 0.0 | AV57: 0.0
D58: 1748 | E58: PI_B_S | F58: 72 | G58: 9 | H58: 9 | I58: 8 | J58: 10 | K58: 10 | L58: 12 | M58: 15 | N58: 17 | O58: 18 | P58: 23 | Q58: 24 | R58: 26 | S58: 29 | T58: 34 | U58: 42 | V58: =OFFSET(INDIRECT($B$3&1),$D58-1,V$9)*V$81 -> 52 | W58: 60 | X58: 69 | Y58: 77 | Z58: 78 | AA58: 77 | AB58: 78 | AC58: 78 | AD58: 78 | AE58: 82 | AF58: 82 | AG58: 81 | AH58: 85 | AI58: 88 | AJ58: 89 | AK58: 99 | AL58: 113 | AM58: 130 | AN58: 146 | AO58: 165 | AP58: 72 | AQ58: 130.7 | AR58: 8.8 | AS58: 130.7 | AT58: 130.7 | AU58: 0.0 | AV58: 0.0
D59: 1749 | E59: PI_B_S | F59: 73 | G59: =OFFSET(INDIRECT($B$3&1),$D59-1,G$9)*G$81 -> 7 | H59: 8 | I59: 8 | J59: 7 | K59: 9 | L59: 9 | M59: 11 | N59: 13 | O59: 15 | P59: 16 | Q59: 18 | R59: 18 | S59: 20 | T59: 23 | U59: 27 | V59: 35 | W59: 46 | X59: 53 | Y59: 62 | Z59: 68 | AA59: 68 | AB59: 67 | AC59: 68 | AD59: 68 | AE59: 68 | AF59: 73 | AG59: 73 | AH59: 71 | AI59: 74 | AJ59: 76 | AK59: 77 | AL59: 86 | AM59: 100 | AN59: 106 | AO59: 112 | AP59: 73 | AQ59: 96.2 | AR59: 7.6 | AS59: 96.2 | AT59: 96.2 | AU59: 0.0 | AV59: 0.0
D60: 1750 | E60: =OFFSET(INDIRECT($B$3&1),$D60-1,E$9) -> PI_B_S | F60: 74 | G60: 6 | H60: 6 | I60: 6 | J60: 6 | K60: 5 | L60: 7 | M60: 7 | N60: 9 | O60: 11 | P60: 13 | Q60: 14 | R60: 16 | S60: 16 | T60: 17 | U60: 20 | V60: 24 | W60: 31 | X60: 40 | Y60: 46 | Z60: 54 | AA60: 60 | AB60: 60 | AC60: 60 | AD60: 60 | AE60: 59 | AF60: 60 | AG60: 62 | AH60: 62 | AI60: 62 | AJ60: 65 | AK60: 68 | AL60: 69 | AM60: 79 | AN60: 84 | AO60: 95 | AP60: 74 | AQ60: 79.1 | AR60: 5.7 | AS60: 79.1 | AT60: 79.1 | AU60: 0.0 | AV60: 0.0
D61: 1751 | E61: PI_B_S | F61: 75 | G61: 5 | H61: 6 | I61: 6 | J61: 7 | K61: 6 | L61: 5 | M61: 6 | N61: 6 | O61: 7 | P61: 10 | Q61: 11 | R61: 12 | S61: 13 | T61: 14 | U61: 15 | V61: 17 | W61: 20 | X61: 26 | Y61: 35 | Z61: 41 | AA61: 49 | AB61: 54 | AC61: 55 | AD61: 55 | AE61: 55 | AF61: 52 | AG61: 52 | AH61: 54 | AI61: 53 | AJ61: 53 | AK61: 57 | AL61: 60 | AM61: 62 | AN61: 67 | AO61: 59 | AP61: 75 | AQ61: 61.0 | AR61: 5.7 | AS61: 61.0 | AT61: 61.0 | AU61: 0.0 | AV61: 0.0
D62: 1752 | E62: PI_B_S | F62: 76 | G62: 4 | H62: 4 | I62: 5 | J62: 5 | K62: 6 | L62: 6 | M62: 5 | N62: 6 | O62: 5 | P62: 6 | Q62: 8 | R62: 9 | S62: 11 | T62: 12 | U62: 13 | V62: 14 | W62: 16 | X62: 19 | Y62: 23 | Z62: 31 | AA62: 35 | AB62: 42 | AC62: 46 | AD62: 48 | AE62: 48 | AF62: 49 | AG62: 46 | AH62: 45 | AI62: 46 | AJ62: 45 | AK62: 45 | AL62: 49 | AM62: 53 | AN62: 55 | AO62: 57 | AP62: 76 | AQ62: 51.9 | AR62: 4.6 | AS62: 51.9 | AT62: 51.9 | AU62: 0.0 | AV62: 0.0
D63: 1753 | E63: PI_B_S | F63: 77 | G63: 3 | H63: 3 | I63: 4 | J63: 4 | K63: 5 | L63: 5 | M63: 5 | N63: 4 | O63: 5 | P63: 5 | Q63: 5 | R63: 6 | S63: 7 | T63: 8 | U63: 9 | V63: 10 | W63: 12 | X63: 14 | Y63: 17 | Z63: 21 | AA63: 28 | AB63: 31 | AC63: 37 | AD63: 41 | AE63: 43 | AF63: 43 | AG63: 43 | AH63: 40 | AI63: 38 | AJ63: 38 | AK63: 36 | AL63: 37 | AM63: 41 | AN63: 40 | AO63: 43 | AP63: 77 | AQ63: 39.4 | AR63: 3.6 | AS63: 39.4 | AT63: 39.4 | AU63: 0.0 | AV63: 0.0
D64: 1754 | E64: PI_B_S | F64: 78 | G64: 2 | H64: 2 | I64: 2 | J64: 3 | K64: 3 | L64: 4 | M64: 5 | N64: 4 | O64: 4 | P64: 5 | Q64: 5 | R64: 5 | S64: 6 | T64: 6 | U64: 7 | V64: 8 | W64: 9 | X64: 11 | Y64: 13 | Z64: 16 | AA64: 20 | AB64: 26 | AC64: 28 | AD64: 32 | AE64: 36 | AF64: 38 | AG64: 36 | AH64: 37 | AI64: 34 | AJ64: 32 | AK64: 32 | AL64: 32 | AM64: 33 | AN64: 33 | AO64: 32 | AP64: 78 | AQ64: 32.5 | AR64: 2.5 | AS64: 32.5 | AT64: 32.5 | AU64: 0.0 | AV64: 0.0
D65: 1755 | E65: PI_B_S | F65: 79 | G65: 2 | H65: 2 | I65: 2 | J65: 2 | K65: 3 | L65: 3 | M65: 4 | N65: 4 | O65: 3 | P65: 3 | Q65: 4 | R65: 3 | S65: 4 | T65: 4 | U65: 5 | V65: 6 | W65: 7 | X65: 8 | Y65: 9 | Z65: 12 | AA65: 15 | AB65: 19 | AC65: 23 | AD65: 26 | AE65: 28 | AF65: 29 | AG65: 30 | AH65: 29 | AI65: 29 | AJ65: 29 | AK65: 28 | AL65: 29 | AM65: 29 | AN65: 28 | AO65: 25 | AP65: 79 | AQ65: 27.8 | AR65: 2.1 | AS65: 27.8 | AT65: 27.8 | AU65: 0.0 | AV65: 0.0
D66: 1756 | E66: PI_B_S | F66: 80 | G66: 1 | H66: 1 | I66: 2 | J66: 1 | K66: 2 | L66: 3 | M66: 3 | N66: 4 | O66: 4 | P66: 3 | Q66: 3 | R66: 3 | S66: 3 | T66: 4 | U66: 4 | V66: 5 | W66: 6 | X66: 6 | Y66: 6 | Z66: 8 | AA66: 11 | AB66: 14 | AC66: 17 | AD66: 21 | AE66: 23 | AF66: 24 | AG66: 24 | AH66: 25 | AI66: 24 | AJ66: 24 | AK66: 25 | AL66: 24 | AM66: 25 | AN66: 25 | AO66: 25 | AP66: 80 | AQ66: 24.8 | AR66: 1.6 | AS66: 24.8 | AT66: 24.8 | AU66: 0.0 | AV66: 0.0
D67: 1757 | E67: PI_B_S | F67: 81 | G67: 1 | H67: 1 | I67: 1 | J67: 1 | K67: 1 | L67: 2 | M67: 3 | N67: 3 | O67: 3 | P67: 3 | Q67: 2 | R67: 2 | S67: 2 | T67: 3 | U67: 3 | V67: 3 | W67: 3 | X67: 4 | Y67: 4 | Z67: 5 | AA67: 6 | AB67: 9 | AC67: 12 | AD67: 15 | AE67: 18 | AF67: 20 | AG67: 21 | AH67: 21 | AI67: 21 | AJ67: 21 | AK67: 21 | AL67: 21 | AM67: 21 | AN67: 20 | AO67: 19 | AP67: 81 | AQ67: 20.3 | AR67: 1.0 | AS67: 20.3 | AT67: 20.3 | AU67: 0.0 | AV67: 0.0
D68: 1758 | E68: PI_B_S | F68: 82 | G68: 1 | H68: 1 | I68: 1 | J68: 1 | K68: 1 | L68: 1 | M68: 2 | N68: 2 | O68: 2 | P68: 3 | Q68: 3 | R68: 2 | S68: 1 | T68: 2 | U68: 2 | V68: 2 | W68: 2 | X68: 3 | Y68: 4 | Z68: 4 | AA68: 5 | AB68: 6 | AC68: 8 | AD68: 10 | AE68: 13 | AF68: 16 | AG68: 17 | AH68: 17 | AI68: 17 | AJ68: 16 | AK68: 17 | AL68: 17 | AM68: 18 | AN68: 19 | AO68: 19 | AP68: 82 | AQ68: 18.0 | AR68: 1.0 | AS68: 18.0 | AT68: 18.0 | AU68: 0.0 | AV68: 0.0
D69: 1759 | E69: PI_B_S | F69: 83 | G69: 1 | H69: 1 | I69: 1 | J69: 1 | K69: 1 | L69: 1 | M69: 1 | N69: 2 | O69: 2 | P69: 2 | Q69: 2 | R69: 3 | S69: 2 | T69: 1 | U69: 1 | V69: 2 | W69: 2 | X69: 2 | Y69: 3 | Z69: 4 | AA69: 4 | AB69: 4 | AC69: 5 | AD69: 7 | AE69: 9 | AF69: 11 | AG69: 13 | AH69: 14 | AI69: 14 | AJ69: 14 | AK69: 14 | AL69: 15 | AM69: 15 | AN69: 15 | AO69: 11 | AP69: 83 | AQ69: 13.8 | AR69: 0.7 | AS69: 13.8 | AT69: 13.8 | AU69: 0.0 | AV69: 0.0
D70: 1760 | E70: PI_B_S | F70: 84 | G70: 0 | H70: 0 | I70: 0 | J70: 1 | K70: 1 | L70: 1 | M70: 1 | N70: 0 | O70: 1 | P70: 2 | Q70: 2 | R70: 2 | S70: 3 | T70: 2 | U70: 1 | V70: 1 | W70: 2 | X70: 2 | Y70: 2 | Z70: 2 | AA70: 3 | AB70: 4 | AC70: 4 | AD70: 5 | AE70: 7 | AF70: 8 | AG70: 10 | AH70: 12 | AI70: 12 | AJ70: 11 | AK70: 11 | AL70: 12 | AM70: 13 | AN70: 15 | AO70: 14 | AP70: 84 | AQ70: 13.1 | AR70: 0.5 | AS70: 13.1 | AT70: 13.1 | AU70: 0.0 | AV70: 0.0
D71: 1761 | E71: PI_B_S | F71: 85 | G71: 0 | H71: 0 | I71: 0 | J71: 0 | K71: 1 | L71: 1 | M71: 1 | N71: 1 | O71: 0 | P71: 1 | Q71: 2 | R71: 2 | S71: 2 | T71: 3 | U71: 2 | V71: 1 | W71: 1 | X71: 1 | Y71: 1 | Z71: 2 | AA71: 2 | AB71: 3 | AC71: 3 | AD71: 3 | AE71: 4 | AF71: 5 | AG71: 6 | AH71: 7 | AI71: 9 | AJ71: 9 | AK71: 9 | AL71: 10 | AM71: 11 | AN71: 12 | AO71: 13 | AP71: 85 | AQ71: 11.0 | AR71: 0.4 | AS71: 11.0 | AT71: 11.0 | AU71: 0.0 | AV71: 0.0
D72: 1762 | E72: PI_B_S | F72: 86 | G72: 0 | H72: 0 | I72: 0 | J72: 0 | K72: 0 | L72: 0 | M72: 1 | N72: 1 | O72: 0 | P72: 0 | Q72: 1 | R72: 2 | S72: 2 | T72: 2 | U72: 2 | V72: 1 | W72: 1 | X72: 1 | Y72: 1 | Z72: 1 | AA72: 2 | AB72: 2 | AC72: 3 | AD72: 3 | AE72: 3 | AF72: 4 | AG72: 4 | AH72: 4 | AI72: 5 | AJ72: 7 | AK72: 7 | AL72: 7 | AM72: 8 | AN72: 8 | AO72: 10 | AP72: 86 | AQ72: 8.1 | AR72: 0.2 | AS72: 8.1 | AT72: 8.1 | AU72: 0.0 | AV72: 0.0
D73: 1763 | E73: PI_B_S | F73: 87 | G73: 0 | H73: 0 | I73: 0 | J73: 0 | K73: 0 | L73: 0 | M73: 0 | N73: 0 | O73: 0 | P73: 0 | Q73: 0 | R73: 1 | S73: 2 | T73: 2 | U73: 2 | V73: 2 | W73: 1 | X73: 1 | Y73: 1 | Z73: 1 | AA73: 1 | AB73: 1 | AC73: 2 | AD73: 3 | AE73: 3 | AF73: 3 | AG73: 3 | AH73: 3 | AI73: 3 | AJ73: 4 | AK73: 5 | AL73: 5 | AM73: 6 | AN73: 6 | AO73: 4 | AP73: 87 | AQ73: 5.4 | AR73: 0.2 | AS73: 5.4 | AT73: 5.4 | AU73: 0.0 | AV73: 0.0
D74: 1764 | E74: PI_B_S | F74: 88 | G74: 0 | H74: 0 | I74: 0 | J74: 0 | K74: 0 | L74: 0 | M74: 0 | N74: 0 | O74: 0 | P74: 0 | Q74: 0 | R74: 0 | S74: 1 | T74: 2 | U74: 2 | V74: =OFFSET(INDIRECT($B$3&1),$D74-1,V$9)*V$81 -> 2 | W74: 2 | X74: 1 | Y74: 1 | Z74: 1 | AA74: 1 | AB74: 1 | AC74: 1 | AD74: 2 | AE74: 2 | AF74: 3 | AG74: 3 | AH74: 3 | AI74: 2 | AJ74: 3 | AK74: 3 | AL74: 4 | AM74: 5 | AN74: 6 | AO74: 4 | AP74: 88 | AQ74: 4.4 | AR74: 0.2 | AS74: 4.4 | AT74: 4.4 | AU74: 0.0 | AV74: 0.0
D75: 1765 | E75: PI_B_S | F75: 89 | G75: =OFFSET(INDIRECT($B$3&1),$D75-1,G$9)*G$81 -> 0 | H75: 0 | I75: 0 | J75: 0 | K75: 0 | L75: 0 | M75: 0 | N75: 0 | O75: 0 | P75: 0 | Q75: 0 | R75: 0 | S75: 0 | T75: 1 | U75: 2 | V75: 2 | W75: 2 | X75: 2 | Y75: 1 | Z75: 1 | AA75: 1 | AB75: 1 | AC75: 1 | AD75: 1 | AE75: 2 | AF75: 2 | AG75: 2 | AH75: 3 | AI75: 3 | AJ75: 2 | AK75: 3 | AL75: 3 | AM75: 4 | AN75: 5 | AO75: 7 | AP75: 89 | AQ75: 4.2 | AR75: 0.1 | AS75: 4.2 | AT75: 4.2 | AU75: 0.0 | AV75: 0.0
D76: 1766 | E76: =OFFSET(INDIRECT($B$3&1),$D76-1,E$9) -> PI_B_S | F76: 90 | G76: 0 | H76: 0 | I76: 0 | J76: 0 | K76: 0 | L76: 0 | M76: 0 | N76: 0 | O76: 0 | P76: 0 | Q76: 0 | R76: 0 | S76: 0 | T76: 0 | U76: 1 | V76: 2 | W76: 2 | X76: 2 | Y76: 2 | Z76: 1 | AA76: 1 | AB76: 1 | AC76: 1 | AD76: 1 | AE76: 1 | AF76: 1 | AG76: 1 | AH76: 2 | AI76: 2 | AJ76: 1 | AK76: 1 | AL76: 2 | AM76: 2 | AN76: 2 | AO76: 3 | AP76: =F76 -> 90 | AQ76: =AVERAGE(AK76:AO76)*AQ$79 -> 1.9 | AR76: =AVERAGE(G76:K76)*AR$79 -> 0.1 | AS76: 1.9 | AT76: =AS76*AT$78 -> 1.9 | AU76: 0.0 | AV76: 0.0
B77: Summed $M for all ages | G77: =SUM(G12:G76) -> 11202 | H77: 11376 | I77: 11676 | J77: 11949 | K77: 12252 | L77: 12439 | M77: 12823 | N77: 13020 | O77: 13334 | P77: 13698 | Q77: 13797 | R77: 13778 | S77: 13712 | T77: 13681 | U77: 13777 | V77: 13785 | W77: 13851 | X77: 13875 | Y77: 13995 | Z77: 14174 | AA77: 14362 | AB77: 14615 | AC77: 14907 | AD77: 15240 | AE77: 15539 | AF77: 15866 | AG77: 16115 | AH77: 16290 | AI77: 16301 | AJ77: 16344 | AK77: 16388 | AL77: 16444 | AM77: 16648 | AN77: 16183 | AO77: 14675 | AQ77: =MAX(AQ12:AQ76) -> 513.899 | AR77: =MAX(AR12:AR76) -> 513.923 | AS77: =MAX(AS12:AS76) -> 513.9 | AT77: 513.9 | AU77: 232.8 | AV77: =AU77*$AT$78 -> 232.8
B78: Maximum | F78: 541 | G78: =MAX(G12:G76) -> 541.0 | H78: =MAX(H12:H76) -> 541.0 | I78: 541.0 | J78: 541.0 | K78: 541.0 | L78: 541.0 | M78: 541.0 | N78: 541.0 | O78: 541.0 | P78: 541.0 | Q78: 541.0 | R78: 541.0 | S78: 541.0 | T78: 541.0 | U78: 541.0 | V78: 541.0 | W78: 541.0 | X78: 541.0 | Y78: 541.0 | Z78: 541.0 | AA78: 541.0 | AB78: 541.0 | AC78: 541.0 | AD78: 541.0 | AE78: 541.0 | AF78: 541.0 | AG78: 541.0 | AH78: 541.0 | AI78: 541.0 | AJ78: 541.0 | AK78: 541.0 | AL78: 541.0 | AM78: 541.0 | AN78: 541.0 | AO78: 541.0 | AT78: 1.0 | AV78: 0.0
A79: wgen!A | B79: Actual Total $M for R01 | D79: 35 | F79: 10000 | G79: =OFFSET(INDIRECT($A$79&1),$D79-1,G$85) -> 5671 | H79: 5641 | I79: 5371 | J79: 5763 | K79: 6251 | L79: 6781 | M79: 6804 | N79: 7576 | O79: 7622 | P79: 7927 | Q79: 7891 | R79: 8255 | S79: 8534 | T79: 8482 | U79: 8618 | V79: 8577 | W79: 8947 | X79: 9412 | Y79: 9976 | Z79: 10871 | AA79: 11850 | AB79: 12815 | AC79: 13630 | AD79: 14207 | AE79: 14319 | AF79: 13961 | AG79: 13139 | AH79: 12540 | AI79: 11876 | AJ79: 11860 | AK79: 11918 | AL79: 11445 | AM79: 11336 | AN79: 10290 | AO79: 10238 | AQ79: 1 | AR79: 0.965010 | AV79: 0.0
B80: Correction Factor | F80: =G79/G77 | G80: 1.371 | H80: 1.072 | I80: 0.865 | J80: 0.878 | K80: 0.877 | L80: 0.894 | M80: 0.887 | N80: 0.906 | O80: 0.913 | P80: 0.924 | Q80: 0.904 | R80: 0.912 | S80: 0.917 | T80: 0.917 | U80: 0.931 | V80: 0.905 | W80: 0.903 | X80: 0.911 | Y80: 0.917 | Z80: 0.930 | AA80: 0.943 | AB80: 0.953 | AC80: 0.959 | AD80: 0.971 | AE80: 0.970 | AF80: 0.964 | AG80: 0.959 | AH80: 0.947 | AI80: 0.924 | AJ80: 0.989 | AK80: 1.007 | AL80: 0.957 | AM80: 0.972 | AN80: 0.969 | AO80: 0.974 | AQ80: =SUM(AQ12:AQ76) -> 16068 | AR80: =SUM(AR12:AR76) -> 11282 | AS80: 18323 | AT80: 18323 | AU80: 2255 | AV80: 2255
B81: Correction Used | F81: =$F$78/G78 | G81: 1.028 | H81: 1.025 | I81: 1.038 | J81: 1.053 | K81: 1.071 | L81: 1.079 | M81: 1.101 | N81: 1.103 | O81: 1.112 | P81: 1.123 | Q81: 1.114 | R81: 1.092 | S81: 1.068 | T81: 1.051 | U81: 1.045 | V81: 1.034 | W81: 1.029 | X81: 1.020 | Y81: 1.013 | Z81: 1.007 | AA81: 0.998 | AB81: 0.990 | AC81: 0.981 | AD81: 0.975 | AE81: 0.970 | AF81: 0.972 | AG81: 0.974 | AH81: 0.978 | AI81: 0.974 | AJ81: 0.976 | AK81: 0.977 | AL81: 0.980 | AM81: 0.996 | AN81: 0.971 | AO81: 0.894 | AQ81: =AVERAGE(AK77:AO77) -> 16068 | AR81: =AQ80+AU80 -> 18323 | AT81: =AT80-AR82 -> 2255 | AU81: =AU80/AR82 -> 14.0% | AV81: 0.1
B82: Correction Factor for constant $M | F82: =$F79/G77 | G82: 2.419 | H82: 1.900 | I82: 1.610 | J82: 1.524 | K82: 1.403 | L82: 1.318 | M82: 1.304 | N82: 1.195 | O82: 1.198 | P82: 1.166 | Q82: 1.145 | R82: 1.104 | S82: 1.075 | T82: 1.081 | U82: 1.080 | V82: 1.055 | W82: 1.009 | X82: 0.968 | Y82: 0.919 | Z82: 0.856 | AA82: 0.796 | AB82: 0.744 | AC82: 0.704 | AD82: 0.683 | AE82: 0.677 | AF82: 0.690 | AG82: 0.730 | AH82: 0.756 | AI82: 0.778 | AJ82: 0.833 | AK82: 0.845 | AL82: 0.836 | AM82: 0.858 | AN82: 0.942 | AO82: 0.951 | AR82: =AVERAGE(AK77:AO77) -> 16068 | AU82: =AT81/AQ80 -> 14.0% | AV82: 0.1
B83: Correct for same Maximum | F83: =$F$78/G78 | G83: =$F$78/G78 -> 1.000 | H83: =$F$78/H78 -> 1.000 | I83: 1.000 | J83: 1.000 | K83: 1.000 | L83: 1.000 | M83: 1.000 | N83: 1.000 | O83: 1.000 | P83: 1.000 | Q83: 1.000 | R83: 1.000 | S83: 1.000 | T83: 1.000 | U83: 1.000 | V83: 1.000 | W83: 1.000 | X83: 1.000 | Y83: 1.000 | Z83: 1.000 | AA83: 1.000 | AB83: 1.000 | AC83: 1.000 | AD83: 1.000 | AE83: 1.000 | AF83: 1.000 | AG83: 1.000 | AH83: 1.000 | AI83: 1.000 | AJ83: 1.000 | AK83: 1.000 | AL83: 1.000 | AM83: 1.000 | AN83: 1.000 | AO83: 1.000 | AR83: 0.96501 | AV83: 0.0
F84: All 1 | G84: 1 | H84: 1 | I84: 1 | J84: 1 | K84: 1 | L84: 1 | M84: 1 | N84: 1 | O84: 1 | P84: 1 | Q84: 1 | R84: 1 | S84: 1 | T84: 1 | U84: 1 | V84: 1 | W84: 1 | X84: 1 | Y84: 1 | Z84: 1 | AA84: 1 | AB84: 1 | AC84: 1 | AD84: 1 | AE84: 1 | AF84: 1 | AG84: 1 | AH84: 1 | AI84: 1 | AJ84: 1 | AK84: 1 | AL84: 1 | AM84: 1 | AN84: 1 | AO84: 1
E85: 0 | F85: 2 | G85: =F85+22 -> 24 | H85: =G85+1 -> 25 | I85: 26 | J85: 27 | K85: 28 | L85: 29 | M85: 30 | N85: 31 | O85: 32 | P85: 33 | Q85: 34 | R85: 35 | S85: 36 | T85: 37 | U85: 38 | V85: 39 | W85: 40 | X85: 41 | Y85: 42 | Z85: 43 | AA85: 44 | AB85: 45 | AC85: 46 | AD85: 47 | AE85: 48 | AF85: 49 | AG85: 50 | AH85: 51 | AI85: 52 | AJ85: 53 | AK85: 54 | AL85: 55 | AM85: 56 | AN85: 57 | AO85: 58
A88: $M/yr per R01 Grantee | E88: 0 | F88: 2 | G88: =F88+22 -> 24 | H88: =G88+1 -> 25 | I88: 26 | J88: 27 | K88: 28 | L88: 29 | M88: 30 | N88: 31 | O88: 32 | P88: 33 | Q88: 34 | R88: 35 | S88: 36 | T88: 37 | U88: 38 | V88: 39 | W88: 40 | X88: 41 | Y88: 42 | Z88: 43 | AA88: 44 | AB88: 45 | AC88: 46 | AD88: 47 | AE88: 48 | AF88: 49 | AG88: 50 | AH88: 51 | AI88: 52 | AJ88: 53 | AK88: 54 | AL88: 55 | AM88: 56 | AN88: 57 | AO88: 58 | AQ88: =AQ89 -> 0.47 | AR88: =AT81 -> 2255 | AS88: =AR88*AQ88 -> 1067 | AU88: =AS88/AS92 -> 12.1%
A89: wgen!A | B89: =OFFSET(INDIRECT($A$79&1),$D89-1,E$85) -> BRDPI$ M/R01 Grantee <46 | D89: 108 | E89: <46 | F89: =OFFSET(INDIRECT($A$79&1),$D89-1,F$85) -> =C36/C69 | G89: =OFFSET(INDIRECT($A$79&1),$D89-1,G$85) -> 0.56 | H89: 0.52 | I89: 0.49 | J89: 0.48 | K89: 0.49 | L89: 0.49 | M89: 0.46 | N89: 0.49 | O89: 0.46 | P89: 0.46 | Q89: 0.45 | R89: 0.45 | S89: 0.44 | T89: 0.44 | U89: 0.43 | V89: 0.43 | W89: 0.44 | X89: 0.44 | Y89: 0.45 | Z89: 0.48 | AA89: 0.51 | AB89: 0.55 | AC89: 0.58 | AD89: 0.60 | AE89: 0.59 | AF89: 0.58 | AG89: 0.55 | AH89: 0.53 | AI89: 0.51 | AJ89: 0.48 | AK89: 0.48 | AL89: 0.48 | AM89: 0.48 | AN89: 0.46 | AO89: 0.47 | AQ89: =AVERAGE(AK89:AO89) -> 0.47 | AR89: =SUM(AQ12:AQ31) -> 4687 | AS89: =AR89*AQ89 -> 2216
B90: =OFFSET(INDIRECT($A$79&1),$D90-1,E$85) -> BRDPI$ M/R01 Grantee 46-55 | D90: 109 | E90: 46-55 | F90: =OFFSET(INDIRECT($A$79&1),$D90-1,F$85) -> =C37/C70 | G90: 0.84 | H90: 0.76 | I90: 0.69 | J90: 0.69 | K90: 0.70 | L90: 0.69 | M90: 0.65 | N90: 0.66 | O90: 0.63 | P90: 0.62 | Q90: 0.61 | R90: 0.62 | S90: 0.62 | T90: 0.60 | U90: 0.59 | V90: 0.60 | W90: 0.62 | X90: 0.63 | Y90: 0.64 | Z90: 0.66 | AA90: 0.68 | AB90: 0.70 | AC90: 0.73 | AD90: 0.74 | AE90: 0.74 | AF90: 0.72 | AG90: 0.69 | AH90: 0.66 | AI90: 0.63 | AJ90: 0.57 | AK90: 0.57 | AL90: 0.56 | AM90: 0.56 | AN90: 0.52 | AO90: 0.53 | AQ90: =AVERAGE(AK90:AO90) -> 0.55 | AR90: =SUM(AQ32:AQ41) -> 4945 | AS90: =AR90*AQ90 -> 2712
B91: BRDPI$ M/R01 Grantee >55 | D91: 110 | E91: >55 | F91: =C38/C71 | G91: 0.89 | H91: 0.85 | I91: 0.79 | J91: 0.76 | K91: 0.78 | L91: 0.77 | M91: 0.73 | N91: 0.75 | O91: 0.72 | P91: 0.69 | Q91: 0.68 | R91: 0.67 | S91: 0.66 | T91: 0.65 | U91: 0.64 | V91: 0.63 | W91: 0.65 | X91: 0.66 | Y91: 0.68 | Z91: 0.70 | AA91: 0.72 | AB91: 0.74 | AC91: 0.76 | AD91: 0.76 | AE91: 0.77 | AF91: 0.76 | AG91: 0.73 | AH91: 0.70 | AI91: 0.68 | AJ91: 0.64 | AK91: 0.62 | AL91: 0.64 | AM91: 0.62 | AN91: 0.58 | AO91: 0.58 | AQ91: 0.61 | AR91: =SUM(AQ42:AQ76) -> 6436 | AS91: 3921
B92: Year | D92: 11 | E92: =OFFSET(INDIRECT($A$86&1),$D92-1,E$85) ->  | F92: AL | G92: 1980 | H92: 1981 | I92: 1982 | J92: 1983 | K92: 1984 | L92: 1985 | M92: 1986 | N92: 1987 | O92: 1988 | P92: 1989 | Q92: 1990 | R92: 1991 | S92: 1992 | T92: 1993 | U92: 1994 | V92: 1995 | W92: 1996 | X92: 1997 | Y92: 1998 | Z92: 1999 | AA92: 2000 | AB92: 2001 | AC92: 2002 | AD92: 2003 | AE92: 2004 | AF92: 2005 | AG92: 2006 | AH92: 2007 | AI92: 2008 | AJ92: 2009 | AK92: 2010 | AL92: 2011 | AM92: 2012 | AN92: 2013 | AO92: 2014 | AR92: =SUM(AR89:AR91) -> 16068 | AS92: =SUM(AS89:AS91) -> 8849
AS93: =SUM(AS88:AS91) -> 9916
AS94: =AS93/AS92 -> 1.120519512

Sheet b-pc_PI_SG
A1: Title | B1: Basic Science PIs smoothed and tabulated by Birth Year and Age. Ratio to number in previous year.
A2: Purpose | B2: Use offset to get index of sheet D2 =OFFSET(INDIRECT($B$3&1),$B8-1+$B5,E$1-1)
A3: Data Source | B3: d2!A
A4: Data Name | B4: b-pc_PI_B_SG
A5: Start Row | B5: =VLOOKUP($B$4,'id2'!$A$9:$B$132,2,0) -> 8101
A6: Number Row | B6: 100
A7: Column Number | B7: 0
E9: 1 | F9: =1+E9 -> 2 | G9: =1+F9+24 -> 27 | H9: =1+G9 -> 28 | I9: 29 | J9: 30 | K9: 31 | L9: 32 | M9: 33 | N9: 34 | O9: 35 | P9: 36 | Q9: 37 | R9: 38 | S9: 39 | T9: 40 | U9: 41 | V9: 42 | W9: 43 | X9: 44 | Y9: 45 | Z9: 46 | AA9: 47 | AB9: 48 | AC9: 49 | AD9: 50 | AE9: 51 | AF9: 52 | AG9: 53 | AH9: 54 | AI9: 55 | AJ9: 56 | AK9: 57 | AL9: 58 | AM9: 59 | AN9: 60 | AO9: 61
D11: =B5 -> 8101 | E11: =OFFSET(INDIRECT($B$3&1),$D11-1,E$9) -> b-pc_PI_B_SG | F11: =OFFSET(INDIRECT($B$3&1),$D11-1,F$9) -> Age/Bir | G11: 1918 | H11: 1919 | I11: 1920 | J11: 1921 | K11: 1922 | L11: 1923 | M11: 1924 | N11: 1925 | O11: 1926 | P11: 1927 | Q11: 1928 | R11: 1929 | S11: 1930 | T11: 1931 | U11: 1932 | V11: 1933 | W11: 1934 | X11: 1935 | Y11: 1936 | Z11: 1937 | AA11: 1938 | AB11: 1939 | AC11: 1940 | AD11: 1941 | AE11: 1942 | AF11: 1943 | AG11: 1944 | AH11: 1945 | AI11: 1946 | AJ11: 1947 | AK11: 1948 | AL11: 1949 | AM11: 1950 | AN11: 1951 | AO11: 1952 | AP11: Age
D12: =1+D11 -> 8102 | E12: =OFFSET(INDIRECT($B$3&1),$D12-1,E$9) -> b-pc_PI_B_SG | F12: 26 | G12: =IF(OFFSET(INDIRECT($B$3&1),$D12-1,G$9)>0,OFFSET(INDIRECT($B$3&1),$D12-1,G$9),NA()) ->  | H12: =IF(OFFSET(INDIRECT($B$3&1),$D12-1,H$9)>0,OFFSET(INDIRECT($B$3&1),$D12-1,H$9),NA()) ->  | AP12: =F12 -> 26
D13: =1+D12 -> 8103 | E13: b-pc_PI_B_SG | F13: 27 | G13: =IF(OFFSET(INDIRECT($B$3&1),$D13-1,G$9)>0,OFFSET(INDIRECT($B$3&1),$D13-1,G$9),NA()) ->  | AP13: 27
D14: 8104 | E14: b-pc_PI_B_SG | F14: 28 | AP14: 28
D15: 8105 | E15: b-pc_PI_B_SG | F15: 29 | AP15: 29
D16: 8106 | E16: b-pc_PI_B_SG | F16: 30 | AP16: 30
D17: 8107 | E17: b-pc_PI_B_SG | F17: 31 | AP17: 31
D18: 8108 | E18: b-pc_PI_B_SG | F18: 32 | AP18: 32
D19: 8109 | E19: b-pc_PI_B_SG | F19: 33 | Y19: =IF(OFFSET(INDIRECT($B$3&1),$D19-1,Y$9)>0,OFFSET(INDIRECT($B$3&1),$D19-1,Y$9),NA()) ->  | AP19: 33
D20: 8110 | E20: b-pc_PI_B_SG | F20: 34 | AP20: 34
D21: 8111 | E21: b-pc_PI_B_SG | F21: 35 | AP21: 35
D22: 8112 | E22: b-pc_PI_B_SG | F22: 36 | AP22: 36
D23: 8113 | E23: b-pc_PI_B_SG | F23: 37 | AP23: 37
D24: 8114 | E24: b-pc_PI_B_SG | F24: 38 | AD24: 99.7 | AE24: 99.9 | AF24: 99.3 | AG24: 99.5 | AH24: 99.5 | AI24: 99.8 | AJ24: 100.0 | AP24: 38
D25: 8115 | E25: b-pc_PI_B_SG | F25: 39 | AA25: 99.8 | AB25: 99.3 | AC25: 99.1 | AD25: 99.7 | AE25: 99.3 | AF25: 98.8 | AG25: 98.9 | AH25: 98.7 | AI25: 99.3 | AJ25: 99.7 | AP25: 39
D26: 8116 | E26: b-pc_PI_B_SG | F26: 40 | P26: 96.3 | X26: 99.9 | AB26: 100.0 | AC26: 99.9 | AD26: 98.5 | AE26: 97.9 | AF26: 97.8 | AG26: 98.0 | AH26: 98.3 | AI26: 98.8 | AK26: 100.0 | AP26: 40
D27: 8117 | E27: b-pc_PI_B_SG | F27: 41 | W27: =IF(OFFSET(INDIRECT($B$3&1),$D27-1,W$9)>0,OFFSET(INDIRECT($B$3&1),$D27-1,W$9),NA()) ->  | Y27: 99.8 | Z27: 99.7 | AA27: 99.4 | AB27: 99.2 | AC27: 98.2 | AD27: 99.0 | AE27: 99.0 | AF27: 99.0 | AG27: 99.6 | AH27: 100.0 | AI27: 99.5 | AJ27: 99.8 | AP27: 41
D28: 8118 | E28: b-pc_PI_B_SG | F28: 42 | N28: 97.9 | U28: 99.9 | AA28: 99.4 | AB28: 99.7 | AC28: 99.0 | AD28: 98.4 | AE28: 98.2 | AF28: 98.1 | AG28: 98.0 | AH28: 98.4 | AI28: 99.0 | AJ28: 99.7 | AK28: 100.0 | AO28: 99.3 | AP28: 42
D29: 8119 | E29: b-pc_PI_B_SG | F29: 43 | X29: 99.9 | Y29: 100.0 | Z29: 99.2 | AA29: 97.6 | AB29: 97.5 | AC29: 97.7 | AD29: 97.9 | AE29: 98.3 | AF29: 98.9 | AG29: 99.8 | AH29: 99.4 | AI29: 99.9 | AK29: 99.3 | AL29: 98.5 | AM29: 98.2 | AN29: 98.1 | AO29: 99.1 | AP29: 43
D30: 8120 | E30: b-pc_PI_B_SG | F30: 44 | X30: 99.2 | Y30: 99.1 | Z30: 98.2 | AA30: 97.6 | AB30: 96.9 | AC30: 97.4 | AD30: 97.9 | AE30: 97.8 | AF30: 98.3 | AG30: 99.2 | AH30: 99.5 | AI30: 99.5 | AJ30: 99.6 | AK30: 99.7 | AL30: 99.7 | AM30: 99.4 | AN30: 99.2 | AP30: 44
D31: 8121 | E31: b-pc_PI_B_SG | F31: 45 | K31: 97.3 | S31: 99.6 | T31: 99.9 | V31: 99.9 | X31: 99.9 | Y31: 99.1 | Z31: 98.5 | AA31: 97.9 | AB31: 97.9 | AC31: 98.1 | AD31: 98.3 | AE31: 98.3 | AF31: 98.8 | AG31: 99.0 | AH31: 99.2 | AI31: 99.8 | AJ31: 97.7 | AK31: 100.0 | AL31: 99.8 | AM31: 99.8 | AN31: 99.7 | AO31: 99.9 | AP31: 45
D32: 8122 | E32: b-pc_PI_B_SG | F32: 46 | J32: 99.9 | Q32: 99.9 | R32: 99.8 | T32: 99.2 | U32: 99.8 | V32: 99.7 | W32: 99.4 | X32: 98.2 | Y32: 98.3 | Z32: 98.7 | AA32: 98.9 | AB32: 99.0 | AC32: 98.8 | AD32: 99.0 | AE32: 99.1 | AF32: 99.0 | AG32: 99.3 | AH32: 98.2 | AI32: 98.1 | AJ32: 98.4 | AK32: 98.2 | AL32: 99.8 | AM32: 99.6 | AN32: 99.8 | AO32: 100.0 | AP32: 46
D33: 8123 | E33: b-pc_PI_B_SG | F33: 47 | P33: 99.9 | S33: 99.8 | T33: 99.9 | U33: 99.7 | V33: 99.2 | W33: 97.8 | X33: 98.1 | Y33: 97.4 | Z33: 97.0 | AA33: 97.7 | AB33: 98.6 | AC33: 98.6 | AD33: 99.2 | AE33: 99.7 | AF33: 99.5 | AG33: 99.5 | AH33: 99.5 | AI33: 99.4 | AJ33: 99.5 | AK33: 99.8 | AL33: 99.6 | AM33: 99.6 | AN33: 99.8 | AO33: 99.8 | AP33: 47
D34: 8124 | E34: b-pc_PI_B_SG | F34: 48 | H34: 89.2 | P34: 100.0 | S34: 99.8 | T34: 99.7 | U34: 99.9 | V34: 97.8 | W34: 97.6 | X34: 97.3 | Y34: 97.1 | Z34: 97.3 | AA34: 97.7 | AB34: 97.9 | AC34: 98.8 | AD34: 99.4 | AE34: 99.6 | AF34: 99.9 | AG34: 98.8 | AH34: 99.8 | AI34: 99.8 | AJ34: 99.8 | AK34: 99.6 | AL34: 99.8 | AM34: 99.6 | AN34: 100.0 | AO34: 99.9 | AP34: 48
D35: 8125 | E35: b-pc_PI_B_SG | F35: 49 | N35: 99.9 | O35: 99.8 | P35: 99.9 | T35: 99.8 | U35: 98.9 | V35: 98.4 | W35: 97.7 | X35: 97.8 | Y35: 98.0 | Z35: 98.3 | AA35: 99.0 | AB35: 99.3 | AC35: 99.7 | AD35: 99.8 | AE35: 99.7 | AF35: 99.6 | AG35: 99.3 | AH35: 98.6 | AI35: 99.1 | AJ35: 99.6 | AK35: 99.2 | AL35: 100.0 | AM35: 99.8 | AN35: 99.8 | AO35: 99.8 | AP35: 49
D36: 8126 | E36: b-pc_PI_B_SG | F36: 50 | L36: 99.3 | M36: 98.0 | N36: 98.0 | O36: 99.8 | S36: 99.9 | T36: 98.9 | U36: 98.0 | V36: 97.0 | W36: 97.3 | X36: 97.4 | Y36: 97.3 | Z36: 98.2 | AA36: 99.2 | AB36: 99.3 | AC36: 99.1 | AD36: 99.5 | AE36: 99.7 | AF36: 99.5 | AG36: 99.5 | AH36: 99.5 | AI36: 99.6 | AJ36: 100.0 | AK36: 99.6 | AL36: 99.7 | AM36: 100.0 | AN36: 99.8 | AO36: 99.5 | AP36: 50
D37: 8127 | E37: b-pc_PI_B_SG | F37: 51 | J37: 99.5 | K37: 99.3 | L37: 98.0 | M37: 98.0 | N37: 99.6 | O37: 99.2 | P37: 99.2 | Q37: 99.4 | R37: 99.2 | S37: 97.8 | T37: 97.8 | U37: 97.7 | V37: 98.0 | W37: 98.4 | X37: 98.6 | Y37: 99.4 | Z37: 99.8 | AA37: 99.6 | AB37: 99.7 | AC37: 100.0 | AD37: 99.8 | AE37: 99.3 | AF37: 99.1 | AG37: 99.5 | AH37: 99.2 | AI37: 99.1 | AJ37: 99.5 | AK37: 99.9 | AL37: 100.0 | AM37: 98.9 | AN37: 98.7 | AO37: 97.6 | AP37: 51
D38: 8128 | E38: b-pc_PI_B_SG | F38: 52 | K38: 99.9 | L38: 99.5 | P38: 99.5 | Q38: 98.5 | R38: 97.8 | S38: 97.5 | T38: 96.8 | U38: 97.2 | V38: 97.0 | W38: 97.5 | X38: 97.9 | Y38: 99.2 | Z38: 99.2 | AA38: 99.4 | AB38: 99.4 | AC38: 98.9 | AD38: 98.4 | AE38: 98.8 | AF38: 98.8 | AG38: 98.6 | AH38: 99.1 | AI38: 99.5 | AJ38: 99.5 | AK38: 99.9 | AL38: 99.7 | AM38: 99.8 | AN38: 99.8 | AO38: 99.4 | AP38: 52
D39: 8129 | E39: b-pc_PI_B_SG | F39: 53 | H39: 99.7 | I39: 99.2 | J39: 99.2 | K39: 99.2 | L39: 99.8 | M39: 99.9 | N39: 99.2 | O39: 99.5 | P39: 99.2 | Q39: 98.0 | R39: 97.9 | S39: 97.7 | T39: 97.6 | U39: 97.5 | V39: 97.9 | W39: 98.4 | X39: 98.4 | Y39: 98.5 | Z39: 98.2 | AA39: 98.2 | AB39: 98.4 | AC39: 98.5 | AD39: 98.6 | AE39: 99.0 | AF39: 99.3 | AG39: 99.1 | AH39: 99.5 | AI39: 99.6 | AJ39: 99.9 | AK39: 99.2 | AL39: 98.5 | AM39: 97.8 | AN39: 100.0 | AO39: 99.9 | AP39: 53
D40: 8130 | E40: b-pc_PI_B_SG | F40: 54 | H40: 99.3 | I40: 98.8 | J40: 98.7 | K40: 99.8 | L40: 99.8 | M40: 99.6 | N40: 99.6 | O40: 99.2 | P40: 98.2 | Q40: 97.9 | R40: 97.2 | S40: 97.9 | T40: 98.2 | U40: 98.2 | V40: 98.6 | W40: 98.9 | X40: 99.0 | Y40: 99.0 | Z40: 99.4 | AA40: 99.4 | AB40: 99.5 | AC40: 99.4 | AD40: 98.9 | AE40: =IF(OFFSET(INDIRECT($B$3&1),$D40-1,AE$9)>0,OFFSET(INDIRECT($B$3&1),$D40-1,AE$9),NA()) -> 98.9 | AF40: 99.1 | AG40: 99.2 | AH40: 99.3 | AI40: 99.9 | AJ40: 99.7 | AK40: 99.8 | AL40: 99.9 | AM40: 100.0 | AN40: 99.6 | AO40: 99.9 | AP40: 54
D41: 8131 | E41: b-pc_PI_B_SG | F41: 55 | H41: 99.4 | I41: 99.3 | L41: 99.6 | M41: 99.7 | N41: 99.5 | O41: 98.1 | P41: 98.4 | Q41: 98.4 | R41: 98.8 | S41: 98.9 | T41: 98.8 | U41: 98.9 | V41: 98.7 | W41: =IF(OFFSET(INDIRECT($B$3&1),$D41-1,W$9)>0,OFFSET(INDIRECT($B$3&1),$D41-1,W$9),NA()) -> 98.6 | X41: 98.7 | Y41: 99.3 | Z41: 99.1 | AA41: 99.6 | AB41: 99.8 | AC41: 99.7 | AD41: 99.9 | AE41: 99.0 | AF41: 99.2 | AG41: 99.3 | AH41: 99.3 | AI41: 99.7 | AJ41: 99.7 | AK41: 99.8 | AL41: 99.5 | AM41: 98.7 | AN41: 98.4 | AO41: 98.0 | AP41: 55
D42: 8132 | E42: b-pc_PI_B_SG | F42: 56 | G42: 98.7 | H42: =IF(OFFSET(INDIRECT($B$3&1),$D42-1,H$9)>0,OFFSET(INDIRECT($B$3&1),$D42-1,H$9),NA()) -> 99.4 | I42: 99.6 | J42: 99.7 | K42: 99.4 | L42: 99.5 | M42: 98.9 | N42: 98.1 | O42: 98.3 | P42: 98.2 | Q42: 97.5 | R42: 97.5 | S42: 98.0 | T42: 97.6 | U42: 97.7 | V42: 98.9 | W42: 98.5 | X42: 98.6 | Y42: 98.6 | Z42: 98.5 | AA42: 98.5 | AB42: 99.1 | AC42: 99.0 | AD42: 99.1 | AE42: 99.6 | AF42: 99.3 | AG42: 99.1 | AH42: 99.3 | AI42: 99.6 | AJ42: 99.1 | AK42: 98.7 | AL42: 98.8 | AM42: 98.6 | AN42: 98.6 | AO42: 98.9 | AP42: 56
D43: 8133 | E43: b-pc_PI_B_SG | F43: 57 | G43: =IF(OFFSET(INDIRECT($B$3&1),$D43-1,G$9)>0,OFFSET(INDIRECT($B$3&1),$D43-1,G$9),NA()) -> 97.3 | H43: 98.8 | I43: 99.2 | J43: 99.3 | K43: 99.0 | L43: 99.1 | M43: 98.0 | N43: 98.0 | O43: 97.7 | P43: 98.2 | Q43: 97.9 | R43: 98.6 | S43: 98.8 | T43: 98.7 | U43: 98.0 | V43: 98.6 | W43: 98.1 | X43: 97.7 | Y43: 97.7 | Z43: 97.9 | AA43: 97.3 | AB43: 97.7 | AC43: 98.2 | AD43: 98.8 | AE43: 99.3 | AF43: 99.6 | AG43: 99.9 | AH43: 99.5 | AI43: 99.3 | AJ43: 99.0 | AK43: 98.7 | AL43: 97.8 | AM43: 97.4 | AN43: 97.5 | AO43: 97.3 | AP43: 57
D44: 8134 | E44: =OFFSET(INDIRECT($B$3&1),$D44-1,E$9) -> b-pc_PI_B_SG | F44: 58 | I44: 99.8 | J44: 99.9 | K44: 99.9 | L44: 99.2 | M44: 99.3 | N44: 98.8 | O44: 98.9 | P44: 98.9 | Q44: 98.8 | R44: 98.5 | S44: 98.6 | T44: 98.8 | U44: 98.4 | V44: 98.1 | W44: 98.0 | X44: 97.8 | Y44: 97.5 | Z44: 97.6 | AA44: 98.0 | AB44: 97.7 | AC44: 98.1 | AD44: 98.4 | AE44: 98.8 | AF44: 98.7 | AG44: 99.2 | AH44: 99.4 | AI44: 99.4 | AJ44: 99.3 | AK44: 99.4 | AL44: 99.0 | AM44: 98.7 | AN44: 98.5 | AO44: 98.7 | AP44: 58
D45: 8135 | E45: b-pc_PI_B_SG | F45: 59 | G45: 99.1 | H45: 99.3 | I45: 99.6 | J45: 99.1 | K45: 98.1 | L45: 98.2 | M45: 97.7 | N45: 97.2 | O45: 97.1 | P45: 97.2 | Q45: 97.2 | R45: 97.4 | S45: 98.3 | T45: 98.4 | U45: 98.0 | V45: 97.8 | W45: 97.6 | X45: 97.3 | Y45: 97.0 | Z45: 97.4 | AA45: 97.5 | AB45: 98.3 | AC45: 98.5 | AD45: 98.3 | AE45: 98.6 | AF45: 98.3 | AG45: 98.1 | AH45: 98.2 | AI45: 98.2 | AJ45: 98.0 | AK45: 98.3 | AL45: 98.3 | AM45: 97.7 | AN45: 98.4 | AO45: 98.8 | AP45: 59
D46: 8136 | E46: b-pc_PI_B_SG | F46: 60 | G46: 99.9 | H46: 99.7 | I46: 99.2 | J46: 98.5 | K46: 98.7 | L46: 98.6 | M46: 98.8 | N46: 98.7 | O46: 98.7 | P46: 98.6 | Q46: 98.7 | R46: 98.6 | S46: 98.5 | T46: 98.2 | U46: 98.5 | V46: 98.2 | W46: 97.9 | X46: 97.8 | Y46: 97.8 | Z46: 97.7 | AA46: 97.8 | AB46: 97.9 | AC46: 97.6 | AD46: 97.7 | AE46: 97.4 | AF46: 97.6 | AG46: 98.0 | AH46: 97.6 | AI46: 97.4 | AJ46: 97.6 | AK46: 97.4 | AL46: 97.1 | AM46: 97.6 | AN46: 97.7 | AO46: 97.5 | AP46: 60
D47: 8137 | E47: b-pc_PI_B_SG | F47: 61 | G47: 98.8 | H47: 98.5 | I47: 97.6 | J47: 96.9 | K47: 96.9 | L47: 96.8 | M47: 96.8 | N47: 97.1 | O47: 97.2 | P47: 97.3 | Q47: 97.2 | R47: 97.5 | S47: 97.5 | T47: 97.6 | U47: 96.6 | V47: 97.3 | W47: 96.7 | X47: 96.6 | Y47: 96.7 | Z47: 98.1 | AA47: 97.9 | AB47: 97.2 | AC47: 97.1 | AD47: 97.0 | AE47: 96.7 | AF47: 96.4 | AG47: 96.6 | AH47: 96.2 | AI47: 96.1 | AJ47: 96.0 | AK47: 95.9 | AL47: 96.2 | AM47: 96.9 | AN47: 97.2 | AO47: 99.5 | AP47: 61
D48: 8138 | E48: b-pc_PI_B_SG | F48: 62 | G48: 99.0 | H48: 97.9 | I48: 97.0 | J48: 95.4 | K48: 95.1 | L48: 95.2 | M48: 95.4 | N48: 95.7 | O48: 96.5 | P48: 96.2 | Q48: 95.4 | R48: 95.4 | S48: 95.9 | T48: 95.6 | U48: 96.0 | V48: 96.7 | W48: 96.8 | X48: 96.8 | Y48: 96.4 | Z48: 96.2 | AA48: 96.0 | AB48: 96.3 | AC48: 96.2 | AD48: 96.5 | AE48: 96.4 | AF48: 96.3 | AG48: 96.1 | AH48: 95.8 | AI48: 96.2 | AJ48: 96.1 | AK48: 96.6 | AL48: 96.6 | AM48: 96.8 | AN48: 96.5 | AO48: 98.5 | AP48: 62
D49: 8139 | E49: b-pc_PI_B_SG | F49: 63 | G49: 97.6 | H49: 97.4 | I49: 96.1 | J49: 95.6 | K49: 95.7 | L49: 94.7 | M49: 94.8 | N49: 94.8 | O49: 95.6 | P49: 95.1 | Q49: 95.2 | R49: 95.3 | S49: 94.4 | T49: 93.7 | U49: 94.1 | V49: 93.6 | W49: 93.3 | X49: 94.1 | Y49: 94.0 | Z49: 94.1 | AA49: 95.2 | AB49: 95.8 | AC49: 96.0 | AD49: 96.7 | AE49: 96.6 | AF49: 96.1 | AG49: 95.5 | AH49: 95.4 | AI49: 95.0 | AJ49: 95.3 | AK49: 95.3 | AL49: 95.7 | AM49: 91.8 | AN49: 96.1 | AP49: 63
D50: 8140 | E50: b-pc_PI_B_SG | F50: 64 | G50: 94.7 | H50: 94.3 | I50: 94.3 | J50: 94.7 | K50: 95.0 | L50: 95.4 | M50: 94.9 | N50: 95.2 | O50: 94.9 | P50: 94.4 | Q50: 94.8 | R50: 95.3 | S50: 94.3 | T50: 93.9 | U50: 93.5 | V50: 93.6 | W50: 93.8 | X50: 94.8 | Y50: 95.6 | Z50: 96.2 | AA50: 96.6 | AB50: 96.2 | AC50: 95.9 | AD50: 95.0 | AE50: 95.0 | AF50: 94.8 | AG50: 95.4 | AH50: 95.0 | AI50: 95.5 | AJ50: 95.8 | AK50: 95.4 | AL50: 94.8 | AM50: 91.4 | AP50: 64
D51: 8141 | E51: b-pc_PI_B_SG | F51: 65 | G51: 93.3 | H51: 93.4 | I51: 93.3 | J51: 93.0 | K51: 92.1 | L51: 93.2 | M51: 93.1 | N51: 93.4 | O51: 93.8 | P51: 95.1 | Q51: 94.9 | R51: 94.0 | S51: 93.8 | T51: 93.9 | U51: 93.6 | V51: 93.1 | W51: 94.1 | X51: 95.2 | Y51: 95.2 | Z51: 95.1 | AA51: 95.0 | AB51: 94.7 | AC51: 93.7 | AD51: 93.2 | AE51: 93.0 | AF51: 93.4 | AG51: 93.6 | AH51: 94.4 | AI51: 95.5 | AJ51: 95.6 | AK51: 97.6 | AL51: 92.5 | AP51: 65
D52: 8142 | E52: b-pc_PI_B_SG | F52: 66 | G52: 89.0 | H52: 88.2 | I52: 89.4 | J52: 90.0 | K52: 90.1 | L52: 89.8 | M52: 90.2 | N52: 89.9 | O52: 89.2 | P52: 88.8 | Q52: 88.9 | R52: 89.1 | S52: 88.4 | T52: 88.8 | U52: 89.6 | V52: 89.6 | W52: 89.3 | X52: 90.9 | Y52: 92.1 | Z52: 92.4 | AA52: 92.7 | AB52: 92.7 | AC52: 92.6 | AD52: 92.6 | AE52: 92.8 | AF52: 93.3 | AG52: 94.1 | AH52: 93.8 | AI52: 93.6 | AJ52: 97.2 | AK52: 92.8 | AP52: 66
D53: 8143 | E53: b-pc_PI_B_SG | F53: 67 | G53: 86.1 | H53: 86.5 | I53: 85.9 | J53: 87.0 | K53: 87.6 | L53: 85.3 | M53: 86.8 | N53: 87.7 | O53: 85.4 | P53: 85.7 | Q53: 86.4 | R53: 86.8 | S53: 87.5 | T53: 90.2 | U53: 91.0 | V53: 91.8 | W53: 90.2 | X53: 90.3 | Y53: 90.4 | Z53: 89.7 | AA53: 89.1 | AB53: 89.0 | AC53: 89.4 | AD53: 90.5 | AE53: 91.2 | AF53: 92.6 | AG53: 93.3 | AH53: 93.8 | AI53: 90.7 | AJ53: 90.0 | AP53: 67
D54: 8144 | E54: b-pc_PI_B_SG | F54: 68 | G54: 90.6 | H54: 91.5 | I54: 91.1 | J54: 90.7 | K54: 88.9 | L54: 88.4 | M54: 88.7 | N54: 88.0 | O54: 89.1 | P54: 89.8 | Q54: 90.1 | R54: 89.3 | S54: 89.8 | T54: 88.4 | U54: 88.4 | V54: 89.6 | W54: 90.6 | X54: 91.2 | Y54: 90.8 | Z54: 90.9 | AA54: 89.8 | AB54: 88.5 | AC54: 88.1 | AD54: 89.4 | AE54: 90.5 | AF54: 91.0 | AG54: 91.9 | AH54: 89.9 | AI54: 94.0 | AP54: 68
D55: 8145 | E55: b-pc_PI_B_SG | F55: 69 | G55: 89.7 | H55: 91.2 | I55: 91.0 | J55: 89.8 | K55: 89.8 | L55: 89.2 | M55: 87.5 | N55: 86.8 | O55: 87.6 | P55: 87.0 | Q55: 87.9 | R55: 88.4 | S55: 90.1 | T55: 91.8 | U55: 93.1 | V55: 91.9 | W55: 93.0 | X55: 91.8 | Y55: 88.6 | Z55: 87.1 | AA55: 86.6 | AB55: 86.9 | AC55: 87.9 | AD55: 89.9 | AE55: 91.3 | AF55: 92.7 | AG55: 92.1 | AH55: 88.8 | AP55: 69
D56: 8146 | E56: b-pc_PI_B_SG | F56: 70 | G56: 90.4 | H56: 89.8 | I56: 88.5 | J56: 89.9 | K56: 89.3 | L56: 88.1 | M56: 87.5 | N56: 88.3 | O56: 88.7 | P56: 88.1 | Q56: 88.7 | R56: 88.7 | S56: 89.4 | T56: 89.0 | U56: 91.4 | V56: 91.5 | W56: 92.7 | X56: 91.5 | Y56: 90.8 | Z56: 88.2 | AA56: 87.6 | AB56: 87.6 | AC56: 87.8 | AD56: 88.5 | AE56: 89.5 | AF56: 96.9 | AG56: 90.6 | AL56: =IF(OFFSET(INDIRECT($B$3&1),$D56-1,AL$9)>0,OFFSET(INDIRECT($B$3&1),$D56-1,AL$9),NA()) ->  | AP56: 70
D57: 8147 | E57: b-pc_PI_B_SG | F57: 71 | G57: 67.8 | H57: 66.1 | I57: 66.1 | J57: 66.9 | K57: 69.4 | L57: 74.9 | M57: 79.7 | N57: 82.6 | O57: 86.4 | P57: 87.7 | Q57: 87.1 | R57: 88.0 | S57: 90.7 | T57: 91.0 | U57: 89.4 | V57: 89.4 | W57: =IF(OFFSET(INDIRECT($B$3&1),$D57-1,W$9)>0,OFFSET(INDIRECT($B$3&1),$D57-1,W$9),NA()) -> 86.2 | X57: 83.8 | Y57: 83.4 | Z57: 84.1 | AA57: 85.5 | AB57: 88.2 | AC57: 89.4 | AD57: 89.4 | AE57: 93.3 | AF57: 91.5 | AP57: 71
D58: 8148 | E58: b-pc_PI_B_SG | F58: 72 | G58: 55.2 | H58: 56.5 | I58: 61.2 | J58: 65.9 | K58: 73.5 | L58: 81.6 | M58: 84.1 | N58: 88.3 | O58: 89.8 | P58: 90.0 | Q58: 88.1 | R58: 89.1 | S58: 88.4 | T58: 88.4 | U58: 89.7 | V58: =IF(OFFSET(INDIRECT($B$3&1),$D58-1,V$9)>0,OFFSET(INDIRECT($B$3&1),$D58-1,V$9),NA()) -> 89.6 | W58: 87.3 | X58: 87.5 | Y58: 87.0 | Z58: 86.4 | AA58: 87.7 | AB58: 89.9 | AC58: 89.6 | AD58: 91.1 | AE58: 96.0 | AP58: 72
D59: 8149 | E59: b-pc_PI_B_SG | F59: 73 | G59: =IF(OFFSET(INDIRECT($B$3&1),$D59-1,G$9)>0,OFFSET(INDIRECT($B$3&1),$D59-1,G$9),NA()) -> 79.2 | H59: 78.0 | I59: 80.3 | J59: 79.9 | K59: 85.5 | L59: 88.9 | M59: 89.0 | N59: 89.4 | O59: 89.7 | P59: 88.1 | Q59: 87.3 | R59: 88.3 | S59: 87.9 | T59: 87.8 | U59: 88.7 | V59: 88.7 | W59: 87.3 | X59: 87.3 | Y59: 86.0 | Z59: 86.0 | AA59: 86.6 | AB59: 87.5 | AC59: 83.2 | AD59: 83.0 | AP59: 73
D60: 8150 | E60: =OFFSET(INDIRECT($B$3&1),$D60-1,E$9) -> b-pc_PI_B_SG | F60: 74 | G60: 91.7 | H60: 90.2 | I60: 88.2 | J60: 88.5 | K60: 87.7 | L60: 88.0 | M60: 88.8 | N60: 88.2 | O60: 88.5 | P60: 89.7 | Q60: 90.2 | R60: 88.5 | S60: 87.1 | T60: 87.0 | U60: 84.9 | V60: 84.5 | W60: 87.1 | X60: 88.4 | Y60: 89.7 | Z60: 90.1 | AA60: 90.5 | AB60: 86.0 | AC60: 97.2 | AP60: 74
D61: 8151 | E61: b-pc_PI_B_SG | F61: 75 | G61: 85.7 | H61: 84.3 | I61: 85.6 | J61: 84.5 | K61: 86.0 | L61: 88.4 | M61: 88.6 | N61: 91.0 | O61: 91.3 | P61: 92.4 | Q61: 92.1 | R61: 91.2 | S61: 88.5 | T61: 86.6 | U61: 85.9 | V61: 85.2 | W61: 85.8 | X61: 86.6 | Y61: 88.2 | Z61: 88.1 | AA61: 86.7 | AB61: 76.2 | AP61: 75
D62: 8152 | E62: b-pc_PI_B_SG | F62: 76 | G62: 90.9 | H62: 95.7 | I62: 94.0 | J62: 92.9 | K62: 89.1 | L62: 87.4 | M62: 86.2 | N62: 86.1 | O62: 85.8 | P62: 87.9 | Q62: 88.2 | R62: 89.3 | S62: 88.1 | T62: 87.2 | U62: 85.8 | V62: 84.8 | W62: 84.2 | X62: 85.9 | Y62: 86.9 | Z62: 91.3 | AA62: 92.8 | AP62: 76
D63: 8153 | E63: b-pc_PI_B_SG | F63: 77 | G63: 83.3 | H63: 88.1 | I63: 89.7 | J63: 93.4 | K63: 92.2 | L63: 91.5 | M63: 90.3 | N63: 90.0 | O63: 89.8 | P63: 90.3 | Q63: 89.9 | R63: 88.0 | S63: 85.7 | T63: 83.6 | U63: 82.2 | V63: 80.3 | W63: 82.6 | X63: 82.3 | Y63: 77.1 | Z63: 84.2 | AP63: 77
D64: 8154 | E64: b-pc_PI_B_SG | F64: 78 | G64: 86.0 | H64: 88.1 | I64: 94.3 | J64: 95.3 | K64: 94.3 | L64: 93.6 | M64: 91.8 | N64: 87.8 | O64: 88.2 | P64: 87.4 | Q64: 84.2 | R64: 85.1 | S64: 86.8 | T64: 85.1 | U64: 85.1 | V64: 87.5 | W64: 87.4 | X64: 83.7 | Y64: 87.8 | AP64: 78
D65: 8155 | E65: b-pc_PI_B_SG | F65: 79 | G65: 86.0 | H65: 88.5 | I65: 89.4 | J65: 91.4 | K65: 94.0 | L65: 89.3 | M65: 90.3 | N65: 86.1 | O65: 80.1 | P65: 78.5 | Q65: 80.2 | R65: 80.3 | S65: 84.2 | T65: 87.9 | U65: 88.5 | V65: 89.4 | W65: 87.3 | X65: 81.6 | AP65: 79
D66: 8156 | E66: b-pc_PI_B_SG | F66: 80 | G66: 86.5 | H66: 84.8 | I66: 89.8 | J66: 93.2 | K66: 92.6 | L66: 92.3 | M66: 90.8 | N66: 86.0 | O66: 83.9 | P66: 82.4 | Q66: 83.3 | R66: 82.1 | S66: 84.6 | T66: 84.8 | U66: 86.3 | V66: 89.1 | W66: 96.6 | AP66: 80
D67: 8157 | E67: b-pc_PI_B_SG | F67: 81 | G67: 78.1 | H67: 76.9 | I67: 83.0 | J67: 87.0 | K67: 88.5 | L67: 87.0 | M67: 88.2 | N67: 86.2 | O67: 86.4 | P67: 84.1 | Q67: 85.6 | R67: 86.3 | S67: 85.7 | T67: 85.4 | U67: 80.7 | V67: 81.8 | AP67: 81
D68: 8158 | E68: b-pc_PI_B_SG | F68: 82 | G68: 92.0 | H68: 96.7 | I68: 90.9 | J68: 88.3 | K68: 88.3 | L68: 86.2 | M68: 83.8 | N68: 83.0 | O68: 80.6 | P68: 79.2 | Q68: 81.3 | R68: 81.3 | S68: 85.2 | T68: 92.1 | AP68: 82
D69: 8159 | E69: b-pc_PI_B_SG | F69: 83 | G69: 95.7 | H69: 96.6 | I69: 95.0 | J69: 88.7 | K69: 85.3 | L69: 84.0 | M69: 84.1 | N69: 79.5 | O69: 82.8 | P69: 86.9 | Q69: 87.4 | R69: 85.1 | S69: 81.5 | T69: 62.1 | AP69: 83
D70: 8160 | E70: b-pc_PI_B_SG | F70: 84 | G70: 86.4 | H70: 92.9 | I70: 94.7 | J70: 91.5 | K70: 86.2 | L70: 86.8 | M70: 81.1 | N70: 81.4 | O70: 80.6 | P70: 86.3 | Q70: 86.8 | R70: 93.9 | S70: 89.6 | AP70: 84
D71: 8161 | E71: b-pc_PI_B_SG | F71: 85 | G71: 89.5 | H71: 84.6 | I71: 72.2 | J71: 72.1 | K71: 74.0 | L71: 76.3 | M71: 76.7 | N71: 82.5 | O71: 87.9 | P71: 88.9 | Q71: 93.4 | R71: 93.3 | AP71: 85
D72: 8162 | E72: b-pc_PI_B_SG | F72: 86 | G72: 88.2 | H72: 86.4 | I72: 73.1 | J72: 67.7 | K72: 70.3 | L72: 77.8 | M72: 76.1 | N72: 80.9 | O72: 82.4 | P72: 71.4 | Q72: 89.2 | AP72: 86
D73: 8163 | E73: b-pc_PI_B_SG | F73: 87 | G73: 93.2 | H73: 84.2 | I73: 68.4 | J73: 71.4 | K73: 69.2 | L73: 71.4 | M73: 80.0 | N73: 81.6 | O73: 71.4 | P73: 62.5 | AP73: 87
D74: 8164 | E74: b-pc_PI_B_SG | F74: 88 | G74: 87.5 | H74: 87.5 | I74: 92.3 | J74: 86.7 | K74: 77.8 | L74: 84.0 | M74: 85.7 | N74: 96.8 | O74: 83.3 | V74: =IF(OFFSET(INDIRECT($B$3&1),$D74-1,V$9)>0,OFFSET(INDIRECT($B$3&1),$D74-1,V$9),NA()) ->  | AP74: 88
D75: 8165 | E75: b-pc_PI_B_SG | F75: 89 | G75: =IF(OFFSET(INDIRECT($B$3&1),$D75-1,G$9)>0,OFFSET(INDIRECT($B$3&1),$D75-1,G$9),NA()) -> 92.9 | H75: 92.9 | I75: 91.7 | J75: 80.0 | K75: 92.9 | L75: 90.5 | M75: 85.1 | N75: 82.4 | AP75: 89
D76: 8166 | E76: =OFFSET(INDIRECT($B$3&1),$D76-1,E$9) -> b-pc_PI_B_SG | F76: 90 | G76: 69.2 | H76: 53.8 | I76: 45.5 | J76: 61.5 | K76: 69.2 | L76: 61.4 | M76: 60.0 | AP76: =F76 -> 90
D77: =1+D76 -> 8167 | E77: b-pc_PI_B_SG | F77: NUMB | G77: =OFFSET(INDIRECT($B$3&1),$D77-1,G$9) -> 65 | H77: 65 | I77: 65 | J77: 65 | K77: 65 | L77: 65 | M77: 65 | N77: 65 | O77: 65 | P77: 65 | Q77: 65 | R77: 65 | S77: 65 | T77: 65 | U77: =OFFSET(INDIRECT($B$3&1),$D77-1,U$9) -> 65 | V77: 65 | W77: 65 | X77: 65 | Y77: 65 | Z77: 65 | AA77: 65 | AB77: 65 | AC77: 65 | AD77: 65 | AE77: 65 | AF77: 65 | AG77: 65 | AH77: 65 | AI77: 65 | AJ77: 65 | AK77: 65 | AL77: 65 | AM77: 65 | AN77: 65 | AO77: 65
D78: 8168 | E78: b-pc_PI_B_SG | F78: SUM1 | G78: 3009 | H78: 3386 | I78: 3364 | J78: 3463 | K78: 3576 | L78: 3688 | M78: 3583 | N78: 3731 | O78: 3533 | P78: 3733 | Q78: 3396 | R78: 3311 | S78: 3516 | T78: 3610 | U78: 3450 | V78: 3452 | W78: 3274 | X78: 3569 | Y78: 3487 | Z78: 3407 | AA78: 3525 | AB78: 3524 | AC78: 3456 | AD78: 3466 | AE78: 3397 | AF78: 3310 | AG78: 3217 | AH78: 3122 | AI78: 3039 | AJ78: 2750 | AK78: 2560 | AL78: 2261 | AM78: 2157 | AN78: 2073 | AO78: 1981
D79: 8169 | E79: b-pc_PI_B_SG | F79: SUM55 | G79: 0 | H79: 288 | I79: 198 | J79: 397 | K79: 495 | L79: 496 | M79: 395 | N79: 594 | O79: 497 | P79: 792 | Q79: 493 | R79: 491 | S79: 789 | T79: 987 | U79: 986 | V79: 983 | W79: 883 | X79: 1281 | Y79: 1282 | Z79: 1281 | AA79: 1480 | AB79: 1581 | AC79: 1581 | AD79: 1681 | AE79: 1682 | AF79: 1682 | AG79: 1684 | AH79: 1685 | AI79: 1689 | AJ79: 1492 | AK79: 1394 | AL79: 1195 | AM79: 1192 | AN79: 1194 | AO79: 1193
D80: 8170 | E80: b-pc_PI_B_SG | F80: SDEV | G80: 44.7 | H80: 44.7 | I80: 44.6 | J80: 44.3 | K80: 44.1 | L80: 43.9 | M80: 44.1 | N80: 44.2 | O80: 44.7 | P80: 44.4 | Q80: 45.6 | R80: 45.9 | S80: 45.8 | T80: 45.7 | U80: 46.4 | V80: 46.4 | W80: 46.8 | X80: 46.5 | Y80: 46.9 | Z80: 47.2 | AA80: 47.3 | AB80: 47.4 | AC80: 47.8 | AD80: 48.0 | AE80: 48.4 | AF80: 48.7 | AG80: 48.8 | AH80: 48.8 | AI80: 49.0 | AJ80: 48.7 | AK80: 48.3 | AL80: 47.0 | AM80: 46.4 | AN80: 46.2 | AO80: 45.7
D81: 8171 | E81: b-pc_PI_B_SG | F81: max_060 | G81: 58.0 | H81: 55.3 | I81: 56.5 | J81: 54.9 | K81: 54.5 | L81: 55.0 | M81: 55.3 | N81: 53.7 | O81: 54.7 | P81: 52.8 | Q81: 54.6 | R81: 54.6 | S81: 53.2 | T81: 52.5 | U81: 52.3 | V81: 52.5 | W81: 53.0 | X81: 50.9 | Y81: 50.9 | Z81: 50.9 | AA81: 49.9 | AB81: 49.5 | AC81: 49.5 | AD81: 49.0 | AE81: 49.0 | AF81: 49.0 | AG81: 49.0 | AH81: 49.0 | AI81: 49.0 | AJ81: 49.7 | AK81: 50.4 | AL81: 51.5 | AM81: 51.5 | AN81: 51.5 | AO81: 51.4
D82: 8172 | E82: b-pc_PI_B_SG | F82: max_065 | G82: 60.7 | H82: 58.2 | I82: 58.9 | J82: 57.7 | K82: 57.3 | L82: 57.4 | M82: 57.8 | N82: 56.3 | O82: 57.2 | P82: 55.4 | Q82: 57.2 | R82: 57.2 | S82: 55.7 | T82: 54.9 | U82: 54.8 | V82: 54.9 | W82: 55.4 | X82: 53.3 | Y82: 53.4 | Z82: 53.4 | AA82: 52.4 | AB82: 51.9 | AC82: 51.9 | AD82: 51.4 | AE82: 51.4 | AF82: 51.4 | AG82: 51.4 | AH82: 51.4 | AI82: 51.4 | AJ82: 52.2 | AK82: 52.9 | AL82: 53.9 | AM82: 53.4 | AN82: 52.9 | AO82: 52.4
D83: 8173 | E83: b-pc_PI_B_SG | F83: max_070 | G83: 63.2 | H83: 60.8 | I83: 61.3 | J83: 60.2 | K83: 59.8 | L83: 59.7 | M83: 60.2 | N83: 58.8 | O83: 59.6 | P83: 57.8 | Q83: 59.6 | R83: 59.6 | S83: 58.1 | T83: 57.3 | U83: 57.2 | V83: 57.3 | W83: 57.8 | X83: 55.7 | Y83: 55.7 | Z83: 55.7 | AA83: 54.7 | AB83: 54.2 | AC83: 54.2 | AD83: 53.8 | AE83: 53.8 | AF83: 53.8 | AG83: 53.8 | AH83: 53.3 | AI83: 52.8 | AJ83: 53.2 | AK83: 53.4 | AL83: 53.9 | AM83: 53.4 | AN83: 52.9 | AO83: 52.4
D84: 8174 | E84: b-pc_PI_B_SG | F84: max_075 | G84: 65 | H84: 63 | I84: 63 | J84: 63 | K84: 62 | L84: 62 | M84: 63 | N84: 61 | O84: 62 | P84: 60 | Q84: 62 | R84: 62 | S84: 61 | T84: 60 | U84: 60 | V84: 60 | W84: 60 | X84: 58 | Y84: 58 | Z84: 58 | AA84: 57 | AB84: 57 | AC84: 56 | AD84: 55 | AE84: 55 | AF84: 54 | AG84: 54 | AH84: 53 | AI84: 53 | AJ84: 53 | AK84: 53 | AL84: 54 | AM84: 53 | AN84: 53 | AO84: 52
A87: log(Ratio) | D87: =B5 -> 8101 | E87: =OFFSET(INDIRECT($B$3&1),$D87-1,E$9) -> b-pc_PI_B_SG | F87: =OFFSET(INDIRECT($B$3&1),$D87-1,F$9) -> Age/Bir | G87: 1918 | H87: 1919 | I87: 1920 | J87: 1921 | K87: 1922 | L87: 1923 | M87: 1924 | N87: 1925 | O87: 1926 | P87: 1927 | Q87: 1928 | R87: 1929 | S87: 1930 | T87: 1931 | U87: 1932 | V87: 1933 | W87: 1934 | X87: 1935 | Y87: 1936 | Z87: 1937 | AA87: 1938 | AB87: 1939 | AC87: 1940 | AD87: 1941 | AE87: 1942 | AF87: 1943 | AG87: 1944 | AH87: 1945 | AI87: 1946 | AJ87: 1947 | AK87: 1948 | AL87: 1949 | AM87: 1950 | AN87: 1951 | AO87: 1952 | AP87: Age
D88: =1+D87 -> 8102 | E88: =OFFSET(INDIRECT($B$3&1),$D88-1,E$9) -> b-pc_PI_B_SG | F88: 26 | G88: =IF(OFFSET(INDIRECT($B$3&1),$D88-1,G$9)>0,LOG(OFFSET(INDIRECT($B$3&1),$D88-1,G$9))-2,0) -> 0.0 | H88: =IF(OFFSET(INDIRECT($B$3&1),$D88-1,H$9)>0,LOG(OFFSET(INDIRECT($B$3&1),$D88-1,H$9))-2,0) -> 0.0 | I88: 0.0 | J88: 0.0 | K88: 0.0 | L88: 0.0 | M88: 0.0 | N88: 0.0 | O88: 0.0 | P88: 0.0 | Q88: 0.0 | R88: 0.0 | S88: 0.0 | T88: 0.0 | U88: 0.0 | V88: 0.0 | W88: 0.0 | X88: 0.0 | Y88: 0.0 | Z88: 0.0 | AA88: 0.0 | AB88: 0.0 | AC88: 0.0 | AD88: 0.0 | AE88: 0.0 | AF88: 0.0 | AG88: 0.0 | AH88: 0.0 | AI88: 0.0 | AJ88: 0.0 | AK88: 0.0 | AL88: 0.0 | AM88: 0.0 | AN88: 0.0 | AO88: 0.0 | AP88: =F88 -> 26
D89: =1+D88 -> 8103 | E89: b-pc_PI_B_SG | F89: 27 | G89: =IF(OFFSET(INDIRECT($B$3&1),$D89-1,G$9)>0,LOG(OFFSET(INDIRECT($B$3&1),$D89-1,G$9))-2,0) -> 0.0 | H89: 0.0 | I89: 0.0 | J89: 0.0 | K89: 0.0 | L89: 0.0 | M89: 0.0 | N89: 0.0 | O89: 0.0 | P89: 0.0 | Q89: 0.0 | R89: 0.0 | S89: 0.0 | T89: 0.0 | U89: 0.0 | V89: 0.0 | W89: 0.0 | X89: 0.0 | Y89: 0.0 | Z89: 0.0 | AA89: 0.0 | AB89: 0.0 | AC89: 0.0 | AD89: 0.0 | AE89: 0.0 | AF89: 0.0 | AG89: 0.0 | AH89: 0.0 | AI89: 0.0 | AJ89: 0.0 | AK89: 0.0 | AL89: 0.0 | AM89: 0.0 | AN89: 0.0 | AO89: 0.0 | AP89: 27
D90: 8104 | E90: b-pc_PI_B_SG | F90: 28 | G90: 0.0 | H90: 0.0 | I90: 0.0 | J90: 0.0 | K90: 0.0 | L90: 0.0 | M90: 0.0 | N90: 0.0 | O90: 0.0 | P90: 0.0 | Q90: 0.0 | R90: 0.0 | S90: 0.0 | T90: 0.0 | U90: 0.0 | V90: 0.0 | W90: 0.0 | X90: 0.0 | Y90: 0.0 | Z90: 0.0 | AA90: 0.0 | AB90: 0.0 | AC90: 0.0 | AD90: 0.0 | AE90: 0.0 | AF90: 0.0 | AG90: 0.0 | AH90: 0.0 | AI90: 0.0 | AJ90: 0.0 | AK90: 0.0 | AL90: 0.0 | AM90: 0.0 | AN90: 0.0 | AO90: 0.0 | AP90: 28
D91: 8105 | E91: b-pc_PI_B_SG | F91: 29 | G91: 0.0 | H91: 0.0 | I91: 0.0 | J91: 0.0 | K91: 0.0 | L91: 0.0 | M91: 0.0 | N91: 0.0 | O91: 0.0 | P91: 0.0 | Q91: 0.0 | R91: 0.0 | S91: 0.0 | T91: 0.0 | U91: 0.0 | V91: 0.0 | W91: 0.0 | X91: 0.0 | Y91: 0.0 | Z91: 0.0 | AA91: 0.0 | AB91: 0.0 | AC91: 0.0 | AD91: 0.0 | AE91: 0.0 | AF91: 0.0 | AG91: 0.0 | AH91: 0.0 | AI91: 0.0 | AJ91: 0.0 | AK91: 0.0 | AL91: 0.0 | AM91: 0.0 | AN91: 0.0 | AO91: 0.0 | AP91: 29
D92: 8106 | E92: b-pc_PI_B_SG | F92: 30 | G92: 0.0 | H92: 0.0 | I92: 0.0 | J92: 0.0 | K92: 0.0 | L92: 0.0 | M92: 0.0 | N92: 0.0 | O92: 0.0 | P92: 0.0 | Q92: 0.0 | R92: 0.0 | S92: 0.0 | T92: 0.0 | U92: 0.0 | V92: 0.0 | W92: 0.0 | X92: 0.0 | Y92: 0.0 | Z92: 0.0 | AA92: 0.0 | AB92: 0.0 | AC92: 0.0 | AD92: 0.0 | AE92: 0.0 | AF92: 0.0 | AG92: 0.0 | AH92: 0.0 | AI92: 0.0 | AJ92: 0.0 | AK92: 0.0 | AL92: 0.0 | AM92: 0.0 | AN92: 0.0 | AO92: 0.0 | AP92: 30
D93: 8107 | E93: b-pc_PI_B_SG | F93: 31 | G93: 0.0 | H93: 0.0 | I93: 0.0 | J93: 0.0 | K93: 0.0 | L93: 0.0 | M93: 0.0 | N93: 0.0 | O93: 0.0 | P93: 0.0 | Q93: 0.0 | R93: 0.0 | S93: 0.0 | T93: 0.0 | U93: 0.0 | V93: 0.0 | W93: 0.0 | X93: 0.0 | Y93: 0.0 | Z93: 0.0 | AA93: 0.0 | AB93: 0.0 | AC93: 0.0 | AD93: 0.0 | AE93: 0.0 | AF93: 0.0 | AG93: 0.0 | AH93: 0.0 | AI93: 0.0 | AJ93: 0.0 | AK93: 0.0 | AL93: 0.0 | AM93: 0.0 | AN93: 0.0 | AO93: 0.0 | AP93: 31
D94: 8108 | E94: b-pc_PI_B_SG | F94: 32 | G94: 0.0 | H94: 0.0 | I94: 0.0 | J94: 0.0 | K94: 0.0 | L94: 0.0 | M94: 0.0 | N94: 0.0 | O94: 0.0 | P94: 0.0 | Q94: 0.0 | R94: 0.0 | S94: 0.0 | T94: 0.0 | U94: 0.0 | V94: 0.0 | W94: 0.0 | X94: 0.0 | Y94: 0.0 | Z94: 0.0 | AA94: 0.0 | AB94: 0.0 | AC94: 0.0 | AD94: 0.0 | AE94: 0.0 | AF94: 0.0 | AG94: 0.0 | AH94: 0.0 | AI94: 0.0 | AJ94: 0.0 | AK94: 0.0 | AL94: 0.0 | AM94: 0.0 | AN94: 0.0 | AO94: 0.0 | AP94: 32
D95: 8109 | E95: b-pc_PI_B_SG | F95: 33 | G95: 0.0 | H95: 0.0 | I95: 0.0 | J95: 0.0 | K95: 0.0 | L95: 0.0 | M95: 0.0 | N95: 0.0 | O95: 0.0 | P95: 0.0 | Q95: 0.0 | R95: 0.0 | S95: 0.0 | T95: 0.0 | U95: 0.0 | V95: 0.0 | W95: 0.0 | X95: 0.0 | Y95: 0.0 | Z95: 0.0 | AA95: 0.0 | AB95: 0.0 | AC95: 0.0 | AD95: 0.0 | AE95: 0.0 | AF95: 0.0 | AG95: 0.0 | AH95: 0.0 | AI95: 0.0 | AJ95: 0.0 | AK95: 0.0 | AL95: 0.0 | AM95: 0.0 | AN95: =IF(OFFSET(INDIRECT($B$3&1),$D95-1,AN$9)>0,LOG(OFFSET(INDIRECT($B$3&1),$D95-1,AN$9))-2,0) -> 0.0 | AO95: 0.0 | AP95: 33
D96: 8110 | E96: b-pc_PI_B_SG | F96: 34 | G96: 0.0 | H96: 0.0 | I96: 0.0 | J96: 0.0 | K96: 0.0 | L96: 0.0 | M96: 0.0 | N96: 0.0 | O96: 0.0 | P96: 0.0 | Q96: 0.0 | R96: 0.0 | S96: 0.0 | T96: 0.0 | U96: 0.0 | V96: 0.0 | W96: 0.0 | X96: 0.0 | Y96: 0.0 | Z96: 0.0 | AA96: 0.0 | AB96: 0.0 | AC96: 0.0 | AD96: 0.0 | AE96: 0.0 | AF96: 0.0 | AG96: 0.0 | AH96: 0.0 | AI96: 0.0 | AJ96: 0.0 | AK96: 0.0 | AL96: 0.0 | AM96: 0.0 | AN96: 0.0 | AO96: 0.0 | AP96: 34
D97: 8111 | E97: b-pc_PI_B_SG | F97: 35 | G97: 0.0 | H97: 0.0 | I97: 0.0 | J97: 0.0 | K97: 0.0 | L97: 0.0 | M97: 0.0 | N97: 0.0 | O97: 0.0 | P97: 0.0 | Q97: 0.0 | R97: 0.0 | S97: 0.0 | T97: 0.0 | U97: 0.0 | V97: 0.0 | W97: 0.0 | X97: 0.0 | Y97: 0.0 | Z97: 0.0 | AA97: 0.0 | AB97: 0.0 | AC97: 0.0 | AD97: 0.0 | AE97: 0.0 | AF97: 0.0 | AG97: 0.0 | AH97: 0.0 | AI97: 0.0 | AJ97: 0.0 | AK97: 0.0 | AL97: 0.0 | AM97: 0.0 | AN97: 0.0 | AO97: 0.0 | AP97: 35
D98: 8112 | E98: b-pc_PI_B_SG | F98: 36 | G98: 0.0 | H98: 0.0 | I98: 0.0 | J98: 0.0 | K98: 0.0 | L98: 0.0 | M98: 0.0 | N98: 0.0 | O98: 0.0 | P98: 0.0 | Q98: 0.0 | R98: 0.0 | S98: 0.0 | T98: 0.0 | U98: 0.0 | V98: 0.0 | W98: 0.0 | X98: 0.0 | Y98: 0.0 | Z98: 0.0 | AA98: 0.0 | AB98: 0.0 | AC98: 0.0 | AD98: 0.0 | AE98: 0.0 | AF98: 0.0 | AG98: 0.0 | AH98: 0.0 | AI98: 0.0 | AJ98: 0.0 | AK98: 0.0 | AL98: 0.0 | AM98: 0.0 | AN98: 0.0 | AO98: 0.0 | AP98: 36
D99: 8113 | E99: b-pc_PI_B_SG | F99: 37 | G99: 0.0 | H99: 0.0 | I99: 0.0 | J99: 0.0 | K99: 0.0 | L99: 0.0 | M99: 0.0 | N99: 0.0 | O99: 0.0 | P99: 0.0 | Q99: 0.0 | R99: 0.0 | S99: 0.0 | T99: 0.0 | U99: 0.0 | V99: 0.0 | W99: 0.0 | X99: 0.0 | Y99: 0.0 | Z99: 0.0 | AA99: 0.0 | AB99: 0.0 | AC99: 0.0 | AD99: 0.0 | AE99: 0.0 | AF99: 0.0 | AG99: 0.0 | AH99: 0.0 | AI99: 0.0 | AJ99: 0.0 | AK99: 0.0 | AL99: 0.0 | AM99: 0.0 | AN99: 0.0 | AO99: 0.0 | AP99: 37
D100: 8114 | E100: b-pc_PI_B_SG | F100: 38 | G100: 0.0 | H100: 0.0 | I100: 0.0 | J100: 0.0 | K100: 0.0 | L100: 0.0 | M100: 0.0 | N100: 0.0 | O100: 0.0 | P100: 0.0 | Q100: 0.0 | R100: 0.0 | S100: 0.0 | T100: 0.0 | U100: 0.0 | V100: 0.0 | W100: 0.0 | X100: 0.0 | Y100: 0.0 | Z100: 0.0 | AA100: 0.0 | AB100: 0.0 | AC100: 0.0 | AD100: -0.0 | AE100: -0.0 | AF100: -0.0 | AG100: -0.0 | AH100: -0.0 | AI100: -0.0 | AJ100: 0.0 | AK100: 0.0 | AL100: 0.0 | AM100: 0.0 | AN100: 0.0 | AO100: 0.0 | AP100: 38
D101: 8115 | E101: b-pc_PI_B_SG | F101: 39 | G101: 0.0 | H101: 0.0 | I101: 0.0 | J101: 0.0 | K101: 0.0 | L101: 0.0 | M101: 0.0 | N101: 0.0 | O101: 0.0 | P101: 0.0 | Q101: 0.0 | R101: 0.0 | S101: 0.0 | T101: 0.0 | U101: 0.0 | V101: 0.0 | W101: 0.0 | X101: 0.0 | Y101: 0.0 | Z101: 0.0 | AA101: -0.0 | AB101: -0.0 | AC101: -0.0 | AD101: -0.0 | AE101: -0.0 | AF101: -0.0 | AG101: -0.0 | AH101: -0.0 | AI101: -0.0 | AJ101: -0.0 | AK101: 0.0 | AL101: 0.0 | AM101: 0.0 | AN101: 0.0 | AO101: 0.0 | AP101: 39
D102: 8116 | E102: b-pc_PI_B_SG | F102: 40 | G102: 0.0 | H102: 0.0 | I102: 0.0 | J102: 0.0 | K102: 0.0 | L102: 0.0 | M102: 0.0 | N102: 0.0 | O102: 0.0 | P102: -0.0 | Q102: 0.0 | R102: 0.0 | S102: 0.0 | T102: 0.0 | U102: 0.0 | V102: 0.0 | W102: 0.0 | X102: -0.0 | Y102: 0.0 | Z102: 0.0 | AA102: 0.0 | AB102: 0.0 | AC102: -0.0 | AD102: -0.0 | AE102: -0.0 | AF102: -0.0 | AG102: -0.0 | AH102: -0.0 | AI102: -0.0 | AJ102: 0.0 | AK102: 0.0 | AL102: 0.0 | AM102: 0.0 | AN102: 0.0 | AO102: 0.0 | AP102: 40
D103: 8117 | E103: b-pc_PI_B_SG | F103: 41 | G103: 0.0 | H103: 0.0 | I103: 0.0 | J103: 0.0 | K103: 0.0 | L103: 0.0 | M103: 0.0 | N103: 0.0 | O103: 0.0 | P103: 0.0 | Q103: 0.0 | R103: 0.0 | S103: 0.0 | T103: 0.0 | U103: 0.0 | V103: 0.0 | W103: =IF(OFFSET(INDIRECT($B$3&1),$D103-1,W$9)>0,LOG(OFFSET(INDIRECT($B$3&1),$D103-1,W$9))-2,0) -> 0.0 | X103: 0.0 | Y103: -0.0 | Z103: -0.0 | AA103: -0.0 | AB103: -0.0 | AC103: -0.0 | AD103: -0.0 | AE103: -0.0 | AF103: -0.0 | AG103: -0.0 | AH103: 0.0 | AI103: -0.0 | AJ103: -0.0 | AK103: 0.0 | AL103: 0.0 | AM103: 0.0 | AN103: 0.0 | AO103: 0.0 | AP103: 41
D104: 8118 | E104: b-pc_PI_B_SG | F104: 42 | G104: 0.0 | H104: 0.0 | I104: 0.0 | J104: 0.0 | K104: 0.0 | L104: 0.0 | M104: 0.0 | N104: -0.0 | O104: 0.0 | P104: 0.0 | Q104: 0.0 | R104: 0.0 | S104: 0.0 | T104: 0.0 | U104: -0.0 | V104: 0.0 | W104: 0.0 | X104: 0.0 | Y104: 0.0 | Z104: 0.0 | AA104: -0.0 | AB104: -0.0 | AC104: -0.0 | AD104: -0.0 | AE104: -0.0 | AF104: -0.0 | AG104: -0.0 | AH104: -0.0 | AI104: -0.0 | AJ104: -0.0 | AK104: 0.0 | AL104: 0.0 | AM104: 0.0 | AN104: 0.0 | AO104: -0.0 | AP104: 42
D105: 8119 | E105: b-pc_PI_B_SG | F105: 43 | G105: 0.0 | H105: 0.0 | I105: 0.0 | J105: 0.0 | K105: 0.0 | L105: 0.0 | M105: 0.0 | N105: 0.0 | O105: 0.0 | P105: 0.0 | Q105: 0.0 | R105: 0.0 | S105: 0.0 | T105: 0.0 | U105: 0.0 | V105: 0.0 | W105: 0.0 | X105: -0.0 | Y105: 0.0 | Z105: -0.0 | AA105: -0.0 | AB105: -0.0 | AC105: -0.0 | AD105: -0.0 | AE105: -0.0 | AF105: -0.0 | AG105: -0.0 | AH105: -0.0 | AI105: -0.0 | AJ105: 0.0 | AK105: -0.0 | AL105: -0.0 | AM105: -0.0 | AN105: -0.0 | AO105: -0.0 | AP105: 43
D106: 8120 | E106: b-pc_PI_B_SG | F106: 44 | G106: 0.0 | H106: 0.0 | I106: 0.0 | J106: 0.0 | K106: 0.0 | L106: 0.0 | M106: 0.0 | N106: 0.0 | O106: 0.0 | P106: 0.0 | Q106: 0.0 | R106: 0.0 | S106: 0.0 | T106: 0.0 | U106: 0.0 | V106: 0.0 | W106: 0.0 | X106: -0.0 | Y106: -0.0 | Z106: -0.0 | AA106: -0.0 | AB106: -0.0 | AC106: -0.0 | AD106: -0.0 | AE106: -0.0 | AF106: -0.0 | AG106: -0.0 | AH106: -0.0 | AI106: -0.0 | AJ106: -0.0 | AK106: -0.0 | AL106: -0.0 | AM106: -0.0 | AN106: -0.0 | AO106: 0.0 | AP106: 44
D107: 8121 | E107: b-pc_PI_B_SG | F107: 45 | G107: 0.0 | H107: 0.0 | I107: 0.0 | J107: 0.0 | K107: -0.0 | L107: 0.0 | M107: 0.0 | N107: 0.0 | O107: 0.0 | P107: 0.0 | Q107: 0.0 | R107: 0.0 | S107: -0.0 | T107: -0.0 | U107: 0.0 | V107: -0.0 | W107: 0.0 | X107: -0.0 | Y107: -0.0 | Z107: -0.0 | AA107: -0.0 | AB107: -0.0 | AC107: -0.0 | AD107: -0.0 | AE107: -0.0 | AF107: -0.0 | AG107: -0.0 | AH107: -0.0 | AI107: -0.0 | AJ107: -0.0 | AK107: 0.0 | AL107: -0.0 | AM107: -0.0 | AN107: -0.0 | AO107: -0.0 | AP107: 45
D108: 8122 | E108: b-pc_PI_B_SG | F108: 46 | G108: 0.0 | H108: 0.0 | I108: 0.0 | J108: -0.0 | K108: 0.0 | L108: 0.0 | M108: 0.0 | N108: 0.0 | O108: 0.0 | P108: 0.0 | Q108: -0.0 | R108: -0.0 | S108: 0.0 | T108: -0.0 | U108: -0.0 | V108: -0.0 | W108: -0.0 | X108: -0.0 | Y108: -0.0 | Z108: -0.0 | AA108: -0.0 | AB108: -0.0 | AC108: -0.0 | AD108: -0.0 | AE108: -0.0 | AF108: -0.0 | AG108: -0.0 | AH108: -0.0 | AI108: -0.0 | AJ108: -0.0 | AK108: -0.0 | AL108: -0.0 | AM108: -0.0 | AN108: -0.0 | AO108: 0.0 | AP108: 46
D109: 8123 | E109: b-pc_PI_B_SG | F109: 47 | G109: 0.0 | H109: 0.0 | I109: 0.0 | J109: 0.0 | K109: 0.0 | L109: 0.0 | M109: 0.0 | N109: 0.0 | O109: 0.0 | P109: -0.0 | Q109: 0.0 | R109: 0.0 | S109: -0.0 | T109: -0.0 | U109: -0.0 | V109: -0.0 | W109: -0.0 | X109: -0.0 | Y109: -0.0 | Z109: -0.0 | AA109: -0.0 | AB109: -0.0 | AC109: -0.0 | AD109: -0.0 | AE109: -0.0 | AF109: -0.0 | AG109: -0.0 | AH109: -0.0 | AI109: -0.0 | AJ109: -0.0 | AK109: -0.0 | AL109: -0.0 | AM109: -0.0 | AN109: -0.0 | AO109: -0.0 | AP109: 47
D110: 8124 | E110: b-pc_PI_B_SG | F110: 48 | G110: 0.0 | H110: -0.0 | I110: 0.0 | J110: 0.0 | K110: 0.0 | L110: 0.0 | M110: 0.0 | N110: 0.0 | O110: 0.0 | P110: 0.0 | Q110: 0.0 | R110: 0.0 | S110: -0.0 | T110: -0.0 | U110: -0.0 | V110: -0.0 | W110: -0.0 | X110: -0.0 | Y110: -0.0 | Z110: -0.0 | AA110: -0.0 | AB110: -0.0 | AC110: -0.0 | AD110: -0.0 | AE110: -0.0 | AF110: -0.0 | AG110: -0.0 | AH110: -0.0 | AI110: -0.0 | AJ110: -0.0 | AK110: -0.0 | AL110: -0.0 | AM110: -0.0 | AN110: =IF(OFFSET(INDIRECT($B$3&1),$D110-1,AN$9)>0,LOG(OFFSET(INDIRECT($B$3&1),$D110-1,AN$9))-2,0) -> 0.0 | AO110: -0.0 | AP110: 48
D111: 8125 | E111: b-pc_PI_B_SG | F111: 49 | G111: 0.0 | H111: 0.0 | I111: 0.0 | J111: 0.0 | K111: 0.0 | L111: 0.0 | M111: 0.0 | N111: -0.0 | O111: -0.0 | P111: -0.0 | Q111: 0.0 | R111: 0.0 | S111: 0.0 | T111: -0.0 | U111: -0.0 | V111: -0.0 | W111: -0.0 | X111: -0.0 | Y111: -0.0 | Z111: -0.0 | AA111: -0.0 | AB111: -0.0 | AC111: -0.0 | AD111: -0.0 | AE111: -0.0 | AF111: -0.0 | AG111: -0.0 | AH111: -0.0 | AI111: -0.0 | AJ111: -0.0 | AK111: -0.0 | AL111: 0.0 | AM111: -0.0 | AN111: -0.0 | AO111: -0.0 | AP111: 49
D112: 8126 | E112: b-pc_PI_B_SG | F112: 50 | G112: 0.0 | H112: 0.0 | I112: 0.0 | J112: 0.0 | K112: 0.0 | L112: -0.0 | M112: -0.0 | N112: -0.0 | O112: -0.0 | P112: 0.0 | Q112: 0.0 | R112: 0.0 | S112: -0.0 | T112: -0.0 | U112: -0.0 | V112: -0.0 | W112: -0.0 | X112: -0.0 | Y112: -0.0 | Z112: -0.0 | AA112: -0.0 | AB112: -0.0 | AC112: -0.0 | AD112: -0.0 | AE112: -0.0 | AF112: -0.0 | AG112: -0.0 | AH112: -0.0 | AI112: -0.0 | AJ112: 0.0 | AK112: -0.0 | AL112: -0.0 | AM112: 0.0 | AN112: -0.0 | AO112: -0.0 | AP112: 50
D113: 8127 | E113: b-pc_PI_B_SG | F113: 51 | G113: 0.0 | H113: 0.0 | I113: 0.0 | J113: -0.0 | K113: -0.0 | L113: -0.0 | M113: -0.0 | N113: -0.0 | O113: -0.0 | P113: -0.0 | Q113: -0.0 | R113: -0.0 | S113: -0.0 | T113: -0.0 | U113: -0.0 | V113: -0.0 | W113: -0.0 | X113: -0.0 | Y113: -0.0 | Z113: -0.0 | AA113: -0.0 | AB113: -0.0 | AC113: 0.0 | AD113: -0.0 | AE113: -0.0 | AF113: -0.0 | AG113: -0.0 | AH113: -0.0 | AI113: -0.0 | AJ113: -0.0 | AK113: -0.0 | AL113: 0.0 | AM113: -0.0 | AN113: -0.0 | AO113: -0.0 | AP113: 51
D114: 8128 | E114: b-pc_PI_B_SG | F114: 52 | G114: 0.0 | H114: 0.0 | I114: 0.0 | J114: 0.0 | K114: -0.0 | L114: -0.0 | M114: 0.0 | N114: 0.0 | O114: 0.0 | P114: -0.0 | Q114: -0.0 | R114: -0.0 | S114: -0.0 | T114: -0.0 | U114: -0.0 | V114: -0.0 | W114: -0.0 | X114: -0.0 | Y114: -0.0 | Z114: -0.0 | AA114: -0.0 | AB114: -0.0 | AC114: -0.0 | AD114: -0.0 | AE114: -0.0 | AF114: -0.0 | AG114: -0.0 | AH114: -0.0 | AI114: -0.0 | AJ114: -0.0 | AK114: -0.0 | AL114: -0.0 | AM114: -0.0 | AN114: -0.0 | AO114: -0.0 | AP114: 52
D115: 8129 | E115: b-pc_PI_B_SG | F115: 53 | G115: 0.0 | H115: -0.0 | I115: -0.0 | J115: -0.0 | K115: -0.0 | L115: -0.0 | M115: -0.0 | N115: -0.0 | O115: -0.0 | P115: -0.0 | Q115: -0.0 | R115: -0.0 | S115: -0.0 | T115: -0.0 | U115: -0.0 | V115: -0.0 | W115: -0.0 | X115: -0.0 | Y115: -0.0 | Z115: -0.0 | AA115: -0.0 | AB115: -0.0 | AC115: -0.0 | AD115: -0.0 | AE115: -0.0 | AF115: -0.0 | AG115: -0.0 | AH115: -0.0 | AI115: -0.0 | AJ115: -0.0 | AK115: -0.0 | AL115: -0.0 | AM115: -0.0 | AN115: 0.0 | AO115: -0.0 | AP115: 53
D116: 8130 | E116: b-pc_PI_B_SG | F116: 54 | G116: 0.0 | H116: -0.0 | I116: -0.0 | J116: -0.0 | K116: -0.0 | L116: -0.0 | M116: -0.0 | N116: -0.0 | O116: -0.0 | P116: -0.0 | Q116: -0.0 | R116: -0.0 | S116: -0.0 | T116: -0.0 | U116: -0.0 | V116: -0.0 | W116: -0.0 | X116: -0.0 | Y116: -0.0 | Z116: -0.0 | AA116: -0.0 | AB116: -0.0 | AC116: -0.0 | AD116: -0.0 | AE116: -0.0 | AF116: -0.0 | AG116: -0.0 | AH116: -0.0 | AI116: -0.0 | AJ116: -0.0 | AK116: -0.0 | AL116: -0.0 | AM116: 0.0 | AN116: -0.0 | AO116: -0.0 | AP116: 54
D117: 8131 | E117: b-pc_PI_B_SG | F117: 55 | G117: 0.0 | H117: -0.0 | I117: -0.0 | J117: 0.0 | K117: 0.0 | L117: -0.0 | M117: -0.0 | N117: -0.0 | O117: -0.0 | P117: -0.0 | Q117: -0.0 | R117: -0.0 | S117: -0.0 | T117: -0.0 | U117: -0.0 | V117: -0.0 | W117: -0.0 | X117: -0.0 | Y117: -0.0 | Z117: -0.0 | AA117: -0.0 | AB117: -0.0 | AC117: -0.0 | AD117: -0.0 | AE117: -0.0 | AF117: -0.0 | AG117: -0.0 | AH117: -0.0 | AI117: -0.0 | AJ117: -0.0 | AK117: -0.0 | AL117: -0.0 | AM117: -0.0 | AN117: -0.0 | AO117: -0.0 | AP117: 55
D118: 8132 | E118: b-pc_PI_B_SG | F118: 56 | G118: -0.0 | H118: -0.0 | I118: -0.0 | J118: -0.0 | K118: -0.0 | L118: -0.0 | M118: -0.0 | N118: -0.0 | O118: -0.0 | P118: -0.0 | Q118: -0.0 | R118: -0.0 | S118: -0.0 | T118: -0.0 | U118: -0.0 | V118: -0.0 | W118: =IF(OFFSET(INDIRECT($B$3&1),$D118-1,W$9)>0,LOG(OFFSET(INDIRECT($B$3&1),$D118-1,W$9))-2,0) -> -0.0 | X118: -0.0 | Y118: -0.0 | Z118: -0.0 | AA118: -0.0 | AB118: -0.0 | AC118: -0.0 | AD118: -0.0 | AE118: -0.0 | AF118: -0.0 | AG118: -0.0 | AH118: -0.0 | AI118: -0.0 | AJ118: -0.0 | AK118: -0.0 | AL118: -0.0 | AM118: -0.0 | AN118: -0.0 | AO118: -0.0 | AP118: 56
D119: 8133 | E119: b-pc_PI_B_SG | F119: 57 | G119: -0.0 | H119: -0.0 | I119: -0.0 | J119: -0.0 | K119: -0.0 | L119: -0.0 | M119: -0.0 | N119: -0.0 | O119: -0.0 | P119: -0.0 | Q119: -0.0 | R119: -0.0 | S119: -0.0 | T119: -0.0 | U119: -0.0 | V119: -0.0 | W119: -0.0 | X119: -0.0 | Y119: -0.0 | Z119: -0.0 | AA119: -0.0 | AB119: -0.0 | AC119: -0.0 | AD119: -0.0 | AE119: -0.0 | AF119: -0.0 | AG119: -0.0 | AH119: -0.0 | AI119: -0.0 | AJ119: -0.0 | AK119: -0.0 | AL119: -0.0 | AM119: -0.0 | AN119: -0.0 | AO119: -0.0 | AP119: 57
D120: 8134 | E120: =OFFSET(INDIRECT($B$3&1),$D120-1,E$9) -> b-pc_PI_B_SG | F120: 58 | G120: 0.0 | H120: 0.0 | I120: -0.0 | J120: -0.0 | K120: -0.0 | L120: -0.0 | M120: -0.0 | N120: -0.0 | O120: -0.0 | P120: -0.0 | Q120: -0.0 | R120: -0.0 | S120: -0.0 | T120: -0.0 | U120: -0.0 | V120: -0.0 | W120: -0.0 | X120: -0.0 | Y120: -0.0 | Z120: -0.0 | AA120: -0.0 | AB120: -0.0 | AC120: -0.0 | AD120: -0.0 | AE120: -0.0 | AF120: -0.0 | AG120: -0.0 | AH120: -0.0 | AI120: -0.0 | AJ120: -0.0 | AK120: -0.0 | AL120: -0.0 | AM120: -0.0 | AN120: -0.0 | AO120: -0.0 | AP120: 58
D121: 8135 | E121: b-pc_PI_B_SG | F121: 59 | G121: -0.0 | H121: -0.0 | I121: -0.0 | J121: -0.0 | K121: -0.0 | L121: -0.0 | M121: -0.0 | N121: -0.0 | O121: -0.0 | P121: -0.0 | Q121: -0.0 | R121: -0.0 | S121: -0.0 | T121: -0.0 | U121: -0.0 | V121: -0.0 | W121: -0.0 | X121: -0.0 | Y121: -0.0 | Z121: -0.0 | AA121: -0.0 | AB121: -0.0 | AC121: -0.0 | AD121: -0.0 | AE121: -0.0 | AF121: -0.0 | AG121: -0.0 | AH121: -0.0 | AI121: -0.0 | AJ121: -0.0 | AK121: -0.0 | AL121: -0.0 | AM121: -0.0 | AN121: -0.0 | AO121: -0.0 | AP121: 59
D122: 8136 | E122: b-pc_PI_B_SG | F122: 60 | G122: -0.0 | H122: -0.0 | I122: -0.0 | J122: -0.0 | K122: -0.0 | L122: -0.0 | M122: -0.0 | N122: -0.0 | O122: -0.0 | P122: -0.0 | Q122: -0.0 | R122: -0.0 | S122: -0.0 | T122: -0.0 | U122: -0.0 | V122: -0.0 | W122: -0.0 | X122: -0.0 | Y122: -0.0 | Z122: -0.0 | AA122: -0.0 | AB122: -0.0 | AC122: -0.0 | AD122: -0.0 | AE122: -0.0 | AF122: -0.0 | AG122: -0.0 | AH122: -0.0 | AI122: -0.0 | AJ122: -0.0 | AK122: -0.0 | AL122: -0.0 | AM122: -0.0 | AN122: -0.0 | AO122: -0.0 | AP122: 60
D123: 8137 | E123: b-pc_PI_B_SG | F123: 61 | G123: -0.0 | H123: -0.0 | I123: -0.0 | J123: -0.0 | K123: -0.0 | L123: -0.0 | M123: -0.0 | N123: -0.0 | O123: -0.0 | P123: -0.0 | Q123: -0.0 | R123: -0.0 | S123: -0.0 | T123: -0.0 | U123: -0.0 | V123: -0.0 | W123: -0.0 | X123: -0.0 | Y123: -0.0 | Z123: -0.0 | AA123: -0.0 | AB123: -0.0 | AC123: -0.0 | AD123: -0.0 | AE123: -0.0 | AF123: -0.0 | AG123: -0.0 | AH123: -0.0 | AI123: -0.0 | AJ123: -0.0 | AK123: -0.0 | AL123: -0.0 | AM123: -0.0 | AN123: -0.0 | AO123: -0.0 | AP123: 61
D124: 8138 | E124: b-pc_PI_B_SG | F124: 62 | G124: -0.0 | H124: -0.0 | I124: -0.0 | J124: -0.0 | K124: -0.0 | L124: -0.0 | M124: -0.0 | N124: -0.0 | O124: -0.0 | P124: -0.0 | Q124: -0.0 | R124: -0.0 | S124: -0.0 | T124: -0.0 | U124: -0.0 | V124: -0.0 | W124: -0.0 | X124: -0.0 | Y124: -0.0 | Z124: -0.0 | AA124: -0.0 | AB124: -0.0 | AC124: -0.0 | AD124: -0.0 | AE124: -0.0 | AF124: -0.0 | AG124: -0.0 | AH124: -0.0 | AI124: -0.0 | AJ124: -0.0 | AK124: -0.0 | AL124: -0.0 | AM124: -0.0 | AN124: -0.0 | AO124: -0.0 | AP124: 62
D125: 8139 | E125: b-pc_PI_B_SG | F125: 63 | G125: -0.0 | H125: -0.0 | I125: -0.0 | J125: -0.0 | K125: -0.0 | L125: -0.0 | M125: -0.0 | N125: -0.0 | O125: -0.0 | P125: -0.0 | Q125: -0.0 | R125: -0.0 | S125: -0.0 | T125: -0.0 | U125: -0.0 | V125: -0.0 | W125: -0.0 | X125: -0.0 | Y125: -0.0 | Z125: -0.0 | AA125: -0.0 | AB125: -0.0 | AC125: -0.0 | AD125: -0.0 | AE125: -0.0 | AF125: -0.0 | AG125: -0.0 | AH125: -0.0 | AI125: -0.0 | AJ125: -0.0 | AK125: -0.0 | AL125: -0.0 | AM125: -0.0 | AN125: =IF(OFFSET(INDIRECT($B$3&1),$D125-1,AN$9)>0,LOG(OFFSET(INDIRECT($B$3&1),$D125-1,AN$9))-2,0) -> -0.0 | AO125: 0.0 | AP125: 63
D126: 8140 | E126: b-pc_PI_B_SG | F126: 64 | G126: -0.0 | H126: -0.0 | I126: -0.0 | J126: -0.0 | K126: -0.0 | L126: -0.0 | M126: -0.0 | N126: -0.0 | O126: -0.0 | P126: -0.0 | Q126: -0.0 | R126: -0.0 | S126: -0.0 | T126: -0.0 | U126: -0.0 | V126: -0.0 | W126: -0.0 | X126: -0.0 | Y126: -0.0 | Z126: -0.0 | AA126: -0.0 | AB126: -0.0 | AC126: -0.0 | AD126: -0.0 | AE126: -0.0 | AF126: -0.0 | AG126: -0.0 | AH126: -0.0 | AI126: -0.0 | AJ126: -0.0 | AK126: -0.0 | AL126: -0.0 | AM126: -0.0 | AN126: 0.0 | AO126: 0.0 | AP126: 64
D127: 8141 | E127: b-pc_PI_B_SG | F127: 65 | G127: -0.0 | H127: -0.0 | I127: -0.0 | J127: -0.0 | K127: -0.0 | L127: -0.0 | M127: -0.0 | N127: -0.0 | O127: -0.0 | P127: -0.0 | Q127: -0.0 | R127: -0.0 | S127: -0.0 | T127: -0.0 | U127: -0.0 | V127: -0.0 | W127: -0.0 | X127: -0.0 | Y127: -0.0 | Z127: -0.0 | AA127: -0.0 | AB127: -0.0 | AC127: -0.0 | AD127: -0.0 | AE127: -0.0 | AF127: -0.0 | AG127: -0.0 | AH127: -0.0 | AI127: -0.0 | AJ127: -0.0 | AK127: -0.0 | AL127: -0.0 | AM127: 0.0 | AN127: 0.0 | AO127: 0.0 | AP127: 65
D128: 8142 | E128: b-pc_PI_B_SG | F128: 66 | G128: -0.1 | H128: -0.1 | I128: -0.0 | J128: -0.0 | K128: -0.0 | L128: -0.0 | M128: -0.0 | N128: -0.0 | O128: -0.0 | P128: -0.1 | Q128: -0.1 | R128: -0.1 | S128: -0.1 | T128: -0.1 | U128: -0.0 | V128: -0.0 | W128: -0.0 | X128: -0.0 | Y128: -0.0 | Z128: -0.0 | AA128: -0.0 | AB128: -0.0 | AC128: -0.0 | AD128: -0.0 | AE128: -0.0 | AF128: -0.0 | AG128: -0.0 | AH128: -0.0 | AI128: -0.0 | AJ128: -0.0 | AK128: -0.0 | AL128: 0.0 | AM128: 0.0 | AN128: 0.0 | AO128: 0.0 | AP128: 66
D129: 8143 | E129: b-pc_PI_B_SG | F129: 67 | G129: -0.1 | H129: -0.1 | I129: -0.1 | J129: -0.1 | K129: -0.1 | L129: -0.1 | M129: -0.1 | N129: -0.1 | O129: -0.1 | P129: -0.1 | Q129: -0.1 | R129: -0.1 | S129: -0.1 | T129: -0.0 | U129: -0.0 | V129: -0.0 | W129: -0.0 | X129: -0.0 | Y129: -0.0 | Z129: -0.0 | AA129: -0.1 | AB129: -0.1 | AC129: -0.0 | AD129: -0.0 | AE129: -0.0 | AF129: -0.0 | AG129: -0.0 | AH129: -0.0 | AI129: -0.0 | AJ129: -0.0 | AK129: 0.0 | AL129: 0.0 | AM129: 0.0 | AN129: 0.0 | AO129: 0.0 | AP129: 67
D130: 8144 | E130: b-pc_PI_B_SG | F130: 68 | G130: -0.0 | H130: -0.0 | I130: -0.0 | J130: -0.0 | K130: -0.1 | L130: -0.1 | M130: -0.1 | N130: -0.1 | O130: -0.1 | P130: -0.0 | Q130: -0.0 | R130: -0.0 | S130: -0.0 | T130: -0.1 | U130: -0.1 | V130: -0.0 | W130: -0.0 | X130: -0.0 | Y130: -0.0 | Z130: -0.0 | AA130: -0.0 | AB130: -0.1 | AC130: -0.1 | AD130: -0.0 | AE130: -0.0 | AF130: -0.0 | AG130: -0.0 | AH130: -0.0 | AI130: -0.0 | AJ130: 0.0 | AK130: 0.0 | AL130: 0.0 | AM130: 0.0 | AN130: 0.0 | AO130: 0.0 | AP130: 68
D131: 8145 | E131: b-pc_PI_B_SG | F131: 69 | G131: -0.0 | H131: -0.0 | I131: -0.0 | J131: -0.0 | K131: -0.0 | L131: -0.0 | M131: -0.1 | N131: -0.1 | O131: -0.1 | P131: -0.1 | Q131: -0.1 | R131: -0.1 | S131: -0.0 | T131: -0.0 | U131: -0.0 | V131: -0.0 | W131: -0.0 | X131: -0.0 | Y131: -0.1 | Z131: -0.1 | AA131: -0.1 | AB131: -0.1 | AC131: -0.1 | AD131: -0.0 | AE131: -0.0 | AF131: -0.0 | AG131: -0.0 | AH131: -0.1 | AI131: 0.0 | AJ131: 0.0 | AK131: 0.0 | AL131: 0.0 | AM131: 0.0 | AN131: 0.0 | AO131: 0.0 | AP131: 69
D132: 8146 | E132: b-pc_PI_B_SG | F132: 70 | G132: -0.0 | H132: -0.0 | I132: -0.1 | J132: -0.0 | K132: -0.0 | L132: -0.1 | M132: -0.1 | N132: -0.1 | O132: -0.1 | P132: -0.1 | Q132: -0.1 | R132: -0.1 | S132: -0.0 | T132: -0.1 | U132: -0.0 | V132: -0.0 | W132: -0.0 | X132: -0.0 | Y132: -0.0 | Z132: -0.1 | AA132: -0.1 | AB132: -0.1 | AC132: -0.1 | AD132: -0.1 | AE132: -0.0 | AF132: -0.0 | AG132: -0.0 | AH132: 0.0 | AI132: 0.0 | AJ132: 0.0 | AK132: 0.0 | AL132: 0.0 | AM132: 0.0 | AN132: 0.0 | AO132: 0.0 | AP132: 70
D133: 8147 | E133: b-pc_PI_B_SG | F133: 71 | G133: -0.2 | H133: -0.2 | I133: -0.2 | J133: -0.2 | K133: -0.2 | L133: -0.1 | M133: -0.1 | N133: -0.1 | O133: -0.1 | P133: -0.1 | Q133: -0.1 | R133: -0.1 | S133: -0.0 | T133: -0.0 | U133: -0.0 | V133: -0.0 | W133: =IF(OFFSET(INDIRECT($B$3&1),$D133-1,W$9)>0,LOG(OFFSET(INDIRECT($B$3&1),$D133-1,W$9))-2,0) -> -0.1 | X133: -0.1 | Y133: -0.1 | Z133: -0.1 | AA133: -0.1 | AB133: -0.1 | AC133: -0.0 | AD133: -0.0 | AE133: -0.0 | AF133: -0.0 | AG133: 0.0 | AH133: 0.0 | AI133: 0.0 | AJ133: 0.0 | AK133: 0.0 | AL133: 0.0 | AM133: 0.0 | AN133: 0.0 | AO133: 0.0 | AP133: 71
D134: 8148 | E134: b-pc_PI_B_SG | F134: 72 | G134: -0.3 | H134: -0.2 | I134: -0.2 | J134: -0.2 | K134: -0.1 | L134: -0.1 | M134: -0.1 | N134: -0.1 | O134: -0.0 | P134: -0.0 | Q134: -0.1 | R134: -0.1 | S134: -0.1 | T134: -0.1 | U134: -0.0 | V134: -0.0 | W134: -0.1 | X134: -0.1 | Y134: -0.1 | Z134: -0.1 | AA134: -0.1 | AB134: -0.0 | AC134: -0.0 | AD134: -0.0 | AE134: -0.0 | AF134: 0.0 | AG134: 0.0 | AH134: 0.0 | AI134: 0.0 | AJ134: 0.0 | AK134: 0.0 | AL134: 0.0 | AM134: 0.0 | AN134: 0.0 | AO134: 0.0 | AP134: 72
D135: 8149 | E135: b-pc_PI_B_SG | F135: 73 | G135: -0.1 | H135: -0.1 | I135: -0.1 | J135: -0.1 | K135: -0.1 | L135: -0.1 | M135: -0.1 | N135: -0.0 | O135: -0.0 | P135: -0.1 | Q135: -0.1 | R135: -0.1 | S135: -0.1 | T135: -0.1 | U135: -0.1 | V135: -0.1 | W135: -0.1 | X135: -0.1 | Y135: -0.1 | Z135: -0.1 | AA135: -0.1 | AB135: -0.1 | AC135: -0.1 | AD135: -0.1 | AE135: 0.0 | AF135: 0.0 | AG135: 0.0 | AH135: 0.0 | AI135: 0.0 | AJ135: 0.0 | AK135: 0.0 | AL135: 0.0 | AM135: 0.0 | AN135: 0.0 | AO135: 0.0 | AP135: 73
D136: 8150 | E136: =OFFSET(INDIRECT($B$3&1),$D136-1,E$9) -> b-pc_PI_B_SG | F136: 74 | G136: -0.0 | H136: -0.0 | I136: -0.1 | J136: -0.1 | K136: -0.1 | L136: -0.1 | M136: -0.1 | N136: -0.1 | O136: -0.1 | P136: -0.0 | Q136: -0.0 | R136: -0.1 | S136: -0.1 | T136: -0.1 | U136: -0.1 | V136: -0.1 | W136: -0.1 | X136: -0.1 | Y136: -0.0 | Z136: -0.0 | AA136: -0.0 | AB136: -0.1 | AC136: -0.0 | AD136: 0.0 | AE136: 0.0 | AF136: 0.0 | AG136: 0.0 | AH136: 0.0 | AI136: 0.0 | AJ136: 0.0 | AK136: 0.0 | AL136: 0.0 | AM136: 0.0 | AN136: 0.0 | AO136: 0.0 | AP136: 74
D137: 8151 | E137: b-pc_PI_B_SG | F137: 75 | G137: -0.1 | H137: -0.1 | I137: -0.1 | J137: -0.1 | K137: -0.1 | L137: -0.1 | M137: -0.1 | N137: -0.0 | O137: -0.0 | P137: -0.0 | Q137: -0.0 | R137: -0.0 | S137: -0.1 | T137: -0.1 | U137: -0.1 | V137: -0.1 | W137: -0.1 | X137: -0.1 | Y137: -0.1 | Z137: -0.1 | AA137: -0.1 | AB137: -0.1 | AC137: 0.0 | AD137: 0.0 | AE137: 0.0 | AF137: 0.0 | AG137: 0.0 | AH137: 0.0 | AI137: 0.0 | AJ137: 0.0 | AK137: 0.0 | AL137: 0.0 | AM137: 0.0 | AN137: 0.0 | AO137: 0.0 | AP137: 75
D138: 8152 | E138: b-pc_PI_B_SG | F138: 76 | G138: -0.0 | H138: -0.0 | I138: -0.0 | J138: -0.0 | K138: -0.1 | L138: -0.1 | M138: -0.1 | N138: -0.1 | O138: -0.1 | P138: -0.1 | Q138: -0.1 | R138: -0.0 | S138: -0.1 | T138: -0.1 | U138: -0.1 | V138: -0.1 | W138: -0.1 | X138: -0.1 | Y138: -0.1 | Z138: -0.0 | AA138: -0.0 | AB138: 0.0 | AC138: 0.0 | AD138: 0.0 | AE138: 0.0 | AF138: 0.0 | AG138: 0.0 | AH138: 0.0 | AI138: 0.0 | AJ138: 0.0 | AK138: 0.0 | AL138: 0.0 | AM138: 0.0 | AN138: 0.0 | AO138: 0.0 | AP138: 76
D139: 8153 | E139: b-pc_PI_B_SG | F139: 77 | G139: -0.1 | H139: -0.1 | I139: -0.0 | J139: -0.0 | K139: -0.0 | L139: -0.0 | M139: -0.0 | N139: -0.0 | O139: -0.0 | P139: -0.0 | Q139: -0.0 | R139: -0.1 | S139: -0.1 | T139: -0.1 | U139: -0.1 | V139: -0.1 | W139: -0.1 | X139: -0.1 | Y139: -0.1 | Z139: -0.1 | AA139: 0.0 | AB139: 0.0 | AC139: 0.0 | AD139: 0.0 | AE139: 0.0 | AF139: 0.0 | AG139: 0.0 | AH139: 0.0 | AI139: 0.0 | AJ139: 0.0 | AK139: 0.0 | AL139: 0.0 | AM139: 0.0 | AN139: 0.0 | AO139: 0.0 | AP139: 77
D140: 8154 | E140: b-pc_PI_B_SG | F140: 78 | G140: -0.1 | H140: -0.1 | I140: -0.0 | J140: -0.0 | K140: -0.0 | L140: -0.0 | M140: -0.0 | N140: -0.1 | O140: -0.1 | P140: -0.1 | Q140: -0.1 | R140: -0.1 | S140: -0.1 | T140: -0.1 | U140: -0.1 | V140: -0.1 | W140: -0.1 | X140: -0.1 | Y140: -0.1 | Z140: 0.0 | AA140: 0.0 | AB140: 0.0 | AC140: 0.0 | AD140: 0.0 | AE140: 0.0 | AF140: 0.0 | AG140: 0.0 | AH140: 0.0 | AI140: 0.0 | AJ140: 0.0 | AK140: 0.0 | AL140: 0.0 | AM140: 0.0 | AN140: =IF(OFFSET(INDIRECT($B$3&1),$D140-1,AN$9)>0,LOG(OFFSET(INDIRECT($B$3&1),$D140-1,AN$9))-2,0) -> 0.0 | AO140: 0.0 | AP140: 78
D141: 8155 | E141: b-pc_PI_B_SG | F141: 79 | G141: -0.1 | H141: -0.1 | I141: -0.0 | J141: -0.0 | K141: -0.0 | L141: -0.0 | M141: -0.0 | N141: -0.1 | O141: -0.1 | P141: -0.1 | Q141: -0.1 | R141: -0.1 | S141: -0.1 | T141: -0.1 | U141: -0.1 | V141: -0.0 | W141: -0.1 | X141: -0.1 | Y141: 0.0 | Z141: 0.0 | AA141: 0.0 | AB141: 0.0 | AC141: 0.0 | AD141: 0.0 | AE141: 0.0 | AF141: 0.0 | AG141: 0.0 | AH141: 0.0 | AI141: 0.0 | AJ141: 0.0 | AK141: 0.0 | AL141: 0.0 | AM141: 0.0 | AN141: 0.0 | AO141: 0.0 | AP141: 79
D142: 8156 | E142: b-pc_PI_B_SG | F142: 80 | G142: -0.1 | H142: -0.1 | I142: -0.0 | J142: -0.0 | K142: -0.0 | L142: -0.0 | M142: -0.0 | N142: -0.1 | O142: -0.1 | P142: -0.1 | Q142: -0.1 | R142: -0.1 | S142: -0.1 | T142: -0.1 | U142: -0.1 | V142: -0.1 | W142: -0.0 | X142: 0.0 | Y142: 0.0 | Z142: 0.0 | AA142: 0.0 | AB142: 0.0 | AC142: 0.0 | AD142: 0.0 | AE142: 0.0 | AF142: 0.0 | AG142: 0.0 | AH142: 0.0 | AI142: 0.0 | AJ142: 0.0 | AK142: 0.0 | AL142: 0.0 | AM142: 0.0 | AN142: 0.0 | AO142: 0.0 | AP142: 80
D143: 8157 | E143: b-pc_PI_B_SG | F143: 81 | G143: -0.1 | H143: -0.1 | I143: -0.1 | J143: -0.1 | K143: -0.1 | L143: -0.1 | M143: -0.1 | N143: -0.1 | O143: -0.1 | P143: -0.1 | Q143: -0.1 | R143: -0.1 | S143: -0.1 | T143: -0.1 | U143: -0.1 | V143: -0.1 | W143: 0.0 | X143: 0.0 | Y143: 0.0 | Z143: 0.0 | AA143: 0.0 | AB143: 0.0 | AC143: 0.0 | AD143: 0.0 | AE143: 0.0 | AF143: 0.0 | AG143: 0.0 | AH143: 0.0 | AI143: 0.0 | AJ143: 0.0 | AK143: 0.0 | AL143: 0.0 | AM143: 0.0 | AN143: 0.0 | AO143: 0.0 | AP143: 81
D144: 8158 | E144: b-pc_PI_B_SG | F144: 82 | G144: -0.0 | H144: -0.0 | I144: -0.0 | J144: -0.1 | K144: -0.1 | L144: -0.1 | M144: -0.1 | N144: -0.1 | O144: -0.1 | P144: -0.1 | Q144: -0.1 | R144: -0.1 | S144: -0.1 | T144: -0.0 | U144: 0.0 | V144: 0.0 | W144: 0.0 | X144: 0.0 | Y144: 0.0 | Z144: 0.0 | AA144: 0.0 | AB144: 0.0 | AC144: 0.0 | AD144: 0.0 | AE144: 0.0 | AF144: 0.0 | AG144: 0.0 | AH144: 0.0 | AI144: 0.0 | AJ144: 0.0 | AK144: 0.0 | AL144: 0.0 | AM144: 0.0 | AN144: 0.0 | AO144: 0.0 | AP144: 82
D145: 8159 | E145: b-pc_PI_B_SG | F145: 83 | G145: -0.0 | H145: -0.0 | I145: -0.0 | J145: -0.1 | K145: -0.1 | L145: -0.1 | M145: -0.1 | N145: -0.1 | O145: -0.1 | P145: -0.1 | Q145: -0.1 | R145: -0.1 | S145: -0.1 | T145: -0.2 | U145: 0.0 | V145: 0.0 | W145: 0.0 | X145: 0.0 | Y145: 0.0 | Z145: 0.0 | AA145: 0.0 | AB145: 0.0 | AC145: 0.0 | AD145: 0.0 | AE145: 0.0 | AF145: 0.0 | AG145: 0.0 | AH145: 0.0 | AI145: 0.0 | AJ145: 0.0 | AK145: 0.0 | AL145: 0.0 | AM145: 0.0 | AN145: 0.0 | AO145: 0.0 | AP145: 83
D146: 8160 | E146: b-pc_PI_B_SG | F146: 84 | G146: -0.1 | H146: -0.0 | I146: -0.0 | J146: -0.0 | K146: -0.1 | L146: -0.1 | M146: -0.1 | N146: -0.1 | O146: -0.1 | P146: -0.1 | Q146: -0.1 | R146: -0.0 | S146: -0.0 | T146: 0.0 | U146: 0.0 | V146: 0.0 | W146: 0.0 | X146: 0.0 | Y146: 0.0 | Z146: 0.0 | AA146: 0.0 | AB146: 0.0 | AC146: 0.0 | AD146: 0.0 | AE146: 0.0 | AF146: 0.0 | AG146: 0.0 | AH146: 0.0 | AI146: 0.0 | AJ146: 0.0 | AK146: 0.0 | AL146: 0.0 | AM146: 0.0 | AN146: 0.0 | AO146: 0.0 | AP146: 84
D147: 8161 | E147: b-pc_PI_B_SG | F147: 85 | G147: -0.0 | H147: -0.1 | I147: -0.1 | J147: -0.1 | K147: -0.1 | L147: -0.1 | M147: -0.1 | N147: -0.1 | O147: -0.1 | P147: -0.1 | Q147: -0.0 | R147: -0.0 | S147: 0.0 | T147: 0.0 | U147: 0.0 | V147: 0.0 | W147: 0.0 | X147: 0.0 | Y147: 0.0 | Z147: 0.0 | AA147: 0.0 | AB147: 0.0 | AC147: 0.0 | AD147: 0.0 | AE147: 0.0 | AF147: 0.0 | AG147: 0.0 | AH147: 0.0 | AI147: 0.0 | AJ147: 0.0 | AK147: 0.0 | AL147: 0.0 | AM147: 0.0 | AN147: 0.0 | AO147: 0.0 | AP147: 85
D148: 8162 | E148: b-pc_PI_B_SG | F148: 86 | G148: -0.1 | H148: -0.1 | I148: -0.1 | J148: -0.2 | K148: -0.2 | L148: -0.1 | M148: -0.1 | N148: -0.1 | O148: -0.1 | P148: -0.1 | Q148: -0.0 | R148: 0.0 | S148: 0.0 | T148: 0.0 | U148: 0.0 | V148: 0.0 | W148: =IF(OFFSET(INDIRECT($B$3&1),$D148-1,W$9)>0,LOG(OFFSET(INDIRECT($B$3&1),$D148-1,W$9))-2,0) -> 0.0 | X148: 0.0 | Y148: 0.0 | Z148: 0.0 | AA148: 0.0 | AB148: 0.0 | AC148: 0.0 | AD148: 0.0 | AE148: 0.0 | AF148: 0.0 | AG148: 0.0 | AH148: 0.0 | AI148: 0.0 | AJ148: 0.0 | AK148: 0.0 | AL148: 0.0 | AM148: 0.0 | AN148: 0.0 | AO148: 0.0 | AP148: 86
D149: 8163 | E149: b-pc_PI_B_SG | F149: 87 | G149: -0.0 | H149: -0.1 | I149: -0.2 | J149: -0.1 | K149: -0.2 | L149: -0.1 | M149: -0.1 | N149: -0.1 | O149: -0.1 | P149: -0.2 | Q149: 0.0 | R149: 0.0 | S149: 0.0 | T149: 0.0 | U149: 0.0 | V149: 0.0 | W149: 0.0 | X149: 0.0 | Y149: 0.0 | Z149: 0.0 | AA149: 0.0 | AB149: 0.0 | AC149: 0.0 | AD149: 0.0 | AE149: 0.0 | AF149: 0.0 | AG149: 0.0 | AH149: 0.0 | AI149: 0.0 | AJ149: 0.0 | AK149: 0.0 | AL149: 0.0 | AM149: 0.0 | AN149: 0.0 | AO149: 0.0 | AP149: 87
D150: 8164 | E150: b-pc_PI_B_SG | F150: 88 | G150: -0.1 | H150: -0.1 | I150: -0.0 | J150: -0.1 | K150: -0.1 | L150: -0.1 | M150: -0.1 | N150: -0.0 | O150: -0.1 | P150: 0.0 | Q150: 0.0 | R150: 0.0 | S150: 0.0 | T150: 0.0 | U150: 0.0 | V150: 0.0 | W150: 0.0 | X150: 0.0 | Y150: 0.0 | Z150: 0.0 | AA150: 0.0 | AB150: 0.0 | AC150: 0.0 | AD150: 0.0 | AE150: 0.0 | AF150: 0.0 | AG150: 0.0 | AH150: 0.0 | AI150: 0.0 | AJ150: 0.0 | AK150: 0.0 | AL150: 0.0 | AM150: 0.0 | AN150: 0.0 | AO150: 0.0 | AP150: 88
D151: 8165 | E151: b-pc_PI_B_SG | F151: 89 | G151: -0.0 | H151: -0.0 | I151: -0.0 | J151: -0.1 | K151: -0.0 | L151: -0.0 | M151: -0.1 | N151: -0.1 | O151: 0.0 | P151: 0.0 | Q151: 0.0 | R151: 0.0 | S151: 0.0 | T151: 0.0 | U151: 0.0 | V151: 0.0 | W151: 0.0 | X151: 0.0 | Y151: 0.0 | Z151: 0.0 | AA151: 0.0 | AB151: 0.0 | AC151: 0.0 | AD151: 0.0 | AE151: 0.0 | AF151: 0.0 | AG151: 0.0 | AH151: 0.0 | AI151: 0.0 | AJ151: 0.0 | AK151: 0.0 | AL151: 0.0 | AM151: 0.0 | AN151: 0.0 | AO151: 0.0 | AP151: 89
D152: 8166 | E152: =OFFSET(INDIRECT($B$3&1),$D152-1,E$9) -> b-pc_PI_B_SG | F152: 90 | G152: -0.2 | H152: -0.3 | I152: -0.3 | J152: -0.2 | K152: -0.2 | L152: -0.2 | M152: -0.2 | N152: 0.0 | O152: 0.0 | P152: 0.0 | Q152: 0.0 | R152: 0.0 | S152: 0.0 | T152: 0.0 | U152: 0.0 | V152: 0.0 | W152: 0.0 | X152: 0.0 | Y152: 0.0 | Z152: 0.0 | AA152: 0.0 | AB152: 0.0 | AC152: 0.0 | AD152: 0.0 | AE152: 0.0 | AF152: 0.0 | AG152: 0.0 | AH152: 0.0 | AI152: 0.0 | AJ152: 0.0 | AK152: 0.0 | AL152: 0.0 | AM152: 0.0 | AN152: 0.0 | AO152: 0.0 | AP152: =F152 -> 90
A158: Sum log(Ratio) | F158: =F87 -> Age/Bir | G158: =G87 -> 1918 | H158: 1919 | I158: 1920 | J158: 1921 | K158: 1922 | L158: 1923 | M158: 1924 | N158: 1925 | O158: 1926 | P158: 1927 | Q158: 1928 | R158: 1929 | S158: 1930 | T158: 1931 | U158: 1932 | V158: 1933 | W158: 1934 | X158: 1935 | Y158: 1936 | Z158: 1937 | AA158: 1938 | AB158: 1939 | AC158: 1940 | AD158: 1941 | AE158: 1942 | AF158: 1943 | AG158: 1944 | AH158: 1945 | AI158: 1946 | AJ158: 1947 | AK158: 1948 | AL158: 1949 | AM158: 1950 | AN158: 1951 | AO158: 1952 | AP158: Age
F159: =F88 -> 26 | G159: =IF(G12>0,10^SUM(G$88:G88)-G$227*G$228,NA()) ->  | H159: =IF(H12>0,10^SUM(H$88:H88)-H$227*H$228,NA()) ->  | I159: =IF(I12>0,10^SUM(I$88:I88)-I$227*I$228,NA()) ->  | J159: =IF(J12>0,10^SUM(J$88:J88)-J$227*J$228,NA()) ->  | K159: =IF(K12>0,10^SUM(K$88:K88)-K$227*K$228,NA()) ->  | L159: =IF(L12>0,10^SUM(L$88:L88)-L$227*L$228,NA()) ->  | M159: =IF(M12>0,10^SUM(M$88:M88)-M$227*M$228,NA()) ->  | N159: =IF(N12>0,10^SUM(N$88:N88)-N$227*N$228,NA()) ->  | O159: =IF(O12>0,10^SUM(O$88:O88)-O$227*O$228,NA()) ->  | P159: =IF(P12>0,10^SUM(P$88:P88)-P$227*P$228,NA()) ->  | Q159: =IF(Q12>0,10^SUM(Q$88:Q88)-Q$227*Q$228,NA()) ->  | R159: =IF(R12>0,10^SUM(R$88:R88)-R$227*R$228,NA()) ->  | S159: =IF(S12>0,10^SUM(S$88:S88)-S$227*S$228,NA()) ->  | T159: =IF(T12>0,10^SUM(T$88:T88)-T$227*T$228,NA()) ->  | U159: =IF(U12>0,10^SUM(U$88:U88)-U$227*U$228,NA()) ->  | V159: =IF(V12>0,10^SUM(V$88:V88)-V$227*V$228,NA()) ->  | W159: =IF(W12>0,10^SUM(W$88:W88)-W$227*W$228,NA()) ->  | X159: =IF(X12>0,10^SUM(X$88:X88)-X$227*X$228,NA()) ->  | Y159: =IF(Y12>0,10^SUM(Y$88:Y88)-Y$227*Y$228,NA()) ->  | Z159: =IF(Z12>0,10^SUM(Z$88:Z88)-Z$227*Z$228,NA()) ->  | AA159: =IF(AA12>0,10^SUM(AA$88:AA88)-AA$227*AA$228,NA()) ->  | AB159: =IF(AB12>0,10^SUM(AB$88:AB88)-AB$227*AB$228,NA()) ->  | AC159: =IF(AC12>0,10^SUM(AC$88:AC88)-AC$227*AC$228,NA()) ->  | AD159: =IF(AD12>0,10^SUM(AD$88:AD88)-AD$227*AD$228,NA()) ->  | AE159: =IF(AE12>0,10^SUM(AE$88:AE88)-AE$227*AE$228,NA()) ->  | AF159: =IF(AF12>0,10^SUM(AF$88:AF88)-AF$227*AF$228,NA()) ->  | AG159: =IF(AG12>0,10^SUM(AG$88:AG88)-AG$227*AG$228,NA()) ->  | AH159: =IF(AH12>0,10^SUM(AH$88:AH88)-AH$227*AH$228,NA()) ->  | AI159: =IF(AI12>0,10^SUM(AI$88:AI88)-AI$227*AI$228,NA()) ->  | AJ159: =IF(AJ12>0,10^SUM(AJ$88:AJ88)-AJ$227*AJ$228,NA()) ->  | AK159: =IF(AK12>0,10^SUM(AK$88:AK88)-AK$227*AK$228,NA()) ->  | AL159: =IF(AL12>0,10^SUM(AL$88:AL88)-AL$227*AL$228,NA()) ->  | AM159: =IF(AM12>0,10^SUM(AM$88:AM88)-AM$227*AM$228,NA()) ->  | AN159: =IF(AN12>0,10^SUM(AN$88:AN88)-AN$227*AN$228,NA()) ->  | AO159: =IF(AO12>0,10^SUM(AO$88:AO88)-AO$227*AO$228,NA()) ->  | AP159: =AP88 -> 26
F160: 27 | G160: =IF(G13>0,10^SUM(G$88:G89)-G$227*G$228,NA()) ->  | H160: =IF(H13>0,10^SUM(H$88:H89)-H$227*H$228,NA()) ->  | I160: =IF(I13>0,10^SUM(I$88:I89)-I$227*I$228,NA()) ->  | J160: =IF(J13>0,10^SUM(J$88:J89)-J$227*J$228,NA()) ->  | K160: =IF(K13>0,10^SUM(K$88:K89)-K$227*K$228,NA()) ->  | L160: =IF(L13>0,10^SUM(L$88:L89)-L$227*L$228,NA()) ->  | M160: =IF(M13>0,10^SUM(M$88:M89)-M$227*M$228,NA()) ->  | N160: =IF(N13>0,10^SUM(N$88:N89)-N$227*N$228,NA()) ->  | O160: =IF(O13>0,10^SUM(O$88:O89)-O$227*O$228,NA()) ->  | P160: =IF(P13>0,10^SUM(P$88:P89)-P$227*P$228,NA()) ->  | Q160: =IF(Q13>0,10^SUM(Q$88:Q89)-Q$227*Q$228,NA()) ->  | R160: =IF(R13>0,10^SUM(R$88:R89)-R$227*R$228,NA()) ->  | S160: =IF(S13>0,10^SUM(S$88:S89)-S$227*S$228,NA()) ->  | T160: =IF(T13>0,10^SUM(T$88:T89)-T$227*T$228,NA()) ->  | U160: =IF(U13>0,10^SUM(U$88:U89)-U$227*U$228,NA()) ->  | V160: =IF(V13>0,10^SUM(V$88:V89)-V$227*V$228,NA()) ->  | W160: =IF(W13>0,10^SUM(W$88:W89)-W$227*W$228,NA()) ->  | X160: =IF(X13>0,10^SUM(X$88:X89)-X$227*X$228,NA()) ->  | Y160: =IF(Y13>0,10^SUM(Y$88:Y89)-Y$227*Y$228,NA()) ->  | Z160: =IF(Z13>0,10^SUM(Z$88:Z89)-Z$227*Z$228,NA()) ->  | AA160: =IF(AA13>0,10^SUM(AA$88:AA89)-AA$227*AA$228,NA()) ->  | AB160: =IF(AB13>0,10^SUM(AB$88:AB89)-AB$227*AB$228,NA()) ->  | AC160: =IF(AC13>0,10^SUM(AC$88:AC89)-AC$227*AC$228,NA()) ->  | AD160: =IF(AD13>0,10^SUM(AD$88:AD89)-AD$227*AD$228,NA()) ->  | AE160: =IF(AE13>0,10^SUM(AE$88:AE89)-AE$227*AE$228,NA()) ->  | AF160: =IF(AF13>0,10^SUM(AF$88:AF89)-AF$227*AF$228,NA()) ->  | AG160: =IF(AG13>0,10^SUM(AG$88:AG89)-AG$227*AG$228,NA()) ->  | AH160: =IF(AH13>0,10^SUM(AH$88:AH89)-AH$227*AH$228,NA()) ->  | AI160: =IF(AI13>0,10^SUM(AI$88:AI89)-AI$227*AI$228,NA()) ->  | AJ160: =IF(AJ13>0,10^SUM(AJ$88:AJ89)-AJ$227*AJ$228,NA()) ->  | AK160: =IF(AK13>0,10^SUM(AK$88:AK89)-AK$227*AK$228,NA()) ->  | AL160: =IF(AL13>0,10^SUM(AL$88:AL89)-AL$227*AL$228,NA()) ->  | AM160: =IF(AM13>0,10^SUM(AM$88:AM89)-AM$227*AM$228,NA()) ->  | AN160: =IF(AN13>0,10^SUM(AN$88:AN89)-AN$227*AN$228,NA()) ->  | AO160: =IF(AO13>0,10^SUM(AO$88:AO89)-AO$227*AO$228,NA()) ->  | AP160: =AP89 -> 27
F161: 28 | G161: =IF(G14>0,10^SUM(G$88:G90)-G$227*G$228,NA()) ->  | H161: =IF(H14>0,10^SUM(H$88:H90)-H$227*H$228,NA()) ->  | I161: =IF(I14>0,10^SUM(I$88:I90)-I$227*I$228,NA()) ->  | J161: =IF(J14>0,10^SUM(J$88:J90)-J$227*J$228,NA()) ->  | K161: =IF(K14>0,10^SUM(K$88:K90)-K$227*K$228,NA()) ->  | L161: =IF(L14>0,10^SUM(L$88:L90)-L$227*L$228,NA()) ->  | M161: =IF(M14>0,10^SUM(M$88:M90)-M$227*M$228,NA()) ->  | N161: =IF(N14>0,10^SUM(N$88:N90)-N$227*N$228,NA()) ->  | O161: =IF(O14>0,10^SUM(O$88:O90)-O$227*O$228,NA()) ->  | P161: =IF(P14>0,10^SUM(P$88:P90)-P$227*P$228,NA()) ->  | Q161: =IF(Q14>0,10^SUM(Q$88:Q90)-Q$227*Q$228,NA()) ->  | R161: =IF(R14>0,10^SUM(R$88:R90)-R$227*R$228,NA()) ->  | S161: =IF(S14>0,10^SUM(S$88:S90)-S$227*S$228,NA()) ->  | T161: =IF(T14>0,10^SUM(T$88:T90)-T$227*T$228,NA()) ->  | U161: =IF(U14>0,10^SUM(U$88:U90)-U$227*U$228,NA()) ->  | V161: =IF(V14>0,10^SUM(V$88:V90)-V$227*V$228,NA()) ->  | W161: =IF(W14>0,10^SUM(W$88:W90)-W$227*W$228,NA()) ->  | X161: =IF(X14>0,10^SUM(X$88:X90)-X$227*X$228,NA()) ->  | Y161: =IF(Y14>0,10^SUM(Y$88:Y90)-Y$227*Y$228,NA()) ->  | Z161: =IF(Z14>0,10^SUM(Z$88:Z90)-Z$227*Z$228,NA()) ->  | AA161: =IF(AA14>0,10^SUM(AA$88:AA90)-AA$227*AA$228,NA()) ->  | AB161: =IF(AB14>0,10^SUM(AB$88:AB90)-AB$227*AB$228,NA()) ->  | AC161: =IF(AC14>0,10^SUM(AC$88:AC90)-AC$227*AC$228,NA()) ->  | AD161: =IF(AD14>0,10^SUM(AD$88:AD90)-AD$227*AD$228,NA()) ->  | AE161: =IF(AE14>0,10^SUM(AE$88:AE90)-AE$227*AE$228,NA()) ->  | AF161: =IF(AF14>0,10^SUM(AF$88:AF90)-AF$227*AF$228,NA()) ->  | AG161: =IF(AG14>0,10^SUM(AG$88:AG90)-AG$227*AG$228,NA()) ->  | AH161: =IF(AH14>0,10^SUM(AH$88:AH90)-AH$227*AH$228,NA()) ->  | AI161: =IF(AI14>0,10^SUM(AI$88:AI90)-AI$227*AI$228,NA()) ->  | AJ161: =IF(AJ14>0,10^SUM(AJ$88:AJ90)-AJ$227*AJ$228,NA()) ->  | AK161: =IF(AK14>0,10^SUM(AK$88:AK90)-AK$227*AK$228,NA()) ->  | AL161: =IF(AL14>0,10^SUM(AL$88:AL90)-AL$227*AL$228,NA()) ->  | AM161: =IF(AM14>0,10^SUM(AM$88:AM90)-AM$227*AM$228,NA()) ->  | AN161: =IF(AN14>0,10^SUM(AN$88:AN90)-AN$227*AN$228,NA()) ->  | AO161: =IF(AO14>0,10^SUM(AO$88:AO90)-AO$227*AO$228,NA()) ->  | AP161: 28
F162: 29 | G162: =IF(G15>0,10^SUM(G$88:G91)-G$227*G$228,NA()) ->  | H162: =IF(H15>0,10^SUM(H$88:H91)-H$227*H$228,NA()) ->  | I162: =IF(I15>0,10^SUM(I$88:I91)-I$227*I$228,NA()) ->  | J162: =IF(J15>0,10^SUM(J$88:J91)-J$227*J$228,NA()) ->  | K162: =IF(K15>0,10^SUM(K$88:K91)-K$227*K$228,NA()) ->  | L162: =IF(L15>0,10^SUM(L$88:L91)-L$227*L$228,NA()) ->  | M162: =IF(M15>0,10^SUM(M$88:M91)-M$227*M$228,NA()) ->  | N162: =IF(N15>0,10^SUM(N$88:N91)-N$227*N$228,NA()) ->  | O162: =IF(O15>0,10^SUM(O$88:O91)-O$227*O$228,NA()) ->  | P162: =IF(P15>0,10^SUM(P$88:P91)-P$227*P$228,NA()) ->  | Q162: =IF(Q15>0,10^SUM(Q$88:Q91)-Q$227*Q$228,NA()) ->  | R162: =IF(R15>0,10^SUM(R$88:R91)-R$227*R$228,NA()) ->  | S162: =IF(S15>0,10^SUM(S$88:S91)-S$227*S$228,NA()) ->  | T162: =IF(T15>0,10^SUM(T$88:T91)-T$227*T$228,NA()) ->  | U162: =IF(U15>0,10^SUM(U$88:U91)-U$227*U$228,NA()) ->  | V162: =IF(V15>0,10^SUM(V$88:V91)-V$227*V$228,NA()) ->  | W162: =IF(W15>0,10^SUM(W$88:W91)-W$227*W$228,NA()) ->  | X162: =IF(X15>0,10^SUM(X$88:X91)-X$227*X$228,NA()) ->  | Y162: =IF(Y15>0,10^SUM(Y$88:Y91)-Y$227*Y$228,NA()) ->  | Z162: =IF(Z15>0,10^SUM(Z$88:Z91)-Z$227*Z$228,NA()) ->  | AA162: =IF(AA15>0,10^SUM(AA$88:AA91)-AA$227*AA$228,NA()) ->  | AB162: =IF(AB15>0,10^SUM(AB$88:AB91)-AB$227*AB$228,NA()) ->  | AC162: =IF(AC15>0,10^SUM(AC$88:AC91)-AC$227*AC$228,NA()) ->  | AD162: =IF(AD15>0,10^SUM(AD$88:AD91)-AD$227*AD$228,NA()) ->  | AE162: =IF(AE15>0,10^SUM(AE$88:AE91)-AE$227*AE$228,NA()) ->  | AF162: =IF(AF15>0,10^SUM(AF$88:AF91)-AF$227*AF$228,NA()) ->  | AG162: =IF(AG15>0,10^SUM(AG$88:AG91)-AG$227*AG$228,NA()) ->  | AH162: =IF(AH15>0,10^SUM(AH$88:AH91)-AH$227*AH$228,NA()) ->  | AI162: =IF(AI15>0,10^SUM(AI$88:AI91)-AI$227*AI$228,NA()) ->  | AJ162: =IF(AJ15>0,10^SUM(AJ$88:AJ91)-AJ$227*AJ$228,NA()) ->  | AK162: =IF(AK15>0,10^SUM(AK$88:AK91)-AK$227*AK$228,NA()) ->  | AL162: =IF(AL15>0,10^SUM(AL$88:AL91)-AL$227*AL$228,NA()) ->  | AM162: =IF(AM15>0,10^SUM(AM$88:AM91)-AM$227*AM$228,NA()) ->  | AN162: =IF(AN15>0,10^SUM(AN$88:AN91)-AN$227*AN$228,NA()) ->  | AO162: =IF(AO15>0,10^SUM(AO$88:AO91)-AO$227*AO$228,NA()) ->  | AP162: 29
F163: 30 | G163: =IF(G16>0,10^SUM(G$88:G92)-G$227*G$228,NA()) ->  | H163: =IF(H16>0,10^SUM(H$88:H92)-H$227*H$228,NA()) ->  | I163: =IF(I16>0,10^SUM(I$88:I92)-I$227*I$228,NA()) ->  | J163: =IF(J16>0,10^SUM(J$88:J92)-J$227*J$228,NA()) ->  | K163: =IF(K16>0,10^SUM(K$88:K92)-K$227*K$228,NA()) ->  | L163: =IF(L16>0,10^SUM(L$88:L92)-L$227*L$228,NA()) ->  | M163: =IF(M16>0,10^SUM(M$88:M92)-M$227*M$228,NA()) ->  | N163: =IF(N16>0,10^SUM(N$88:N92)-N$227*N$228,NA()) ->  | O163: =IF(O16>0,10^SUM(O$88:O92)-O$227*O$228,NA()) ->  | P163: =IF(P16>0,10^SUM(P$88:P92)-P$227*P$228,NA()) ->  | Q163: =IF(Q16>0,10^SUM(Q$88:Q92)-Q$227*Q$228,NA()) ->  | R163: =IF(R16>0,10^SUM(R$88:R92)-R$227*R$228,NA()) ->  | S163: =IF(S16>0,10^SUM(S$88:S92)-S$227*S$228,NA()) ->  | T163: =IF(T16>0,10^SUM(T$88:T92)-T$227*T$228,NA()) ->  | U163: =IF(U16>0,10^SUM(U$88:U92)-U$227*U$228,NA()) ->  | V163: =IF(V16>0,10^SUM(V$88:V92)-V$227*V$228,NA()) ->  | W163: =IF(W16>0,10^SUM(W$88:W92)-W$227*W$228,NA()) ->  | X163: =IF(X16>0,10^SUM(X$88:X92)-X$227*X$228,NA()) ->  | Y163: =IF(Y16>0,10^SUM(Y$88:Y92)-Y$227*Y$228,NA()) ->  | Z163: =IF(Z16>0,10^SUM(Z$88:Z92)-Z$227*Z$228,NA()) ->  | AA163: =IF(AA16>0,10^SUM(AA$88:AA92)-AA$227*AA$228,NA()) ->  | AB163: =IF(AB16>0,10^SUM(AB$88:AB92)-AB$227*AB$228,NA()) ->  | AC163: =IF(AC16>0,10^SUM(AC$88:AC92)-AC$227*AC$228,NA()) ->  | AD163: =IF(AD16>0,10^SUM(AD$88:AD92)-AD$227*AD$228,NA()) ->  | AE163: =IF(AE16>0,10^SUM(AE$88:AE92)-AE$227*AE$228,NA()) ->  | AF163: =IF(AF16>0,10^SUM(AF$88:AF92)-AF$227*AF$228,NA()) ->  | AG163: =IF(AG16>0,10^SUM(AG$88:AG92)-AG$227*AG$228,NA()) ->  | AH163: =IF(AH16>0,10^SUM(AH$88:AH92)-AH$227*AH$228,NA()) ->  | AI163: =IF(AI16>0,10^SUM(AI$88:AI92)-AI$227*AI$228,NA()) ->  | AJ163: =IF(AJ16>0,10^SUM(AJ$88:AJ92)-AJ$227*AJ$228,NA()) ->  | AK163: =IF(AK16>0,10^SUM(AK$88:AK92)-AK$227*AK$228,NA()) ->  | AL163: =IF(AL16>0,10^SUM(AL$88:AL92)-AL$227*AL$228,NA()) ->  | AM163: =IF(AM16>0,10^SUM(AM$88:AM92)-AM$227*AM$228,NA()) ->  | AN163: =IF(AN16>0,10^SUM(AN$88:AN92)-AN$227*AN$228,NA()) ->  | AO163: =IF(AO16>0,10^SUM(AO$88:AO92)-AO$227*AO$228,NA()) ->  | AP163: 30
F164: 31 | G164: =IF(G17>0,10^SUM(G$88:G93)-G$227*G$228,NA()) ->  | H164: =IF(H17>0,10^SUM(H$88:H93)-H$227*H$228,NA()) ->  | I164: =IF(I17>0,10^SUM(I$88:I93)-I$227*I$228,NA()) ->  | J164: =IF(J17>0,10^SUM(J$88:J93)-J$227*J$228,NA()) ->  | K164: =IF(K17>0,10^SUM(K$88:K93)-K$227*K$228,NA()) ->  | L164: =IF(L17>0,10^SUM(L$88:L93)-L$227*L$228,NA()) ->  | M164: =IF(M17>0,10^SUM(M$88:M93)-M$227*M$228,NA()) ->  | N164: =IF(N17>0,10^SUM(N$88:N93)-N$227*N$228,NA()) ->  | O164: =IF(O17>0,10^SUM(O$88:O93)-O$227*O$228,NA()) ->  | P164: =IF(P17>0,10^SUM(P$88:P93)-P$227*P$228,NA()) ->  | Q164: =IF(Q17>0,10^SUM(Q$88:Q93)-Q$227*Q$228,NA()) ->  | R164: =IF(R17>0,10^SUM(R$88:R93)-R$227*R$228,NA()) ->  | S164: =IF(S17>0,10^SUM(S$88:S93)-S$227*S$228,NA()) ->  | T164: =IF(T17>0,10^SUM(T$88:T93)-T$227*T$228,NA()) ->  | U164: =IF(U17>0,10^SUM(U$88:U93)-U$227*U$228,NA()) ->  | V164: =IF(V17>0,10^SUM(V$88:V93)-V$227*V$228,NA()) ->  | W164: =IF(W17>0,10^SUM(W$88:W93)-W$227*W$228,NA()) ->  | X164: =IF(X17>0,10^SUM(X$88:X93)-X$227*X$228,NA()) ->  | Y164: =IF(Y17>0,10^SUM(Y$88:Y93)-Y$227*Y$228,NA()) ->  | Z164: =IF(Z17>0,10^SUM(Z$88:Z93)-Z$227*Z$228,NA()) ->  | AA164: =IF(AA17>0,10^SUM(AA$88:AA93)-AA$227*AA$228,NA()) ->  | AB164: =IF(AB17>0,10^SUM(AB$88:AB93)-AB$227*AB$228,NA()) ->  | AC164: =IF(AC17>0,10^SUM(AC$88:AC93)-AC$227*AC$228,NA()) ->  | AD164: =IF(AD17>0,10^SUM(AD$88:AD93)-AD$227*AD$228,NA()) ->  | AE164: =IF(AE17>0,10^SUM(AE$88:AE93)-AE$227*AE$228,NA()) ->  | AF164: =IF(AF17>0,10^SUM(AF$88:AF93)-AF$227*AF$228,NA()) ->  | AG164: =IF(AG17>0,10^SUM(AG$88:AG93)-AG$227*AG$228,NA()) ->  | AH164: =IF(AH17>0,10^SUM(AH$88:AH93)-AH$227*AH$228,NA()) ->  | AI164: =IF(AI17>0,10^SUM(AI$88:AI93)-AI$227*AI$228,NA()) ->  | AJ164: =IF(AJ17>0,10^SUM(AJ$88:AJ93)-AJ$227*AJ$228,NA()) ->  | AK164: =IF(AK17>0,10^SUM(AK$88:AK93)-AK$227*AK$228,NA()) ->  | AL164: =IF(AL17>0,10^SUM(AL$88:AL93)-AL$227*AL$228,NA()) ->  | AM164: =IF(AM17>0,10^SUM(AM$88:AM93)-AM$227*AM$228,NA()) ->  | AN164: =IF(AN17>0,10^SUM(AN$88:AN93)-AN$227*AN$228,NA()) ->  | AO164: =IF(AO17>0,10^SUM(AO$88:AO93)-AO$227*AO$228,NA()) ->  | AP164: 31
F165: 32 | G165: =IF(G18>0,10^SUM(G$88:G94)-G$227*G$228,NA()) ->  | H165: =IF(H18>0,10^SUM(H$88:H94)-H$227*H$228,NA()) ->  | I165: =IF(I18>0,10^SUM(I$88:I94)-I$227*I$228,NA()) ->  | J165: =IF(J18>0,10^SUM(J$88:J94)-J$227*J$228,NA()) ->  | K165: =IF(K18>0,10^SUM(K$88:K94)-K$227*K$228,NA()) ->  | L165: =IF(L18>0,10^SUM(L$88:L94)-L$227*L$228,NA()) ->  | M165: =IF(M18>0,10^SUM(M$88:M94)-M$227*M$228,NA()) ->  | N165: =IF(N18>0,10^SUM(N$88:N94)-N$227*N$228,NA()) ->  | O165: =IF(O18>0,10^SUM(O$88:O94)-O$227*O$228,NA()) ->  | P165: =IF(P18>0,10^SUM(P$88:P94)-P$227*P$228,NA()) ->  | Q165: =IF(Q18>0,10^SUM(Q$88:Q94)-Q$227*Q$228,NA()) ->  | R165: =IF(R18>0,10^SUM(R$88:R94)-R$227*R$228,NA()) ->  | S165: =IF(S18>0,10^SUM(S$88:S94)-S$227*S$228,NA()) ->  | T165: =IF(T18>0,10^SUM(T$88:T94)-T$227*T$228,NA()) ->  | U165: =IF(U18>0,10^SUM(U$88:U94)-U$227*U$228,NA()) ->  | V165: =IF(V18>0,10^SUM(V$88:V94)-V$227*V$228,NA()) ->  | W165: =IF(W18>0,10^SUM(W$88:W94)-W$227*W$228,NA()) ->  | X165: =IF(X18>0,10^SUM(X$88:X94)-X$227*X$228,NA()) ->  | Y165: =IF(Y18>0,10^SUM(Y$88:Y94)-Y$227*Y$228,NA()) ->  | Z165: =IF(Z18>0,10^SUM(Z$88:Z94)-Z$227*Z$228,NA()) ->  | AA165: =IF(AA18>0,10^SUM(AA$88:AA94)-AA$227*AA$228,NA()) ->  | AB165: =IF(AB18>0,10^SUM(AB$88:AB94)-AB$227*AB$228,NA()) ->  | AC165: =IF(AC18>0,10^SUM(AC$88:AC94)-AC$227*AC$228,NA()) ->  | AD165: =IF(AD18>0,10^SUM(AD$88:AD94)-AD$227*AD$228,NA()) ->  | AE165: =IF(AE18>0,10^SUM(AE$88:AE94)-AE$227*AE$228,NA()) ->  | AF165: =IF(AF18>0,10^SUM(AF$88:AF94)-AF$227*AF$228,NA()) ->  | AG165: =IF(AG18>0,10^SUM(AG$88:AG94)-AG$227*AG$228,NA()) ->  | AH165: =IF(AH18>0,10^SUM(AH$88:AH94)-AH$227*AH$228,NA()) ->  | AI165: =IF(AI18>0,10^SUM(AI$88:AI94)-AI$227*AI$228,NA()) ->  | AJ165: =IF(AJ18>0,10^SUM(AJ$88:AJ94)-AJ$227*AJ$228,NA()) ->  | AK165: =IF(AK18>0,10^SUM(AK$88:AK94)-AK$227*AK$228,NA()) ->  | AL165: =IF(AL18>0,10^SUM(AL$88:AL94)-AL$227*AL$228,NA()) ->  | AM165: =IF(AM18>0,10^SUM(AM$88:AM94)-AM$227*AM$228,NA()) ->  | AN165: =IF(AN18>0,10^SUM(AN$88:AN94)-AN$227*AN$228,NA()) ->  | AO165: =IF(AO18>0,10^SUM(AO$88:AO94)-AO$227*AO$228,NA()) ->  | AP165: 32
F166: 33 | G166: =IF(G19>0,10^SUM(G$88:G95)-G$227*G$228,NA()) ->  | H166: =IF(H19>0,10^SUM(H$88:H95)-H$227*H$228,NA()) ->  | I166: =IF(I19>0,10^SUM(I$88:I95)-I$227*I$228,NA()) ->  | J166: =IF(J19>0,10^SUM(J$88:J95)-J$227*J$228,NA()) ->  | K166: =IF(K19>0,10^SUM(K$88:K95)-K$227*K$228,NA()) ->  | L166: =IF(L19>0,10^SUM(L$88:L95)-L$227*L$228,NA()) ->  | M166: =IF(M19>0,10^SUM(M$88:M95)-M$227*M$228,NA()) ->  | N166: =IF(N19>0,10^SUM(N$88:N95)-N$227*N$228,NA()) ->  | O166: =IF(O19>0,10^SUM(O$88:O95)-O$227*O$228,NA()) ->  | P166: =IF(P19>0,10^SUM(P$88:P95)-P$227*P$228,NA()) ->  | Q166: =IF(Q19>0,10^SUM(Q$88:Q95)-Q$227*Q$228,NA()) ->  | R166: =IF(R19>0,10^SUM(R$88:R95)-R$227*R$228,NA()) ->  | S166: =IF(S19>0,10^SUM(S$88:S95)-S$227*S$228,NA()) ->  | T166: =IF(T19>0,10^SUM(T$88:T95)-T$227*T$228,NA()) ->  | U166: =IF(U19>0,10^SUM(U$88:U95)-U$227*U$228,NA()) ->  | V166: =IF(V19>0,10^SUM(V$88:V95)-V$227*V$228,NA()) ->  | W166: =IF(W19>0,10^SUM(W$88:W95)-W$227*W$228,NA()) ->  | X166: =IF(X19>0,10^SUM(X$88:X95)-X$227*X$228,NA()) ->  | Y166: =IF(Y19>0,10^SUM(Y$88:Y95)-Y$227*Y$228,NA()) ->  | Z166: =IF(Z19>0,10^SUM(Z$88:Z95)-Z$227*Z$228,NA()) ->  | AA166: =IF(AA19>0,10^SUM(AA$88:AA95)-AA$227*AA$228,NA()) ->  | AB166: =IF(AB19>0,10^SUM(AB$88:AB95)-AB$227*AB$228,NA()) ->  | AC166: =IF(AC19>0,10^SUM(AC$88:AC95)-AC$227*AC$228,NA()) ->  | AD166: =IF(AD19>0,10^SUM(AD$88:AD95)-AD$227*AD$228,NA()) ->  | AE166: =IF(AE19>0,10^SUM(AE$88:AE95)-AE$227*AE$228,NA()) ->  | AF166: =IF(AF19>0,10^SUM(AF$88:AF95)-AF$227*AF$228,NA()) ->  | AG166: =IF(AG19>0,10^SUM(AG$88:AG95)-AG$227*AG$228,NA()) ->  | AH166: =IF(AH19>0,10^SUM(AH$88:AH95)-AH$227*AH$228,NA()) ->  | AI166: =IF(AI19>0,10^SUM(AI$88:AI95)-AI$227*AI$228,NA()) ->  | AJ166: =IF(AJ19>0,10^SUM(AJ$88:AJ95)-AJ$227*AJ$228,NA()) ->  | AK166: =IF(AK19>0,10^SUM(AK$88:AK95)-AK$227*AK$228,NA()) ->  | AL166: =IF(AL19>0,10^SUM(AL$88:AL95)-AL$227*AL$228,NA()) ->  | AM166: =IF(AM19>0,10^SUM(AM$88:AM95)-AM$227*AM$228,NA()) ->  | AN166: =IF(AN19>0,10^SUM(AN$88:AN95)-AN$227*AN$228,NA()) ->  | AO166: =IF(AO19>0,10^SUM(AO$88:AO95)-AO$227*AO$228,NA()) ->  | AP166: 33
F167: 34 | G167: =IF(G20>0,10^SUM(G$88:G96)-G$227*G$228,NA()) ->  | H167: =IF(H20>0,10^SUM(H$88:H96)-H$227*H$228,NA()) ->  | I167: =IF(I20>0,10^SUM(I$88:I96)-I$227*I$228,NA()) ->  | J167: =IF(J20>0,10^SUM(J$88:J96)-J$227*J$228,NA()) ->  | K167: =IF(K20>0,10^SUM(K$88:K96)-K$227*K$228,NA()) ->  | L167: =IF(L20>0,10^SUM(L$88:L96)-L$227*L$228,NA()) ->  | M167: =IF(M20>0,10^SUM(M$88:M96)-M$227*M$228,NA()) ->  | N167: =IF(N20>0,10^SUM(N$88:N96)-N$227*N$228,NA()) ->  | O167: =IF(O20>0,10^SUM(O$88:O96)-O$227*O$228,NA()) ->  | P167: =IF(P20>0,10^SUM(P$88:P96)-P$227*P$228,NA()) ->  | Q167: =IF(Q20>0,10^SUM(Q$88:Q96)-Q$227*Q$228,NA()) ->  | R167: =IF(R20>0,10^SUM(R$88:R96)-R$227*R$228,NA()) ->  | S167: =IF(S20>0,10^SUM(S$88:S96)-S$227*S$228,NA()) ->  | T167: =IF(T20>0,10^SUM(T$88:T96)-T$227*T$228,NA()) ->  | U167: =IF(U20>0,10^SUM(U$88:U96)-U$227*U$228,NA()) ->  | V167: =IF(V20>0,10^SUM(V$88:V96)-V$227*V$228,NA()) ->  | W167: =IF(W20>0,10^SUM(W$88:W96)-W$227*W$228,NA()) ->  | X167: =IF(X20>0,10^SUM(X$88:X96)-X$227*X$228,NA()) ->  | Y167: =IF(Y20>0,10^SUM(Y$88:Y96)-Y$227*Y$228,NA()) ->  | Z167: =IF(Z20>0,10^SUM(Z$88:Z96)-Z$227*Z$228,NA()) ->  | AA167: =IF(AA20>0,10^SUM(AA$88:AA96)-AA$227*AA$228,NA()) ->  | AB167: =IF(AB20>0,10^SUM(AB$88:AB96)-AB$227*AB$228,NA()) ->  | AC167: =IF(AC20>0,10^SUM(AC$88:AC96)-AC$227*AC$228,NA()) ->  | AD167: =IF(AD20>0,10^SUM(AD$88:AD96)-AD$227*AD$228,NA()) ->  | AE167: =IF(AE20>0,10^SUM(AE$88:AE96)-AE$227*AE$228,NA()) ->  | AF167: =IF(AF20>0,10^SUM(AF$88:AF96)-AF$227*AF$228,NA()) ->  | AG167: =IF(AG20>0,10^SUM(AG$88:AG96)-AG$227*AG$228,NA()) ->  | AH167: =IF(AH20>0,10^SUM(AH$88:AH96)-AH$227*AH$228,NA()) ->  | AI167: =IF(AI20>0,10^SUM(AI$88:AI96)-AI$227*AI$228,NA()) ->  | AJ167: =IF(AJ20>0,10^SUM(AJ$88:AJ96)-AJ$227*AJ$228,NA()) ->  | AK167: =IF(AK20>0,10^SUM(AK$88:AK96)-AK$227*AK$228,NA()) ->  | AL167: =IF(AL20>0,10^SUM(AL$88:AL96)-AL$227*AL$228,NA()) ->  | AM167: =IF(AM20>0,10^SUM(AM$88:AM96)-AM$227*AM$228,NA()) ->  | AN167: =IF(AN20>0,10^SUM(AN$88:AN96)-AN$227*AN$228,NA()) ->  | AO167: =IF(AO20>0,10^SUM(AO$88:AO96)-AO$227*AO$228,NA()) ->  | AP167: 34
F168: 35 | G168: =IF(G21>0,10^SUM(G$88:G97)-G$227*G$228,NA()) ->  | H168: =IF(H21>0,10^SUM(H$88:H97)-H$227*H$228,NA()) ->  | I168: =IF(I21>0,10^SUM(I$88:I97)-I$227*I$228,NA()) ->  | J168: =IF(J21>0,10^SUM(J$88:J97)-J$227*J$228,NA()) ->  | K168: =IF(K21>0,10^SUM(K$88:K97)-K$227*K$228,NA()) ->  | L168: =IF(L21>0,10^SUM(L$88:L97)-L$227*L$228,NA()) ->  | M168: =IF(M21>0,10^SUM(M$88:M97)-M$227*M$228,NA()) ->  | N168: =IF(N21>0,10^SUM(N$88:N97)-N$227*N$228,NA()) ->  | O168: =IF(O21>0,10^SUM(O$88:O97)-O$227*O$228,NA()) ->  | P168: =IF(P21>0,10^SUM(P$88:P97)-P$227*P$228,NA()) ->  | Q168: =IF(Q21>0,10^SUM(Q$88:Q97)-Q$227*Q$228,NA()) ->  | R168: =IF(R21>0,10^SUM(R$88:R97)-R$227*R$228,NA()) ->  | S168: =IF(S21>0,10^SUM(S$88:S97)-S$227*S$228,NA()) ->  | T168: =IF(T21>0,10^SUM(T$88:T97)-T$227*T$228,NA()) ->  | U168: =IF(U21>0,10^SUM(U$88:U97)-U$227*U$228,NA()) ->  | V168: =IF(V21>0,10^SUM(V$88:V97)-V$227*V$228,NA()) ->  | W168: =IF(W21>0,10^SUM(W$88:W97)-W$227*W$228,NA()) ->  | X168: =IF(X21>0,10^SUM(X$88:X97)-X$227*X$228,NA()) ->  | Y168: =IF(Y21>0,10^SUM(Y$88:Y97)-Y$227*Y$228,NA()) ->  | Z168: =IF(Z21>0,10^SUM(Z$88:Z97)-Z$227*Z$228,NA()) ->  | AA168: =IF(AA21>0,10^SUM(AA$88:AA97)-AA$227*AA$228,NA()) ->  | AB168: =IF(AB21>0,10^SUM(AB$88:AB97)-AB$227*AB$228,NA()) ->  | AC168: =IF(AC21>0,10^SUM(AC$88:AC97)-AC$227*AC$228,NA()) ->  | AD168: =IF(AD21>0,10^SUM(AD$88:AD97)-AD$227*AD$228,NA()) ->  | AE168: =IF(AE21>0,10^SUM(AE$88:AE97)-AE$227*AE$228,NA()) ->  | AF168: =IF(AF21>0,10^SUM(AF$88:AF97)-AF$227*AF$228,NA()) ->  | AG168: =IF(AG21>0,10^SUM(AG$88:AG97)-AG$227*AG$228,NA()) ->  | AH168: =IF(AH21>0,10^SUM(AH$88:AH97)-AH$227*AH$228,NA()) ->  | AI168: =IF(AI21>0,10^SUM(AI$88:AI97)-AI$227*AI$228,NA()) ->  | AJ168: =IF(AJ21>0,10^SUM(AJ$88:AJ97)-AJ$227*AJ$228,NA()) ->  | AK168: =IF(AK21>0,10^SUM(AK$88:AK97)-AK$227*AK$228,NA()) ->  | AL168: =IF(AL21>0,10^SUM(AL$88:AL97)-AL$227*AL$228,NA()) ->  | AM168: =IF(AM21>0,10^SUM(AM$88:AM97)-AM$227*AM$228,NA()) ->  | AN168: =IF(AN21>0,10^SUM(AN$88:AN97)-AN$227*AN$228,NA()) ->  | AO168: =IF(AO21>0,10^SUM(AO$88:AO97)-AO$227*AO$228,NA()) ->  | AP168: 35
F169: 36 | G169: =IF(G22>0,10^SUM(G$88:G98)-G$227*G$228,NA()) ->  | H169: =IF(H22>0,10^SUM(H$88:H98)-H$227*H$228,NA()) ->  | I169: =IF(I22>0,10^SUM(I$88:I98)-I$227*I$228,NA()) ->  | J169: =IF(J22>0,10^SUM(J$88:J98)-J$227*J$228,NA()) ->  | K169: =IF(K22>0,10^SUM(K$88:K98)-K$227*K$228,NA()) ->  | L169: =IF(L22>0,10^SUM(L$88:L98)-L$227*L$228,NA()) ->  | M169: =IF(M22>0,10^SUM(M$88:M98)-M$227*M$228,NA()) ->  | N169: =IF(N22>0,10^SUM(N$88:N98)-N$227*N$228,NA()) ->  | O169: =IF(O22>0,10^SUM(O$88:O98)-O$227*O$228,NA()) ->  | P169: =IF(P22>0,10^SUM(P$88:P98)-P$227*P$228,NA()) ->  | Q169: =IF(Q22>0,10^SUM(Q$88:Q98)-Q$227*Q$228,NA()) ->  | R169: =IF(R22>0,10^SUM(R$88:R98)-R$227*R$228,NA()) ->  | S169: =IF(S22>0,10^SUM(S$88:S98)-S$227*S$228,NA()) ->  | T169: =IF(T22>0,10^SUM(T$88:T98)-T$227*T$228,NA()) ->  | U169: =IF(U22>0,10^SUM(U$88:U98)-U$227*U$228,NA()) ->  | V169: =IF(V22>0,10^SUM(V$88:V98)-V$227*V$228,NA()) ->  | W169: =IF(W22>0,10^SUM(W$88:W98)-W$227*W$228,NA()) ->  | X169: =IF(X22>0,10^SUM(X$88:X98)-X$227*X$228,NA()) ->  | Y169: =IF(Y22>0,10^SUM(Y$88:Y98)-Y$227*Y$228,NA()) ->  | Z169: =IF(Z22>0,10^SUM(Z$88:Z98)-Z$227*Z$228,NA()) ->  | AA169: =IF(AA22>0,10^SUM(AA$88:AA98)-AA$227*AA$228,NA()) ->  | AB169: =IF(AB22>0,10^SUM(AB$88:AB98)-AB$227*AB$228,NA()) ->  | AC169: =IF(AC22>0,10^SUM(AC$88:AC98)-AC$227*AC$228,NA()) ->  | AD169: =IF(AD22>0,10^SUM(AD$88:AD98)-AD$227*AD$228,NA()) ->  | AE169: =IF(AE22>0,10^SUM(AE$88:AE98)-AE$227*AE$228,NA()) ->  | AF169: =IF(AF22>0,10^SUM(AF$88:AF98)-AF$227*AF$228,NA()) ->  | AG169: =IF(AG22>0,10^SUM(AG$88:AG98)-AG$227*AG$228,NA()) ->  | AH169: =IF(AH22>0,10^SUM(AH$88:AH98)-AH$227*AH$228,NA()) ->  | AI169: =IF(AI22>0,10^SUM(AI$88:AI98)-AI$227*AI$228,NA()) ->  | AJ169: =IF(AJ22>0,10^SUM(AJ$88:AJ98)-AJ$227*AJ$228,NA()) ->  | AK169: =IF(AK22>0,10^SUM(AK$88:AK98)-AK$227*AK$228,NA()) ->  | AL169: =IF(AL22>0,10^SUM(AL$88:AL98)-AL$227*AL$228,NA()) ->  | AM169: =IF(AM22>0,10^SUM(AM$88:AM98)-AM$227*AM$228,NA()) ->  | AN169: =IF(AN22>0,10^SUM(AN$88:AN98)-AN$227*AN$228,NA()) ->  | AO169: =IF(AO22>0,10^SUM(AO$88:AO98)-AO$227*AO$228,NA()) ->  | AP169: 36
F170: 37 | G170: =IF(G23>0,10^SUM(G$88:G99)-G$227*G$228,NA()) ->  | H170: =IF(H23>0,10^SUM(H$88:H99)-H$227*H$228,NA()) ->  | I170: =IF(I23>0,10^SUM(I$88:I99)-I$227*I$228,NA()) ->  | J170: =IF(J23>0,10^SUM(J$88:J99)-J$227*J$228,NA()) ->  | K170: =IF(K23>0,10^SUM(K$88:K99)-K$227*K$228,NA()) ->  | L170: =IF(L23>0,10^SUM(L$88:L99)-L$227*L$228,NA()) ->  | M170: =IF(M23>0,10^SUM(M$88:M99)-M$227*M$228,NA()) ->  | N170: =IF(N23>0,10^SUM(N$88:N99)-N$227*N$228,NA()) ->  | O170: =IF(O23>0,10^SUM(O$88:O99)-O$227*O$228,NA()) ->  | P170: =IF(P23>0,10^SUM(P$88:P99)-P$227*P$228,NA()) ->  | Q170: =IF(Q23>0,10^SUM(Q$88:Q99)-Q$227*Q$228,NA()) ->  | R170: =IF(R23>0,10^SUM(R$88:R99)-R$227*R$228,NA()) ->  | S170: =IF(S23>0,10^SUM(S$88:S99)-S$227*S$228,NA()) ->  | T170: =IF(T23>0,10^SUM(T$88:T99)-T$227*T$228,NA()) ->  | U170: =IF(U23>0,10^SUM(U$88:U99)-U$227*U$228,NA()) ->  | V170: =IF(V23>0,10^SUM(V$88:V99)-V$227*V$228,NA()) ->  | W170: =IF(W23>0,10^SUM(W$88:W99)-W$227*W$228,NA()) ->  | X170: =IF(X23>0,10^SUM(X$88:X99)-X$227*X$228,NA()) ->  | Y170: =IF(Y23>0,10^SUM(Y$88:Y99)-Y$227*Y$228,NA()) ->  | Z170: =IF(Z23>0,10^SUM(Z$88:Z99)-Z$227*Z$228,NA()) ->  | AA170: =IF(AA23>0,10^SUM(AA$88:AA99)-AA$227*AA$228,NA()) ->  | AB170: =IF(AB23>0,10^SUM(AB$88:AB99)-AB$227*AB$228,NA()) ->  | AC170: =IF(AC23>0,10^SUM(AC$88:AC99)-AC$227*AC$228,NA()) ->  | AD170: =IF(AD23>0,10^SUM(AD$88:AD99)-AD$227*AD$228,NA()) ->  | AE170: =IF(AE23>0,10^SUM(AE$88:AE99)-AE$227*AE$228,NA()) ->  | AF170: =IF(AF23>0,10^SUM(AF$88:AF99)-AF$227*AF$228,NA()) ->  | AG170: =IF(AG23>0,10^SUM(AG$88:AG99)-AG$227*AG$228,NA()) ->  | AH170: =IF(AH23>0,10^SUM(AH$88:AH99)-AH$227*AH$228,NA()) ->  | AI170: =IF(AI23>0,10^SUM(AI$88:AI99)-AI$227*AI$228,NA()) ->  | AJ170: =IF(AJ23>0,10^SUM(AJ$88:AJ99)-AJ$227*AJ$228,NA()) ->  | AK170: =IF(AK23>0,10^SUM(AK$88:AK99)-AK$227*AK$228,NA()) ->  | AL170: =IF(AL23>0,10^SUM(AL$88:AL99)-AL$227*AL$228,NA()) ->  | AM170: =IF(AM23>0,10^SUM(AM$88:AM99)-AM$227*AM$228,NA()) ->  | AN170: =IF(AN23>0,10^SUM(AN$88:AN99)-AN$227*AN$228,NA()) ->  | AO170: =IF(AO23>0,10^SUM(AO$88:AO99)-AO$227*AO$228,NA()) ->  | AP170: 37
F171: 38 | G171: =IF(G24>0,10^SUM(G$88:G100)-G$227*G$228,NA()) ->  | H171: =IF(H24>0,10^SUM(H$88:H100)-H$227*H$228,NA()) ->  | I171: =IF(I24>0,10^SUM(I$88:I100)-I$227*I$228,NA()) ->  | J171: =IF(J24>0,10^SUM(J$88:J100)-J$227*J$228,NA()) ->  | K171: =IF(K24>0,10^SUM(K$88:K100)-K$227*K$228,NA()) ->  | L171: =IF(L24>0,10^SUM(L$88:L100)-L$227*L$228,NA()) ->  | M171: =IF(M24>0,10^SUM(M$88:M100)-M$227*M$228,NA()) ->  | N171: =IF(N24>0,10^SUM(N$88:N100)-N$227*N$228,NA()) ->  | O171: =IF(O24>0,10^SUM(O$88:O100)-O$227*O$228,NA()) ->  | P171: =IF(P24>0,10^SUM(P$88:P100)-P$227*P$228,NA()) ->  | Q171: =IF(Q24>0,10^SUM(Q$88:Q100)-Q$227*Q$228,NA()) ->  | R171: =IF(R24>0,10^SUM(R$88:R100)-R$227*R$228,NA()) ->  | S171: =IF(S24>0,10^SUM(S$88:S100)-S$227*S$228,NA()) ->  | T171: =IF(T24>0,10^SUM(T$88:T100)-T$227*T$228,NA()) ->  | U171: =IF(U24>0,10^SUM(U$88:U100)-U$227*U$228,NA()) ->  | V171: =IF(V24>0,10^SUM(V$88:V100)-V$227*V$228,NA()) ->  | W171: =IF(W24>0,10^SUM(W$88:W100)-W$227*W$228,NA()) ->  | X171: =IF(X24>0,10^SUM(X$88:X100)-X$227*X$228,NA()) ->  | Y171: =IF(Y24>0,10^SUM(Y$88:Y100)-Y$227*Y$228,NA()) ->  | Z171: =IF(Z24>0,10^SUM(Z$88:Z100)-Z$227*Z$228,NA()) ->  | AA171: =IF(AA24>0,10^SUM(AA$88:AA100)-AA$227*AA$228,NA()) ->  | AB171: =IF(AB24>0,10^SUM(AB$88:AB100)-AB$227*AB$228,NA()) ->  | AC171: =IF(AC24>0,10^SUM(AC$88:AC100)-AC$227*AC$228,NA()) ->  | AD171: =IF(AD24>0,10^SUM(AD$88:AD100)-AD$227*AD$228,NA()) -> 1.0 | AE171: =IF(AE24>0,10^SUM(AE$88:AE100)-AE$227*AE$228,NA()) -> 1.0 | AF171: =IF(AF24>0,10^SUM(AF$88:AF100)-AF$227*AF$228,NA()) -> 1.0 | AG171: =IF(AG24>0,10^SUM(AG$88:AG100)-AG$227*AG$228,NA()) -> 1.0 | AH171: =IF(AH24>0,10^SUM(AH$88:AH100)-AH$227*AH$228,NA()) -> 1.0 | AI171: =IF(AI24>0,10^SUM(AI$88:AI100)-AI$227*AI$228,NA()) -> 1.0 | AJ171: =IF(AJ24>0,10^SUM(AJ$88:AJ100)-AJ$227*AJ$228,NA()) -> 1.0 | AK171: =IF(AK24>0,10^SUM(AK$88:AK100)-AK$227*AK$228,NA()) ->  | AL171: =IF(AL24>0,10^SUM(AL$88:AL100)-AL$227*AL$228,NA()) ->  | AM171: =IF(AM24>0,10^SUM(AM$88:AM100)-AM$227*AM$228,NA()) ->  | AN171: =IF(AN24>0,10^SUM(AN$88:AN100)-AN$227*AN$228,NA()) ->  | AO171: =IF(AO24>0,10^SUM(AO$88:AO100)-AO$227*AO$228,NA()) ->  | AP171: 38
F172: 39 | G172: =IF(G25>0,10^SUM(G$88:G101)-G$227*G$228,NA()) ->  | H172: =IF(H25>0,10^SUM(H$88:H101)-H$227*H$228,NA()) ->  | I172: =IF(I25>0,10^SUM(I$88:I101)-I$227*I$228,NA()) ->  | J172: =IF(J25>0,10^SUM(J$88:J101)-J$227*J$228,NA()) ->  | K172: =IF(K25>0,10^SUM(K$88:K101)-K$227*K$228,NA()) ->  | L172: =IF(L25>0,10^SUM(L$88:L101)-L$227*L$228,NA()) ->  | M172: =IF(M25>0,10^SUM(M$88:M101)-M$227*M$228,NA()) ->  | N172: =IF(N25>0,10^SUM(N$88:N101)-N$227*N$228,NA()) ->  | O172: =IF(O25>0,10^SUM(O$88:O101)-O$227*O$228,NA()) ->  | P172: =IF(P25>0,10^SUM(P$88:P101)-P$227*P$228,NA()) ->  | Q172: =IF(Q25>0,10^SUM(Q$88:Q101)-Q$227*Q$228,NA()) ->  | R172: =IF(R25>0,10^SUM(R$88:R101)-R$227*R$228,NA()) ->  | S172: =IF(S25>0,10^SUM(S$88:S101)-S$227*S$228,NA()) ->  | T172: =IF(T25>0,10^SUM(T$88:T101)-T$227*T$228,NA()) ->  | U172: =IF(U25>0,10^SUM(U$88:U101)-U$227*U$228,NA()) ->  | V172: =IF(V25>0,10^SUM(V$88:V101)-V$227*V$228,NA()) ->  | W172: =IF(W25>0,10^SUM(W$88:W101)-W$227*W$228,NA()) ->  | X172: =IF(X25>0,10^SUM(X$88:X101)-X$227*X$228,NA()) ->  | Y172: =IF(Y25>0,10^SUM(Y$88:Y101)-Y$227*Y$228,NA()) ->  | Z172: =IF(Z25>0,10^SUM(Z$88:Z101)-Z$227*Z$228,NA()) ->  | AA172: =IF(AA25>0,10^SUM(AA$88:AA101)-AA$227*AA$228,NA()) -> 1.0 | AB172: =IF(AB25>0,10^SUM(AB$88:AB101)-AB$227*AB$228,NA()) -> 1.0 | AC172: =IF(AC25>0,10^SUM(AC$88:AC101)-AC$227*AC$228,NA()) -> 1.0 | AD172: =IF(AD25>0,10^SUM(AD$88:AD101)-AD$227*AD$228,NA()) -> 1.0 | AE172: =IF(AE25>0,10^SUM(AE$88:AE101)-AE$227*AE$228,NA()) -> 1.0 | AF172: =IF(AF25>0,10^SUM(AF$88:AF101)-AF$227*AF$228,NA()) -> 1.0 | AG172: =IF(AG25>0,10^SUM(AG$88:AG101)-AG$227*AG$228,NA()) -> 1.0 | AH172: =IF(AH25>0,10^SUM(AH$88:AH101)-AH$227*AH$228,NA()) -> 1.0 | AI172: =IF(AI25>0,10^SUM(AI$88:AI101)-AI$227*AI$228,NA()) -> 1.0 | AJ172: =IF(AJ25>0,10^SUM(AJ$88:AJ101)-AJ$227*AJ$228,NA()) -> 1.0 | AK172: =IF(AK25>0,10^SUM(AK$88:AK101)-AK$227*AK$228,NA()) ->  | AL172: =IF(AL25>0,10^SUM(AL$88:AL101)-AL$227*AL$228,NA()) ->  | AM172: =IF(AM25>0,10^SUM(AM$88:AM101)-AM$227*AM$228,NA()) ->  | AN172: =IF(AN25>0,10^SUM(AN$88:AN101)-AN$227*AN$228,NA()) ->  | AO172: =IF(AO25>0,10^SUM(AO$88:AO101)-AO$227*AO$228,NA()) ->  | AP172: 39
F173: 40 | G173: =IF(G26>0,10^SUM(G$88:G102)-G$227*G$228,NA()) ->  | H173: =IF(H26>0,10^SUM(H$88:H102)-H$227*H$228,NA()) ->  | I173: =IF(I26>0,10^SUM(I$88:I102)-I$227*I$228,NA()) ->  | J173: =IF(J26>0,10^SUM(J$88:J102)-J$227*J$228,NA()) ->  | K173: =IF(K26>0,10^SUM(K$88:K102)-K$227*K$228,NA()) ->  | L173: =IF(L26>0,10^SUM(L$88:L102)-L$227*L$228,NA()) ->  | M173: =IF(M26>0,10^SUM(M$88:M102)-M$227*M$228,NA()) ->  | N173: =IF(N26>0,10^SUM(N$88:N102)-N$227*N$228,NA()) ->  | O173: =IF(O26>0,10^SUM(O$88:O102)-O$227*O$228,NA()) ->  | P173: =IF(P26>0,10^SUM(P$88:P102)-P$227*P$228,NA()) -> 1.0 | Q173: =IF(Q26>0,10^SUM(Q$88:Q102)-Q$227*Q$228,NA()) ->  | R173: =IF(R26>0,10^SUM(R$88:R102)-R$227*R$228,NA()) ->  | S173: =IF(S26>0,10^SUM(S$88:S102)-S$227*S$228,NA()) ->  | T173: =IF(T26>0,10^SUM(T$88:T102)-T$227*T$228,NA()) ->  | U173: =IF(U26>0,10^SUM(U$88:U102)-U$227*U$228,NA()) ->  | V173: =IF(V26>0,10^SUM(V$88:V102)-V$227*V$228,NA()) ->  | W173: =IF(W26>0,10^SUM(W$88:W102)-W$227*W$228,NA()) ->  | X173: =IF(X26>0,10^SUM(X$88:X102)-X$227*X$228,NA()) -> 1.0 | Y173: =IF(Y26>0,10^SUM(Y$88:Y102)-Y$227*Y$228,NA()) ->  | Z173: =IF(Z26>0,10^SUM(Z$88:Z102)-Z$227*Z$228,NA()) ->  | AA173: =IF(AA26>0,10^SUM(AA$88:AA102)-AA$227*AA$228,NA()) ->  | AB173: =IF(AB26>0,10^SUM(AB$88:AB102)-AB$227*AB$228,NA()) -> 1.0 | AC173: =IF(AC26>0,10^SUM(AC$88:AC102)-AC$227*AC$228,NA()) -> 1.0 | AD173: =IF(AD26>0,10^SUM(AD$88:AD102)-AD$227*AD$228,NA()) -> 1.0 | AE173: =IF(AE26>0,10^SUM(AE$88:AE102)-AE$227*AE$228,NA()) -> 1.0 | AF173: =IF(AF26>0,10^SUM(AF$88:AF102)-AF$227*AF$228,NA()) -> 1.0 | AG173: =IF(AG26>0,10^SUM(AG$88:AG102)-AG$227*AG$228,NA()) -> 1.0 | AH173: =IF(AH26>0,10^SUM(AH$88:AH102)-AH$227*AH$228,NA()) -> 1.0 | AI173: =IF(AI26>0,10^SUM(AI$88:AI102)-AI$227*AI$228,NA()) -> 1.0 | AJ173: =IF(AJ26>0,10^SUM(AJ$88:AJ102)-AJ$227*AJ$228,NA()) ->  | AK173: =IF(AK26>0,10^SUM(AK$88:AK102)-AK$227*AK$228,NA()) -> 1.0 | AL173: =IF(AL26>0,10^SUM(AL$88:AL102)-AL$227*AL$228,NA()) ->  | AM173: =IF(AM26>0,10^SUM(AM$88:AM102)-AM$227*AM$228,NA()) ->  | AN173: =IF(AN26>0,10^SUM(AN$88:AN102)-AN$227*AN$228,NA()) ->  | AO173: =IF(AO26>0,10^SUM(AO$88:AO102)-AO$227*AO$228,NA()) ->  | AP173: 40
F174: 41 | G174: =IF(G27>0,10^SUM(G$88:G103)-G$227*G$228,NA()) ->  | H174: =IF(H27>0,10^SUM(H$88:H103)-H$227*H$228,NA()) ->  | I174: =IF(I27>0,10^SUM(I$88:I103)-I$227*I$228,NA()) ->  | J174: =IF(J27>0,10^SUM(J$88:J103)-J$227*J$228,NA()) ->  | K174: =IF(K27>0,10^SUM(K$88:K103)-K$227*K$228,NA()) ->  | L174: =IF(L27>0,10^SUM(L$88:L103)-L$227*L$228,NA()) ->  | M174: =IF(M27>0,10^SUM(M$88:M103)-M$227*M$228,NA()) ->  | N174: =IF(N27>0,10^SUM(N$88:N103)-N$227*N$228,NA()) ->  | O174: =IF(O27>0,10^SUM(O$88:O103)-O$227*O$228,NA()) ->  | P174: =IF(P27>0,10^SUM(P$88:P103)-P$227*P$228,NA()) ->  | Q174: =IF(Q27>0,10^SUM(Q$88:Q103)-Q$227*Q$228,NA()) ->  | R174: =IF(R27>0,10^SUM(R$88:R103)-R$227*R$228,NA()) ->  | S174: =IF(S27>0,10^SUM(S$88:S103)-S$227*S$228,NA()) ->  | T174: =IF(T27>0,10^SUM(T$88:T103)-T$227*T$228,NA()) ->  | U174: =IF(U27>0,10^SUM(U$88:U103)-U$227*U$228,NA()) ->  | V174: =IF(V27>0,10^SUM(V$88:V103)-V$227*V$228,NA()) ->  | W174: =IF(W27>0,10^SUM(W$88:W103)-W$227*W$228,NA()) ->  | X174: =IF(X27>0,10^SUM(X$88:X103)-X$227*X$228,NA()) ->  | Y174: =IF(Y27>0,10^SUM(Y$88:Y103)-Y$227*Y$228,NA()) -> 1.0 | Z174: =IF(Z27>0,10^SUM(Z$88:Z103)-Z$227*Z$228,NA()) -> 1.0 | AA174: =IF(AA27>0,10^SUM(AA$88:AA103)-AA$227*AA$228,NA()) -> 1.0 | AB174: =IF(AB27>0,10^SUM(AB$88:AB103)-AB$227*AB$228,NA()) -> 1.0 | AC174: =IF(AC27>0,10^SUM(AC$88:AC103)-AC$227*AC$228,NA()) -> 1.0 | AD174: =IF(AD27>0,10^SUM(AD$88:AD103)-AD$227*AD$228,NA()) -> 1.0 | AE174: =IF(AE27>0,10^SUM(AE$88:AE103)-AE$227*AE$228,NA()) -> 1.0 | AF174: =IF(AF27>0,10^SUM(AF$88:AF103)-AF$227*AF$228,NA()) -> 0.9 | AG174: =IF(AG27>0,10^SUM(AG$88:AG103)-AG$227*AG$228,NA()) -> 1.0 | AH174: =IF(AH27>0,10^SUM(AH$88:AH103)-AH$227*AH$228,NA()) -> 1.0 | AI174: =IF(AI27>0,10^SUM(AI$88:AI103)-AI$227*AI$228,NA()) -> 1.0 | AJ174: =IF(AJ27>0,10^SUM(AJ$88:AJ103)-AJ$227*AJ$228,NA()) -> 1.0 | AK174: =IF(AK27>0,10^SUM(AK$88:AK103)-AK$227*AK$228,NA()) ->  | AL174: =IF(AL27>0,10^SUM(AL$88:AL103)-AL$227*AL$228,NA()) ->  | AM174: =IF(AM27>0,10^SUM(AM$88:AM103)-AM$227*AM$228,NA()) ->  | AN174: =IF(AN27>0,10^SUM(AN$88:AN103)-AN$227*AN$228,NA()) ->  | AO174: =IF(AO27>0,10^SUM(AO$88:AO103)-AO$227*AO$228,NA()) ->  | AP174: 41
F175: 42 | G175: =IF(G28>0,10^SUM(G$88:G104)-G$227*G$228,NA()) ->  | H175: =IF(H28>0,10^SUM(H$88:H104)-H$227*H$228,NA()) ->  | I175: =IF(I28>0,10^SUM(I$88:I104)-I$227*I$228,NA()) ->  | J175: =IF(J28>0,10^SUM(J$88:J104)-J$227*J$228,NA()) ->  | K175: =IF(K28>0,10^SUM(K$88:K104)-K$227*K$228,NA()) ->  | L175: =IF(L28>0,10^SUM(L$88:L104)-L$227*L$228,NA()) ->  | M175: =IF(M28>0,10^SUM(M$88:M104)-M$227*M$228,NA()) ->  | N175: =IF(N28>0,10^SUM(N$88:N104)-N$227*N$228,NA()) -> 0.9 | O175: =IF(O28>0,10^SUM(O$88:O104)-O$227*O$228,NA()) ->  | P175: =IF(P28>0,10^SUM(P$88:P104)-P$227*P$228,NA()) ->  | Q175: =IF(Q28>0,10^SUM(Q$88:Q104)-Q$227*Q$228,NA()) ->  | R175: =IF(R28>0,10^SUM(R$88:R104)-R$227*R$228,NA()) ->  | S175: =IF(S28>0,10^SUM(S$88:S104)-S$227*S$228,NA()) ->  | T175: =IF(T28>0,10^SUM(T$88:T104)-T$227*T$228,NA()) ->  | U175: =IF(U28>0,10^SUM(U$88:U104)-U$227*U$228,NA()) -> 1.0 | V175: =IF(V28>0,10^SUM(V$88:V104)-V$227*V$228,NA()) ->  | W175: =IF(W28>0,10^SUM(W$88:W104)-W$227*W$228,NA()) ->  | X175: =IF(X28>0,10^SUM(X$88:X104)-X$227*X$228,NA()) ->  | Y175: =IF(Y28>0,10^SUM(Y$88:Y104)-Y$227*Y$228,NA()) ->  | Z175: =IF(Z28>0,10^SUM(Z$88:Z104)-Z$227*Z$228,NA()) ->  | AA175: =IF(AA28>0,10^SUM(AA$88:AA104)-AA$227*AA$228,NA()) -> 1.0 | AB175: =IF(AB28>0,10^SUM(AB$88:AB104)-AB$227*AB$228,NA()) -> 1.0 | AC175: =IF(AC28>0,10^SUM(AC$88:AC104)-AC$227*AC$228,NA()) -> 1.0 | AD175: =IF(AD28>0,10^SUM(AD$88:AD104)-AD$227*AD$228,NA()) -> 1.0 | AE175: =IF(AE28>0,10^SUM(AE$88:AE104)-AE$227*AE$228,NA()) -> 0.9 | AF175: =IF(AF28>0,10^SUM(AF$88:AF104)-AF$227*AF$228,NA()) -> 0.9 | AG175: =IF(AG28>0,10^SUM(AG$88:AG104)-AG$227*AG$228,NA()) -> 0.9 | AH175: =IF(AH28>0,10^SUM(AH$88:AH104)-AH$227*AH$228,NA()) -> 0.9 | AI175: =IF(AI28>0,10^SUM(AI$88:AI104)-AI$227*AI$228,NA()) -> 1.0 | AJ175: =IF(AJ28>0,10^SUM(AJ$88:AJ104)-AJ$227*AJ$228,NA()) -> 1.0 | AK175: =IF(AK28>0,10^SUM(AK$88:AK104)-AK$227*AK$228,NA()) -> 1.0 | AL175: =IF(AL28>0,10^SUM(AL$88:AL104)-AL$227*AL$228,NA()) ->  | AM175: =IF(AM28>0,10^SUM(AM$88:AM104)-AM$227*AM$228,NA()) ->  | AN175: =IF(AN28>0,10^SUM(AN$88:AN104)-AN$227*AN$228,NA()) ->  | AO175: =IF(AO28>0,10^SUM(AO$88:AO104)-AO$227*AO$228,NA()) -> 1.0 | AP175: 42
F176: 43 | G176: =IF(G29>0,10^SUM(G$88:G105)-G$227*G$228,NA()) ->  | H176: =IF(H29>0,10^SUM(H$88:H105)-H$227*H$228,NA()) ->  | I176: =IF(I29>0,10^SUM(I$88:I105)-I$227*I$228,NA()) ->  | J176: =IF(J29>0,10^SUM(J$88:J105)-J$227*J$228,NA()) ->  | K176: =IF(K29>0,10^SUM(K$88:K105)-K$227*K$228,NA()) ->  | L176: =IF(L29>0,10^SUM(L$88:L105)-L$227*L$228,NA()) ->  | M176: =IF(M29>0,10^SUM(M$88:M105)-M$227*M$228,NA()) ->  | N176: =IF(N29>0,10^SUM(N$88:N105)-N$227*N$228,NA()) ->  | O176: =IF(O29>0,10^SUM(O$88:O105)-O$227*O$228,NA()) ->  | P176: =IF(P29>0,10^SUM(P$88:P105)-P$227*P$228,NA()) ->  | Q176: =IF(Q29>0,10^SUM(Q$88:Q105)-Q$227*Q$228,NA()) ->  | R176: =IF(R29>0,10^SUM(R$88:R105)-R$227*R$228,NA()) ->  | S176: =IF(S29>0,10^SUM(S$88:S105)-S$227*S$228,NA()) ->  | T176: =IF(T29>0,10^SUM(T$88:T105)-T$227*T$228,NA()) ->  | U176: =IF(U29>0,10^SUM(U$88:U105)-U$227*U$228,NA()) ->  | V176: =IF(V29>0,10^SUM(V$88:V105)-V$227*V$228,NA()) ->  | W176: =IF(W29>0,10^SUM(W$88:W105)-W$227*W$228,NA()) ->  | X176: =IF(X29>0,10^SUM(X$88:X105)-X$227*X$228,NA()) -> 1.0 | Y176: =IF(Y29>0,10^SUM(Y$88:Y105)-Y$227*Y$228,NA()) -> 1.0 | Z176: =IF(Z29>0,10^SUM(Z$88:Z105)-Z$227*Z$228,NA()) -> 1.0 | AA176: =IF(AA29>0,10^SUM(AA$88:AA105)-AA$227*AA$228,NA()) -> 1.0 | AB176: =IF(AB29>0,10^SUM(AB$88:AB105)-AB$227*AB$228,NA()) -> 1.0 | AC176: =IF(AC29>0,10^SUM(AC$88:AC105)-AC$227*AC$228,NA()) -> 0.9 | AD176: =IF(AD29>0,10^SUM(AD$88:AD105)-AD$227*AD$228,NA()) -> 0.9 | AE176: =IF(AE29>0,10^SUM(AE$88:AE105)-AE$227*AE$228,NA()) -> 0.9 | AF176: =IF(AF29>0,10^SUM(AF$88:AF105)-AF$227*AF$228,NA()) -> 0.9 | AG176: =IF(AG29>0,10^SUM(AG$88:AG105)-AG$227*AG$228,NA()) -> 0.9 | AH176: =IF(AH29>0,10^SUM(AH$88:AH105)-AH$227*AH$228,NA()) -> 0.9 | AI176: =IF(AI29>0,10^SUM(AI$88:AI105)-AI$227*AI$228,NA()) -> 1.0 | AJ176: =IF(AJ29>0,10^SUM(AJ$88:AJ105)-AJ$227*AJ$228,NA()) ->  | AK176: =IF(AK29>0,10^SUM(AK$88:AK105)-AK$227*AK$228,NA()) -> 1.0 | AL176: =IF(AL29>0,10^SUM(AL$88:AL105)-AL$227*AL$228,NA()) -> 1.0 | AM176: =IF(AM29>0,10^SUM(AM$88:AM105)-AM$227*AM$228,NA()) -> 1.0 | AN176: =IF(AN29>0,10^SUM(AN$88:AN105)-AN$227*AN$228,NA()) -> 1.0 | AO176: =IF(AO29>0,10^SUM(AO$88:AO105)-AO$227*AO$228,NA()) -> 1.0 | AP176: 43
F177: 44 | G177: =IF(G30>0,10^SUM(G$88:G106)-G$227*G$228,NA()) ->  | H177: =IF(H30>0,10^SUM(H$88:H106)-H$227*H$228,NA()) ->  | I177: =IF(I30>0,10^SUM(I$88:I106)-I$227*I$228,NA()) ->  | J177: =IF(J30>0,10^SUM(J$88:J106)-J$227*J$228,NA()) ->  | K177: =IF(K30>0,10^SUM(K$88:K106)-K$227*K$228,NA()) ->  | L177: =IF(L30>0,10^SUM(L$88:L106)-L$227*L$228,NA()) ->  | M177: =IF(M30>0,10^SUM(M$88:M106)-M$227*M$228,NA()) ->  | N177: =IF(N30>0,10^SUM(N$88:N106)-N$227*N$228,NA()) ->  | O177: =IF(O30>0,10^SUM(O$88:O106)-O$227*O$228,NA()) ->  | P177: =IF(P30>0,10^SUM(P$88:P106)-P$227*P$228,NA()) ->  | Q177: =IF(Q30>0,10^SUM(Q$88:Q106)-Q$227*Q$228,NA()) ->  | R177: =IF(R30>0,10^SUM(R$88:R106)-R$227*R$228,NA()) ->  | S177: =IF(S30>0,10^SUM(S$88:S106)-S$227*S$228,NA()) ->  | T177: =IF(T30>0,10^SUM(T$88:T106)-T$227*T$228,NA()) ->  | U177: =IF(U30>0,10^SUM(U$88:U106)-U$227*U$228,NA()) ->  | V177: =IF(V30>0,10^SUM(V$88:V106)-V$227*V$228,NA()) ->  | W177: =IF(W30>0,10^SUM(W$88:W106)-W$227*W$228,NA()) ->  | X177: =IF(X30>0,10^SUM(X$88:X106)-X$227*X$228,NA()) -> 1.0 | Y177: =IF(Y30>0,10^SUM(Y$88:Y106)-Y$227*Y$228,NA()) -> 1.0 | Z177: =IF(Z30>0,10^SUM(Z$88:Z106)-Z$227*Z$228,NA()) -> 1.0 | AA177: =IF(AA30>0,10^SUM(AA$88:AA106)-AA$227*AA$228,NA()) -> 0.9 | AB177: =IF(AB30>0,10^SUM(AB$88:AB106)-AB$227*AB$228,NA()) -> 0.9 | AC177: =IF(AC30>0,10^SUM(AC$88:AC106)-AC$227*AC$228,NA()) -> 0.9 | AD177: =IF(AD30>0,10^SUM(AD$88:AD106)-AD$227*AD$228,NA()) -> 0.9 | AE177: =IF(AE30>0,10^SUM(AE$88:AE106)-AE$227*AE$228,NA()) -> 0.9 | AF177: =IF(AF30>0,10^SUM(AF$88:AF106)-AF$227*AF$228,NA()) -> 0.9 | AG177: =IF(AG30>0,10^SUM(AG$88:AG106)-AG$227*AG$228,NA()) -> 0.9 | AH177: =IF(AH30>0,10^SUM(AH$88:AH106)-AH$227*AH$228,NA()) -> 0.9 | AI177: =IF(AI30>0,10^SUM(AI$88:AI106)-AI$227*AI$228,NA()) -> 1.0 | AJ177: =IF(AJ30>0,10^SUM(AJ$88:AJ106)-AJ$227*AJ$228,NA()) -> 1.0 | AK177: =IF(AK30>0,10^SUM(AK$88:AK106)-AK$227*AK$228,NA()) -> 1.0 | AL177: =IF(AL30>0,10^SUM(AL$88:AL106)-AL$227*AL$228,NA()) -> 1.0 | AM177: =IF(AM30>0,10^SUM(AM$88:AM106)-AM$227*AM$228,NA()) -> 1.0 | AN177: =IF(AN30>0,10^SUM(AN$88:AN106)-AN$227*AN$228,NA()) -> 1.0 | AO177: =IF(AO30>0,10^SUM(AO$88:AO106)-AO$227*AO$228,NA()) ->  | AP177: 44
F178: 45 | G178: =IF(G31>0,10^SUM(G$88:G107)-G$227*G$228,NA()) ->  | H178: =IF(H31>0,10^SUM(H$88:H107)-H$227*H$228,NA()) ->  | I178: =IF(I31>0,10^SUM(I$88:I107)-I$227*I$228,NA()) ->  | J178: =IF(J31>0,10^SUM(J$88:J107)-J$227*J$228,NA()) ->  | K178: =IF(K31>0,10^SUM(K$88:K107)-K$227*K$228,NA()) -> 0.9 | L178: =IF(L31>0,10^SUM(L$88:L107)-L$227*L$228,NA()) ->  | M178: =IF(M31>0,10^SUM(M$88:M107)-M$227*M$228,NA()) ->  | N178: =IF(N31>0,10^SUM(N$88:N107)-N$227*N$228,NA()) ->  | O178: =IF(O31>0,10^SUM(O$88:O107)-O$227*O$228,NA()) ->  | P178: =IF(P31>0,10^SUM(P$88:P107)-P$227*P$228,NA()) ->  | Q178: =IF(Q31>0,10^SUM(Q$88:Q107)-Q$227*Q$228,NA()) ->  | R178: =IF(R31>0,10^SUM(R$88:R107)-R$227*R$228,NA()) ->  | S178: =IF(S31>0,10^SUM(S$88:S107)-S$227*S$228,NA()) -> 1.0 | T178: =IF(T31>0,10^SUM(T$88:T107)-T$227*T$228,NA()) -> 1.0 | U178: =IF(U31>0,10^SUM(U$88:U107)-U$227*U$228,NA()) ->  | V178: =IF(V31>0,10^SUM(V$88:V107)-V$227*V$228,NA()) -> 1.0 | W178: =IF(W31>0,10^SUM(W$88:W107)-W$227*W$228,NA()) ->  | X178: =IF(X31>0,10^SUM(X$88:X107)-X$227*X$228,NA()) -> 1.0 | Y178: =IF(Y31>0,10^SUM(Y$88:Y107)-Y$227*Y$228,NA()) -> 1.0 | Z178: =IF(Z31>0,10^SUM(Z$88:Z107)-Z$227*Z$228,NA()) -> 1.0 | AA178: =IF(AA31>0,10^SUM(AA$88:AA107)-AA$227*AA$228,NA()) -> 0.9 | AB178: =IF(AB31>0,10^SUM(AB$88:AB107)-AB$227*AB$228,NA()) -> 0.9 | AC178: =IF(AC31>0,10^SUM(AC$88:AC107)-AC$227*AC$228,NA()) -> 0.9 | AD178: =IF(AD31>0,10^SUM(AD$88:AD107)-AD$227*AD$228,NA()) -> 0.9 | AE178: =IF(AE31>0,10^SUM(AE$88:AE107)-AE$227*AE$228,NA()) -> 0.9 | AF178: =IF(AF31>0,10^SUM(AF$88:AF107)-AF$227*AF$228,NA()) -> 0.9 | AG178: =IF(AG31>0,10^SUM(AG$88:AG107)-AG$227*AG$228,NA()) -> 0.9 | AH178: =IF(AH31>0,10^SUM(AH$88:AH107)-AH$227*AH$228,NA()) -> 0.9 | AI178: =IF(AI31>0,10^SUM(AI$88:AI107)-AI$227*AI$228,NA()) -> 1.0 | AJ178: =IF(AJ31>0,10^SUM(AJ$88:AJ107)-AJ$227*AJ$228,NA()) -> 1.0 | AK178: =IF(AK31>0,10^SUM(AK$88:AK107)-AK$227*AK$228,NA()) -> 1.0 | AL178: =IF(AL31>0,10^SUM(AL$88:AL107)-AL$227*AL$228,NA()) -> 1.0 | AM178: =IF(AM31>0,10^SUM(AM$88:AM107)-AM$227*AM$228,NA()) -> 1.0 | AN178: =IF(AN31>0,10^SUM(AN$88:AN107)-AN$227*AN$228,NA()) -> 1.0 | AO178: =IF(AO31>0,10^SUM(AO$88:AO107)-AO$227*AO$228,NA()) -> 1.0 | AP178: 45
F179: 46 | G179: =IF(G32>0,10^SUM(G$88:G108)-G$227*G$228,NA()) ->  | H179: =IF(H32>0,10^SUM(H$88:H108)-H$227*H$228,NA()) ->  | I179: =IF(I32>0,10^SUM(I$88:I108)-I$227*I$228,NA()) ->  | J179: =IF(J32>0,10^SUM(J$88:J108)-J$227*J$228,NA()) -> 0.9 | K179: =IF(K32>0,10^SUM(K$88:K108)-K$227*K$228,NA()) ->  | L179: =IF(L32>0,10^SUM(L$88:L108)-L$227*L$228,NA()) ->  | M179: =IF(M32>0,10^SUM(M$88:M108)-M$227*M$228,NA()) ->  | N179: =IF(N32>0,10^SUM(N$88:N108)-N$227*N$228,NA()) ->  | O179: =IF(O32>0,10^SUM(O$88:O108)-O$227*O$228,NA()) ->  | P179: =IF(P32>0,10^SUM(P$88:P108)-P$227*P$228,NA()) ->  | Q179: =IF(Q32>0,10^SUM(Q$88:Q108)-Q$227*Q$228,NA()) -> 1.0 | R179: =IF(R32>0,10^SUM(R$88:R108)-R$227*R$228,NA()) -> 1.0 | S179: =IF(S32>0,10^SUM(S$88:S108)-S$227*S$228,NA()) ->  | T179: =IF(T32>0,10^SUM(T$88:T108)-T$227*T$228,NA()) -> 1.0 | U179: =IF(U32>0,10^SUM(U$88:U108)-U$227*U$228,NA()) -> 1.0 | V179: =IF(V32>0,10^SUM(V$88:V108)-V$227*V$228,NA()) -> 1.0 | W179: =IF(W32>0,10^SUM(W$88:W108)-W$227*W$228,NA()) -> 1.0 | X179: =IF(X32>0,10^SUM(X$88:X108)-X$227*X$228,NA()) -> 1.0 | Y179: =IF(Y32>0,10^SUM(Y$88:Y108)-Y$227*Y$228,NA()) -> 1.0 | Z179: =IF(Z32>0,10^SUM(Z$88:Z108)-Z$227*Z$228,NA()) -> 0.9 | AA179: =IF(AA32>0,10^SUM(AA$88:AA108)-AA$227*AA$228,NA()) -> 0.9 | AB179: =IF(AB32>0,10^SUM(AB$88:AB108)-AB$227*AB$228,NA()) -> 0.9 | AC179: =IF(AC32>0,10^SUM(AC$88:AC108)-AC$227*AC$228,NA()) -> 0.9 | AD179: =IF(AD32>0,10^SUM(AD$88:AD108)-AD$227*AD$228,NA()) -> 0.9 | AE179: =IF(AE32>0,10^SUM(AE$88:AE108)-AE$227*AE$228,NA()) -> 0.9 | AF179: =IF(AF32>0,10^SUM(AF$88:AF108)-AF$227*AF$228,NA()) -> 0.9 | AG179: =IF(AG32>0,10^SUM(AG$88:AG108)-AG$227*AG$228,NA()) -> 0.9 | AH179: =IF(AH32>0,10^SUM(AH$88:AH108)-AH$227*AH$228,NA()) -> 0.9 | AI179: =IF(AI32>0,10^SUM(AI$88:AI108)-AI$227*AI$228,NA()) -> 0.9 | AJ179: =IF(AJ32>0,10^SUM(AJ$88:AJ108)-AJ$227*AJ$228,NA()) -> 0.9 | AK179: =IF(AK32>0,10^SUM(AK$88:AK108)-AK$227*AK$228,NA()) -> 1.0 | AL179: =IF(AL32>0,10^SUM(AL$88:AL108)-AL$227*AL$228,NA()) -> 1.0 | AM179: =IF(AM32>0,10^SUM(AM$88:AM108)-AM$227*AM$228,NA()) -> 1.0 | AN179: =IF(AN32>0,10^SUM(AN$88:AN108)-AN$227*AN$228,NA()) -> 1.0 | AO179: =IF(AO32>0,10^SUM(AO$88:AO108)-AO$227*AO$228,NA()) -> 1.0 | AP179: 46
F180: 47 | G180: =IF(G33>0,10^SUM(G$88:G109)-G$227*G$228,NA()) ->  | H180: =IF(H33>0,10^SUM(H$88:H109)-H$227*H$228,NA()) ->  | I180: =IF(I33>0,10^SUM(I$88:I109)-I$227*I$228,NA()) ->  | J180: =IF(J33>0,10^SUM(J$88:J109)-J$227*J$228,NA()) ->  | K180: =IF(K33>0,10^SUM(K$88:K109)-K$227*K$228,NA()) ->  | L180: =IF(L33>0,10^SUM(L$88:L109)-L$227*L$228,NA()) ->  | M180: =IF(M33>0,10^SUM(M$88:M109)-M$227*M$228,NA()) ->  | N180: =IF(N33>0,10^SUM(N$88:N109)-N$227*N$228,NA()) ->  | O180: =IF(O33>0,10^SUM(O$88:O109)-O$227*O$228,NA()) ->  | P180: =IF(P33>0,10^SUM(P$88:P109)-P$227*P$228,NA()) -> 1.0 | Q180: =IF(Q33>0,10^SUM(Q$88:Q109)-Q$227*Q$228,NA()) ->  | R180: =IF(R33>0,10^SUM(R$88:R109)-R$227*R$228,NA()) ->  | S180: =IF(S33>0,10^SUM(S$88:S109)-S$227*S$228,NA()) -> 1.0 | T180: =IF(T33>0,10^SUM(T$88:T109)-T$227*T$228,NA()) -> 1.0 | U180: =IF(U33>0,10^SUM(U$88:U109)-U$227*U$228,NA()) -> 1.0 | V180: =IF(V33>0,10^SUM(V$88:V109)-V$227*V$228,NA()) -> 1.0 | W180: =IF(W33>0,10^SUM(W$88:W109)-W$227*W$228,NA()) -> 1.0 | X180: =IF(X33>0,10^SUM(X$88:X109)-X$227*X$228,NA()) -> 1.0 | Y180: =IF(Y33>0,10^SUM(Y$88:Y109)-Y$227*Y$228,NA()) -> 0.9 | Z180: =IF(Z33>0,10^SUM(Z$88:Z109)-Z$227*Z$228,NA()) -> 0.9 | AA180: =IF(AA33>0,10^SUM(AA$88:AA109)-AA$227*AA$228,NA()) -> 0.9 | AB180: =IF(AB33>0,10^SUM(AB$88:AB109)-AB$227*AB$228,NA()) -> 0.9 | AC180: =IF(AC33>0,10^SUM(AC$88:AC109)-AC$227*AC$228,NA()) -> 0.9 | AD180: =IF(AD33>0,10^SUM(AD$88:AD109)-AD$227*AD$228,NA()) -> 0.9 | AE180: =IF(AE33>0,10^SUM(AE$88:AE109)-AE$227*AE$228,NA()) -> 0.9 | AF180: =IF(AF33>0,10^SUM(AF$88:AF109)-AF$227*AF$228,NA()) -> 0.9 | AG180: =IF(AG33>0,10^SUM(AG$88:AG109)-AG$227*AG$228,NA()) -> 0.9 | AH180: =IF(AH33>0,10^SUM(AH$88:AH109)-AH$227*AH$228,NA()) -> 0.9 | AI180: =IF(AI33>0,10^SUM(AI$88:AI109)-AI$227*AI$228,NA()) -> 0.9 | AJ180: =IF(AJ33>0,10^SUM(AJ$88:AJ109)-AJ$227*AJ$228,NA()) -> 0.9 | AK180: =IF(AK33>0,10^SUM(AK$88:AK109)-AK$227*AK$228,NA()) -> 1.0 | AL180: =IF(AL33>0,10^SUM(AL$88:AL109)-AL$227*AL$228,NA()) -> 1.0 | AM180: =IF(AM33>0,10^SUM(AM$88:AM109)-AM$227*AM$228,NA()) -> 1.0 | AN180: =IF(AN33>0,10^SUM(AN$88:AN109)-AN$227*AN$228,NA()) -> 1.0 | AO180: =IF(AO33>0,10^SUM(AO$88:AO109)-AO$227*AO$228,NA()) -> 1.0 | AP180: 47
F181: 48 | G181: =IF(G34>0,10^SUM(G$88:G110)-G$227*G$228,NA()) ->  | H181: =IF(H34>0,10^SUM(H$88:H110)-H$227*H$228,NA()) -> 0.9 | I181: =IF(I34>0,10^SUM(I$88:I110)-I$227*I$228,NA()) ->  | J181: =IF(J34>0,10^SUM(J$88:J110)-J$227*J$228,NA()) ->  | K181: =IF(K34>0,10^SUM(K$88:K110)-K$227*K$228,NA()) ->  | L181: =IF(L34>0,10^SUM(L$88:L110)-L$227*L$228,NA()) ->  | M181: =IF(M34>0,10^SUM(M$88:M110)-M$227*M$228,NA()) ->  | N181: =IF(N34>0,10^SUM(N$88:N110)-N$227*N$228,NA()) ->  | O181: =IF(O34>0,10^SUM(O$88:O110)-O$227*O$228,NA()) ->  | P181: =IF(P34>0,10^SUM(P$88:P110)-P$227*P$228,NA()) -> 1.0 | Q181: =IF(Q34>0,10^SUM(Q$88:Q110)-Q$227*Q$228,NA()) ->  | R181: =IF(R34>0,10^SUM(R$88:R110)-R$227*R$228,NA()) ->  | S181: =IF(S34>0,10^SUM(S$88:S110)-S$227*S$228,NA()) -> 1.0 | T181: =IF(T34>0,10^SUM(T$88:T110)-T$227*T$228,NA()) -> 1.0 | U181: =IF(U34>0,10^SUM(U$88:U110)-U$227*U$228,NA()) -> 1.0 | V181: =IF(V34>0,10^SUM(V$88:V110)-V$227*V$228,NA()) -> 1.0 | W181: =IF(W34>0,10^SUM(W$88:W110)-W$227*W$228,NA()) -> 0.9 | X181: =IF(X34>0,10^SUM(X$88:X110)-X$227*X$228,NA()) -> 0.9 | Y181: =IF(Y34>0,10^SUM(Y$88:Y110)-Y$227*Y$228,NA()) -> 0.9 | Z181: =IF(Z34>0,10^SUM(Z$88:Z110)-Z$227*Z$228,NA()) -> 0.9 | AA181: =IF(AA34>0,10^SUM(AA$88:AA110)-AA$227*AA$228,NA()) -> 0.9 | AB181: =IF(AB34>0,10^SUM(AB$88:AB110)-AB$227*AB$228,NA()) -> 0.9 | AC181: =IF(AC34>0,10^SUM(AC$88:AC110)-AC$227*AC$228,NA()) -> 0.9 | AD181: =IF(AD34>0,10^SUM(AD$88:AD110)-AD$227*AD$228,NA()) -> 0.9 | AE181: =IF(AE34>0,10^SUM(AE$88:AE110)-AE$227*AE$228,NA()) -> 0.9 | AF181: =IF(AF34>0,10^SUM(AF$88:AF110)-AF$227*AF$228,NA()) -> 0.9 | AG181: =IF(AG34>0,10^SUM(AG$88:AG110)-AG$227*AG$228,NA()) -> 0.9 | AH181: =IF(AH34>0,10^SUM(AH$88:AH110)-AH$227*AH$228,NA()) -> 0.9 | AI181: =IF(AI34>0,10^SUM(AI$88:AI110)-AI$227*AI$228,NA()) -> 0.9 | AJ181: =IF(AJ34>0,10^SUM(AJ$88:AJ110)-AJ$227*AJ$228,NA()) -> 0.9 | AK181: =IF(AK34>0,10^SUM(AK$88:AK110)-AK$227*AK$228,NA()) -> 1.0 | AL181: =IF(AL34>0,10^SUM(AL$88:AL110)-AL$227*AL$228,NA()) -> 1.0 | AM181: =IF(AM34>0,10^SUM(AM$88:AM110)-AM$227*AM$228,NA()) -> 1.0 | AN181: =IF(AN34>0,10^SUM(AN$88:AN110)-AN$227*AN$228,NA()) -> 1.0 | AO181: =IF(AO34>0,10^SUM(AO$88:AO110)-AO$227*AO$228,NA()) -> 1.0 | AP181: 48
F182: 49 | G182: =IF(G35>0,10^SUM(G$88:G111)-G$227*G$228,NA()) ->  | H182: =IF(H35>0,10^SUM(H$88:H111)-H$227*H$228,NA()) ->  | I182: =IF(I35>0,10^SUM(I$88:I111)-I$227*I$228,NA()) ->  | J182: =IF(J35>0,10^SUM(J$88:J111)-J$227*J$228,NA()) ->  | K182: =IF(K35>0,10^SUM(K$88:K111)-K$227*K$228,NA()) ->  | L182: =IF(L35>0,10^SUM(L$88:L111)-L$227*L$228,NA()) ->  | M182: =IF(M35>0,10^SUM(M$88:M111)-M$227*M$228,NA()) ->  | N182: =IF(N35>0,10^SUM(N$88:N111)-N$227*N$228,NA()) -> 0.9 | O182: =IF(O35>0,10^SUM(O$88:O111)-O$227*O$228,NA()) -> 1.0 | P182: =IF(P35>0,10^SUM(P$88:P111)-P$227*P$228,NA()) -> 1.0 | Q182: =IF(Q35>0,10^SUM(Q$88:Q111)-Q$227*Q$228,NA()) ->  | R182: =IF(R35>0,10^SUM(R$88:R111)-R$227*R$228,NA()) ->  | S182: =IF(S35>0,10^SUM(S$88:S111)-S$227*S$228,NA()) ->  | T182: =IF(T35>0,10^SUM(T$88:T111)-T$227*T$228,NA()) -> 1.0 | U182: =IF(U35>0,10^SUM(U$88:U111)-U$227*U$228,NA()) -> 1.0 | V182: =IF(V35>0,10^SUM(V$88:V111)-V$227*V$228,NA()) -> 1.0 | W182: =IF(W35>0,10^SUM(W$88:W111)-W$227*W$228,NA()) -> 0.9 | X182: =IF(X35>0,10^SUM(X$88:X111)-X$227*X$228,NA()) -> 0.9 | Y182: =IF(Y35>0,10^SUM(Y$88:Y111)-Y$227*Y$228,NA()) -> 0.9 | Z182: =IF(Z35>0,10^SUM(Z$88:Z111)-Z$227*Z$228,NA()) -> 0.9 | AA182: =IF(AA35>0,10^SUM(AA$88:AA111)-AA$227*AA$228,NA()) -> 0.9 | AB182: =IF(AB35>0,10^SUM(AB$88:AB111)-AB$227*AB$228,NA()) -> 0.9 | AC182: =IF(AC35>0,10^SUM(AC$88:AC111)-AC$227*AC$228,NA()) -> 0.9 | AD182: =IF(AD35>0,10^SUM(AD$88:AD111)-AD$227*AD$228,NA()) -> 0.9 | AE182: =IF(AE35>0,10^SUM(AE$88:AE111)-AE$227*AE$228,NA()) -> 0.9 | AF182: =IF(AF35>0,10^SUM(AF$88:AF111)-AF$227*AF$228,NA()) -> 0.9 | AG182: =IF(AG35>0,10^SUM(AG$88:AG111)-AG$227*AG$228,NA()) -> 0.9 | AH182: =IF(AH35>0,10^SUM(AH$88:AH111)-AH$227*AH$228,NA()) -> 0.9 | AI182: =IF(AI35>0,10^SUM(AI$88:AI111)-AI$227*AI$228,NA()) -> 0.9 | AJ182: =IF(AJ35>0,10^SUM(AJ$88:AJ111)-AJ$227*AJ$228,NA()) -> 0.9 | AK182: =IF(AK35>0,10^SUM(AK$88:AK111)-AK$227*AK$228,NA()) -> 1.0 | AL182: =IF(AL35>0,10^SUM(AL$88:AL111)-AL$227*AL$228,NA()) -> 1.0 | AM182: =IF(AM35>0,10^SUM(AM$88:AM111)-AM$227*AM$228,NA()) -> 1.0 | AN182: =IF(AN35>0,10^SUM(AN$88:AN111)-AN$227*AN$228,NA()) -> 1.0 | AO182: =IF(AO35>0,10^SUM(AO$88:AO111)-AO$227*AO$228,NA()) -> 1.0 | AP182: 49
F183: 50 | G183: =IF(G36>0,10^SUM(G$88:G112)-G$227*G$228,NA()) ->  | H183: =IF(H36>0,10^SUM(H$88:H112)-H$227*H$228,NA()) ->  | I183: =IF(I36>0,10^SUM(I$88:I112)-I$227*I$228,NA()) ->  | J183: =IF(J36>0,10^SUM(J$88:J112)-J$227*J$228,NA()) ->  | K183: =IF(K36>0,10^SUM(K$88:K112)-K$227*K$228,NA()) ->  | L183: =IF(L36>0,10^SUM(L$88:L112)-L$227*L$228,NA()) -> 0.9 | M183: =IF(M36>0,10^SUM(M$88:M112)-M$227*M$228,NA()) -> 0.9 | N183: =IF(N36>0,10^SUM(N$88:N112)-N$227*N$228,NA()) -> 0.9 | O183: =IF(O36>0,10^SUM(O$88:O112)-O$227*O$228,NA()) -> 1.0 | P183: =IF(P36>0,10^SUM(P$88:P112)-P$227*P$228,NA()) ->  | Q183: =IF(Q36>0,10^SUM(Q$88:Q112)-Q$227*Q$228,NA()) ->  | R183: =IF(R36>0,10^SUM(R$88:R112)-R$227*R$228,NA()) ->  | S183: =IF(S36>0,10^SUM(S$88:S112)-S$227*S$228,NA()) -> 1.0 | T183: =IF(T36>0,10^SUM(T$88:T112)-T$227*T$228,NA()) -> 1.0 | U183: =IF(U36>0,10^SUM(U$88:U112)-U$227*U$228,NA()) -> 1.0 | V183: =IF(V36>0,10^SUM(V$88:V112)-V$227*V$228,NA()) -> 0.9 | W183: =IF(W36>0,10^SUM(W$88:W112)-W$227*W$228,NA()) -> 0.9 | X183: =IF(X36>0,10^SUM(X$88:X112)-X$227*X$228,NA()) -> 0.9 | Y183: =IF(Y36>0,10^SUM(Y$88:Y112)-Y$227*Y$228,NA()) -> 0.9 | Z183: =IF(Z36>0,10^SUM(Z$88:Z112)-Z$227*Z$228,NA()) -> 0.9 | AA183: =IF(AA36>0,10^SUM(AA$88:AA112)-AA$227*AA$228,NA()) -> 0.9 | AB183: =IF(AB36>0,10^SUM(AB$88:AB112)-AB$227*AB$228,NA()) -> 0.9 | AC183: =IF(AC36>0,10^SUM(AC$88:AC112)-AC$227*AC$228,NA()) -> 0.9 | AD183: =IF(AD36>0,10^SUM(AD$88:AD112)-AD$227*AD$228,NA()) -> 0.9 | AE183: =IF(AE36>0,10^SUM(AE$88:AE112)-AE$227*AE$228,NA()) -> 0.9 | AF183: =IF(AF36>0,10^SUM(AF$88:AF112)-AF$227*AF$228,NA()) -> 0.9 | AG183: =IF(AG36>0,10^SUM(AG$88:AG112)-AG$227*AG$228,NA()) -> 0.9 | AH183: =IF(AH36>0,10^SUM(AH$88:AH112)-AH$227*AH$228,NA()) -> 0.9 | AI183: =IF(AI36>0,10^SUM(AI$88:AI112)-AI$227*AI$228,NA()) -> 0.9 | AJ183: =IF(AJ36>0,10^SUM(AJ$88:AJ112)-AJ$227*AJ$228,NA()) -> 0.9 | AK183: =IF(AK36>0,10^SUM(AK$88:AK112)-AK$227*AK$228,NA()) -> 1.0 | AL183: =IF(AL36>0,10^SUM(AL$88:AL112)-AL$227*AL$228,NA()) -> 1.0 | AM183: =IF(AM36>0,10^SUM(AM$88:AM112)-AM$227*AM$228,NA()) -> 1.0 | AN183: =IF(AN36>0,10^SUM(AN$88:AN112)-AN$227*AN$228,NA()) -> 1.0 | AO183: =IF(AO36>0,10^SUM(AO$88:AO112)-AO$227*AO$228,NA()) -> 1.0 | AP183: 50
F184: 51 | G184: =IF(G37>0,10^SUM(G$88:G113)-G$227*G$228,NA()) ->  | H184: =IF(H37>0,10^SUM(H$88:H113)-H$227*H$228,NA()) ->  | I184: =IF(I37>0,10^SUM(I$88:I113)-I$227*I$228,NA()) ->  | J184: =IF(J37>0,10^SUM(J$88:J113)-J$227*J$228,NA()) -> 0.9 | K184: =IF(K37>0,10^SUM(K$88:K113)-K$227*K$228,NA()) -> 0.9 | L184: =IF(L37>0,10^SUM(L$88:L113)-L$227*L$228,NA()) -> 0.9 | M184: =IF(M37>0,10^SUM(M$88:M113)-M$227*M$228,NA()) -> 0.9 | N184: =IF(N37>0,10^SUM(N$88:N113)-N$227*N$228,NA()) -> 0.9 | O184: =IF(O37>0,10^SUM(O$88:O113)-O$227*O$228,NA()) -> 0.9 | P184: =IF(P37>0,10^SUM(P$88:P113)-P$227*P$228,NA()) -> 0.9 | Q184: =IF(Q37>0,10^SUM(Q$88:Q113)-Q$227*Q$228,NA()) -> 1.0 | R184: =IF(R37>0,10^SUM(R$88:R113)-R$227*R$228,NA()) -> 1.0 | S184: =IF(S37>0,10^SUM(S$88:S113)-S$227*S$228,NA()) -> 1.0 | T184: =IF(T37>0,10^SUM(T$88:T113)-T$227*T$228,NA()) -> 1.0 | U184: =IF(U37>0,10^SUM(U$88:U113)-U$227*U$228,NA()) -> 0.9 | V184: =IF(V37>0,10^SUM(V$88:V113)-V$227*V$228,NA()) -> 0.9 | W184: =IF(W37>0,10^SUM(W$88:W113)-W$227*W$228,NA()) -> 0.9 | X184: =IF(X37>0,10^SUM(X$88:X113)-X$227*X$228,NA()) -> 0.9 | Y184: =IF(Y37>0,10^SUM(Y$88:Y113)-Y$227*Y$228,NA()) -> 0.9 | Z184: =IF(Z37>0,10^SUM(Z$88:Z113)-Z$227*Z$228,NA()) -> 0.9 | AA184: =IF(AA37>0,10^SUM(AA$88:AA113)-AA$227*AA$228,NA()) -> 0.8 | AB184: =IF(AB37>0,10^SUM(AB$88:AB113)-AB$227*AB$228,NA()) -> 0.9 | AC184: =IF(AC37>0,10^SUM(AC$88:AC113)-AC$227*AC$228,NA()) -> 0.9 | AD184: =IF(AD37>0,10^SUM(AD$88:AD113)-AD$227*AD$228,NA()) -> 0.9 | AE184: =IF(AE37>0,10^SUM(AE$88:AE113)-AE$227*AE$228,NA()) -> 0.9 | AF184: =IF(AF37>0,10^SUM(AF$88:AF113)-AF$227*AF$228,NA()) -> 0.9 | AG184: =IF(AG37>0,10^SUM(AG$88:AG113)-AG$227*AG$228,NA()) -> 0.9 | AH184: =IF(AH37>0,10^SUM(AH$88:AH113)-AH$227*AH$228,NA()) -> 0.9 | AI184: =IF(AI37>0,10^SUM(AI$88:AI113)-AI$227*AI$228,NA()) -> 0.9 | AJ184: =IF(AJ37>0,10^SUM(AJ$88:AJ113)-AJ$227*AJ$228,NA()) -> 0.9 | AK184: =IF(AK37>0,10^SUM(AK$88:AK113)-AK$227*AK$228,NA()) -> 1.0 | AL184: =IF(AL37>0,10^SUM(AL$88:AL113)-AL$227*AL$228,NA()) -> 1.0 | AM184: =IF(AM37>0,10^SUM(AM$88:AM113)-AM$227*AM$228,NA()) -> 1.0 | AN184: =IF(AN37>0,10^SUM(AN$88:AN113)-AN$227*AN$228,NA()) -> 0.9 | AO184: =IF(AO37>0,10^SUM(AO$88:AO113)-AO$227*AO$228,NA()) -> 0.9 | AP184: 51
F185: 52 | G185: =IF(G38>0,10^SUM(G$88:G114)-G$227*G$228,NA()) ->  | H185: =IF(H38>0,10^SUM(H$88:H114)-H$227*H$228,NA()) ->  | I185: =IF(I38>0,10^SUM(I$88:I114)-I$227*I$228,NA()) ->  | J185: =IF(J38>0,10^SUM(J$88:J114)-J$227*J$228,NA()) ->  | K185: =IF(K38>0,10^SUM(K$88:K114)-K$227*K$228,NA()) -> 0.9 | L185: =IF(L38>0,10^SUM(L$88:L114)-L$227*L$228,NA()) -> 0.9 | M185: =IF(M38>0,10^SUM(M$88:M114)-M$227*M$228,NA()) ->  | N185: =IF(N38>0,10^SUM(N$88:N114)-N$227*N$228,NA()) ->  | O185: =IF(O38>0,10^SUM(O$88:O114)-O$227*O$228,NA()) ->  | P185: =IF(P38>0,10^SUM(P$88:P114)-P$227*P$228,NA()) -> 0.9 | Q185: =IF(Q38>0,10^SUM(Q$88:Q114)-Q$227*Q$228,NA()) -> 1.0 | R185: =IF(R38>0,10^SUM(R$88:R114)-R$227*R$228,NA()) -> 1.0 | S185: =IF(S38>0,10^SUM(S$88:S114)-S$227*S$228,NA()) -> 0.9 | T185: =IF(T38>0,10^SUM(T$88:T114)-T$227*T$228,NA()) -> 0.9 | U185: =IF(U38>0,10^SUM(U$88:U114)-U$227*U$228,NA()) -> 0.9 | V185: =IF(V38>0,10^SUM(V$88:V114)-V$227*V$228,NA()) -> 0.9 | W185: =IF(W38>0,10^SUM(W$88:W114)-W$227*W$228,NA()) -> 0.9 | X185: =IF(X38>0,10^SUM(X$88:X114)-X$227*X$228,NA()) -> 0.9 | Y185: =IF(Y38>0,10^SUM(Y$88:Y114)-Y$227*Y$228,NA()) -> 0.9 | Z185: =IF(Z38>0,10^SUM(Z$88:Z114)-Z$227*Z$228,NA()) -> 0.9 | AA185: =IF(AA38>0,10^SUM(AA$88:AA114)-AA$227*AA$228,NA()) -> 0.8 | AB185: =IF(AB38>0,10^SUM(AB$88:AB114)-AB$227*AB$228,NA()) -> 0.8 | AC185: =IF(AC38>0,10^SUM(AC$88:AC114)-AC$227*AC$228,NA()) -> 0.8 | AD185: =IF(AD38>0,10^SUM(AD$88:AD114)-AD$227*AD$228,NA()) -> 0.9 | AE185: =IF(AE38>0,10^SUM(AE$88:AE114)-AE$227*AE$228,NA()) -> 0.9 | AF185: =IF(AF38>0,10^SUM(AF$88:AF114)-AF$227*AF$228,NA()) -> 0.9 | AG185: =IF(AG38>0,10^SUM(AG$88:AG114)-AG$227*AG$228,NA()) -> 0.9 | AH185: =IF(AH38>0,10^SUM(AH$88:AH114)-AH$227*AH$228,NA()) -> 0.9 | AI185: =IF(AI38>0,10^SUM(AI$88:AI114)-AI$227*AI$228,NA()) -> 0.9 | AJ185: =IF(AJ38>0,10^SUM(AJ$88:AJ114)-AJ$227*AJ$228,NA()) -> 0.9 | AK185: =IF(AK38>0,10^SUM(AK$88:AK114)-AK$227*AK$228,NA()) -> 1.0 | AL185: =IF(AL38>0,10^SUM(AL$88:AL114)-AL$227*AL$228,NA()) -> 1.0 | AM185: =IF(AM38>0,10^SUM(AM$88:AM114)-AM$227*AM$228,NA()) -> 0.9 | AN185: =IF(AN38>0,10^SUM(AN$88:AN114)-AN$227*AN$228,NA()) -> 0.9 | AO185: =IF(AO38>0,10^SUM(AO$88:AO114)-AO$227*AO$228,NA()) -> 0.9 | AP185: 52
F186: 53 | G186: =IF(G39>0,10^SUM(G$88:G115)-G$227*G$228,NA()) ->  | H186: =IF(H39>0,10^SUM(H$88:H115)-H$227*H$228,NA()) -> 0.9 | I186: =IF(I39>0,10^SUM(I$88:I115)-I$227*I$228,NA()) -> 0.9 | J186: =IF(J39>0,10^SUM(J$88:J115)-J$227*J$228,NA()) -> 0.9 | K186: =IF(K39>0,10^SUM(K$88:K115)-K$227*K$228,NA()) -> 0.9 | L186: =IF(L39>0,10^SUM(L$88:L115)-L$227*L$228,NA()) -> 0.9 | M186: =IF(M39>0,10^SUM(M$88:M115)-M$227*M$228,NA()) -> 0.9 | N186: =IF(N39>0,10^SUM(N$88:N115)-N$227*N$228,NA()) -> 0.9 | O186: =IF(O39>0,10^SUM(O$88:O115)-O$227*O$228,NA()) -> 0.9 | P186: =IF(P39>0,10^SUM(P$88:P115)-P$227*P$228,NA()) -> 0.9 | Q186: =IF(Q39>0,10^SUM(Q$88:Q115)-Q$227*Q$228,NA()) -> 0.9 | R186: =IF(R39>0,10^SUM(R$88:R115)-R$227*R$228,NA()) -> 0.9 | S186: =IF(S39>0,10^SUM(S$88:S115)-S$227*S$228,NA()) -> 0.9 | T186: =IF(T39>0,10^SUM(T$88:T115)-T$227*T$228,NA()) -> 0.9 | U186: =IF(U39>0,10^SUM(U$88:U115)-U$227*U$228,NA()) -> 0.9 | V186: =IF(V39>0,10^SUM(V$88:V115)-V$227*V$228,NA()) -> 0.9 | W186: =IF(W39>0,10^SUM(W$88:W115)-W$227*W$228,NA()) -> 0.9 | X186: =IF(X39>0,10^SUM(X$88:X115)-X$227*X$228,NA()) -> 0.8 | Y186: =IF(Y39>0,10^SUM(Y$88:Y115)-Y$227*Y$228,NA()) -> 0.8 | Z186: =IF(Z39>0,10^SUM(Z$88:Z115)-Z$227*Z$228,NA()) -> 0.8 | AA186: =IF(AA39>0,10^SUM(AA$88:AA115)-AA$227*AA$228,NA()) -> 0.8 | AB186: =IF(AB39>0,10^SUM(AB$88:AB115)-AB$227*AB$228,NA()) -> 0.8 | AC186: =IF(AC39>0,10^SUM(AC$88:AC115)-AC$227*AC$228,NA()) -> 0.8 | AD186: =IF(AD39>0,10^SUM(AD$88:AD115)-AD$227*AD$228,NA()) -> 0.8 | AE186: =IF(AE39>0,10^SUM(AE$88:AE115)-AE$227*AE$228,NA()) -> 0.8 | AF186: =IF(AF39>0,10^SUM(AF$88:AF115)-AF$227*AF$228,NA()) -> 0.8 | AG186: =IF(AG39>0,10^SUM(AG$88:AG115)-AG$227*AG$228,NA()) -> 0.9 | AH186: =IF(AH39>0,10^SUM(AH$88:AH115)-AH$227*AH$228,NA()) -> 0.9 | AI186: =IF(AI39>0,10^SUM(AI$88:AI115)-AI$227*AI$228,NA()) -> 0.9 | AJ186: =IF(AJ39>0,10^SUM(AJ$88:AJ115)-AJ$227*AJ$228,NA()) -> 0.9 | AK186: =IF(AK39>0,10^SUM(AK$88:AK115)-AK$227*AK$228,NA()) -> 0.9 | AL186: =IF(AL39>0,10^SUM(AL$88:AL115)-AL$227*AL$228,NA()) -> 1.0 | AM186: =IF(AM39>0,10^SUM(AM$88:AM115)-AM$227*AM$228,NA()) -> 0.9 | AN186: =IF(AN39>0,10^SUM(AN$88:AN115)-AN$227*AN$228,NA()) -> 0.9 | AO186: =IF(AO39>0,10^SUM(AO$88:AO115)-AO$227*AO$228,NA()) -> 0.9 | AP186: 53
F187: 54 | G187: =IF(G40>0,10^SUM(G$88:G116)-G$227*G$228,NA()) ->  | H187: =IF(H40>0,10^SUM(H$88:H116)-H$227*H$228,NA()) -> 0.9 | I187: =IF(I40>0,10^SUM(I$88:I116)-I$227*I$228,NA()) -> 0.9 | J187: =IF(J40>0,10^SUM(J$88:J116)-J$227*J$228,NA()) -> 0.9 | K187: =IF(K40>0,10^SUM(K$88:K116)-K$227*K$228,NA()) -> 0.9 | L187: =IF(L40>0,10^SUM(L$88:L116)-L$227*L$228,NA()) -> 0.9 | M187: =IF(M40>0,10^SUM(M$88:M116)-M$227*M$228,NA()) -> 0.9 | N187: =IF(N40>0,10^SUM(N$88:N116)-N$227*N$228,NA()) -> 0.9 | O187: =IF(O40>0,10^SUM(O$88:O116)-O$227*O$228,NA()) -> 0.9 | P187: =IF(P40>0,10^SUM(P$88:P116)-P$227*P$228,NA()) -> 0.9 | Q187: =IF(Q40>0,10^SUM(Q$88:Q116)-Q$227*Q$228,NA()) -> 0.9 | R187: =IF(R40>0,10^SUM(R$88:R116)-R$227*R$228,NA()) -> 0.9 | S187: =IF(S40>0,10^SUM(S$88:S116)-S$227*S$228,NA()) -> 0.9 | T187: =IF(T40>0,10^SUM(T$88:T116)-T$227*T$228,NA()) -> 0.9 | U187: =IF(U40>0,10^SUM(U$88:U116)-U$227*U$228,NA()) -> 0.9 | V187: =IF(V40>0,10^SUM(V$88:V116)-V$227*V$228,NA()) -> 0.8 | W187: =IF(W40>0,10^SUM(W$88:W116)-W$227*W$228,NA()) -> 0.8 | X187: =IF(X40>0,10^SUM(X$88:X116)-X$227*X$228,NA()) -> 0.8 | Y187: =IF(Y40>0,10^SUM(Y$88:Y116)-Y$227*Y$228,NA()) -> 0.8 | Z187: =IF(Z40>0,10^SUM(Z$88:Z116)-Z$227*Z$228,NA()) -> 0.8 | AA187: =IF(AA40>0,10^SUM(AA$88:AA116)-AA$227*AA$228,NA()) -> 0.8 | AB187: =IF(AB40>0,10^SUM(AB$88:AB116)-AB$227*AB$228,NA()) -> 0.8 | AC187: =IF(AC40>0,10^SUM(AC$88:AC116)-AC$227*AC$228,NA()) -> 0.8 | AD187: =IF(AD40>0,10^SUM(AD$88:AD116)-AD$227*AD$228,NA()) -> 0.8 | AE187: =IF(AE40>0,10^SUM(AE$88:AE116)-AE$227*AE$228,NA()) -> 0.8 | AF187: =IF(AF40>0,10^SUM(AF$88:AF116)-AF$227*AF$228,NA()) -> 0.8 | AG187: =IF(AG40>0,10^SUM(AG$88:AG116)-AG$227*AG$228,NA()) -> 0.9 | AH187: =IF(AH40>0,10^SUM(AH$88:AH116)-AH$227*AH$228,NA()) -> 0.9 | AI187: =IF(AI40>0,10^SUM(AI$88:AI116)-AI$227*AI$228,NA()) -> 0.9 | AJ187: =IF(AJ40>0,10^SUM(AJ$88:AJ116)-AJ$227*AJ$228,NA()) -> 0.9 | AK187: =IF(AK40>0,10^SUM(AK$88:AK116)-AK$227*AK$228,NA()) -> 0.9 | AL187: =IF(AL40>0,10^SUM(AL$88:AL116)-AL$227*AL$228,NA()) -> 1.0 | AM187: =IF(AM40>0,10^SUM(AM$88:AM116)-AM$227*AM$228,NA()) -> 0.9 | AN187: =IF(AN40>0,10^SUM(AN$88:AN116)-AN$227*AN$228,NA()) -> 0.9 | AO187: =IF(AO40>0,10^SUM(AO$88:AO116)-AO$227*AO$228,NA()) -> 0.9 | AP187: 54
F188: 55 | G188: =IF(G41>0,10^SUM(G$88:G117)-G$227*G$228,NA()) ->  | H188: =IF(H41>0,10^SUM(H$88:H117)-H$227*H$228,NA()) -> 0.9 | I188: =IF(I41>0,10^SUM(I$88:I117)-I$227*I$228,NA()) -> 0.9 | J188: =IF(J41>0,10^SUM(J$88:J117)-J$227*J$228,NA()) ->  | K188: =IF(K41>0,10^SUM(K$88:K117)-K$227*K$228,NA()) ->  | L188: =IF(L41>0,10^SUM(L$88:L117)-L$227*L$228,NA()) -> 0.9 | M188: =IF(M41>0,10^SUM(M$88:M117)-M$227*M$228,NA()) -> 0.9 | N188: =IF(N41>0,10^SUM(N$88:N117)-N$227*N$228,NA()) -> 0.9 | O188: =IF(O41>0,10^SUM(O$88:O117)-O$227*O$228,NA()) -> 0.9 | P188: =IF(P41>0,10^SUM(P$88:P117)-P$227*P$228,NA()) -> 0.9 | Q188: =IF(Q41>0,10^SUM(Q$88:Q117)-Q$227*Q$228,NA()) -> 0.9 | R188: =IF(R41>0,10^SUM(R$88:R117)-R$227*R$228,NA()) -> 0.9 | S188: =IF(S41>0,10^SUM(S$88:S117)-S$227*S$228,NA()) -> 0.9 | T188: =IF(T41>0,10^SUM(T$88:T117)-T$227*T$228,NA()) -> 0.9 | U188: =IF(U41>0,10^SUM(U$88:U117)-U$227*U$228,NA()) -> 0.9 | V188: =IF(V41>0,10^SUM(V$88:V117)-V$227*V$228,NA()) -> 0.8 | W188: =IF(W41>0,10^SUM(W$88:W117)-W$227*W$228,NA()) -> 0.8 | X188: =IF(X41>0,10^SUM(X$88:X117)-X$227*X$228,NA()) -> 0.8 | Y188: =IF(Y41>0,10^SUM(Y$88:Y117)-Y$227*Y$228,NA()) -> 0.8 | Z188: =IF(Z41>0,10^SUM(Z$88:Z117)-Z$227*Z$228,NA()) -> 0.8 | AA188: =IF(AA41>0,10^SUM(AA$88:AA117)-AA$227*AA$228,NA()) -> 0.8 | AB188: =IF(AB41>0,10^SUM(AB$88:AB117)-AB$227*AB$228,NA()) -> 0.8 | AC188: =IF(AC41>0,10^SUM(AC$88:AC117)-AC$227*AC$228,NA()) -> 0.8 | AD188: =IF(AD41>0,10^SUM(AD$88:AD117)-AD$227*AD$228,NA()) -> 0.8 | AE188: =IF(AE41>0,10^SUM(AE$88:AE117)-AE$227*AE$228,NA()) -> 0.8 | AF188: =IF(AF41>0,10^SUM(AF$88:AF117)-AF$227*AF$228,NA()) -> 0.8 | AG188: =IF(AG41>0,10^SUM(AG$88:AG117)-AG$227*AG$228,NA()) -> 0.9 | AH188: =IF(AH41>0,10^SUM(AH$88:AH117)-AH$227*AH$228,NA()) -> 0.9 | AI188: =IF(AI41>0,10^SUM(AI$88:AI117)-AI$227*AI$228,NA()) -> 0.9 | AJ188: =IF(AJ41>0,10^SUM(AJ$88:AJ117)-AJ$227*AJ$228,NA()) -> 0.9 | AK188: =IF(AK41>0,10^SUM(AK$88:AK117)-AK$227*AK$228,NA()) -> 0.9 | AL188: =IF(AL41>0,10^SUM(AL$88:AL117)-AL$227*AL$228,NA()) -> 0.9 | AM188: =IF(AM41>0,10^SUM(AM$88:AM117)-AM$227*AM$228,NA()) -> 0.9 | AN188: =IF(AN41>0,10^SUM(AN$88:AN117)-AN$227*AN$228,NA()) -> 0.9 | AO188: =IF(AO41>0,10^SUM(AO$88:AO117)-AO$227*AO$228,NA()) -> 0.9 | AP188: 55
F189: 56 | G189: =IF(G42>0,10^SUM(G$88:G118)-G$227*G$228,NA()) -> 0.9 | H189: =IF(H42>0,10^SUM(H$88:H118)-H$227*H$228,NA()) -> 0.8 | I189: =IF(I42>0,10^SUM(I$88:I118)-I$227*I$228,NA()) -> 0.8 | J189: =IF(J42>0,10^SUM(J$88:J118)-J$227*J$228,NA()) -> 0.9 | K189: =IF(K42>0,10^SUM(K$88:K118)-K$227*K$228,NA()) -> 0.9 | L189: =IF(L42>0,10^SUM(L$88:L118)-L$227*L$228,NA()) -> 0.9 | M189: =IF(M42>0,10^SUM(M$88:M118)-M$227*M$228,NA()) -> 0.9 | N189: =IF(N42>0,10^SUM(N$88:N118)-N$227*N$228,NA()) -> 0.9 | O189: =IF(O42>0,10^SUM(O$88:O118)-O$227*O$228,NA()) -> 0.9 | P189: =IF(P42>0,10^SUM(P$88:P118)-P$227*P$228,NA()) -> 0.9 | Q189: =IF(Q42>0,10^SUM(Q$88:Q118)-Q$227*Q$228,NA()) -> 0.9 | R189: =IF(R42>0,10^SUM(R$88:R118)-R$227*R$228,NA()) -> 0.9 | S189: =IF(S42>0,10^SUM(S$88:S118)-S$227*S$228,NA()) -> 0.9 | T189: =IF(T42>0,10^SUM(T$88:T118)-T$227*T$228,NA()) -> 0.9 | U189: =IF(U42>0,10^SUM(U$88:U118)-U$227*U$228,NA()) -> 0.8 | V189: =IF(V42>0,10^SUM(V$88:V118)-V$227*V$228,NA()) -> 0.8 | W189: =IF(W42>0,10^SUM(W$88:W118)-W$227*W$228,NA()) -> 0.8 | X189: =IF(X42>0,10^SUM(X$88:X118)-X$227*X$228,NA()) -> 0.8 | Y189: =IF(Y42>0,10^SUM(Y$88:Y118)-Y$227*Y$228,NA()) -> 0.8 | Z189: =IF(Z42>0,10^SUM(Z$88:Z118)-Z$227*Z$228,NA()) -> 0.8 | AA189: =IF(AA42>0,10^SUM(AA$88:AA118)-AA$227*AA$228,NA()) -> 0.8 | AB189: =IF(AB42>0,10^SUM(AB$88:AB118)-AB$227*AB$228,NA()) -> 0.8 | AC189: =IF(AC42>0,10^SUM(AC$88:AC118)-AC$227*AC$228,NA()) -> 0.8 | AD189: =IF(AD42>0,10^SUM(AD$88:AD118)-AD$227*AD$228,NA()) -> 0.8 | AE189: =IF(AE42>0,10^SUM(AE$88:AE118)-AE$227*AE$228,NA()) -> 0.8 | AF189: =IF(AF42>0,10^SUM(AF$88:AF118)-AF$227*AF$228,NA()) -> 0.8 | AG189: =IF(AG42>0,10^SUM(AG$88:AG118)-AG$227*AG$228,NA()) -> 0.8 | AH189: =IF(AH42>0,10^SUM(AH$88:AH118)-AH$227*AH$228,NA()) -> 0.9 | AI189: =IF(AI42>0,10^SUM(AI$88:AI118)-AI$227*AI$228,NA()) -> 0.9 | AJ189: =IF(AJ42>0,10^SUM(AJ$88:AJ118)-AJ$227*AJ$228,NA()) -> 0.9 | AK189: =IF(AK42>0,10^SUM(AK$88:AK118)-AK$227*AK$228,NA()) -> 0.9 | AL189: =IF(AL42>0,10^SUM(AL$88:AL118)-AL$227*AL$228,NA()) -> 0.9 | AM189: =IF(AM42>0,10^SUM(AM$88:AM118)-AM$227*AM$228,NA()) -> 0.9 | AN189: =IF(AN42>0,10^SUM(AN$88:AN118)-AN$227*AN$228,NA()) -> 0.9 | AO189: =IF(AO42>0,10^SUM(AO$88:AO118)-AO$227*AO$228,NA()) -> 0.9 | AP189: 56
